Workbook

Sheet Sample IQRs
B1: The Distribution of Sample IQR's
C3: This program simulates the distribution of
C4: sample InterQuartile Ranges (IQR's)
C5: based on repeated samples
C6: drawn from a variety of population patterns
A8: Which population do you want? | D8: 4
A13: What is the sample size n (2-50)? | D13: =E13 -> 18 | E13: 18
A15: How many samples (50-240)? | D15: =E15 -> 200 | E15: 200
A18: The mean and standard deviation | E18: m = | F18: =IF(pop=1,Sheet2!B2,IF(pop=2,Sheet2!E2,IF(pop=3,Sheet2!G2,Sheet2!I2))) -> 70.24
B19: ="of this "&IF(pop=1,"normal",IF(pop=2,"uniform",IF(pop=3,"U-shaped","skewed")))&" population are:" -> of this skewed population are: | E19: s = | F19: =IF(pop=1,Samples!H6,IF(pop=2,Samples!H11,IF(pop=3,Samples!H16,Samples!H21))) -> 3.413
B20: The population IQR is | E20: IQR = | F20: =IF(pop=1,Sheet2!C2,IF(pop=2,Sheet2!F2,(IF(pop=3,Sheet2!H2,Sheet2!J2)))) -> 5.0
A24: ="On "&TEXT(flips,"0")&" samples of size "&TEXT("n","")&" = "&TEXT(n,"0")& " from the " &TEXT(pop_name,"")& " population:" -> On 200 samples of size n = 18 from the skewed population:
C25: ="The mean of the sample IQR's =" -> The mean of the sample IQR's = | F25: =Samples!IN430 -> 4.16
C26: The corresponding standard deviation = | F26: =Samples!IN431 -> 1.552
C28: Run a New Random Sample | E28: FALSE
A31: Click each item below for suggestions and investigations
C32: Item 1
C33: Item 2
C34: Item 3
A38: To access/download all the DIGMath Apps for Statistics
A39: Click this link: | C39: DIGMath for Statistics and Probability
A41: Created by: Sheldon P. Gordon & Florence S. Gordon © 2025
A42: Farmingdale State College NYIT
A43: Development of this module was supported by the
A44: NSF's Division of Undergraduate Education
A45: under grants DUE-0310123 and DUE-0442160.

Sheet Sheet2
B1: Normal data | E1: Uniform data | G1: U-shaped | I1: Skewed data | K1: Samp Pop | R1: freq | S1: % | T1: Bin | U1: Frequency | W1: 2nd chart | X1: Bin | Y1: Freq
A2: mu, sigma,n= | B2: =AVERAGE(B5:B424) -> 68.00 | C2: =_xlfn.QUARTILE.INC(Samples!B2:B424,3)-_xlfn.QUARTILE.INC(Samples!B2:B424,1) -> 4.000 | E2: =AVERAGE(E5:E424) -> 68.41 | F2: =_xlfn.QUARTILE.INC(C5:C424,3)-_xlfn.QUARTILE.INC(C5:C424,1) -> 7.000 | G2: =AVERAGE(G5:G401) -> 67.65 | H2: =_xlfn.QUARTILE.INC(Samples!D2:D424,3)-_xlfn.QUARTILE.INC(Samples!D2:D424,1) -> 9.000 | I2: =AVERAGE(I5:I420) -> 70.24 | J2: =_xlfn.QUARTILE.INC(Samples!E2:E424,3)-_xlfn.QUARTILE.INC(Samples!E2:E424,1) -> 5.000 | R2: =COUNTIF(M1:M1000,"=61") -> 0 | S2: =100*R2/flips -> 0 | T2: 59.5 | U2: =COUNTIF(Samples!G$2:G$425,"=60") -> 3 | V2: =SUM(U$2:U2) -> 3 | X2: 2 | Y2: =COUNTIF(Samples!I$427:IN$427,"<=.5") -> 0
B3: =_xlfn.STDEV.P(B5:B424) -> 2.923 | C3: IQR | E3: =_xlfn.STDEV.P(E6:E424) -> 4.132 | F3: IQR | G3: =_xlfn.STDEV.P(G6:G401) -> 5.075 | H3: IQR | I3: =_xlfn.STDEV.P(I5:I420) -> 3.437 | J3: IQR | P3: For Pop'n Histogram | R3: =COUNTIF(M1:M1000,"=1") -> 0 | S3: 0 | T3: 60.5 | U3: =COUNTIF(Samples!G$2:G$425,"=61") -> 5 | V3: =SUM(U$2:U3) -> 8 | X3: 3 | Y3: =COUNTIF(Samples!I$427:IN$427,"<=1") - COUNTIF(Samples!I$427:IN$427,"<=0.5" ) -> 0
B4: 420 | E4: 424 | G4: 397 | I4: 410 | P4: Pop Freqs | R4: =COUNTIF(M1:M1000,"=2") -> 0 | S4: 0 | T4: 61.5 | U4: =COUNTIF(Samples!G$2:G$425,"=62") -> 6 | V4: =SUM(U$2:U4) -> 14 | X4: 4 | Y4: =COUNTIF(Samples!I$427:IN$427,"<=1.5") - COUNTIF(Samples!I$427:IN$427,"<=1" ) -> 0
A5: 1 | B5: 60 | C5: 61 | D5: 4 | E5: 61 | F5: =COUNTIF(E$5:E$502,"=60") -> 0 | G5: 60 | H5: =COUNTIF(G$5:G$502,"=60") -> 26 | I5: 60 | J5: =COUNTIF(I$5:I$502,"=61") -> 5 | K5: =IF(pop=1,B5,IF(pop=2,E5,IF(pop=3,G5,IF(pop=4,I5)))) -> 60 | P5: 60 | Q5: =COUNTIF(Samples!F$2:F$420,"=60") -> 3 | R5: =COUNTIF(M$1:M$1000,"=3") -> 0 | S5: 0 | T5: 62.5 | U5: =COUNTIF(Samples!G$2:G$425,"=63") -> 15 | V5: =SUM(U$2:U5) -> 29 | X5: 5 | Y5: =COUNTIF(Samples!I$427:IN$427,"<=2") - COUNTIF(Samples!I$427:IN$427,"<=1.5" ) -> 13
A6: 2 | B6: 60 | C6: 62 | D6: 12 | E6: 61 | F6: =COUNTIF(E$5:E$502,"=61") -> 23 | G6: 60 | H6: =COUNTIF(G$5:G$502,"=61") -> 22 | I6: 60 | J6: =COUNTIF(I$5:I$502,"=62") -> 6 | K6: 60 | P6: 61 | Q6: =COUNTIF(Samples!F$2:F$420,"=61") -> 5 | R6: =COUNTIF(M$1:M$1000,"=4") -> 0 | S6: 0 | T6: 63.5 | U6: =COUNTIF(Samples!G$2:G$425,"=64") -> 11 | V6: =SUM(U$2:U6) -> 40 | X6: 6 | Y6: =COUNTIF(Samples!I$427:IN$427,"<=2.5") - COUNTIF(Samples!I$427:IN$427,"<=2" ) -> 21
A7: 3 | B7: 60 | C7: 63 | D7: 6 | E7: 61 | F7: =COUNTIF(E$5:E$502,"=62") -> 28 | G7: 60 | H7: =COUNTIF(G$5:G$502,"=62") -> 35 | I7: 71 | J7: =COUNTIF(I$5:I$502,"=63") -> 15 | K7: 71 | P7: 62 | Q7: =COUNTIF(Samples!F$2:F$420,"=62") -> 6 | R7: =COUNTIF(M$1:M$1000,"=5") -> 0 | S7: 0 | T7: 64.5 | U7: =COUNTIF(Samples!G$2:G$425,"=65") -> 10 | V7: =SUM(U$2:U7) -> 50 | X7: 7 | Y7: =COUNTIF(Samples!I$427:IN$427,"<=3") - COUNTIF(Samples!I$427:IN$427,"<=2.5" ) -> 37
A8: 4 | B8: 60 | C8: 64 | D8: 16 | E8: 61 | F8: =COUNTIF(E$5:E$502,"=63") -> 19 | G8: 60 | H8: =COUNTIF(G$5:G$502,"=63") -> 44 | I8: 71 | J8: =COUNTIF(I$5:I$502,"=64") -> 11 | K8: 71 | P8: 63 | Q8: =COUNTIF(Samples!F$2:F$420,"=63") -> 15 | R8: =COUNTIF(M$1:M$1000,"=6") -> 0 | S8: 0 | T8: 65.5 | U8: =COUNTIF(Samples!G$2:G$425,"=66") -> 15 | V8: =SUM(U$2:U8) -> 65 | X8: 8 | Y8: =COUNTIF(Samples!I$427:IN$427,"<=3.5") - COUNTIF(Samples!I$427:IN$427,"<=3" ) -> 18
A9: 5 | B9: 61 | C9: 65 | D9: 28 | E9: 61 | F9: =COUNTIF(E$5:E$502,"=64") -> 24 | G9: 60 | H9: =COUNTIF(G$5:G$502,"=64") -> 36 | I9: 60 | J9: =COUNTIF(I$5:I$502,"=65") -> 10 | K9: 60 | P9: 64 | Q9: =COUNTIF(Samples!F$2:F$420,"=64") -> 11 | R9: =COUNTIF(M$1:M$1000,"=7") -> 0 | S9: 0 | T9: 66.5 | U9: =COUNTIF(Samples!G$2:G$425,"=67") -> 14 | V9: =SUM(U$2:U9) -> 79 | X9: 9 | Y9: =COUNTIF(Samples!I$427:IN$427,"<=4") - COUNTIF(Samples!I$427:IN$427,"<=3.5" ) -> 28
A10: 6 | B10: 61 | C10: 66 | D10: 54 | E10: 61 | F10: =COUNTIF(E$5:E$502,"=65") -> 25 | G10: 60 | H10: =COUNTIF(G$5:G$502,"=65") -> 21 | I10: 61 | J10: =COUNTIF(I$5:I$502,"=66") -> 15 | K10: 61 | P10: 65 | Q10: =COUNTIF(Samples!F$2:F$420,"=65") -> 10 | R10: =COUNTIF(M$1:M$1000,"=8") -> 0 | S10: 0 | T10: 67.5 | U10: =COUNTIF(Samples!G$2:G$425,"=68") -> 23 | V10: =SUM(U$2:U10) -> 102 | X10: 10 | Y10: =COUNTIF(Samples!I$427:IN$427,"<=4.5") - COUNTIF(Samples!I$427:IN$427,"<=4" ) -> 21
A11: 7 | B11: 61 | C11: 67 | D11: 60 | E11: 61 | F11: =COUNTIF(E$5:E$502,"=66") -> 27 | G11: 60 | H11: =COUNTIF(G$5:G$502,"=66") -> 7 | I11: 61 | J11: =COUNTIF(I$5:I$502,"=67") -> 14 | K11: 61 | P11: 66 | Q11: =COUNTIF(Samples!F$2:F$420,"=66") -> 15 | R11: =COUNTIF(M$1:M$1000,"=9") -> 0 | S11: 0 | T11: 68.5 | U11: =COUNTIF(Samples!G$2:G$425,"=69") -> 20 | V11: =SUM(U$2:U11) -> 122 | X11: 11 | Y11: =COUNTIF(Samples!I$427:IN$427,"<=5") - COUNTIF(Samples!I$427:IN$427,"<=4.5" ) -> 20
A12: 8 | B12: 61 | C12: 68 | D12: 70 | E12: 61 | F12: =COUNTIF(E$5:E$502,"=67") -> 21 | G12: 60 | H12: =COUNTIF(G$5:G$502,"=67") -> 8 | I12: 61 | J12: =COUNTIF(I$5:I$502,"=68") -> 23 | K12: 61 | P12: 67 | Q12: =COUNTIF(Samples!F$2:F$420,"=67") -> 14 | R12: =COUNTIF(M$1:M$1000,"=10") -> 0 | S12: 0 | T12: 69.5 | U12: =COUNTIF(Samples!G$2:G$425,"=70") -> 54 | V12: =SUM(U$2:U12) -> 176 | X12: 12 | Y12: =COUNTIF(Samples!I$427:IN$427,"<=5.5") - COUNTIF(Samples!I$427:IN$427,"<=5" ) -> 12
A13: 9 | B13: 61 | C13: 69 | D13: 56 | E13: 61 | F13: =COUNTIF(E$5:E$502,"=68") -> 29 | G13: 60 | H13: =COUNTIF(G$5:G$502,"=68") -> 3 | I13: 61 | J13: =COUNTIF(I$5:I$502,"=69") -> 20 | K13: 61 | P13: 68 | Q13: =COUNTIF(Samples!F$2:F$420,"=68") -> 23 | R13: =COUNTIF(M$1:M$1000,"=11") -> 0 | S13: 0 | T13: 70.5 | U13: =COUNTIF(Samples!G$2:G$425,"=71") -> 52 | V13: =SUM(U$2:U13) -> 228 | X13: 13 | Y13: =COUNTIF(Samples!I$427:IN$427,"<=6") - COUNTIF(Samples!I$427:IN$427,"<=5.5" ) -> 10
A14: 10 | B14: 61 | C14: 70 | D14: 32 | E14: 61 | F14: =COUNTIF(E$5:E$502,"=69") -> 34 | G14: 60 | H14: =COUNTIF(G$5:G$502,"=69") -> 0 | I14: 61 | J14: =COUNTIF(I$5:I$502,"=70") -> 54 | K14: 61 | P14: 69 | Q14: =COUNTIF(Samples!F$2:F$420,"=69") -> 20 | R14: =COUNTIF(M$1:M$1000,"=12") -> 0 | S14: 0 | T14: 71.5 | U14: =COUNTIF(Samples!G$2:G$425,"=72") -> 60 | V14: =SUM(U$2:U14) -> 288 | X14: 14 | Y14: =COUNTIF(Samples!I$427:IN$427,"<=6.5") - COUNTIF(Samples!I$427:IN$427,"<=6" ) -> 6
A15: 11 | B15: 61 | C15: 71 | D15: 28 | E15: 61 | F15: =COUNTIF(E$5:E$502,"=70") -> 29 | G15: 60 | H15: =COUNTIF(G$5:G$502,"=70") -> 17 | I15: 71 | J15: =COUNTIF(I$5:I$502,"=71") -> 52 | K15: 71 | P15: 70 | Q15: =COUNTIF(Samples!F$2:F$420,"=70") -> 54 | R15: =COUNTIF(M$1:M$1000,"=13") -> 0 | S15: 0 | T15: 72.5 | U15: =COUNTIF(Samples!G$2:G$425,"=73") -> 54 | V15: =SUM(U$2:U15) -> 342 | X15: 15 | Y15: =COUNTIF(Samples!I$427:IN$427,"<=7") - COUNTIF(Samples!I$427:IN$427,"<=6.5" ) -> 7
A16: 12 | B16: 61 | C16: 72 | D16: 20 | E16: 61 | F16: =COUNTIF(E$5:E$502,"=71") -> 44 | G16: 60 | H16: =COUNTIF(G$5:G$502,"=71") -> 34 | I16: 71 | J16: =COUNTIF(I$5:I$502,"=72") -> 60 | K16: 71 | P16: 71 | Q16: =COUNTIF(Samples!F$2:F$420,"=71") -> 52 | R16: =COUNTIF(M$1:M$1000,"=14") -> 0 | S16: 0 | T16: 73.5 | U16: =COUNTIF(Samples!G$2:G$425,"=74") -> 62 | V16: =SUM(U$2:U16) -> 404 | X16: 16 | Y16: =COUNTIF(Samples!I$427:IN$427,"<=7.5") - COUNTIF(Samples!I$427:IN$427,"<=7" ) -> 1
A17: 13 | B17: 61 | C17: 73 | D17: 18 | E17: 61 | F17: =COUNTIF(E$5:E$502,"=72") -> 37 | G17: 60 | H17: =COUNTIF(G$5:G$502,"=72") -> 45 | I17: 71 | J17: =COUNTIF(I$5:I$502,"=73") -> 54 | K17: 71 | P17: 72 | Q17: =COUNTIF(Samples!F$2:F$420,"=72") -> 60 | R17: =COUNTIF($M$1:$M$1000,"=15") -> 0 | S17: 0 | T17: 74.5 | U17: =COUNTIF(Samples!G$2:G$425,"=75") -> 0 | V17: =SUM(U$2:U17) -> 404 | X17: 17 | Y17: =COUNTIF(Samples!I$427:IN$427,"<=8") - COUNTIF(Samples!I$427:IN$427,"<=7.5" ) -> 2
A18: 14 | B18: 61 | C18: 74 | D18: 12 | E18: 61 | F18: =COUNTIF(E$5:E$502,"=73") -> 28 | G18: 60 | H18: =COUNTIF(G$5:G$502,"=73") -> 41 | I18: 71 | J18: =COUNTIF(I$5:I$502,"=74") -> 62 | K18: 71 | P18: 73 | Q18: =COUNTIF(Samples!F$2:F$420,"=73") -> 54 | R18: =COUNTIF($M$1:$M$1000,"=16") -> 0 | S18: 0 | T18: 75.5 | U18: =COUNTIF(Samples!G$2:G$425,"=76") -> 0 | V18: =SUM(U$2:U18) -> 404 | X18: 18 | Y18: =COUNTIF(Samples!I$427:IN$427,"<=8.5") - COUNTIF(Samples!I$427:IN$427,"<=8" ) -> 1
A19: 15 | B19: 61 | C19: 75 | D19: 4 | E19: 61 | F19: =COUNTIF(E$5:E$502,"=74") -> 35 | G19: 60 | H19: =COUNTIF(G$5:G$502,"=74") -> 43 | I19: 71 | J19: =COUNTIF(I$5:I$502,"=75") -> 6 | K19: 71 | P19: 74 | Q19: =COUNTIF(Samples!F$2:F$420,"=74") -> 62
A20: 16 | B20: 61 | E20: 61 | F20: =COUNTIF(E$5:E$502,"=75") -> 21 | G20: 60 | H20: =COUNTIF(G$5:G$502,"=75") -> 15 | I20: 71 | K20: 71 | P20: 75 | Q20: =COUNTIF(Samples!F$2:F$422,"=75") -> 0
A21: 17 | B21: 62 | E21: 61 | G21: 60 | I21: 62 | K21: 62 | N21: pop= | O21: =IF(pop=1,"normal",IF(pop=2,"uniform",IF(pop=3,"U-shaped","skewed"))) -> skewed
A22: 18 | B22: 62 | E22: 61 | G22: 60 | I22: 62 | K22: 62 | N22: pop n= | O22: =IF(pop=1, 420,IF(pop=2,424,IF(pop=3,397,410))) -> 410
A23: 19 | B23: 62 | E23: 61 | G23: 70 | I23: 71 | K23: 71 | O23: =IF(pop=1, 420,IF(pop=2,424,IF(pop=3,397,410))) -> 410
A24: 20 | B24: 62 | E24: 61 | G24: 70 | I24: 71 | K24: 71
A25: 21 | B25: 63 | E25: 61 | G25: 60 | I25: 62 | K25: 62
A26: 22 | B26: 63 | E26: 61 | G26: 70 | I26: 71 | K26: 71
A27: 23 | B27: 64 | E27: 61 | G27: 60 | I27: 62 | K27: 62
A28: 24 | B28: 64 | E28: 62 | G28: 60 | I28: 62 | K28: 62 | Q28: New Sample = | S28: ='Sample IQRs'!D28 -> 0
A29: 25 | B29: 64 | E29: 62 | G29: 60 | I29: 62 | K29: 62
A30: 26 | B30: 64 | E30: 62 | G30: 60 | I30: 63 | K30: 63
A31: 27 | B31: 64 | E31: 62 | G31: 60 | I31: 63 | K31: 63
A32: 28 | B32: 64 | E32: 62 | G32: 60 | I32: 63 | K32: 63
A33: 29 | B33: 64 | E33: 62 | G33: 60 | I33: 63 | K33: 63
A34: 30 | B34: 64 | E34: 62 | G34: 61 | I34: 63 | K34: 63
A35: 31 | B35: 64 | E35: 62 | G35: 70 | I35: 71 | K35: 71
A36: 32 | B36: 64 | E36: 62 | G36: 70 | I36: 71 | K36: 71
A37: 33 | B37: 64 | E37: 62 | G37: 70 | I37: 71 | K37: 71
A38: 34 | B38: 64 | E38: 62 | G38: 70 | I38: 71 | K38: 71
A39: 35 | B39: 64 | E39: 62 | G39: 70 | I39: 71 | K39: 71
A40: 36 | B40: 64 | E40: 62 | G40: 70 | I40: 71 | K40: 71
A41: 37 | B41: 64 | E41: 62 | G41: 70 | I41: 71 | K41: 71
A42: 38 | B42: 64 | E42: 62 | G42: 70 | I42: 71 | K42: 71
A43: 39 | B43: 65 | E43: 62 | G43: 61 | I43: 63 | K43: 63
A44: 40 | B44: 65 | E44: 62 | G44: 61 | I44: 63 | K44: 63
A45: 41 | B45: 65 | E45: 62 | G45: 61 | I45: 63 | K45: 63
A46: 42 | B46: 65 | E46: 62 | G46: 61 | I46: 63 | K46: 63
A47: 43 | B47: 65 | E47: 62 | G47: 61 | I47: 63 | K47: 63
A48: 44 | B48: 65 | E48: 62 | G48: 61 | I48: 63 | K48: 63
A49: 45 | B49: 65 | E49: 62 | G49: 61 | I49: 63 | K49: 63
A50: 46 | B50: 65 | E50: 62 | G50: 61 | I50: 63 | K50: 63
A51: 47 | B51: 65 | E51: 62 | G51: 61 | I51: 63 | K51: 63
A52: 48 | B52: 65 | E52: 62 | G52: 61 | I52: 63 | K52: 63
A53: 49 | B53: 65 | E53: 62 | G53: 61 | I53: 64 | K53: 64
A54: 50 | B54: 65 | E54: 62 | G54: 61 | I54: 64 | K54: 64
A55: 51 | B55: 65 | E55: 62 | G55: 61 | I55: 64 | K55: 64
A56: 52 | B56: 65 | E56: 63 | G56: 61 | I56: 64 | K56: 64
A57: 53 | B57: 65 | E57: 63 | G57: 61 | I57: 64 | K57: 64
A58: 54 | B58: 65 | E58: 63 | G58: 70 | I58: 71 | K58: 71
A59: 55 | B59: 65 | E59: 63 | G59: 70 | I59: 71 | K59: 71
A60: 56 | B60: 65 | E60: 63 | G60: 70 | I60: 71 | K60: 71
A61: 57 | B61: 65 | E61: 63 | G61: 70 | I61: 71 | K61: 71
A62: 58 | B62: 65 | E62: 63 | G62: 70 | I62: 71 | K62: 71
A63: 59 | B63: 65 | E63: 63 | G63: 70 | I63: 71 | K63: 71
A64: 60 | B64: 65 | E64: 63 | G64: 71 | I64: 72 | K64: 72
A65: 61 | B65: 65 | E65: 63 | G65: 71 | I65: 72 | K65: 72
A66: 62 | B66: 65 | E66: 63 | G66: 71 | I66: 72 | K66: 72
A67: 63 | B67: 65 | E67: 63 | G67: 71 | I67: 72 | K67: 72
A68: 64 | B68: 65 | E68: 63 | G68: 71 | I68: 72 | K68: 72
A69: 65 | B69: 65 | E69: 63 | G69: 71 | I69: 72 | K69: =IF(pop=1,B69,IF(pop=2,E69,IF(pop=3,G69,IF(pop=4,I69)))) -> 72
A70: 66 | B70: 65 | E70: 63 | G70: 71 | I70: 72 | K70: 72
A71: 67 | B71: 65 | E71: 63 | G71: 71 | I71: 72 | K71: 72
A72: 68 | B72: 65 | E72: 63 | G72: 71 | I72: 72 | K72: 72
A73: 69 | B73: 66 | E73: 63 | G73: 61 | I73: 64 | K73: 64
A74: 70 | B74: 66 | E74: 63 | G74: 61 | I74: 64 | K74: 64
A75: 71 | B75: 66 | E75: 64 | G75: 61 | I75: 64 | K75: 64
A76: 72 | B76: 66 | E76: 64 | G76: 61 | I76: 64 | K76: 64
A77: 73 | B77: 66 | E77: 64 | G77: 61 | I77: 64 | K77: 64
A78: 74 | B78: 66 | E78: 64 | G78: 61 | I78: 64 | K78: 64
A79: 75 | B79: 66 | E79: 64 | G79: 62 | I79: 65 | K79: 65
A80: 76 | B80: 66 | E80: 64 | G80: 62 | I80: 65 | K80: 65
A81: 77 | B81: 66 | E81: 64 | G81: 62 | I81: 65 | K81: 65
A82: 78 | B82: 66 | E82: 64 | G82: 62 | I82: 65 | K82: 65
A83: 79 | B83: 66 | E83: 64 | G83: 62 | I83: 65 | K83: 65
A84: 80 | B84: 66 | E84: 64 | G84: 62 | I84: 65 | K84: 65
A85: 81 | B85: 66 | E85: 64 | G85: 62 | I85: 65 | K85: 65
A86: 82 | B86: 66 | E86: 64 | G86: 62 | I86: 65 | K86: 65
A87: 83 | B87: 66 | E87: 64 | G87: 62 | I87: 65 | K87: 65
A88: 84 | B88: 66 | E88: 64 | G88: 62 | I88: 65 | K88: 65
A89: 85 | B89: 66 | E89: 64 | G89: 62 | I89: 66 | K89: 66
A90: 86 | B90: 66 | E90: 64 | G90: 62 | I90: 66 | K90: 66
A91: 87 | B91: 66 | E91: 64 | G91: 62 | I91: 66 | K91: 66
A92: 88 | B92: 66 | E92: 64 | G92: 62 | I92: 66 | K92: 66
A93: 89 | B93: 66 | E93: 64 | G93: 62 | I93: 66 | K93: 66
A94: 90 | B94: 66 | E94: 64 | G94: 62 | I94: 66 | K94: 66
A95: 91 | B95: 66 | E95: 64 | G95: 62 | I95: 66 | K95: 66
A96: 92 | B96: 66 | E96: 64 | G96: 62 | I96: 66 | K96: 66
A97: 93 | B97: 66 | E97: 64 | G97: 62 | I97: 66 | K97: 66
A98: 94 | B98: 66 | E98: 64 | G98: 62 | I98: 66 | K98: 66
A99: 95 | B99: 66 | E99: 65 | G99: 62 | I99: 66 | K99: 66
A100: 96 | B100: 66 | E100: 65 | G100: 71 | I100: 72 | K100: 72
A101: 97 | B101: 66 | E101: 65 | G101: 71 | I101: 72 | K101: 72
A102: 98 | B102: 66 | E102: 65 | G102: 71 | I102: 72 | K102: 72
A103: 99 | B103: 66 | E103: 65 | G103: 71 | I103: 72 | K103: 72
A104: 100 | B104: 66 | E104: 65 | G104: 71 | I104: 72 | K104: 72
A105: 101 | B105: 66 | E105: 65 | G105: 71 | I105: 72 | K105: 72
A106: 102 | B106: 66 | E106: 65 | G106: 71 | I106: 72 | K106: 72
A107: 103 | B107: 66 | E107: 65 | G107: 71 | I107: 72 | K107: 72
A108: 104 | B108: 66 | E108: 65 | G108: 71 | I108: 72 | K108: 72
A109: 105 | B109: 66 | E109: 65 | G109: 71 | I109: 72 | K109: 72
A110: 106 | B110: 66 | E110: 65 | G110: 71 | I110: 72 | K110: 72
A111: 107 | B111: 66 | E111: 65 | G111: 71 | I111: 72 | K111: 72
A112: 108 | B112: 66 | E112: 65 | G112: 71 | I112: 72 | K112: 72
A113: 109 | B113: 66 | E113: 65 | G113: 71 | I113: 72 | K113: 72
A114: 110 | B114: 66 | E114: 65 | G114: 71 | I114: 72 | K114: 72
A115: 111 | B115: 66 | E115: 65 | G115: 71 | I115: 72 | K115: 72
A116: 112 | B116: 66 | E116: 65 | G116: 71 | I116: 72 | K116: 72
A117: 113 | B117: 66 | E117: 65 | G117: 71 | I117: 72 | K117: 72
A118: 114 | B118: 66 | E118: 65 | G118: 71 | I118: 72 | K118: 72
A119: 115 | B119: 66 | E119: 65 | G119: 71 | I119: 72 | K119: 72
A120: 116 | B120: 66 | E120: 65 | G120: 71 | I120: 72 | K120: 72
A121: 117 | B121: 66 | E121: 65 | G121: 71 | I121: 72 | K121: 72
A122: 118 | B122: 66 | E122: 65 | G122: 71 | I122: 72 | K122: 72
A123: 119 | B123: 66 | E123: 65 | G123: 71 | I123: 72 | K123: 72
A124: 120 | B124: 66 | E124: 66 | G124: 71 | I124: 72 | K124: 72
A125: 121 | B125: 66 | E125: 66 | G125: 72 | I125: 72 | K125: 72
A126: 122 | B126: 66 | E126: 66 | G126: 72 | I126: 72 | K126: 72
A127: 123 | B127: 67 | E127: 66 | G127: 62 | I127: 66 | K127: 66
A128: 124 | B128: 67 | E128: 66 | G128: 62 | I128: 66 | K128: 66
A129: 125 | B129: 67 | E129: 66 | G129: 62 | I129: 66 | K129: 66
A130: 126 | B130: 67 | E130: 66 | G130: 62 | I130: 66 | K130: 66
A131: 127 | B131: 67 | E131: 66 | G131: 62 | I131: 67 | K131: 67
A132: 128 | B132: 67 | E132: 66 | G132: 62 | I132: 67 | K132: 67
A133: 129 | B133: 67 | E133: 66 | G133: 62 | I133: 67 | K133: =IF(pop=1,B133,IF(pop=2,E133,IF(pop=3,G133,IF(pop=4,I133)))) -> 67
A134: 130 | B134: 67 | E134: 66 | G134: 62 | I134: 67 | K134: 67
A135: 131 | B135: 67 | E135: 66 | G135: 62 | I135: 67 | K135: 67
A136: 132 | B136: 67 | E136: 66 | G136: 62 | I136: 67 | K136: 67
A137: 133 | B137: 67 | E137: 66 | G137: 62 | I137: 67 | K137: 67
A138: 134 | B138: 67 | E138: 66 | G138: 62 | I138: 67 | K138: 67
A139: 135 | B139: 67 | E139: 66 | G139: 62 | I139: 67 | K139: 67
A140: 136 | B140: 67 | E140: 66 | G140: 62 | I140: 67 | K140: 67
A141: 137 | B141: 67 | E141: 66 | G141: 63 | I141: 67 | K141: 67
A142: 138 | B142: 67 | E142: 66 | G142: 63 | I142: 67 | K142: 67
A143: 139 | B143: 67 | E143: 66 | G143: 63 | I143: 67 | K143: 67
A144: 140 | B144: 67 | E144: 66 | G144: 63 | I144: 67 | K144: 67
A145: 141 | B145: 67 | E145: 66 | G145: 63 | I145: 68 | K145: 68
A146: 142 | B146: 67 | E146: 66 | G146: 63 | I146: 68 | K146: 68
A147: 143 | B147: 67 | E147: 66 | G147: 63 | I147: 68 | K147: 68
A148: 144 | B148: 67 | E148: 66 | G148: 63 | I148: 68 | K148: 68
A149: 145 | B149: 67 | E149: 66 | G149: 63 | I149: 68 | K149: 68
A150: 146 | B150: 67 | E150: 66 | G150: 63 | I150: 68 | K150: 68
A151: 147 | B151: 67 | E151: 67 | G151: 63 | I151: 68 | K151: 68
A152: 148 | B152: 67 | E152: 67 | G152: 63 | I152: 68 | K152: 68
A153: 149 | B153: 67 | E153: 67 | G153: 63 | I153: 68 | K153: 68
A154: 150 | B154: 67 | E154: 67 | G154: 63 | I154: 68 | K154: 68
A155: 151 | B155: 67 | E155: 67 | G155: 63 | I155: 68 | K155: 68
A156: 152 | B156: 67 | E156: 67 | G156: 63 | I156: 68 | K156: 68
A157: 153 | B157: 67 | E157: 67 | G157: 72 | I157: 72 | K157: 72
A158: 154 | B158: 67 | E158: 67 | G158: 72 | I158: 72 | K158: 72
A159: 155 | B159: 67 | E159: 67 | G159: 72 | I159: 72 | K159: 72
A160: 156 | B160: 67 | E160: 67 | G160: 72 | I160: 72 | K160: 72
A161: 157 | B161: 67 | E161: 67 | G161: 72 | I161: 72 | K161: 72
A162: 158 | B162: 67 | E162: 67 | G162: 72 | I162: 72 | K162: 72
A163: 159 | B163: 67 | E163: 67 | G163: 72 | I163: 72 | K163: 72
A164: 160 | B164: 67 | E164: 67 | G164: 72 | I164: 72 | K164: 72
A165: 161 | B165: 67 | E165: 67 | G165: 72 | I165: 72 | K165: 72
A166: 162 | B166: 67 | E166: 67 | G166: 72 | I166: 72 | K166: 72
A167: 163 | B167: 67 | E167: 67 | G167: 72 | I167: 72 | K167: 72
A168: 164 | B168: 67 | E168: 67 | G168: 72 | I168: 72 | K168: 72
A169: 165 | B169: 67 | E169: 67 | G169: 72 | I169: 72 | K169: 72
A170: 166 | B170: 67 | E170: 67 | G170: 72 | I170: 72 | K170: 72
A171: 167 | B171: 67 | E171: 67 | G171: 72 | I171: 72 | K171: 72
A172: 168 | B172: 67 | E172: 68 | G172: 72 | I172: 72 | K172: 72
A173: 169 | B173: 67 | E173: 68 | G173: 72 | I173: 72 | K173: 72
A174: 170 | B174: 67 | E174: 68 | G174: 72 | I174: 72 | K174: 72
A175: 171 | B175: 67 | E175: 68 | G175: 72 | I175: 72 | K175: 72
A176: 172 | B176: 67 | E176: 68 | G176: 72 | I176: 72 | K176: 72
A177: 173 | B177: 67 | E177: 68 | G177: 72 | I177: 72 | K177: 72
A178: 174 | B178: 67 | E178: 68 | G178: 72 | I178: 72 | K178: 72
A179: 175 | B179: 67 | E179: 68 | G179: 72 | I179: 72 | K179: 72
A180: 176 | B180: 67 | E180: 68 | G180: 72 | I180: 72 | K180: 72
A181: 177 | B181: 67 | E181: 68 | G181: 72 | I181: 73 | K181: 73
A182: 178 | B182: 67 | E182: 68 | G182: 72 | I182: 73 | K182: 73
A183: 179 | B183: 67 | E183: 68 | G183: 72 | I183: 73 | K183: 73
A184: 180 | B184: 67 | E184: 68 | G184: 72 | I184: 73 | K184: 73
A185: 181 | B185: 67 | E185: 68 | G185: 72 | I185: 73 | K185: 73
A186: 182 | B186: 67 | E186: 68 | G186: 72 | I186: 73 | K186: 73
A187: 183 | B187: 68 | E187: 68 | G187: 63 | I187: 68 | K187: 68
A188: 184 | B188: 68 | E188: 68 | G188: 63 | I188: 68 | K188: 68
A189: 185 | B189: 68 | E189: 68 | G189: 63 | I189: 68 | K189: 68
A190: 186 | B190: 68 | E190: 68 | G190: 63 | I190: 68 | K190: 68
A191: 187 | B191: 68 | E191: 68 | G191: 63 | I191: 68 | K191: 68
A192: 188 | B192: 68 | E192: 68 | G192: 63 | I192: 68 | K192: 68
A193: 189 | B193: 68 | E193: 68 | G193: 63 | I193: 68 | K193: 68
A194: 190 | B194: 68 | E194: 68 | G194: 63 | I194: 68 | K194: 68
A195: 191 | B195: 68 | E195: 68 | G195: 63 | I195: 68 | K195: 68
A196: 192 | B196: 68 | E196: 68 | G196: 63 | I196: 68 | K196: 68
A197: 193 | B197: 68 | E197: 68 | G197: 63 | I197: 68 | K197: =IF(pop=1,B197,IF(pop=2,E197,IF(pop=3,G197,IF(pop=4,I197)))) -> 68
A198: 194 | B198: 68 | E198: 68 | G198: 63 | I198: 69 | K198: 69
A199: 195 | B199: 68 | E199: 68 | G199: 63 | I199: 69 | K199: 69
A200: 196 | B200: 68 | E200: 68 | G200: 63 | I200: 69 | K200: 69
... 228 more rows

Sheet Samples
B1: Normal | C1: Uniform | D1: U-shaped | E1: Skewed | F1: Pop Samp | H1: Sample # | I1: 1 | J1: 2 | K1: 3 | L1: 4 | M1: 5 | N1: 6 | O1: 7 | P1: 8 | Q1: 9 | R1: 10 | S1: 11 | T1: 12 | U1: 13 | V1: 14 | W1: 15 | X1: 16 | Y1: 17 | Z1: 18 | AA1: 19 | AB1: 20 | AC1: 21 | AD1: 22 | AE1: 23 | AF1: 24 | AG1: 25 | AH1: 26 | AI1: 27 | AJ1: 28 | AK1: 29 | AL1: 30 | AM1: 31 | AN1: 32 | AO1: 33 | AP1: 34 | AQ1: 35 | AR1: 36 | AS1: 37 | AT1: 38 | AU1: 39 | AV1: 40 | AW1: 41 | AX1: 42 | AY1: 43 | AZ1: 44 | BA1: 45 | BB1: 46 | BC1: 47 | BD1: 48 | BE1: 49 | BF1: 50 | BG1: 51 | BH1: 52 | BI1: 53 | BJ1: 54 | BK1: 55 | BL1: 56 | BM1: 57 | BN1: 58 | BO1: 59 | BP1: 60 | BQ1: 61 | BR1: 62 | BS1: 63 | BT1: 64 | BU1: 65 | BV1: 66 | BW1: 67 | BX1: 68 | BY1: 69 | BZ1: 70 | CA1: 71 | CB1: 72 | CC1: 73 | CD1: 74 | CE1: 75 | CF1: 76 | CG1: 77 | CH1: 78 | CI1: 79 | CJ1: 80 | CK1: 81 | CL1: 82 | CM1: 83 | CN1: 84 | CO1: 85 | CP1: 86 | CQ1: 87 | CR1: 88 | CS1: 89 | CT1: 90 | CU1: 91 | CV1: 92 | CW1: 93 | CX1: 94 | CY1: 95 | CZ1: 96 | DA1: 97 | DB1: 98 | DC1: 99 | DD1: 100 | DE1: 101 | DF1: 102 | DG1: 103 | DH1: 104 | DI1: 105 | DJ1: 106 | DK1: 107 | DL1: 108 | DM1: 109 | DN1: 110 | DO1: 111 | DP1: 112 | DQ1: 113 | DR1: 114 | DS1: 115 | DT1: 116 | DU1: 117 | DV1: 118 | DW1: 119 | DX1: 120 | DY1: 121 | DZ1: 122 | EA1: 123 | EB1: 124 | EC1: 125 | ED1: 126 | EE1: 127 | EF1: 128 | EG1: 129 | EH1: 130 | EI1: 131 | EJ1: 132 | EK1: 133 | EL1: 134 | EM1: 135 | EN1: 136 | EO1: 137 | EP1: 138 | EQ1: 139 | ER1: 140 | ES1: 141 | ET1: 142 | EU1: 143 | EV1: 144 | EW1: 145 | EX1: 146 | EY1: 147 | EZ1: 148 | FA1: 149 | FB1: 150 | FC1: 151 | FD1: 152 | FE1: 153 | FF1: 154 | FG1: 155 | FH1: 156 | FI1: 157 | FJ1: 158 | FK1: 159 | FL1: 160 | FM1: 161 | FN1: 162 | FO1: 163 | FP1: 164 | FQ1: 165 | FR1: 166 | FS1: 167 | FT1: 168 | FU1: 169 | FV1: 170 | FW1: 171 | FX1: 172 | FY1: 173 | FZ1: 174 | GA1: 175 | GB1: 176 | GC1: 177 | GD1: 178 | GE1: 179 | GF1: 180 | GG1: 181 | GH1: 182 | GI1: 183 | GJ1: 184 | GK1: 185 | GL1: 186 | GM1: 187 | GN1: 188 | GO1: 189 | GP1: 190 | GQ1: 191 | GR1: 192 | GS1: 193 | GT1: 194 | GU1: 195 | GV1: 196 | GW1: 197 | GX1: 198 | GY1: 199 | GZ1: 200 | HA1: 201 | HB1: 202 | HC1: 203 | HD1: 204 | HE1: 205 | HF1: 206 | HG1: 207 | HH1: 208 | HI1: 209 | HJ1: 210 | HK1: 211 | HL1: 212 | HM1: 213 | HN1: 214 | HO1: 215 | HP1: 216 | HQ1: 217 | HR1: 218 | HS1: 219 | HT1: 220 | HU1: 221 | HV1: 222 | HW1: 223 | HX1: 224 | HY1: 225 | HZ1: 226 | IA1: 227 | IB1: 228 | IC1: 229 | ID1: 230 | IE1: 231 | IF1: 232 | IG1: 233 | IH1: 234 | II1: 235 | IJ1: 236 | IK1: 237 | IL1: 238 | IM1: 239 | IN1: 240
A2: 1 | B2: 60 | C2: 60 | D2: 60 | E2: 60 | F2: =IF(pop=1,B2,IF(pop=2,C2,IF(pop=3,D2,E2))) -> 60 | G2: =IF(pop=1,B2,IF(pop=2,C2,IF(pop=3,D2,E2))) -> 60 | I2: =LOOKUP(INT(nPop*RAND()+1.5), $A$2:$A$425, $G$2:$G$425) -> 74 | J2: 73 | K2: 68 | L2: 71 | M2: 72 | N2: 67 | O2: 71 | P2: 71 | Q2: 70 | R2: 68 | S2: =LOOKUP(INT(nPop*RAND()+1.5), $A$2:$A$425, $G$2:$G$425) -> 66 | T2: 73 | U2: 70 | V2: 70 | W2: 72 | X2: 74 | Y2: 68 | Z2: 71 | AA2: 73 | AB2: 72 | AC2: =LOOKUP(INT(nPop*RAND()+1.5), $A$2:$A$425, $G$2:$G$425) -> 64 | AD2: 73 | AE2: 70 | AF2: 70 | AG2: 68 | AH2: 68 | AI2: 72 | AJ2: 73 | AK2: 70 | AL2: 72 | AM2: =LOOKUP(INT(nPop*RAND()+1.5), $A$2:$A$425, $G$2:$G$425) -> 70 | AN2: 73 | AO2: 72 | AP2: 67 | AQ2: 68 | AR2: 68 | AS2: 70 | AT2: 65 | AU2: 72 | AV2: 66 | AW2: =LOOKUP(INT(nPop*RAND()+1.5), $A$2:$A$425, $G$2:$G$425) -> 62 | AX2: 71 | AY2: 73 | AZ2: 69 | BA2: 64 | BB2: 72 | BC2: 73 | BD2: 73 | BE2: 71 | BF2: 70 | BG2: =LOOKUP(INT(nPop*RAND()+1.5), $A$2:$A$425, $G$2:$G$425) -> 66 | BH2: 63 | BI2: 68 | BJ2: 73 | BK2: 73 | BL2: 63 | BM2: 74 | BN2: 63 | BO2: 71 | BP2: 74 | BQ2: =LOOKUP(INT(nPop*RAND()+1.5), $A$2:$A$425, $G$2:$G$425) -> 71 | BR2: 67 | BS2: 70 | BT2: 69 | BU2: 74 | BV2: 73 | BW2: 72 | BX2: 63 | BY2: 74 | BZ2: 73 | CA2: =LOOKUP(INT(nPop*RAND()+1.5), $A$2:$A$425, $G$2:$G$425) -> 73 | CB2: 70 | CC2: 70 | CD2: 73 | CE2: 73 | CF2: 68 | CG2: 71 | CH2: 68 | CI2: 71 | CJ2: 66 | CK2: =LOOKUP(INT(nPop*RAND()+1.5), $A$2:$A$425, $G$2:$G$425) -> 73 | CL2: 69 | CM2: 73 | CN2: 61 | CO2: 66 | CP2: 66 | CQ2: 66 | CR2: 67 | CS2: 74 | CT2: 73 | CU2: =LOOKUP(INT(nPop*RAND()+1.5), $A$2:$A$425, $G$2:$G$425) -> 66 | CV2: 74 | CW2: 72 | CX2: 72 | CY2: 73 | CZ2: 73 | DA2: 65 | DB2: 64 | DC2: 74 | DD2: 68 | DE2: =LOOKUP(INT(nPop*RAND()+1.5), $A$2:$A$425, $G$2:$G$425) -> 63 | DF2: 64 | DG2: 64 | DH2: 63 | DI2: 72 | DJ2: 69 | DK2: 71 | DL2: 72 | DM2: 72 | DN2: 70 | DO2: =LOOKUP(INT(nPop*RAND()+1.5), $A$2:$A$425, $G$2:$G$425) -> 71 | DP2: 71 | DQ2: 74 | DR2: 70 | DS2: 71 | DT2: 72 | DU2: 71 | DV2: 72 | DW2: 60 | DX2: 68 | DY2: =LOOKUP(INT(nPop*RAND()+1.5), $A$2:$A$425, $G$2:$G$425) -> 70 | DZ2: 70 | EA2: 73 | EB2: 69 | EC2: 70 | ED2: 70 | EE2: 70 | EF2: 72 | EG2: 72 | EH2: 66 | EI2: =LOOKUP(INT(nPop*RAND()+1.5), $A$2:$A$425, $G$2:$G$425) -> 68 | EJ2: 71 | EK2: 66 | EL2: 71 | EM2: 73 | EN2: 70 | EO2: 64 | EP2: 66 | EQ2: 72 | ER2: 73 | ES2: =LOOKUP(INT(nPop*RAND()+1.5), $A$2:$A$425, $G$2:$G$425) -> 71 | ET2: 70 | EU2: 63 | EV2: 66 | EW2: 69 | EX2: 67 | EY2: 74 | EZ2: 69 | FA2: 65 | FB2: 74 | FC2: =LOOKUP(INT(nPop*RAND()+1.5), $A$2:$A$425, $G$2:$G$425) -> 66 | FD2: 72 | FE2: 74 | FF2: 72 | FG2: 72 | FH2: 74 | FI2: 62 | FJ2: 70 | FK2: 70 | FL2: 71 | FM2: =LOOKUP(INT(nPop*RAND()+1.5), $A$2:$A$425, $G$2:$G$425) -> 70 | FN2: 74 | FO2: 72 | FP2: 74 | FQ2: 70 | FR2: 72 | FS2: 67 | FT2: 67 | FU2: 62 | FV2: 72 | FW2: =LOOKUP(INT(nPop*RAND()+1.5), $A$2:$A$425, $G$2:$G$425) -> 73 | FX2: 67 | FY2: 73 | FZ2: 64 | GA2: 69 | GB2: 74 | GC2: 72 | GD2: 73 | GE2: 73 | GF2: 72 | GG2: =LOOKUP(INT(nPop*RAND()+1.5), $A$2:$A$425, $G$2:$G$425) -> 72 | GH2: 74 | GI2: 68 | GJ2: 70 | GK2: 70 | GL2: 73 | GM2: 74 | GN2: 74 | GO2: 61 | GP2: 67 | GQ2: =LOOKUP(INT(nPop*RAND()+1.5), $A$2:$A$425, $G$2:$G$425) -> 74 | GR2: 71 | GS2: 65 | GT2: 73 | GU2: 63 | GV2: 70 | GW2: 71 | GX2: 74 | GY2: 74 | GZ2: 73 | HA2: =LOOKUP(INT(nPop*RAND()+1.5), $A$2:$A$425, $G$2:$G$425) -> 72 | HB2: 71 | HC2: 72 | HD2: 71 | HE2: 70 | HF2: 74 | HG2: 65 | HH2: 71 | HI2: 68 | HJ2: 72 | HK2: =LOOKUP(INT(nPop*RAND()+1.5), $A$2:$A$425, $G$2:$G$425) -> 74 | HL2: 73 | HM2: 69 | HN2: 73 | HO2: 74 | HP2: 74 | HQ2: 72 | HR2: 72 | HS2: 72 | HT2: 72 | HU2: =LOOKUP(INT(nPop*RAND()+1.5), $A$2:$A$425, $G$2:$G$425) -> 65 | HV2: 74 | HW2: 73 | HX2: 65 | HY2: 68 | HZ2: 70 | IA2: 71 | IB2: 71 | IC2: 73 | ID2: 73 | IE2: =LOOKUP(INT(nPop*RAND()+1.5), $A$2:$A$425, $G$2:$G$425) -> 74 | IF2: 74 | IG2: 72 | IH2: 73 | II2: 72 | IJ2: 70 | IK2: 72 | IL2: 70 | IM2: 72 | IN2: 70
A3: 2 | B3: 60 | C3: 60 | D3: 60 | E3: 60 | F3: 60 | G3: 60 | I3: 72 | J3: 70 | K3: 71 | L3: 68 | M3: 64 | N3: 72 | O3: 72 | P3: 68 | Q3: 70 | R3: 73 | S3: 65 | T3: 74 | U3: 72 | V3: 72 | W3: 71 | X3: 71 | Y3: 70 | Z3: 67 | AA3: 72 | AB3: 70 | AC3: 70 | AD3: 73 | AE3: 0 | AF3: 70 | AG3: 70 | AH3: 73 | AI3: 66 | AJ3: 73 | AK3: 70 | AL3: 73 | AM3: 68 | AN3: 72 | AO3: 67 | AP3: 61 | AQ3: 74 | AR3: 62 | AS3: 66 | AT3: 70 | AU3: 74 | AV3: 72 | AW3: 71 | AX3: 71 | AY3: 74 | AZ3: 74 | BA3: 74 | BB3: 74 | BC3: 72 | BD3: 66 | BE3: 71 | BF3: 74 | BG3: 62 | BH3: 73 | BI3: 65 | BJ3: 71 | BK3: 69 | BL3: 66 | BM3: 70 | BN3: 68 | BO3: 70 | BP3: 69 | BQ3: 66 | BR3: 65 | BS3: 70 | BT3: 71 | BU3: 72 | BV3: 70 | BW3: 74 | BX3: 73 | BY3: 62 | BZ3: 70 | CA3: 72 | CB3: 68 | CC3: 73 | CD3: 63 | CE3: 72 | CF3: 70 | CG3: 0 | CH3: 71 | CI3: 70 | CJ3: 0 | CK3: 74 | CL3: 70 | CM3: 73 | CN3: 73 | CO3: 70 | CP3: 71 | CQ3: 68 | CR3: 74 | CS3: 70 | CT3: 63 | CU3: 73 | CV3: 74 | CW3: 72 | CX3: 74 | CY3: 67 | CZ3: 72 | DA3: 70 | DB3: 74 | DC3: 74 | DD3: 70 | DE3: 74 | DF3: 70 | DG3: 66 | DH3: 71 | DI3: 72 | DJ3: 74 | DK3: 67 | DL3: 69 | DM3: 74 | DN3: 72 | DO3: 70 | DP3: 71 | DQ3: 66 | DR3: 70 | DS3: 62 | DT3: 74 | DU3: 74 | DV3: 71 | DW3: 70 | DX3: 72 | DY3: 74 | DZ3: 60 | EA3: 70 | EB3: 68 | EC3: 72 | ED3: 67 | EE3: 69 | EF3: 72 | EG3: 72 | EH3: 74 | EI3: 71 | EJ3: 71 | EK3: 70 | EL3: 67 | EM3: 70 | EN3: 74 | EO3: 73 | EP3: 69 | EQ3: 62 | ER3: 68 | ES3: 72 | ET3: 74 | EU3: 68 | EV3: 71 | EW3: 63 | EX3: 73 | EY3: 72 | EZ3: 73 | FA3: 72 | FB3: 69 | FC3: 68 | FD3: 72 | FE3: 72 | FF3: 72 | FG3: 71 | FH3: 74 | FI3: 70 | FJ3: 72 | FK3: 74 | FL3: 66 | FM3: 63 | FN3: 72 | FO3: 74 | FP3: 62 | FQ3: 69 | FR3: 72 | FS3: 72 | FT3: 74 | FU3: 69 | FV3: 69 | FW3: 70 | FX3: 70 | FY3: 73 | FZ3: 73 | GA3: 71 | GB3: 72 | GC3: 72 | GD3: 69 | GE3: 72 | GF3: 68 | GG3: 72 | GH3: 73 | GI3: 73 | GJ3: 70 | GK3: 74 | GL3: 72 | GM3: 71 | GN3: 65 | GO3: 66 | GP3: 64 | GQ3: 71 | GR3: 71 | GS3: 71 | GT3: 65 | GU3: 69 | GV3: 71 | GW3: 72 | GX3: 64 | GY3: 74 | GZ3: 72 | HA3: 70 | HB3: 72 | HC3: 74 | HD3: 73 | HE3: 74 | HF3: 73 | HG3: 71 | HH3: 71 | HI3: 70 | HJ3: 71 | HK3: 70 | HL3: 68 | HM3: 73 | HN3: 74 | HO3: 73 | HP3: 71 | HQ3: 72 | HR3: 63 | HS3: 72 | HT3: 73 | HU3: 65 | HV3: 71 | HW3: 71 | HX3: 69 | HY3: 66 | HZ3: 73 | IA3: 69 | IB3: 74 | IC3: 73 | ID3: 74 | IE3: 68 | IF3: 73 | IG3: 67 | IH3: 70 | II3: 74 | IJ3: 68 | IK3: 71 | IL3: 68 | IM3: 70 | IN3: 63
A4: 3 | B4: 60 | C4: 68 | D4: 60 | E4: 71 | F4: 71 | G4: 71 | H4: Normal | I4: =IF(OR($A3>n,I$1>nSamps),"z",LOOKUP(INT(nPop*RAND()+1.5),$A$2:$A$425,$G$2:$G$425)) -> 71 | J4: =IF(OR($A3>n,J$1>nSamps),"z",LOOKUP(INT(nPop*RAND()+1.5),$A$2:$A$425,$G$2:$G$425)) -> 65 | K4: =IF(OR($A3>n,K$1>nSamps),"z",LOOKUP(INT(nPop*RAND()+1.5),$A$2:$A$425,$G$2:$G$425)) -> 70 | L4: =IF(OR($A3>n,L$1>nSamps),"z",LOOKUP(INT(nPop*RAND()+1.5),$A$2:$A$425,$G$2:$G$425)) -> 72 | M4: =IF(OR($A3>n,M$1>nSamps),"z",LOOKUP(INT(nPop*RAND()+1.5),$A$2:$A$425,$G$2:$G$425)) -> 72 | N4: =IF(OR($A3>n,N$1>nSamps),"z",LOOKUP(INT(nPop*RAND()+1.5),$A$2:$A$425,$G$2:$G$425)) -> 73 | O4: =IF(OR($A3>n,O$1>nSamps),"z",LOOKUP(INT(nPop*RAND()+1.5),$A$2:$A$425,$G$2:$G$425)) -> 72 | P4: =IF(OR($A3>n,P$1>nSamps),"z",LOOKUP(INT(nPop*RAND()+1.5),$A$2:$A$425,$G$2:$G$425)) -> 71 | Q4: =IF(OR($A3>n,Q$1>nSamps),"z",LOOKUP(INT(nPop*RAND()+1.5),$A$2:$A$425,$G$2:$G$425)) -> 67 | R4: =IF(OR($A3>n,R$1>nSamps),"z",LOOKUP(INT(nPop*RAND()+1.5),$A$2:$A$425,$G$2:$G$425)) -> 70 | S4: =IF(OR($A3>n,S$1>nSamps),"z",LOOKUP(INT(nPop*RAND()+1.5),$A$2:$A$425,$G$2:$G$425)) -> 73 | T4: =IF(OR($A3>n,T$1>nSamps),"z",LOOKUP(INT(nPop*RAND()+1.5),$A$2:$A$425,$G$2:$G$425)) -> 73 | U4: =IF(OR($A3>n,U$1>nSamps),"z",LOOKUP(INT(nPop*RAND()+1.5),$A$2:$A$425,$G$2:$G$425)) -> 71 | V4: =IF(OR($A3>n,V$1>nSamps),"z",LOOKUP(INT(nPop*RAND()+1.5),$A$2:$A$425,$G$2:$G$425)) -> 72 | W4: =IF(OR($A3>n,W$1>nSamps),"z",LOOKUP(INT(nPop*RAND()+1.5),$A$2:$A$425,$G$2:$G$425)) -> 71 | X4: =IF(OR($A3>n,X$1>nSamps),"z",LOOKUP(INT(nPop*RAND()+1.5),$A$2:$A$425,$G$2:$G$425)) -> 70 | Y4: =IF(OR($A3>n,Y$1>nSamps),"z",LOOKUP(INT(nPop*RAND()+1.5),$A$2:$A$425,$G$2:$G$425)) -> z | Z4: =IF(OR($A3>n,Z$1>nSamps),"z",LOOKUP(INT(nPop*RAND()+1.5),$A$2:$A$425,$G$2:$G$425)) -> 73 | AA4: =IF(OR($A3>n,AA$1>nSamps),"z",LOOKUP(INT(nPop*RAND()+1.5),$A$2:$A$425,$G$2:$G$425)) -> 72 | AB4: =IF(OR($A3>n,AB$1>nSamps),"z",LOOKUP(INT(nPop*RAND()+1.5),$A$2:$A$425,$G$2:$G$425)) -> 63 | AC4: =IF(OR($A3>n,AC$1>nSamps),"z",LOOKUP(INT(nPop*RAND()+1.5),$A$2:$A$425,$G$2:$G$425)) -> 70 | AD4: =IF(OR($A3>n,AD$1>nSamps),"z",LOOKUP(INT(nPop*RAND()+1.5),$A$2:$A$425,$G$2:$G$425)) -> 72 | AE4: =IF(OR($A3>n,AE$1>nSamps),"z",LOOKUP(INT(nPop*RAND()+1.5),$A$2:$A$425,$G$2:$G$425)) -> 74 | AF4: =IF(OR($A3>n,AF$1>nSamps),"z",LOOKUP(INT(nPop*RAND()+1.5),$A$2:$A$425,$G$2:$G$425)) -> 0 | AG4: =IF(OR($A3>n,AG$1>nSamps),"z",LOOKUP(INT(nPop*RAND()+1.5),$A$2:$A$425,$G$2:$G$425)) -> z | AH4: =IF(OR($A3>n,AH$1>nSamps),"z",LOOKUP(INT(nPop*RAND()+1.5),$A$2:$A$425,$G$2:$G$425)) -> 72 | AI4: =IF(OR($A3>n,AI$1>nSamps),"z",LOOKUP(INT(nPop*RAND()+1.5),$A$2:$A$425,$G$2:$G$425)) -> 74 | AJ4: =IF(OR($A3>n,AJ$1>nSamps),"z",LOOKUP(INT(nPop*RAND()+1.5),$A$2:$A$425,$G$2:$G$425)) -> 70 | AK4: =IF(OR($A3>n,AK$1>nSamps),"z",LOOKUP(INT(nPop*RAND()+1.5),$A$2:$A$425,$G$2:$G$425)) -> 72 | AL4: =IF(OR($A3>n,AL$1>nSamps),"z",LOOKUP(INT(nPop*RAND()+1.5),$A$2:$A$425,$G$2:$G$425)) -> 74 | AM4: =IF(OR($A3>n,AM$1>nSamps),"z",LOOKUP(INT(nPop*RAND()+1.5),$A$2:$A$425,$G$2:$G$425)) -> 70 | AN4: =IF(OR($A3>n,AN$1>nSamps),"z",LOOKUP(INT(nPop*RAND()+1.5),$A$2:$A$425,$G$2:$G$425)) -> 69 | AO4: =IF(OR($A3>n,AO$1>nSamps),"z",LOOKUP(INT(nPop*RAND()+1.5),$A$2:$A$425,$G$2:$G$425)) -> 64 | AP4: =IF(OR($A3>n,AP$1>nSamps),"z",LOOKUP(INT(nPop*RAND()+1.5),$A$2:$A$425,$G$2:$G$425)) -> 74 | AQ4: =IF(OR($A3>n,AQ$1>nSamps),"z",LOOKUP(INT(nPop*RAND()+1.5),$A$2:$A$425,$G$2:$G$425)) -> 64 | AR4: =IF(OR($A3>n,AR$1>nSamps),"z",LOOKUP(INT(nPop*RAND()+1.5),$A$2:$A$425,$G$2:$G$425)) -> 72 | AS4: =IF(OR($A3>n,AS$1>nSamps),"z",LOOKUP(INT(nPop*RAND()+1.5),$A$2:$A$425,$G$2:$G$425)) -> 71 | AT4: =IF(OR($A3>n,AT$1>nSamps),"z",LOOKUP(INT(nPop*RAND()+1.5),$A$2:$A$425,$G$2:$G$425)) -> 71 | AU4: =IF(OR($A3>n,AU$1>nSamps),"z",LOOKUP(INT(nPop*RAND()+1.5),$A$2:$A$425,$G$2:$G$425)) -> 73 | AV4: =IF(OR($A3>n,AV$1>nSamps),"z",LOOKUP(INT(nPop*RAND()+1.5),$A$2:$A$425,$G$2:$G$425)) -> 66 | AW4: =IF(OR($A3>n,AW$1>nSamps),"z",LOOKUP(INT(nPop*RAND()+1.5),$A$2:$A$425,$G$2:$G$425)) -> 73 | AX4: =IF(OR($A3>n,AX$1>nSamps),"z",LOOKUP(INT(nPop*RAND()+1.5),$A$2:$A$425,$G$2:$G$425)) -> 74 | AY4: =IF(OR($A3>n,AY$1>nSamps),"z",LOOKUP(INT(nPop*RAND()+1.5),$A$2:$A$425,$G$2:$G$425)) -> 74 | AZ4: =IF(OR($A3>n,AZ$1>nSamps),"z",LOOKUP(INT(nPop*RAND()+1.5),$A$2:$A$425,$G$2:$G$425)) -> 65 | BA4: =IF(OR($A3>n,BA$1>nSamps),"z",LOOKUP(INT(nPop*RAND()+1.5),$A$2:$A$425,$G$2:$G$425)) -> 71 | BB4: =IF(OR($A3>n,BB$1>nSamps),"z",LOOKUP(INT(nPop*RAND()+1.5),$A$2:$A$425,$G$2:$G$425)) -> 71 | BC4: =IF(OR($A3>n,BC$1>nSamps),"z",LOOKUP(INT(nPop*RAND()+1.5),$A$2:$A$425,$G$2:$G$425)) -> 71 | BD4: =IF(OR($A3>n,BD$1>nSamps),"z",LOOKUP(INT(nPop*RAND()+1.5),$A$2:$A$425,$G$2:$G$425)) -> 70 | BE4: =IF(OR($A3>n,BE$1>nSamps),"z",LOOKUP(INT(nPop*RAND()+1.5),$A$2:$A$425,$G$2:$G$425)) -> 69 | BF4: =IF(OR($A3>n,BF$1>nSamps),"z",LOOKUP(INT(nPop*RAND()+1.5),$A$2:$A$425,$G$2:$G$425)) -> 70 | BG4: =IF(OR($A3>n,BG$1>nSamps),"z",LOOKUP(INT(nPop*RAND()+1.5),$A$2:$A$425,$G$2:$G$425)) -> 74 | BH4: =IF(OR($A3>n,BH$1>nSamps),"z",LOOKUP(INT(nPop*RAND()+1.5),$A$2:$A$425,$G$2:$G$425)) -> 65 | BI4: =IF(OR($A3>n,BI$1>nSamps),"z",LOOKUP(INT(nPop*RAND()+1.5),$A$2:$A$425,$G$2:$G$425)) -> 71 | BJ4: =IF(OR($A3>n,BJ$1>nSamps),"z",LOOKUP(INT(nPop*RAND()+1.5),$A$2:$A$425,$G$2:$G$425)) -> 74 | BK4: =IF(OR($A3>n,BK$1>nSamps),"z",LOOKUP(INT(nPop*RAND()+1.5),$A$2:$A$425,$G$2:$G$425)) -> 68 | BL4: =IF(OR($A3>n,BL$1>nSamps),"z",LOOKUP(INT(nPop*RAND()+1.5),$A$2:$A$425,$G$2:$G$425)) -> 64 | BM4: =IF(OR($A3>n,BM$1>nSamps),"z",LOOKUP(INT(nPop*RAND()+1.5),$A$2:$A$425,$G$2:$G$425)) -> 72 | BN4: =IF(OR($A3>n,BN$1>nSamps),"z",LOOKUP(INT(nPop*RAND()+1.5),$A$2:$A$425,$G$2:$G$425)) -> 70 | BO4: =IF(OR($A3>n,BO$1>nSamps),"z",LOOKUP(INT(nPop*RAND()+1.5),$A$2:$A$425,$G$2:$G$425)) -> 72 | BP4: =IF(OR($A3>n,BP$1>nSamps),"z",LOOKUP(INT(nPop*RAND()+1.5),$A$2:$A$425,$G$2:$G$425)) -> 74 | BQ4: =IF(OR($A3>n,BQ$1>nSamps),"z",LOOKUP(INT(nPop*RAND()+1.5),$A$2:$A$425,$G$2:$G$425)) -> 72 | BR4: =IF(OR($A3>n,BR$1>nSamps),"z",LOOKUP(INT(nPop*RAND()+1.5),$A$2:$A$425,$G$2:$G$425)) -> 74 | BS4: =IF(OR($A3>n,BS$1>nSamps),"z",LOOKUP(INT(nPop*RAND()+1.5),$A$2:$A$425,$G$2:$G$425)) -> 60 | BT4: =IF(OR($A3>n,BT$1>nSamps),"z",LOOKUP(INT(nPop*RAND()+1.5),$A$2:$A$425,$G$2:$G$425)) -> 69 | BU4: =IF(OR($A3>n,BU$1>nSamps),"z",LOOKUP(INT(nPop*RAND()+1.5),$A$2:$A$425,$G$2:$G$425)) -> 72 | BV4: =IF(OR($A3>n,BV$1>nSamps),"z",LOOKUP(INT(nPop*RAND()+1.5),$A$2:$A$425,$G$2:$G$425)) -> 70 | BW4: =IF(OR($A3>n,BW$1>nSamps),"z",LOOKUP(INT(nPop*RAND()+1.5),$A$2:$A$425,$G$2:$G$425)) -> 74 | BX4: =IF(OR($A3>n,BX$1>nSamps),"z",LOOKUP(INT(nPop*RAND()+1.5),$A$2:$A$425,$G$2:$G$425)) -> 73 | BY4: =IF(OR($A3>n,BY$1>nSamps),"z",LOOKUP(INT(nPop*RAND()+1.5),$A$2:$A$425,$G$2:$G$425)) -> 67 | BZ4: =IF(OR($A3>n,BZ$1>nSamps),"z",LOOKUP(INT(nPop*RAND()+1.5),$A$2:$A$425,$G$2:$G$425)) -> 68 | CA4: =IF(OR($A3>n,CA$1>nSamps),"z",LOOKUP(INT(nPop*RAND()+1.5),$A$2:$A$425,$G$2:$G$425)) -> 68 | CB4: =IF(OR($A3>n,CB$1>nSamps),"z",LOOKUP(INT(nPop*RAND()+1.5),$A$2:$A$425,$G$2:$G$425)) -> 69 | CC4: =IF(OR($A3>n,CC$1>nSamps),"z",LOOKUP(INT(nPop*RAND()+1.5),$A$2:$A$425,$G$2:$G$425)) -> 73 | CD4: =IF(OR($A3>n,CD$1>nSamps),"z",LOOKUP(INT(nPop*RAND()+1.5),$A$2:$A$425,$G$2:$G$425)) -> 73 | CE4: =IF(OR($A3>n,CE$1>nSamps),"z",LOOKUP(INT(nPop*RAND()+1.5),$A$2:$A$425,$G$2:$G$425)) -> 66 | CF4: =IF(OR($A3>n,CF$1>nSamps),"z",LOOKUP(INT(nPop*RAND()+1.5),$A$2:$A$425,$G$2:$G$425)) -> 66 | CG4: =IF(OR($A3>n,CG$1>nSamps),"z",LOOKUP(INT(nPop*RAND()+1.5),$A$2:$A$425,$G$2:$G$425)) -> 71 | CH4: =IF(OR($A3>n,CH$1>nSamps),"z",LOOKUP(INT(nPop*RAND()+1.5),$A$2:$A$425,$G$2:$G$425)) -> 74 | CI4: =IF(OR($A3>n,CI$1>nSamps),"z",LOOKUP(INT(nPop*RAND()+1.5),$A$2:$A$425,$G$2:$G$425)) -> 72 | CJ4: =IF(OR($A3>n,CJ$1>nSamps),"z",LOOKUP(INT(nPop*RAND()+1.5),$A$2:$A$425,$G$2:$G$425)) -> 66 | CK4: =IF(OR($A3>n,CK$1>nSamps),"z",LOOKUP(INT(nPop*RAND()+1.5),$A$2:$A$425,$G$2:$G$425)) -> 63 | CL4: =IF(OR($A3>n,CL$1>nSamps),"z",LOOKUP(INT(nPop*RAND()+1.5),$A$2:$A$425,$G$2:$G$425)) -> 69 | CM4: =IF(OR($A3>n,CM$1>nSamps),"z",LOOKUP(INT(nPop*RAND()+1.5),$A$2:$A$425,$G$2:$G$425)) -> 72 | CN4: =IF(OR($A3>n,CN$1>nSamps),"z",LOOKUP(INT(nPop*RAND()+1.5),$A$2:$A$425,$G$2:$G$425)) -> 71 | CO4: =IF(OR($A3>n,CO$1>nSamps),"z",LOOKUP(INT(nPop*RAND()+1.5),$A$2:$A$425,$G$2:$G$425)) -> 74 | CP4: =IF(OR($A3>n,CP$1>nSamps),"z",LOOKUP(INT(nPop*RAND()+1.5),$A$2:$A$425,$G$2:$G$425)) -> 64 | CQ4: =IF(OR($A3>n,CQ$1>nSamps),"z",LOOKUP(INT(nPop*RAND()+1.5),$A$2:$A$425,$G$2:$G$425)) -> 71 | CR4: =IF(OR($A3>n,CR$1>nSamps),"z",LOOKUP(INT(nPop*RAND()+1.5),$A$2:$A$425,$G$2:$G$425)) -> 67 | CS4: =IF(OR($A3>n,CS$1>nSamps),"z",LOOKUP(INT(nPop*RAND()+1.5),$A$2:$A$425,$G$2:$G$425)) -> 71 | CT4: =IF(OR($A3>n,CT$1>nSamps),"z",LOOKUP(INT(nPop*RAND()+1.5),$A$2:$A$425,$G$2:$G$425)) -> 74 | CU4: =IF(OR($A3>n,CU$1>nSamps),"z",LOOKUP(INT(nPop*RAND()+1.5),$A$2:$A$425,$G$2:$G$425)) -> 74 | CV4: =IF(OR($A3>n,CV$1>nSamps),"z",LOOKUP(INT(nPop*RAND()+1.5),$A$2:$A$425,$G$2:$G$425)) -> 63 | CW4: =IF(OR($A3>n,CW$1>nSamps),"z",LOOKUP(INT(nPop*RAND()+1.5),$A$2:$A$425,$G$2:$G$425)) -> 73 | CX4: =IF(OR($A3>n,CX$1>nSamps),"z",LOOKUP(INT(nPop*RAND()+1.5),$A$2:$A$425,$G$2:$G$425)) -> 74 | CY4: =IF(OR($A3>n,CY$1>nSamps),"z",LOOKUP(INT(nPop*RAND()+1.5),$A$2:$A$425,$G$2:$G$425)) -> 65 | CZ4: =IF(OR($A3>n,CZ$1>nSamps),"z",LOOKUP(INT(nPop*RAND()+1.5),$A$2:$A$425,$G$2:$G$425)) -> 70 | DA4: =IF(OR($A3>n,DA$1>nSamps),"z",LOOKUP(INT(nPop*RAND()+1.5),$A$2:$A$425,$G$2:$G$425)) -> 68 | DB4: =IF(OR($A3>n,DB$1>nSamps),"z",LOOKUP(INT(nPop*RAND()+1.5),$A$2:$A$425,$G$2:$G$425)) -> 72 | DC4: =IF(OR($A3>n,DC$1>nSamps),"z",LOOKUP(INT(nPop*RAND()+1.5),$A$2:$A$425,$G$2:$G$425)) -> 74 | DD4: =IF(OR($A3>n,DD$1>nSamps),"z",LOOKUP(INT(nPop*RAND()+1.5),$A$2:$A$425,$G$2:$G$425)) -> 72 | DE4: =IF(OR($A3>n,DE$1>nSamps),"z",LOOKUP(INT(nPop*RAND()+1.5),$A$2:$A$425,$G$2:$G$425)) -> 66 | DF4: =IF(OR($A3>n,DF$1>nSamps),"z",LOOKUP(INT(nPop*RAND()+1.5),$A$2:$A$425,$G$2:$G$425)) -> 73 | DG4: =IF(OR($A3>n,DG$1>nSamps),"z",LOOKUP(INT(nPop*RAND()+1.5),$A$2:$A$425,$G$2:$G$425)) -> 70 | DH4: =IF(OR($A3>n,DH$1>nSamps),"z",LOOKUP(INT(nPop*RAND()+1.5),$A$2:$A$425,$G$2:$G$425)) -> 70 | DI4: =IF(OR($A3>n,DI$1>nSamps),"z",LOOKUP(INT(nPop*RAND()+1.5),$A$2:$A$425,$G$2:$G$425)) -> 66 | DJ4: =IF(OR($A3>n,DJ$1>nSamps),"z",LOOKUP(INT(nPop*RAND()+1.5),$A$2:$A$425,$G$2:$G$425)) -> 66 | DK4: =IF(OR($A3>n,DK$1>nSamps),"z",LOOKUP(INT(nPop*RAND()+1.5),$A$2:$A$425,$G$2:$G$425)) -> 72 | DL4: =IF(OR($A3>n,DL$1>nSamps),"z",LOOKUP(INT(nPop*RAND()+1.5),$A$2:$A$425,$G$2:$G$425)) -> 72 | DM4: =IF(OR($A3>n,DM$1>nSamps),"z",LOOKUP(INT(nPop*RAND()+1.5),$A$2:$A$425,$G$2:$G$425)) -> 71 | DN4: =IF(OR($A3>n,DN$1>nSamps),"z",LOOKUP(INT(nPop*RAND()+1.5),$A$2:$A$425,$G$2:$G$425)) -> 73 | DO4: =IF(OR($A3>n,DO$1>nSamps),"z",LOOKUP(INT(nPop*RAND()+1.5),$A$2:$A$425,$G$2:$G$425)) -> 68 | DP4: =IF(OR($A3>n,DP$1>nSamps),"z",LOOKUP(INT(nPop*RAND()+1.5),$A$2:$A$425,$G$2:$G$425)) -> 65 | DQ4: =IF(OR($A3>n,DQ$1>nSamps),"z",LOOKUP(INT(nPop*RAND()+1.5),$A$2:$A$425,$G$2:$G$425)) -> 72 | DR4: =IF(OR($A3>n,DR$1>nSamps),"z",LOOKUP(INT(nPop*RAND()+1.5),$A$2:$A$425,$G$2:$G$425)) -> 73 | DS4: =IF(OR($A3>n,DS$1>nSamps),"z",LOOKUP(INT(nPop*RAND()+1.5),$A$2:$A$425,$G$2:$G$425)) -> 73 | DT4: =IF(OR($A3>n,DT$1>nSamps),"z",LOOKUP(INT(nPop*RAND()+1.5),$A$2:$A$425,$G$2:$G$425)) -> 71 | DU4: =IF(OR($A3>n,DU$1>nSamps),"z",LOOKUP(INT(nPop*RAND()+1.5),$A$2:$A$425,$G$2:$G$425)) -> 68 | DV4: =IF(OR($A3>n,DV$1>nSamps),"z",LOOKUP(INT(nPop*RAND()+1.5),$A$2:$A$425,$G$2:$G$425)) -> 73 | DW4: =IF(OR($A3>n,DW$1>nSamps),"z",LOOKUP(INT(nPop*RAND()+1.5),$A$2:$A$425,$G$2:$G$425)) -> 65 | DX4: =IF(OR($A3>n,DX$1>nSamps),"z",LOOKUP(INT(nPop*RAND()+1.5),$A$2:$A$425,$G$2:$G$425)) -> 72 | DY4: =IF(OR($A3>n,DY$1>nSamps),"z",LOOKUP(INT(nPop*RAND()+1.5),$A$2:$A$425,$G$2:$G$425)) -> 70 | DZ4: =IF(OR($A3>n,DZ$1>nSamps),"z",LOOKUP(INT(nPop*RAND()+1.5),$A$2:$A$425,$G$2:$G$425)) -> 71 | EA4: =IF(OR($A3>n,EA$1>nSamps),"z",LOOKUP(INT(nPop*RAND()+1.5),$A$2:$A$425,$G$2:$G$425)) -> 73 | EB4: =IF(OR($A3>n,EB$1>nSamps),"z",LOOKUP(INT(nPop*RAND()+1.5),$A$2:$A$425,$G$2:$G$425)) -> 74 | EC4: =IF(OR($A3>n,EC$1>nSamps),"z",LOOKUP(INT(nPop*RAND()+1.5),$A$2:$A$425,$G$2:$G$425)) -> 71 | ED4: =IF(OR($A3>n,ED$1>nSamps),"z",LOOKUP(INT(nPop*RAND()+1.5),$A$2:$A$425,$G$2:$G$425)) -> 72 | EE4: =IF(OR($A3>n,EE$1>nSamps),"z",LOOKUP(INT(nPop*RAND()+1.5),$A$2:$A$425,$G$2:$G$425)) -> 72 | EF4: =IF(OR($A3>n,EF$1>nSamps),"z",LOOKUP(INT(nPop*RAND()+1.5),$A$2:$A$425,$G$2:$G$425)) -> 71 | EG4: =IF(OR($A3>n,EG$1>nSamps),"z",LOOKUP(INT(nPop*RAND()+1.5),$A$2:$A$425,$G$2:$G$425)) -> 72 | EH4: =IF(OR($A3>n,EH$1>nSamps),"z",LOOKUP(INT(nPop*RAND()+1.5),$A$2:$A$425,$G$2:$G$425)) -> 74 | EI4: =IF(OR($A3>n,EI$1>nSamps),"z",LOOKUP(INT(nPop*RAND()+1.5),$A$2:$A$425,$G$2:$G$425)) -> 74 | EJ4: =IF(OR($A3>n,EJ$1>nSamps),"z",LOOKUP(INT(nPop*RAND()+1.5),$A$2:$A$425,$G$2:$G$425)) -> 0 | EK4: =IF(OR($A3>n,EK$1>nSamps),"z",LOOKUP(INT(nPop*RAND()+1.5),$A$2:$A$425,$G$2:$G$425)) -> 74 | EL4: =IF(OR($A3>n,EL$1>nSamps),"z",LOOKUP(INT(nPop*RAND()+1.5),$A$2:$A$425,$G$2:$G$425)) -> 72 | EM4: =IF(OR($A3>n,EM$1>nSamps),"z",LOOKUP(INT(nPop*RAND()+1.5),$A$2:$A$425,$G$2:$G$425)) -> 74 | EN4: =IF(OR($A3>n,EN$1>nSamps),"z",LOOKUP(INT(nPop*RAND()+1.5),$A$2:$A$425,$G$2:$G$425)) -> 71 | EO4: =IF(OR($A3>n,EO$1>nSamps),"z",LOOKUP(INT(nPop*RAND()+1.5),$A$2:$A$425,$G$2:$G$425)) -> 70 | EP4: =IF(OR($A3>n,EP$1>nSamps),"z",LOOKUP(INT(nPop*RAND()+1.5),$A$2:$A$425,$G$2:$G$425)) -> 73 | EQ4: =IF(OR($A3>n,EQ$1>nSamps),"z",LOOKUP(INT(nPop*RAND()+1.5),$A$2:$A$425,$G$2:$G$425)) -> 69 | ER4: =IF(OR($A3>n,ER$1>nSamps),"z",LOOKUP(INT(nPop*RAND()+1.5),$A$2:$A$425,$G$2:$G$425)) -> 74 | ES4: =IF(OR($A3>n,ES$1>nSamps),"z",LOOKUP(INT(nPop*RAND()+1.5),$A$2:$A$425,$G$2:$G$425)) -> 0 | ET4: =IF(OR($A3>n,ET$1>nSamps),"z",LOOKUP(INT(nPop*RAND()+1.5),$A$2:$A$425,$G$2:$G$425)) -> 70 | EU4: =IF(OR($A3>n,EU$1>nSamps),"z",LOOKUP(INT(nPop*RAND()+1.5),$A$2:$A$425,$G$2:$G$425)) -> 70 | EV4: =IF(OR($A3>n,EV$1>nSamps),"z",LOOKUP(INT(nPop*RAND()+1.5),$A$2:$A$425,$G$2:$G$425)) -> 71 | EW4: =IF(OR($A3>n,EW$1>nSamps),"z",LOOKUP(INT(nPop*RAND()+1.5),$A$2:$A$425,$G$2:$G$425)) -> 66 | EX4: =IF(OR($A3>n,EX$1>nSamps),"z",LOOKUP(INT(nPop*RAND()+1.5),$A$2:$A$425,$G$2:$G$425)) -> 71 | EY4: =IF(OR($A3>n,EY$1>nSamps),"z",LOOKUP(INT(nPop*RAND()+1.5),$A$2:$A$425,$G$2:$G$425)) -> 60 | EZ4: =IF(OR($A3>n,EZ$1>nSamps),"z",LOOKUP(INT(nPop*RAND()+1.5),$A$2:$A$425,$G$2:$G$425)) -> 73 | FA4: =IF(OR($A3>n,FA$1>nSamps),"z",LOOKUP(INT(nPop*RAND()+1.5),$A$2:$A$425,$G$2:$G$425)) -> 72 | FB4: =IF(OR($A3>n,FB$1>nSamps),"z",LOOKUP(INT(nPop*RAND()+1.5),$A$2:$A$425,$G$2:$G$425)) -> 72 | FC4: =IF(OR($A3>n,FC$1>nSamps),"z",LOOKUP(INT(nPop*RAND()+1.5),$A$2:$A$425,$G$2:$G$425)) -> 70 | FD4: =IF(OR($A3>n,FD$1>nSamps),"z",LOOKUP(INT(nPop*RAND()+1.5),$A$2:$A$425,$G$2:$G$425)) -> 66 | FE4: =IF(OR($A3>n,FE$1>nSamps),"z",LOOKUP(INT(nPop*RAND()+1.5),$A$2:$A$425,$G$2:$G$425)) -> 72 | FF4: =IF(OR($A3>n,FF$1>nSamps),"z",LOOKUP(INT(nPop*RAND()+1.5),$A$2:$A$425,$G$2:$G$425)) -> 63 | FG4: =IF(OR($A3>n,FG$1>nSamps),"z",LOOKUP(INT(nPop*RAND()+1.5),$A$2:$A$425,$G$2:$G$425)) -> 63 | FH4: =IF(OR($A3>n,FH$1>nSamps),"z",LOOKUP(INT(nPop*RAND()+1.5),$A$2:$A$425,$G$2:$G$425)) -> 61 | FI4: =IF(OR($A3>n,FI$1>nSamps),"z",LOOKUP(INT(nPop*RAND()+1.5),$A$2:$A$425,$G$2:$G$425)) -> 64 | FJ4: =IF(OR($A3>n,FJ$1>nSamps),"z",LOOKUP(INT(nPop*RAND()+1.5),$A$2:$A$425,$G$2:$G$425)) -> 68 | FK4: =IF(OR($A3>n,FK$1>nSamps),"z",LOOKUP(INT(nPop*RAND()+1.5),$A$2:$A$425,$G$2:$G$425)) -> 72 | FL4: =IF(OR($A3>n,FL$1>nSamps),"z",LOOKUP(INT(nPop*RAND()+1.5),$A$2:$A$425,$G$2:$G$425)) -> 73 | FM4: =IF(OR($A3>n,FM$1>nSamps),"z",LOOKUP(INT(nPop*RAND()+1.5),$A$2:$A$425,$G$2:$G$425)) -> 72 | FN4: =IF(OR($A3>n,FN$1>nSamps),"z",LOOKUP(INT(nPop*RAND()+1.5),$A$2:$A$425,$G$2:$G$425)) -> 73 | FO4: =IF(OR($A3>n,FO$1>nSamps),"z",LOOKUP(INT(nPop*RAND()+1.5),$A$2:$A$425,$G$2:$G$425)) -> 71 | FP4: =IF(OR($A3>n,FP$1>nSamps),"z",LOOKUP(INT(nPop*RAND()+1.5),$A$2:$A$425,$G$2:$G$425)) -> 63 | FQ4: =IF(OR($A3>n,FQ$1>nSamps),"z",LOOKUP(INT(nPop*RAND()+1.5),$A$2:$A$425,$G$2:$G$425)) -> 74 | FR4: =IF(OR($A3>n,FR$1>nSamps),"z",LOOKUP(INT(nPop*RAND()+1.5),$A$2:$A$425,$G$2:$G$425)) -> 72 | FS4: =IF(OR($A3>n,FS$1>nSamps),"z",LOOKUP(INT(nPop*RAND()+1.5),$A$2:$A$425,$G$2:$G$425)) -> 66 | FT4: =IF(OR($A3>n,FT$1>nSamps),"z",LOOKUP(INT(nPop*RAND()+1.5),$A$2:$A$425,$G$2:$G$425)) -> 72 | FU4: =IF(OR($A3>n,FU$1>nSamps),"z",LOOKUP(INT(nPop*RAND()+1.5),$A$2:$A$425,$G$2:$G$425)) -> 68 | FV4: =IF(OR($A3>n,FV$1>nSamps),"z",LOOKUP(INT(nPop*RAND()+1.5),$A$2:$A$425,$G$2:$G$425)) -> 67 | FW4: =IF(OR($A3>n,FW$1>nSamps),"z",LOOKUP(INT(nPop*RAND()+1.5),$A$2:$A$425,$G$2:$G$425)) -> 69 | FX4: =IF(OR($A3>n,FX$1>nSamps),"z",LOOKUP(INT(nPop*RAND()+1.5),$A$2:$A$425,$G$2:$G$425)) -> 69 | FY4: =IF(OR($A3>n,FY$1>nSamps),"z",LOOKUP(INT(nPop*RAND()+1.5),$A$2:$A$425,$G$2:$G$425)) -> 68 | FZ4: =IF(OR($A3>n,FZ$1>nSamps),"z",LOOKUP(INT(nPop*RAND()+1.5),$A$2:$A$425,$G$2:$G$425)) -> 70 | GA4: =IF(OR($A3>n,GA$1>nSamps),"z",LOOKUP(INT(nPop*RAND()+1.5),$A$2:$A$425,$G$2:$G$425)) -> 70 | GB4: =IF(OR($A3>n,GB$1>nSamps),"z",LOOKUP(INT(nPop*RAND()+1.5),$A$2:$A$425,$G$2:$G$425)) -> 74 | GC4: =IF(OR($A3>n,GC$1>nSamps),"z",LOOKUP(INT(nPop*RAND()+1.5),$A$2:$A$425,$G$2:$G$425)) -> 74 | GD4: =IF(OR($A3>n,GD$1>nSamps),"z",LOOKUP(INT(nPop*RAND()+1.5),$A$2:$A$425,$G$2:$G$425)) -> 67 | GE4: =IF(OR($A3>n,GE$1>nSamps),"z",LOOKUP(INT(nPop*RAND()+1.5),$A$2:$A$425,$G$2:$G$425)) -> 66 | GF4: =IF(OR($A3>n,GF$1>nSamps),"z",LOOKUP(INT(nPop*RAND()+1.5),$A$2:$A$425,$G$2:$G$425)) -> 66 | GG4: =IF(OR($A3>n,GG$1>nSamps),"z",LOOKUP(INT(nPop*RAND()+1.5),$A$2:$A$425,$G$2:$G$425)) -> 70 | GH4: =IF(OR($A3>n,GH$1>nSamps),"z",LOOKUP(INT(nPop*RAND()+1.5),$A$2:$A$425,$G$2:$G$425)) -> 66 | GI4: =IF(OR($A3>n,GI$1>nSamps),"z",LOOKUP(INT(nPop*RAND()+1.5),$A$2:$A$425,$G$2:$G$425)) -> 65 | GJ4: =IF(OR($A3>n,GJ$1>nSamps),"z",LOOKUP(INT(nPop*RAND()+1.5),$A$2:$A$425,$G$2:$G$425)) -> 71 | GK4: =IF(OR($A3>n,GK$1>nSamps),"z",LOOKUP(INT(nPop*RAND()+1.5),$A$2:$A$425,$G$2:$G$425)) -> 68 | GL4: =IF(OR($A3>n,GL$1>nSamps),"z",LOOKUP(INT(nPop*RAND()+1.5),$A$2:$A$425,$G$2:$G$425)) -> 70 | GM4: =IF(OR($A3>n,GM$1>nSamps),"z",LOOKUP(INT(nPop*RAND()+1.5),$A$2:$A$425,$G$2:$G$425)) -> 71 | GN4: =IF(OR($A3>n,GN$1>nSamps),"z",LOOKUP(INT(nPop*RAND()+1.5),$A$2:$A$425,$G$2:$G$425)) -> 68 | GO4: =IF(OR($A3>n,GO$1>nSamps),"z",LOOKUP(INT(nPop*RAND()+1.5),$A$2:$A$425,$G$2:$G$425)) -> 73 | GP4: =IF(OR($A3>n,GP$1>nSamps),"z",LOOKUP(INT(nPop*RAND()+1.5),$A$2:$A$425,$G$2:$G$425)) -> 72 | GQ4: =IF(OR($A3>n,GQ$1>nSamps),"z",LOOKUP(INT(nPop*RAND()+1.5),$A$2:$A$425,$G$2:$G$425)) -> 70 | GR4: =IF(OR($A3>n,GR$1>nSamps),"z",LOOKUP(INT(nPop*RAND()+1.5),$A$2:$A$425,$G$2:$G$425)) -> 74 | GS4: =IF(OR($A3>n,GS$1>nSamps),"z",LOOKUP(INT(nPop*RAND()+1.5),$A$2:$A$425,$G$2:$G$425)) -> 73 | GT4: =IF(OR($A3>n,GT$1>nSamps),"z",LOOKUP(INT(nPop*RAND()+1.5),$A$2:$A$425,$G$2:$G$425)) -> 66 | GU4: =IF(OR($A3>n,GU$1>nSamps),"z",LOOKUP(INT(nPop*RAND()+1.5),$A$2:$A$425,$G$2:$G$425)) -> 74 | GV4: =IF(OR($A3>n,GV$1>nSamps),"z",LOOKUP(INT(nPop*RAND()+1.5),$A$2:$A$425,$G$2:$G$425)) -> 67 | GW4: =IF(OR($A3>n,GW$1>nSamps),"z",LOOKUP(INT(nPop*RAND()+1.5),$A$2:$A$425,$G$2:$G$425)) -> 73 | GX4: =IF(OR($A3>n,GX$1>nSamps),"z",LOOKUP(INT(nPop*RAND()+1.5),$A$2:$A$425,$G$2:$G$425)) -> 68 | GY4: =IF(OR($A3>n,GY$1>nSamps),"z",LOOKUP(INT(nPop*RAND()+1.5),$A$2:$A$425,$G$2:$G$425)) -> 70 | GZ4: =IF(OR($A3>n,GZ$1>nSamps),"z",LOOKUP(INT(nPop*RAND()+1.5),$A$2:$A$425,$G$2:$G$425)) -> 74 | HA4: =IF(OR($A3>n,HA$1>nSamps),"z",LOOKUP(INT(nPop*RAND()+1.5),$A$2:$A$425,$G$2:$G$425)) -> z | HB4: =IF(OR($A3>n,HB$1>nSamps),"z",LOOKUP(INT(nPop*RAND()+1.5),$A$2:$A$425,$G$2:$G$425)) -> z | HC4: =IF(OR($A3>n,HC$1>nSamps),"z",LOOKUP(INT(nPop*RAND()+1.5),$A$2:$A$425,$G$2:$G$425)) -> z | HD4: =IF(OR($A3>n,HD$1>nSamps),"z",LOOKUP(INT(nPop*RAND()+1.5),$A$2:$A$425,$G$2:$G$425)) -> z | HE4: =IF(OR($A3>n,HE$1>nSamps),"z",LOOKUP(INT(nPop*RAND()+1.5),$A$2:$A$425,$G$2:$G$425)) -> z | HF4: =IF(OR($A3>n,HF$1>nSamps),"z",LOOKUP(INT(nPop*RAND()+1.5),$A$2:$A$425,$G$2:$G$425)) -> z | HG4: =IF(OR($A3>n,HG$1>nSamps),"z",LOOKUP(INT(nPop*RAND()+1.5),$A$2:$A$425,$G$2:$G$425)) -> z | HH4: =IF(OR($A3>n,HH$1>nSamps),"z",LOOKUP(INT(nPop*RAND()+1.5),$A$2:$A$425,$G$2:$G$425)) -> z | HI4: =IF(OR($A3>n,HI$1>nSamps),"z",LOOKUP(INT(nPop*RAND()+1.5),$A$2:$A$425,$G$2:$G$425)) -> z | HJ4: =IF(OR($A3>n,HJ$1>nSamps),"z",LOOKUP(INT(nPop*RAND()+1.5),$A$2:$A$425,$G$2:$G$425)) -> z | HK4: =IF(OR($A3>n,HK$1>nSamps),"z",LOOKUP(INT(nPop*RAND()+1.5),$A$2:$A$425,$G$2:$G$425)) -> z | HL4: =IF(OR($A3>n,HL$1>nSamps),"z",LOOKUP(INT(nPop*RAND()+1.5),$A$2:$A$425,$G$2:$G$425)) -> z | HM4: =IF(OR($A3>n,HM$1>nSamps),"z",LOOKUP(INT(nPop*RAND()+1.5),$A$2:$A$425,$G$2:$G$425)) -> z | HN4: =IF(OR($A3>n,HN$1>nSamps),"z",LOOKUP(INT(nPop*RAND()+1.5),$A$2:$A$425,$G$2:$G$425)) -> z | HO4: =IF(OR($A3>n,HO$1>nSamps),"z",LOOKUP(INT(nPop*RAND()+1.5),$A$2:$A$425,$G$2:$G$425)) -> z | HP4: =IF(OR($A3>n,HP$1>nSamps),"z",LOOKUP(INT(nPop*RAND()+1.5),$A$2:$A$425,$G$2:$G$425)) -> z | HQ4: =IF(OR($A3>n,HQ$1>nSamps),"z",LOOKUP(INT(nPop*RAND()+1.5),$A$2:$A$425,$G$2:$G$425)) -> z | HR4: =IF(OR($A3>n,HR$1>nSamps),"z",LOOKUP(INT(nPop*RAND()+1.5),$A$2:$A$425,$G$2:$G$425)) -> z | HS4: =IF(OR($A3>n,HS$1>nSamps),"z",LOOKUP(INT(nPop*RAND()+1.5),$A$2:$A$425,$G$2:$G$425)) -> z | HT4: =IF(OR($A3>n,HT$1>nSamps),"z",LOOKUP(INT(nPop*RAND()+1.5),$A$2:$A$425,$G$2:$G$425)) -> z | HU4: =IF(OR($A3>n,HU$1>nSamps),"z",LOOKUP(INT(nPop*RAND()+1.5),$A$2:$A$425,$G$2:$G$425)) -> z | HV4: =IF(OR($A3>n,HV$1>nSamps),"z",LOOKUP(INT(nPop*RAND()+1.5),$A$2:$A$425,$G$2:$G$425)) -> z | HW4: =IF(OR($A3>n,HW$1>nSamps),"z",LOOKUP(INT(nPop*RAND()+1.5),$A$2:$A$425,$G$2:$G$425)) -> z | HX4: =IF(OR($A3>n,HX$1>nSamps),"z",LOOKUP(INT(nPop*RAND()+1.5),$A$2:$A$425,$G$2:$G$425)) -> z | HY4: =IF(OR($A3>n,HY$1>nSamps),"z",LOOKUP(INT(nPop*RAND()+1.5),$A$2:$A$425,$G$2:$G$425)) -> z | HZ4: =IF(OR($A3>n,HZ$1>nSamps),"z",LOOKUP(INT(nPop*RAND()+1.5),$A$2:$A$425,$G$2:$G$425)) -> z | IA4: =IF(OR($A3>n,IA$1>nSamps),"z",LOOKUP(INT(nPop*RAND()+1.5),$A$2:$A$425,$G$2:$G$425)) -> z | IB4: =IF(OR($A3>n,IB$1>nSamps),"z",LOOKUP(INT(nPop*RAND()+1.5),$A$2:$A$425,$G$2:$G$425)) -> z | IC4: =IF(OR($A3>n,IC$1>nSamps),"z",LOOKUP(INT(nPop*RAND()+1.5),$A$2:$A$425,$G$2:$G$425)) -> z | ID4: =IF(OR($A3>n,ID$1>nSamps),"z",LOOKUP(INT(nPop*RAND()+1.5),$A$2:$A$425,$G$2:$G$425)) -> z | IE4: =IF(OR($A3>n,IE$1>nSamps),"z",LOOKUP(INT(nPop*RAND()+1.5),$A$2:$A$425,$G$2:$G$425)) -> z | IF4: =IF(OR($A3>n,IF$1>nSamps),"z",LOOKUP(INT(nPop*RAND()+1.5),$A$2:$A$425,$G$2:$G$425)) -> z | IG4: =IF(OR($A3>n,IG$1>nSamps),"z",LOOKUP(INT(nPop*RAND()+1.5),$A$2:$A$425,$G$2:$G$425)) -> z | IH4: =IF(OR($A3>n,IH$1>nSamps),"z",LOOKUP(INT(nPop*RAND()+1.5),$A$2:$A$425,$G$2:$G$425)) -> z | II4: =IF(OR($A3>n,II$1>nSamps),"z",LOOKUP(INT(nPop*RAND()+1.5),$A$2:$A$425,$G$2:$G$425)) -> z | IJ4: =IF(OR($A3>n,IJ$1>nSamps),"z",LOOKUP(INT(nPop*RAND()+1.5),$A$2:$A$425,$G$2:$G$425)) -> z | IK4: =IF(OR($A3>n,IK$1>nSamps),"z",LOOKUP(INT(nPop*RAND()+1.5),$A$2:$A$425,$G$2:$G$425)) -> z | IL4: =IF(OR($A3>n,IL$1>nSamps),"z",LOOKUP(INT(nPop*RAND()+1.5),$A$2:$A$425,$G$2:$G$425)) -> z | IM4: =IF(OR($A3>n,IM$1>nSamps),"z",LOOKUP(INT(nPop*RAND()+1.5),$A$2:$A$425,$G$2:$G$425)) -> z | IN4: =IF(OR($A3>n,IN$1>nSamps),"z",LOOKUP(INT(nPop*RAND()+1.5),$A$2:$A$425,$G$2:$G$425)) -> z
A5: 4 | B5: 60 | C5: 68 | D5: 60 | E5: 71 | F5: 71 | G5: 71 | H5: =AVERAGE(B2:B440) -> 67.979 | I5: 73 | J5: 74 | K5: 73 | L5: 60 | M5: 72 | N5: 61 | O5: 67 | P5: 70 | Q5: 68 | R5: 66 | S5: 74 | T5: 65 | U5: 74 | V5: 68 | W5: 73 | X5: 71 | Y5: 67 | Z5: 74 | AA5: 69 | AB5: 70 | AC5: 70 | AD5: 71 | AE5: 73 | AF5: 74 | AG5: 69 | AH5: 0 | AI5: 74 | AJ5: 70 | AK5: 73 | AL5: 64 | AM5: 73 | AN5: 61 | AO5: 74 | AP5: 72 | AQ5: 63 | AR5: 67 | AS5: 67 | AT5: 69 | AU5: 70 | AV5: 73 | AW5: 71 | AX5: 72 | AY5: 70 | AZ5: 72 | BA5: 71 | BB5: 73 | BC5: 74 | BD5: 73 | BE5: 72 | BF5: 72 | BG5: 63 | BH5: 71 | BI5: 68 | BJ5: 70 | BK5: 74 | BL5: 66 | BM5: 65 | BN5: 61 | BO5: 66 | BP5: 68 | BQ5: 66 | BR5: 74 | BS5: 61 | BT5: 70 | BU5: 72 | BV5: 65 | BW5: 73 | BX5: 73 | BY5: 63 | BZ5: 74 | CA5: 71 | CB5: 69 | CC5: 74 | CD5: 70 | CE5: 73 | CF5: 73 | CG5: 65 | CH5: 70 | CI5: 72 | CJ5: 74 | CK5: 73 | CL5: 60 | CM5: 65 | CN5: 70 | CO5: 72 | CP5: 0 | CQ5: 67 | CR5: 71 | CS5: 70 | CT5: 73 | CU5: 67 | CV5: 62 | CW5: 70 | CX5: 66 | CY5: 74 | CZ5: 74 | DA5: 70 | DB5: 65 | DC5: 71 | DD5: 69 | DE5: 65 | DF5: 74 | DG5: 69 | DH5: 71 | DI5: 71 | DJ5: 71 | DK5: 70 | DL5: 72 | DM5: 74 | DN5: 71 | DO5: 74 | DP5: 73 | DQ5: 69 | DR5: 74 | DS5: 64 | DT5: 72 | DU5: 66 | DV5: 73 | DW5: 63 | DX5: 71 | DY5: 69 | DZ5: 69 | EA5: 72 | EB5: 70 | EC5: 63 | ED5: 70 | EE5: 68 | EF5: 74 | EG5: 74 | EH5: 63 | EI5: 68 | EJ5: 72 | EK5: 74 | EL5: 73 | EM5: 73 | EN5: 74 | EO5: 71 | EP5: 71 | EQ5: 68 | ER5: 73 | ES5: 71 | ET5: 64 | EU5: 74 | EV5: 72 | EW5: 73 | EX5: 74 | EY5: 63 | EZ5: 73 | FA5: 67 | FB5: 72 | FC5: 73 | FD5: 70 | FE5: 71 | FF5: 74 | FG5: 70 | FH5: 73 | FI5: 67 | FJ5: 71 | FK5: 72 | FL5: 71 | FM5: 72 | FN5: 63 | FO5: 70 | FP5: 73 | FQ5: 71 | FR5: 74 | FS5: 73 | FT5: 72 | FU5: 74 | FV5: 70 | FW5: 68 | FX5: 70 | FY5: 71 | FZ5: 70 | GA5: 73 | GB5: 72 | GC5: 0 | GD5: 70 | GE5: 72 | GF5: 74 | GG5: 71 | GH5: 72 | GI5: 70 | GJ5: 74 | GK5: 69 | GL5: 74 | GM5: 74 | GN5: 73 | GO5: 70 | GP5: 68 | GQ5: 68 | GR5: 72 | GS5: 70 | GT5: 74 | GU5: 69 | GV5: 74 | GW5: 72 | GX5: 74 | GY5: 70 | GZ5: 73 | HA5: z | HB5: z | HC5: z | HD5: z | HE5: z | HF5: z | HG5: z | HH5: z | HI5: z | HJ5: z | HK5: z | HL5: z | HM5: z | HN5: z | HO5: z | HP5: z | HQ5: z | HR5: z | HS5: z | HT5: z | HU5: z | HV5: z | HW5: z | HX5: z | HY5: z | HZ5: z | IA5: z | IB5: z | IC5: z | ID5: z | IE5: z | IF5: z | IG5: z | IH5: z | II5: z | IJ5: z | IK5: z | IL5: z | IM5: z | IN5: z
A6: 5 | B6: 61 | C6: 60 | D6: 60 | E6: 60 | F6: 60 | G6: 60 | H6: =STDEVP(B2:B440) -> 2.909 | I6: 68 | J6: 66 | K6: 71 | L6: 61 | M6: 72 | N6: 73 | O6: 69 | P6: 74 | Q6: 74 | R6: 70 | S6: 73 | T6: 70 | U6: 70 | V6: 65 | W6: 73 | X6: 74 | Y6: 73 | Z6: 66 | AA6: 67 | AB6: 0 | AC6: 69 | AD6: 72 | AE6: 70 | AF6: 72 | AG6: 72 | AH6: 71 | AI6: 72 | AJ6: 72 | AK6: 62 | AL6: 71 | AM6: 67 | AN6: 73 | AO6: 68 | AP6: 72 | AQ6: 72 | AR6: 74 | AS6: 61 | AT6: 63 | AU6: 69 | AV6: 74 | AW6: 72 | AX6: 61 | AY6: 68 | AZ6: 68 | BA6: 69 | BB6: 68 | BC6: 72 | BD6: 73 | BE6: 72 | BF6: 72 | BG6: 71 | BH6: 72 | BI6: 74 | BJ6: 70 | BK6: 66 | BL6: 72 | BM6: 73 | BN6: 72 | BO6: 69 | BP6: 65 | BQ6: 71 | BR6: 71 | BS6: 68 | BT6: 68 | BU6: 69 | BV6: 73 | BW6: 71 | BX6: 70 | BY6: 72 | BZ6: 72 | CA6: 73 | CB6: 74 | CC6: z | CD6: 73 | CE6: 71 | CF6: 62 | CG6: 66 | CH6: 74 | CI6: 70 | CJ6: 71 | CK6: 63 | CL6: 70 | CM6: 71 | CN6: 68 | CO6: 73 | CP6: 73 | CQ6: 72 | CR6: 66 | CS6: 74 | CT6: 68 | CU6: 70 | CV6: 71 | CW6: 74 | CX6: 71 | CY6: 73 | CZ6: 74 | DA6: 74 | DB6: 0 | DC6: 74 | DD6: 71 | DE6: 71 | DF6: 70 | DG6: 74 | DH6: 65 | DI6: 74 | DJ6: 65 | DK6: 67 | DL6: 62 | DM6: 69 | DN6: 69 | DO6: 71 | DP6: 63 | DQ6: 70 | DR6: 74 | DS6: 72 | DT6: 74 | DU6: 0 | DV6: 71 | DW6: 74 | DX6: 68 | DY6: 70 | DZ6: 74 | EA6: 73 | EB6: 72 | EC6: 68 | ED6: 73 | EE6: 68 | EF6: 74 | EG6: 74 | EH6: 71 | EI6: 67 | EJ6: 74 | EK6: 70 | EL6: 70 | EM6: 68 | EN6: 69 | EO6: 66 | EP6: 69 | EQ6: 71 | ER6: 73 | ES6: 61 | ET6: 71 | EU6: 66 | EV6: 69 | EW6: 66 | EX6: 62 | EY6: 74 | EZ6: 72 | FA6: 70 | FB6: 71 | FC6: 74 | FD6: 72 | FE6: 60 | FF6: 73 | FG6: 72 | FH6: 70 | FI6: 70 | FJ6: 72 | FK6: 74 | FL6: 74 | FM6: 70 | FN6: 73 | FO6: 73 | FP6: 71 | FQ6: 63 | FR6: 72 | FS6: z | FT6: 70 | FU6: 73 | FV6: 73 | FW6: 69 | FX6: 73 | FY6: 69 | FZ6: 73 | GA6: 69 | GB6: 71 | GC6: 0 | GD6: 72 | GE6: 73 | GF6: 70 | GG6: 74 | GH6: 74 | GI6: 74 | GJ6: 65 | GK6: 70 | GL6: 73 | GM6: 73 | GN6: 70 | GO6: 69 | GP6: 72 | GQ6: 70 | GR6: 64 | GS6: 74 | GT6: 72 | GU6: 72 | GV6: 0 | GW6: 60 | GX6: 71 | GY6: 72 | GZ6: 71 | HA6: z | HB6: z | HC6: z | HD6: z | HE6: z | HF6: z | HG6: z | HH6: z | HI6: z | HJ6: z | HK6: z | HL6: z | HM6: z | HN6: z | HO6: z | HP6: z | HQ6: z | HR6: z | HS6: z | HT6: z | HU6: z | HV6: z | HW6: z | HX6: z | HY6: z | HZ6: z | IA6: z | IB6: z | IC6: z | ID6: z | IE6: z | IF6: z | IG6: z | IH6: z | II6: z | IJ6: z | IK6: z | IL6: z | IM6: z | IN6: z
A7: 6 | B7: 61 | C7: 60 | D7: 60 | E7: 61 | F7: 61 | G7: 61 | I7: 74 | J7: 74 | K7: 67 | L7: 69 | M7: 62 | N7: 74 | O7: 70 | P7: 63 | Q7: 74 | R7: 74 | S7: 61 | T7: 73 | U7: 70 | V7: 72 | W7: 66 | X7: 71 | Y7: 70 | Z7: 73 | AA7: 73 | AB7: 71 | AC7: 66 | AD7: 70 | AE7: 73 | AF7: 70 | AG7: 74 | AH7: 68 | AI7: 67 | AJ7: 70 | AK7: 72 | AL7: 72 | AM7: 65 | AN7: 72 | AO7: 66 | AP7: 74 | AQ7: 74 | AR7: 71 | AS7: 62 | AT7: 71 | AU7: 72 | AV7: 73 | AW7: 74 | AX7: 68 | AY7: 70 | AZ7: 70 | BA7: 65 | BB7: 65 | BC7: 68 | BD7: 71 | BE7: 66 | BF7: 68 | BG7: 72 | BH7: 71 | BI7: 73 | BJ7: 67 | BK7: 73 | BL7: 68 | BM7: 70 | BN7: 68 | BO7: 72 | BP7: 73 | BQ7: 72 | BR7: 73 | BS7: 64 | BT7: 74 | BU7: 72 | BV7: 73 | BW7: 63 | BX7: 73 | BY7: 74 | BZ7: 73 | CA7: 63 | CB7: 73 | CC7: 70 | CD7: 72 | CE7: 74 | CF7: 61 | CG7: 63 | CH7: 61 | CI7: 73 | CJ7: 62 | CK7: 71 | CL7: 72 | CM7: 71 | CN7: 69 | CO7: 68 | CP7: 74 | CQ7: 72 | CR7: 63 | CS7: 73 | CT7: 72 | CU7: 71 | CV7: 72 | CW7: 72 | CX7: 73 | CY7: 70 | CZ7: 65 | DA7: 73 | DB7: 74 | DC7: 70 | DD7: 63 | DE7: 70 | DF7: 63 | DG7: 70 | DH7: 68 | DI7: 69 | DJ7: 71 | DK7: 70 | DL7: 74 | DM7: 70 | DN7: 72 | DO7: 67 | DP7: 71 | DQ7: 64 | DR7: 66 | DS7: 74 | DT7: 72 | DU7: 72 | DV7: 71 | DW7: 68 | DX7: 74 | DY7: 67 | DZ7: 73 | EA7: 62 | EB7: 73 | EC7: 62 | ED7: 71 | EE7: 74 | EF7: 74 | EG7: 73 | EH7: 74 | EI7: 70 | EJ7: 72 | EK7: 72 | EL7: 64 | EM7: 73 | EN7: 70 | EO7: 73 | EP7: 72 | EQ7: 70 | ER7: 73 | ES7: 74 | ET7: 69 | EU7: 70 | EV7: 72 | EW7: 74 | EX7: 74 | EY7: 74 | EZ7: 71 | FA7: 72 | FB7: 71 | FC7: 68 | FD7: 71 | FE7: 66 | FF7: 70 | FG7: 71 | FH7: 71 | FI7: 74 | FJ7: 68 | FK7: 0 | FL7: 71 | FM7: 71 | FN7: 74 | FO7: 73 | FP7: 72 | FQ7: 66 | FR7: 64 | FS7: 70 | FT7: 72 | FU7: 65 | FV7: 71 | FW7: 72 | FX7: 74 | FY7: 63 | FZ7: 70 | GA7: 72 | GB7: 70 | GC7: 68 | GD7: 65 | GE7: 73 | GF7: 66 | GG7: 73 | GH7: 70 | GI7: 70 | GJ7: 61 | GK7: 70 | GL7: 63 | GM7: 71 | GN7: 68 | GO7: 68 | GP7: 65 | GQ7: 74 | GR7: 72 | GS7: 63 | GT7: 73 | GU7: 73 | GV7: 74 | GW7: 68 | GX7: 72 | GY7: 73 | GZ7: 74 | HA7: z | HB7: z | HC7: z | HD7: z | HE7: z | HF7: z | HG7: z | HH7: z | HI7: z | HJ7: z | HK7: z | HL7: z | HM7: z | HN7: z | HO7: z | HP7: z | HQ7: z | HR7: z | HS7: z | HT7: z | HU7: z | HV7: z | HW7: z | HX7: z | HY7: z | HZ7: z | IA7: z | IB7: z | IC7: z | ID7: z | IE7: z | IF7: z | IG7: z | IH7: z | II7: z | IJ7: z | IK7: z | IL7: z | IM7: z | IN7: z
A8: 7 | B8: 61 | C8: 60 | D8: 60 | E8: 61 | F8: 61 | G8: 61 | I8: 72 | J8: 62 | K8: 68 | L8: 69 | M8: 73 | N8: 64 | O8: 65 | P8: 63 | Q8: 70 | R8: 72 | S8: 70 | T8: 74 | U8: 71 | V8: 73 | W8: 72 | X8: 73 | Y8: 71 | Z8: 66 | AA8: 74 | AB8: 66 | AC8: 71 | AD8: 68 | AE8: 72 | AF8: 72 | AG8: 60 | AH8: 71 | AI8: 74 | AJ8: 68 | AK8: 71 | AL8: 71 | AM8: 72 | AN8: 74 | AO8: 73 | AP8: 70 | AQ8: 73 | AR8: 68 | AS8: 74 | AT8: 72 | AU8: 69 | AV8: 74 | AW8: 66 | AX8: 74 | AY8: 72 | AZ8: 72 | BA8: 74 | BB8: 70 | BC8: 69 | BD8: 69 | BE8: 73 | BF8: 69 | BG8: 74 | BH8: 69 | BI8: 67 | BJ8: 71 | BK8: 74 | BL8: 71 | BM8: 73 | BN8: 72 | BO8: 67 | BP8: 73 | BQ8: 73 | BR8: 72 | BS8: 73 | BT8: 70 | BU8: 74 | BV8: 70 | BW8: 66 | BX8: 74 | BY8: 73 | BZ8: 70 | CA8: 72 | CB8: 72 | CC8: 71 | CD8: 71 | CE8: 65 | CF8: 74 | CG8: 73 | CH8: 63 | CI8: 74 | CJ8: 70 | CK8: 71 | CL8: 72 | CM8: 65 | CN8: 74 | CO8: 72 | CP8: 67 | CQ8: 73 | CR8: 68 | CS8: 73 | CT8: 73 | CU8: 72 | CV8: 68 | CW8: 71 | CX8: 74 | CY8: 69 | CZ8: 64 | DA8: 63 | DB8: 71 | DC8: 69 | DD8: 0 | DE8: 72 | DF8: 74 | DG8: 71 | DH8: 72 | DI8: 61 | DJ8: 74 | DK8: 73 | DL8: 74 | DM8: 69 | DN8: 65 | DO8: 68 | DP8: 72 | DQ8: 74 | DR8: 73 | DS8: 60 | DT8: 73 | DU8: 73 | DV8: 70 | DW8: 72 | DX8: 70 | DY8: 65 | DZ8: 73 | EA8: 74 | EB8: 73 | EC8: 73 | ED8: 74 | EE8: 73 | EF8: 71 | EG8: 71 | EH8: 72 | EI8: 74 | EJ8: 74 | EK8: 74 | EL8: 71 | EM8: 70 | EN8: 74 | EO8: 73 | EP8: 61 | EQ8: 63 | ER8: 73 | ES8: 69 | ET8: 72 | EU8: 74 | EV8: 71 | EW8: 74 | EX8: 73 | EY8: 71 | EZ8: 71 | FA8: 72 | FB8: 71 | FC8: 74 | FD8: 74 | FE8: 67 | FF8: 74 | FG8: 71 | FH8: 70 | FI8: 68 | FJ8: 74 | FK8: 68 | FL8: 73 | FM8: 63 | FN8: 72 | FO8: 72 | FP8: 61 | FQ8: 73 | FR8: 74 | FS8: 70 | FT8: 74 | FU8: 68 | FV8: 70 | FW8: 71 | FX8: 72 | FY8: 69 | FZ8: 74 | GA8: 72 | GB8: 0 | GC8: 66 | GD8: 71 | GE8: 71 | GF8: 64 | GG8: 73 | GH8: 73 | GI8: 68 | GJ8: 74 | GK8: 71 | GL8: 73 | GM8: 74 | GN8: 71 | GO8: 72 | GP8: 72 | GQ8: 74 | GR8: 65 | GS8: 73 | GT8: 65 | GU8: 68 | GV8: 70 | GW8: 70 | GX8: 74 | GY8: 72 | GZ8: 72 | HA8: z | HB8: z | HC8: z | HD8: z | HE8: z | HF8: z | HG8: z | HH8: z | HI8: z | HJ8: z | HK8: z | HL8: z | HM8: z | HN8: z | HO8: z | HP8: z | HQ8: z | HR8: z | HS8: z | HT8: z | HU8: z | HV8: z | HW8: z | HX8: z | HY8: z | HZ8: z | IA8: z | IB8: z | IC8: z | ID8: z | IE8: z | IF8: z | IG8: z | IH8: z | II8: z | IJ8: z | IK8: z | IL8: z | IM8: z | IN8: z
A9: 8 | B9: 61 | C9: 60 | D9: 60 | E9: 61 | F9: 61 | G9: 61 | H9: Uniform | I9: 70 | J9: 68 | K9: 74 | L9: 71 | M9: 74 | N9: 69 | O9: 72 | P9: 72 | Q9: 70 | R9: 73 | S9: 74 | T9: 60 | U9: 72 | V9: 70 | W9: 72 | X9: 67 | Y9: 74 | Z9: 68 | AA9: 68 | AB9: 71 | AC9: 71 | AD9: 72 | AE9: 70 | AF9: 70 | AG9: 74 | AH9: 70 | AI9: 74 | AJ9: 65 | AK9: 74 | AL9: 71 | AM9: 74 | AN9: 71 | AO9: 74 | AP9: 74 | AQ9: 74 | AR9: 74 | AS9: 72 | AT9: 71 | AU9: 73 | AV9: 71 | AW9: 73 | AX9: 73 | AY9: 74 | AZ9: 74 | BA9: 74 | BB9: 74 | BC9: 73 | BD9: 69 | BE9: 63 | BF9: 74 | BG9: 73 | BH9: 69 | BI9: 73 | BJ9: 70 | BK9: 72 | BL9: 74 | BM9: 72 | BN9: 74 | BO9: 69 | BP9: 72 | BQ9: 74 | BR9: 74 | BS9: 72 | BT9: 73 | BU9: 73 | BV9: 70 | BW9: 63 | BX9: 69 | BY9: 65 | BZ9: 70 | CA9: 74 | CB9: 72 | CC9: 70 | CD9: 69 | CE9: 74 | CF9: 66 | CG9: 65 | CH9: 70 | CI9: 74 | CJ9: 0 | CK9: 74 | CL9: 73 | CM9: 71 | CN9: 67 | CO9: 72 | CP9: 73 | CQ9: 72 | CR9: 70 | CS9: 74 | CT9: 65 | CU9: 70 | CV9: 72 | CW9: 73 | CX9: 74 | CY9: 70 | CZ9: 72 | DA9: 71 | DB9: 71 | DC9: 71 | DD9: 69 | DE9: 70 | DF9: 73 | DG9: 66 | DH9: 64 | DI9: 69 | DJ9: 69 | DK9: 71 | DL9: 67 | DM9: 65 | DN9: 70 | DO9: 71 | DP9: 71 | DQ9: 72 | DR9: 72 | DS9: 71 | DT9: 74 | DU9: 66 | DV9: 72 | DW9: 73 | DX9: 74 | DY9: 73 | DZ9: 73 | EA9: 74 | EB9: 69 | EC9: 74 | ED9: 73 | EE9: 70 | EF9: 73 | EG9: 68 | EH9: 69 | EI9: 62 | EJ9: 74 | EK9: 72 | EL9: 74 | EM9: 65 | EN9: 68 | EO9: 68 | EP9: 71 | EQ9: 74 | ER9: 74 | ES9: 70 | ET9: 70 | EU9: 68 | EV9: 72 | EW9: 74 | EX9: 74 | EY9: 73 | EZ9: 71 | FA9: 73 | FB9: 70 | FC9: 74 | FD9: 63 | FE9: 73 | FF9: 67 | FG9: 63 | FH9: 72 | FI9: 63 | FJ9: 74 | FK9: 71 | FL9: 71 | FM9: 74 | FN9: 70 | FO9: 72 | FP9: 63 | FQ9: 70 | FR9: 72 | FS9: 74 | FT9: 68 | FU9: 71 | FV9: 72 | FW9: 73 | FX9: 71 | FY9: 74 | FZ9: 70 | GA9: 72 | GB9: 74 | GC9: 71 | GD9: 74 | GE9: 71 | GF9: 73 | GG9: 71 | GH9: 0 | GI9: 74 | GJ9: 68 | GK9: 0 | GL9: 68 | GM9: 71 | GN9: 0 | GO9: 73 | GP9: 66 | GQ9: 71 | GR9: 74 | GS9: 73 | GT9: 73 | GU9: 72 | GV9: 70 | GW9: 67 | GX9: 64 | GY9: 71 | GZ9: 68 | HA9: z | HB9: z | HC9: z | HD9: z | HE9: z | HF9: z | HG9: z | HH9: z | HI9: z | HJ9: z | HK9: z | HL9: z | HM9: z | HN9: z | HO9: z | HP9: z | HQ9: z | HR9: z | HS9: z | HT9: z | HU9: z | HV9: z | HW9: z | HX9: z | HY9: z | HZ9: z | IA9: z | IB9: z | IC9: z | ID9: z | IE9: z | IF9: z | IG9: z | IH9: z | II9: z | IJ9: z | IK9: z | IL9: z | IM9: z | IN9: z
A10: 9 | B10: 61 | C10: 60 | D10: 60 | E10: 61 | F10: 61 | G10: 61 | H10: =AVERAGE(C2:C440) -> 67.469 | I10: 63 | J10: 65 | K10: 73 | L10: 64 | M10: 68 | N10: 74 | O10: 70 | P10: 65 | Q10: 72 | R10: 71 | S10: 74 | T10: 67 | U10: 74 | V10: 74 | W10: 72 | X10: 63 | Y10: 72 | Z10: 72 | AA10: 68 | AB10: 73 | AC10: 74 | AD10: 71 | AE10: 68 | AF10: 71 | AG10: 74 | AH10: 74 | AI10: 68 | AJ10: 70 | AK10: 73 | AL10: 72 | AM10: 70 | AN10: 72 | AO10: 71 | AP10: 67 | AQ10: 71 | AR10: 64 | AS10: 65 | AT10: 71 | AU10: 70 | AV10: 74 | AW10: 63 | AX10: 68 | AY10: 66 | AZ10: 70 | BA10: 74 | BB10: 74 | BC10: 74 | BD10: 69 | BE10: 67 | BF10: 74 | BG10: 72 | BH10: 70 | BI10: 70 | BJ10: 66 | BK10: 64 | BL10: 67 | BM10: 73 | BN10: 74 | BO10: 73 | BP10: 69 | BQ10: 72 | BR10: 68 | BS10: 72 | BT10: 63 | BU10: 74 | BV10: 74 | BW10: 63 | BX10: 67 | BY10: 66 | BZ10: 0 | CA10: 66 | CB10: 74 | CC10: 72 | CD10: 62 | CE10: 72 | CF10: 70 | CG10: 72 | CH10: 70 | CI10: 72 | CJ10: 60 | CK10: 64 | CL10: 69 | CM10: 70 | CN10: 73 | CO10: 71 | CP10: 71 | CQ10: 72 | CR10: 74 | CS10: 71 | CT10: 69 | CU10: 68 | CV10: 0 | CW10: 73 | CX10: 62 | CY10: 71 | CZ10: 63 | DA10: 72 | DB10: 73 | DC10: 74 | DD10: 71 | DE10: 71 | DF10: 66 | DG10: 70 | DH10: 71 | DI10: 71 | DJ10: 72 | DK10: 72 | DL10: 68 | DM10: 71 | DN10: 63 | DO10: 71 | DP10: 74 | DQ10: 73 | DR10: 0 | DS10: 74 | DT10: 71 | DU10: 69 | DV10: 73 | DW10: 71 | DX10: 71 | DY10: 62 | DZ10: 73 | EA10: 71 | EB10: 69 | EC10: 68 | ED10: 74 | EE10: 71 | EF10: 61 | EG10: 73 | EH10: 71 | EI10: 72 | EJ10: 72 | EK10: 73 | EL10: 72 | EM10: 67 | EN10: 72 | EO10: 74 | EP10: 73 | EQ10: 65 | ER10: 73 | ES10: 70 | ET10: 73 | EU10: 66 | EV10: 71 | EW10: 72 | EX10: 70 | EY10: 73 | EZ10: 71 | FA10: 74 | FB10: 66 | FC10: 67 | FD10: 65 | FE10: 69 | FF10: 61 | FG10: 70 | FH10: 71 | FI10: 74 | FJ10: 74 | FK10: 66 | FL10: 74 | FM10: 72 | FN10: 70 | FO10: 74 | FP10: 68 | FQ10: 73 | FR10: 73 | FS10: 63 | FT10: 66 | FU10: 70 | FV10: 65 | FW10: 70 | FX10: 66 | FY10: 70 | FZ10: 73 | GA10: 61 | GB10: 70 | GC10: 73 | GD10: 73 | GE10: 72 | GF10: 73 | GG10: 74 | GH10: 73 | GI10: 71 | GJ10: 62 | GK10: 73 | GL10: 73 | GM10: 64 | GN10: 69 | GO10: 72 | GP10: 74 | GQ10: 64 | GR10: 74 | GS10: 74 | GT10: 68 | GU10: 71 | GV10: 74 | GW10: 72 | GX10: 71 | GY10: 73 | GZ10: 72 | HA10: z | HB10: z | HC10: z | HD10: z | HE10: z | HF10: z | HG10: z | HH10: z | HI10: z | HJ10: z | HK10: z | HL10: z | HM10: z | HN10: z | HO10: z | HP10: z | HQ10: z | HR10: z | HS10: z | HT10: z | HU10: z | HV10: z | HW10: z | HX10: z | HY10: z | HZ10: z | IA10: z | IB10: z | IC10: z | ID10: z | IE10: z | IF10: z | IG10: z | IH10: z | II10: z | IJ10: z | IK10: z | IL10: z | IM10: z | IN10: z
A11: 10 | B11: 61 | C11: 60 | D11: 60 | E11: 61 | F11: 61 | G11: 61 | H11: =STDEVP(C2:C440) -> 4.172 | I11: 70 | J11: 67 | K11: 73 | L11: 72 | M11: 73 | N11: 67 | O11: 74 | P11: 74 | Q11: 74 | R11: 68 | S11: 67 | T11: 68 | U11: 71 | V11: 73 | W11: 74 | X11: 70 | Y11: 71 | Z11: 73 | AA11: 71 | AB11: 73 | AC11: 73 | AD11: 74 | AE11: 70 | AF11: 73 | AG11: 63 | AH11: 70 | AI11: 72 | AJ11: 74 | AK11: 69 | AL11: 70 | AM11: 73 | AN11: 71 | AO11: 70 | AP11: 72 | AQ11: 73 | AR11: 74 | AS11: 74 | AT11: 72 | AU11: 68 | AV11: 63 | AW11: 0 | AX11: 71 | AY11: 67 | AZ11: 69 | BA11: 66 | BB11: 73 | BC11: 72 | BD11: 73 | BE11: 71 | BF11: 64 | BG11: 73 | BH11: 64 | BI11: 73 | BJ11: 71 | BK11: 74 | BL11: 65 | BM11: 67 | BN11: 68 | BO11: 74 | BP11: 74 | BQ11: 73 | BR11: 72 | BS11: 72 | BT11: 69 | BU11: 72 | BV11: 67 | BW11: 70 | BX11: 71 | BY11: 62 | BZ11: 70 | CA11: 74 | CB11: 69 | CC11: 72 | CD11: 64 | CE11: 71 | CF11: 74 | CG11: 62 | CH11: 70 | CI11: 73 | CJ11: 71 | CK11: 60 | CL11: 72 | CM11: 70 | CN11: 0 | CO11: 70 | CP11: 67 | CQ11: 71 | CR11: 65 | CS11: 72 | CT11: 70 | CU11: 70 | CV11: 73 | CW11: 73 | CX11: 72 | CY11: 70 | CZ11: 69 | DA11: 73 | DB11: 68 | DC11: 72 | DD11: 74 | DE11: 70 | DF11: 72 | DG11: 73 | DH11: 70 | DI11: 63 | DJ11: 71 | DK11: 74 | DL11: 72 | DM11: 68 | DN11: 74 | DO11: 71 | DP11: 74 | DQ11: 73 | DR11: 74 | DS11: 0 | DT11: 64 | DU11: 68 | DV11: 74 | DW11: 71 | DX11: 69 | DY11: 72 | DZ11: 74 | EA11: 72 | EB11: 73 | EC11: 64 | ED11: 70 | EE11: 69 | EF11: 74 | EG11: 73 | EH11: 65 | EI11: 67 | EJ11: 74 | EK11: 70 | EL11: 73 | EM11: 74 | EN11: 69 | EO11: 71 | EP11: 72 | EQ11: 72 | ER11: 72 | ES11: 66 | ET11: 71 | EU11: 72 | EV11: 64 | EW11: 74 | EX11: 73 | EY11: 71 | EZ11: 74 | FA11: 74 | FB11: 72 | FC11: 68 | FD11: 69 | FE11: 62 | FF11: 66 | FG11: 72 | FH11: 71 | FI11: 74 | FJ11: 74 | FK11: 74 | FL11: 71 | FM11: 71 | FN11: 67 | FO11: 73 | FP11: 72 | FQ11: 72 | FR11: 69 | FS11: 60 | FT11: 63 | FU11: 73 | FV11: 68 | FW11: 71 | FX11: 71 | FY11: 71 | FZ11: 73 | GA11: 74 | GB11: 67 | GC11: 62 | GD11: 67 | GE11: 70 | GF11: 72 | GG11: 72 | GH11: 71 | GI11: 74 | GJ11: 70 | GK11: 74 | GL11: 70 | GM11: 73 | GN11: 74 | GO11: 67 | GP11: 63 | GQ11: 69 | GR11: 63 | GS11: 69 | GT11: 71 | GU11: 69 | GV11: 72 | GW11: 73 | GX11: 70 | GY11: 74 | GZ11: 71 | HA11: z | HB11: z | HC11: z | HD11: z | HE11: z | HF11: z | HG11: z | HH11: z | HI11: z | HJ11: z | HK11: z | HL11: z | HM11: z | HN11: z | HO11: z | HP11: z | HQ11: z | HR11: z | HS11: z | HT11: z | HU11: z | HV11: z | HW11: z | HX11: z | HY11: z | HZ11: z | IA11: z | IB11: z | IC11: z | ID11: z | IE11: z | IF11: z | IG11: z | IH11: z | II11: z | IJ11: z | IK11: z | IL11: z | IM11: z | IN11: z
A12: 11 | B12: 61 | C12: 68 | D12: 60 | E12: 71 | F12: 71 | G12: 71 | I12: 74 | J12: 71 | K12: 74 | L12: 67 | M12: 72 | N12: 68 | O12: 72 | P12: 69 | Q12: 70 | R12: 67 | S12: 68 | T12: 64 | U12: 70 | V12: 72 | W12: 73 | X12: 63 | Y12: 74 | Z12: 74 | AA12: 71 | AB12: 68 | AC12: 73 | AD12: 72 | AE12: 73 | AF12: 62 | AG12: 74 | AH12: 72 | AI12: 67 | AJ12: 73 | AK12: 72 | AL12: 74 | AM12: 67 | AN12: 60 | AO12: 65 | AP12: 71 | AQ12: 70 | AR12: 74 | AS12: 73 | AT12: 74 | AU12: 72 | AV12: 70 | AW12: 70 | AX12: 72 | AY12: 73 | AZ12: 71 | BA12: 68 | BB12: 62 | BC12: 73 | BD12: 71 | BE12: 71 | BF12: 66 | BG12: 68 | BH12: 73 | BI12: 70 | BJ12: 71 | BK12: 73 | BL12: 70 | BM12: 74 | BN12: 73 | BO12: 73 | BP12: 73 | BQ12: 68 | BR12: 72 | BS12: 70 | BT12: 65 | BU12: 67 | BV12: 71 | BW12: 71 | BX12: 66 | BY12: 73 | BZ12: 0 | CA12: 68 | CB12: 61 | CC12: 74 | CD12: 68 | CE12: 74 | CF12: 67 | CG12: 73 | CH12: 73 | CI12: 72 | CJ12: 69 | CK12: 69 | CL12: 70 | CM12: 71 | CN12: 68 | CO12: 70 | CP12: 69 | CQ12: 74 | CR12: 72 | CS12: 66 | CT12: 72 | CU12: 72 | CV12: 70 | CW12: 73 | CX12: 73 | CY12: 71 | CZ12: 73 | DA12: 73 | DB12: 61 | DC12: 71 | DD12: 70 | DE12: 61 | DF12: 74 | DG12: 69 | DH12: 74 | DI12: 63 | DJ12: 74 | DK12: 72 | DL12: 63 | DM12: 72 | DN12: 67 | DO12: 73 | DP12: 71 | DQ12: 71 | DR12: 73 | DS12: 71 | DT12: 71 | DU12: 74 | DV12: 70 | DW12: 71 | DX12: 73 | DY12: 74 | DZ12: 69 | EA12: 72 | EB12: 71 | EC12: 70 | ED12: 72 | EE12: 64 | EF12: 64 | EG12: 72 | EH12: 73 | EI12: 64 | EJ12: 65 | EK12: 74 | EL12: 70 | EM12: 71 | EN12: 73 | EO12: 72 | EP12: 73 | EQ12: 73 | ER12: 73 | ES12: 74 | ET12: 72 | EU12: 70 | EV12: 70 | EW12: 72 | EX12: 72 | EY12: 68 | EZ12: 67 | FA12: 73 | FB12: 64 | FC12: 68 | FD12: 70 | FE12: 73 | FF12: 74 | FG12: 67 | FH12: 71 | FI12: 66 | FJ12: 74 | FK12: 72 | FL12: 72 | FM12: 63 | FN12: 63 | FO12: 74 | FP12: 70 | FQ12: 73 | FR12: 74 | FS12: 70 | FT12: 72 | FU12: 70 | FV12: 74 | FW12: 69 | FX12: 67 | FY12: 72 | FZ12: 73 | GA12: 73 | GB12: 72 | GC12: 73 | GD12: 71 | GE12: 73 | GF12: 74 | GG12: 74 | GH12: 73 | GI12: 70 | GJ12: 73 | GK12: 73 | GL12: 74 | GM12: 73 | GN12: 73 | GO12: 70 | GP12: 69 | GQ12: 70 | GR12: 70 | GS12: 70 | GT12: 66 | GU12: 70 | GV12: 67 | GW12: 66 | GX12: 66 | GY12: 73 | GZ12: 68 | HA12: z | HB12: z | HC12: z | HD12: z | HE12: z | HF12: z | HG12: z | HH12: z | HI12: z | HJ12: z | HK12: z | HL12: z | HM12: z | HN12: z | HO12: z | HP12: z | HQ12: z | HR12: z | HS12: z | HT12: z | HU12: z | HV12: z | HW12: z | HX12: z | HY12: z | HZ12: z | IA12: z | IB12: z | IC12: z | ID12: z | IE12: z | IF12: z | IG12: z | IH12: z | II12: z | IJ12: z | IK12: z | IL12: z | IM12: z | IN12: z
A13: 12 | B13: 61 | C13: 68 | D13: 60 | E13: 71 | F13: 71 | G13: 71 | I13: 68 | J13: 74 | K13: 73 | L13: 66 | M13: 72 | N13: 72 | O13: 69 | P13: 71 | Q13: 74 | R13: 74 | S13: 72 | T13: 66 | U13: 62 | V13: 74 | W13: 68 | X13: 71 | Y13: 69 | Z13: 72 | AA13: 71 | AB13: 73 | AC13: 73 | AD13: 74 | AE13: 62 | AF13: 73 | AG13: 68 | AH13: 71 | AI13: 71 | AJ13: 67 | AK13: 69 | AL13: 64 | AM13: 69 | AN13: 74 | AO13: 70 | AP13: 74 | AQ13: 70 | AR13: 67 | AS13: 72 | AT13: 71 | AU13: 73 | AV13: z | AW13: 63 | AX13: 69 | AY13: 70 | AZ13: 72 | BA13: 72 | BB13: 70 | BC13: 74 | BD13: 73 | BE13: 64 | BF13: 67 | BG13: 73 | BH13: 73 | BI13: 74 | BJ13: 69 | BK13: 64 | BL13: 65 | BM13: 73 | BN13: 73 | BO13: 74 | BP13: 74 | BQ13: 74 | BR13: 73 | BS13: 70 | BT13: 71 | BU13: 73 | BV13: 74 | BW13: 70 | BX13: 73 | BY13: 74 | BZ13: 66 | CA13: 70 | CB13: 71 | CC13: 70 | CD13: 71 | CE13: 74 | CF13: 66 | CG13: 70 | CH13: 67 | CI13: 68 | CJ13: 71 | CK13: 74 | CL13: 72 | CM13: 71 | CN13: 73 | CO13: 63 | CP13: 71 | CQ13: 0 | CR13: 74 | CS13: 62 | CT13: 70 | CU13: 73 | CV13: 64 | CW13: 74 | CX13: 66 | CY13: 63 | CZ13: 74 | DA13: z | DB13: 74 | DC13: 71 | DD13: 72 | DE13: 74 | DF13: 70 | DG13: 72 | DH13: 73 | DI13: 71 | DJ13: 70 | DK13: 63 | DL13: 74 | DM13: 66 | DN13: 74 | DO13: 72 | DP13: 74 | DQ13: 70 | DR13: 63 | DS13: 66 | DT13: 74 | DU13: 70 | DV13: 73 | DW13: 70 | DX13: 73 | DY13: 74 | DZ13: 73 | EA13: 62 | EB13: 70 | EC13: 72 | ED13: 71 | EE13: 70 | EF13: 72 | EG13: 68 | EH13: 71 | EI13: 72 | EJ13: 70 | EK13: 73 | EL13: 71 | EM13: 70 | EN13: 70 | EO13: 61 | EP13: 72 | EQ13: 72 | ER13: 74 | ES13: 71 | ET13: 73 | EU13: 74 | EV13: 65 | EW13: 74 | EX13: 63 | EY13: 67 | EZ13: 69 | FA13: 63 | FB13: 67 | FC13: 74 | FD13: 73 | FE13: 0 | FF13: 65 | FG13: 71 | FH13: 70 | FI13: 69 | FJ13: 61 | FK13: 70 | FL13: 71 | FM13: 0 | FN13: 73 | FO13: 73 | FP13: 71 | FQ13: 71 | FR13: 71 | FS13: 74 | FT13: 71 | FU13: 74 | FV13: 71 | FW13: 72 | FX13: 67 | FY13: 71 | FZ13: 74 | GA13: 72 | GB13: 74 | GC13: 69 | GD13: 71 | GE13: 64 | GF13: 70 | GG13: 73 | GH13: 68 | GI13: 70 | GJ13: 72 | GK13: 73 | GL13: 72 | GM13: 71 | GN13: 73 | GO13: 67 | GP13: 72 | GQ13: 73 | GR13: 63 | GS13: 71 | GT13: 68 | GU13: 74 | GV13: 69 | GW13: 63 | GX13: 73 | GY13: 66 | GZ13: 72 | HA13: z | HB13: z | HC13: z | HD13: z | HE13: z | HF13: z | HG13: z | HH13: z | HI13: z | HJ13: z | HK13: z | HL13: z | HM13: z | HN13: z | HO13: z | HP13: z | HQ13: z | HR13: z | HS13: z | HT13: z | HU13: z | HV13: z | HW13: z | HX13: z | HY13: z | HZ13: z | IA13: z | IB13: z | IC13: z | ID13: z | IE13: z | IF13: z | IG13: z | IH13: z | II13: z | IJ13: z | IK13: z | IL13: z | IM13: z | IN13: z
A14: 13 | B14: 61 | C14: 68 | D14: 60 | E14: 71 | F14: 71 | G14: 71 | H14: U-shape | I14: 61 | J14: 70 | K14: 73 | L14: 70 | M14: 74 | N14: 72 | O14: 71 | P14: 66 | Q14: 72 | R14: 72 | S14: 74 | T14: 74 | U14: 73 | V14: 73 | W14: 63 | X14: 63 | Y14: 72 | Z14: 74 | AA14: 72 | AB14: 73 | AC14: 70 | AD14: 74 | AE14: 63 | AF14: 74 | AG14: 72 | AH14: 70 | AI14: 70 | AJ14: 63 | AK14: 66 | AL14: 73 | AM14: 72 | AN14: 67 | AO14: 69 | AP14: 72 | AQ14: 72 | AR14: 64 | AS14: 72 | AT14: 62 | AU14: 68 | AV14: 71 | AW14: 63 | AX14: 71 | AY14: 68 | AZ14: 66 | BA14: 71 | BB14: 73 | BC14: 74 | BD14: 72 | BE14: 74 | BF14: 69 | BG14: 70 | BH14: 74 | BI14: 71 | BJ14: 72 | BK14: 71 | BL14: 61 | BM14: 68 | BN14: 74 | BO14: 68 | BP14: 69 | BQ14: 72 | BR14: 74 | BS14: 71 | BT14: 74 | BU14: 72 | BV14: 68 | BW14: 70 | BX14: 70 | BY14: 70 | BZ14: 63 | CA14: 73 | CB14: 63 | CC14: 61 | CD14: 73 | CE14: 67 | CF14: 74 | CG14: 71 | CH14: 74 | CI14: 74 | CJ14: 70 | CK14: 74 | CL14: 70 | CM14: 69 | CN14: 73 | CO14: 74 | CP14: 70 | CQ14: 69 | CR14: 71 | CS14: 71 | CT14: 74 | CU14: 72 | CV14: 72 | CW14: 73 | CX14: 0 | CY14: 70 | CZ14: 0 | DA14: 72 | DB14: 70 | DC14: 65 | DD14: 71 | DE14: 70 | DF14: 64 | DG14: 69 | DH14: 71 | DI14: 71 | DJ14: 65 | DK14: 70 | DL14: 73 | DM14: 74 | DN14: 71 | DO14: 71 | DP14: 66 | DQ14: 71 | DR14: 74 | DS14: 74 | DT14: 73 | DU14: 73 | DV14: 73 | DW14: 73 | DX14: 67 | DY14: 73 | DZ14: 70 | EA14: 74 | EB14: 66 | EC14: 71 | ED14: 73 | EE14: 71 | EF14: 71 | EG14: 65 | EH14: 71 | EI14: 74 | EJ14: 72 | EK14: 73 | EL14: 74 | EM14: 70 | EN14: 73 | EO14: 70 | EP14: 68 | EQ14: 68 | ER14: 71 | ES14: 66 | ET14: 72 | EU14: 70 | EV14: 72 | EW14: 66 | EX14: 73 | EY14: 72 | EZ14: 71 | FA14: 62 | FB14: 70 | FC14: 66 | FD14: 72 | FE14: 73 | FF14: 63 | FG14: 71 | FH14: 73 | FI14: 72 | FJ14: 64 | FK14: 74 | FL14: 66 | FM14: 72 | FN14: 70 | FO14: 70 | FP14: 67 | FQ14: 74 | FR14: 72 | FS14: 73 | FT14: 71 | FU14: 70 | FV14: 71 | FW14: 70 | FX14: 72 | FY14: 74 | FZ14: 72 | GA14: 69 | GB14: 0 | GC14: 70 | GD14: 73 | GE14: 66 | GF14: 70 | GG14: 70 | GH14: 68 | GI14: 69 | GJ14: 71 | GK14: 70 | GL14: 71 | GM14: 74 | GN14: 70 | GO14: 74 | GP14: 71 | GQ14: 66 | GR14: 73 | GS14: 74 | GT14: 72 | GU14: 74 | GV14: 73 | GW14: 72 | GX14: 66 | GY14: 64 | GZ14: 70 | HA14: z | HB14: z | HC14: z | HD14: z | HE14: z | HF14: z | HG14: z | HH14: z | HI14: z | HJ14: z | HK14: z | HL14: z | HM14: z | HN14: z | HO14: z | HP14: z | HQ14: z | HR14: z | HS14: z | HT14: z | HU14: z | HV14: z | HW14: z | HX14: z | HY14: z | HZ14: z | IA14: z | IB14: z | IC14: z | ID14: z | IE14: z | IF14: z | IG14: z | IH14: z | II14: z | IJ14: z | IK14: z | IL14: z | IM14: z | IN14: z
A15: 14 | B15: 61 | C15: 68 | D15: 60 | E15: 71 | F15: 71 | G15: 71 | H15: =AVERAGE(D2:D440) -> 67.366 | I15: 74 | J15: 70 | K15: 71 | L15: 60 | M15: 73 | N15: 74 | O15: 74 | P15: 73 | Q15: 72 | R15: 72 | S15: 72 | T15: 73 | U15: 71 | V15: 70 | W15: 66 | X15: 61 | Y15: 71 | Z15: 71 | AA15: 62 | AB15: 0 | AC15: 70 | AD15: 69 | AE15: 74 | AF15: 61 | AG15: 72 | AH15: 73 | AI15: 69 | AJ15: 74 | AK15: 66 | AL15: 65 | AM15: 73 | AN15: 71 | AO15: 68 | AP15: 72 | AQ15: 74 | AR15: 72 | AS15: 70 | AT15: 72 | AU15: 72 | AV15: 70 | AW15: 73 | AX15: 73 | AY15: 72 | AZ15: 73 | BA15: 70 | BB15: 72 | BC15: 69 | BD15: 72 | BE15: 71 | BF15: 74 | BG15: 74 | BH15: 69 | BI15: 70 | BJ15: 64 | BK15: 70 | BL15: 61 | BM15: 68 | BN15: 67 | BO15: 74 | BP15: 70 | BQ15: 74 | BR15: 70 | BS15: 73 | BT15: 68 | BU15: 74 | BV15: 71 | BW15: 74 | BX15: 66 | BY15: 69 | BZ15: 73 | CA15: 74 | CB15: 72 | CC15: 73 | CD15: 70 | CE15: 70 | CF15: 66 | CG15: 61 | CH15: 72 | CI15: 70 | CJ15: 71 | CK15: 67 | CL15: 68 | CM15: 72 | CN15: 73 | CO15: 72 | CP15: 69 | CQ15: 74 | CR15: 72 | CS15: 70 | CT15: 72 | CU15: 70 | CV15: 70 | CW15: 70 | CX15: 74 | CY15: 67 | CZ15: 65 | DA15: 71 | DB15: 74 | DC15: 70 | DD15: 60 | DE15: 70 | DF15: 70 | DG15: 60 | DH15: 69 | DI15: 73 | DJ15: 71 | DK15: 73 | DL15: 71 | DM15: 68 | DN15: 67 | DO15: 74 | DP15: 68 | DQ15: 72 | DR15: 73 | DS15: 74 | DT15: 68 | DU15: 73 | DV15: 70 | DW15: 66 | DX15: 73 | DY15: 72 | DZ15: 68 | EA15: 73 | EB15: 67 | EC15: 70 | ED15: 73 | EE15: 71 | EF15: 73 | EG15: 73 | EH15: 63 | EI15: 68 | EJ15: 72 | EK15: 74 | EL15: 74 | EM15: 72 | EN15: 74 | EO15: 73 | EP15: 74 | EQ15: 0 | ER15: 74 | ES15: 74 | ET15: 71 | EU15: 73 | EV15: 69 | EW15: 70 | EX15: 66 | EY15: 71 | EZ15: 65 | FA15: 70 | FB15: 73 | FC15: 74 | FD15: 71 | FE15: 71 | FF15: 73 | FG15: 66 | FH15: 65 | FI15: 71 | FJ15: 74 | FK15: 70 | FL15: 71 | FM15: 70 | FN15: 72 | FO15: 68 | FP15: 0 | FQ15: 72 | FR15: 74 | FS15: 74 | FT15: 70 | FU15: 71 | FV15: 73 | FW15: 72 | FX15: 74 | FY15: 72 | FZ15: 72 | GA15: 69 | GB15: 63 | GC15: 68 | GD15: 73 | GE15: 66 | GF15: 72 | GG15: 63 | GH15: 74 | GI15: 70 | GJ15: 70 | GK15: 69 | GL15: 72 | GM15: 71 | GN15: 67 | GO15: 74 | GP15: 71 | GQ15: 70 | GR15: 73 | GS15: 70 | GT15: 73 | GU15: 70 | GV15: 68 | GW15: 71 | GX15: 71 | GY15: 71 | GZ15: 71 | HA15: z | HB15: z | HC15: z | HD15: z | HE15: z | HF15: z | HG15: z | HH15: z | HI15: z | HJ15: z | HK15: z | HL15: z | HM15: z | HN15: z | HO15: z | HP15: z | HQ15: z | HR15: z | HS15: z | HT15: z | HU15: z | HV15: z | HW15: z | HX15: z | HY15: z | HZ15: z | IA15: z | IB15: z | IC15: z | ID15: z | IE15: z | IF15: z | IG15: z | IH15: z | II15: z | IJ15: z | IK15: z | IL15: z | IM15: z | IN15: z
A16: 15 | B16: 61 | C16: 68 | D16: 60 | E16: 71 | F16: 71 | G16: 71 | H16: =STDEVP(D2:D440) -> 4.965 | I16: 73 | J16: 72 | K16: 72 | L16: 74 | M16: 70 | N16: 67 | O16: 62 | P16: 69 | Q16: 71 | R16: 70 | S16: 73 | T16: 68 | U16: 62 | V16: 71 | W16: 70 | X16: 74 | Y16: 74 | Z16: 73 | AA16: 70 | AB16: 70 | AC16: 70 | AD16: 73 | AE16: 72 | AF16: 72 | AG16: 69 | AH16: 67 | AI16: 65 | AJ16: 72 | AK16: 70 | AL16: 73 | AM16: 74 | AN16: 74 | AO16: 72 | AP16: 74 | AQ16: 65 | AR16: 66 | AS16: 73 | AT16: 74 | AU16: 63 | AV16: 73 | AW16: 67 | AX16: 69 | AY16: 63 | AZ16: 72 | BA16: 74 | BB16: 70 | BC16: 73 | BD16: 71 | BE16: 69 | BF16: 69 | BG16: 0 | BH16: 63 | BI16: 73 | BJ16: 74 | BK16: 72 | BL16: 68 | BM16: 64 | BN16: 0 | BO16: 70 | BP16: 73 | BQ16: 68 | BR16: 74 | BS16: 71 | BT16: 63 | BU16: 73 | BV16: 71 | BW16: 73 | BX16: 73 | BY16: 68 | BZ16: 69 | CA16: 0 | CB16: 72 | CC16: 74 | CD16: 72 | CE16: 65 | CF16: 73 | CG16: 61 | CH16: 72 | CI16: 66 | CJ16: 70 | CK16: 72 | CL16: 70 | CM16: 73 | CN16: 70 | CO16: 72 | CP16: 73 | CQ16: 73 | CR16: 67 | CS16: 65 | CT16: 73 | CU16: 64 | CV16: 71 | CW16: 68 | CX16: 71 | CY16: 62 | CZ16: 73 | DA16: 74 | DB16: 69 | DC16: 63 | DD16: 74 | DE16: 71 | DF16: 72 | DG16: 68 | DH16: 64 | DI16: 72 | DJ16: 74 | DK16: 72 | DL16: 74 | DM16: 68 | DN16: 65 | DO16: 74 | DP16: 72 | DQ16: 71 | DR16: 74 | DS16: 63 | DT16: 74 | DU16: 64 | DV16: 0 | DW16: 74 | DX16: 72 | DY16: 73 | DZ16: 73 | EA16: 69 | EB16: 64 | EC16: 73 | ED16: 69 | EE16: 67 | EF16: 70 | EG16: 63 | EH16: 74 | EI16: 70 | EJ16: 74 | EK16: 74 | EL16: 60 | EM16: 70 | EN16: 73 | EO16: 71 | EP16: 72 | EQ16: 71 | ER16: 71 | ES16: 69 | ET16: 74 | EU16: 66 | EV16: 70 | EW16: 70 | EX16: 72 | EY16: 70 | EZ16: 74 | FA16: 74 | FB16: 73 | FC16: 74 | FD16: 71 | FE16: 66 | FF16: 71 | FG16: 63 | FH16: 71 | FI16: 70 | FJ16: 74 | FK16: 63 | FL16: 61 | FM16: 71 | FN16: 71 | FO16: 68 | FP16: 73 | FQ16: 73 | FR16: 70 | FS16: 71 | FT16: 74 | FU16: 60 | FV16: 71 | FW16: 71 | FX16: 63 | FY16: 71 | FZ16: 73 | GA16: 72 | GB16: 66 | GC16: 68 | GD16: 72 | GE16: 70 | GF16: 71 | GG16: 72 | GH16: 70 | GI16: 64 | GJ16: 65 | GK16: 68 | GL16: 61 | GM16: 74 | GN16: 74 | GO16: 72 | GP16: 69 | GQ16: 72 | GR16: 62 | GS16: 74 | GT16: 69 | GU16: 73 | GV16: 62 | GW16: 73 | GX16: 64 | GY16: 72 | GZ16: 66 | HA16: z | HB16: z | HC16: z | HD16: z | HE16: z | HF16: z | HG16: z | HH16: z | HI16: z | HJ16: z | HK16: z | HL16: z | HM16: z | HN16: z | HO16: z | HP16: z | HQ16: z | HR16: z | HS16: z | HT16: z | HU16: z | HV16: z | HW16: z | HX16: z | HY16: z | HZ16: z | IA16: z | IB16: z | IC16: z | ID16: z | IE16: z | IF16: z | IG16: z | IH16: z | II16: z | IJ16: z | IK16: z | IL16: z | IM16: z | IN16: z
A17: 16 | B17: 61 | C17: 68 | D17: 60 | E17: 71 | F17: 71 | G17: 71 | I17: 67 | J17: 71 | K17: 70 | L17: 63 | M17: 72 | N17: 72 | O17: 70 | P17: 69 | Q17: 74 | R17: 68 | S17: 68 | T17: 72 | U17: 73 | V17: 67 | W17: 61 | X17: 65 | Y17: 72 | Z17: 73 | AA17: 64 | AB17: 71 | AC17: 68 | AD17: 70 | AE17: 64 | AF17: 63 | AG17: 73 | AH17: 71 | AI17: 63 | AJ17: 73 | AK17: 71 | AL17: 67 | AM17: 74 | AN17: 72 | AO17: 71 | AP17: 73 | AQ17: 72 | AR17: 66 | AS17: 69 | AT17: 73 | AU17: 72 | AV17: 72 | AW17: 74 | AX17: 69 | AY17: 73 | AZ17: 64 | BA17: 73 | BB17: 73 | BC17: 72 | BD17: 71 | BE17: 72 | BF17: 67 | BG17: 70 | BH17: 70 | BI17: 74 | BJ17: 70 | BK17: 68 | BL17: 62 | BM17: 63 | BN17: 71 | BO17: 74 | BP17: 72 | BQ17: 73 | BR17: 72 | BS17: 74 | BT17: 70 | BU17: 73 | BV17: 70 | BW17: 72 | BX17: 74 | BY17: 73 | BZ17: 73 | CA17: 70 | CB17: 73 | CC17: 63 | CD17: 69 | CE17: 71 | CF17: 73 | CG17: 74 | CH17: 71 | CI17: 74 | CJ17: 74 | CK17: 72 | CL17: 70 | CM17: 73 | CN17: 73 | CO17: 68 | CP17: 73 | CQ17: 68 | CR17: 72 | CS17: 68 | CT17: 72 | CU17: 70 | CV17: 68 | CW17: 64 | CX17: 73 | CY17: 74 | CZ17: 70 | DA17: 73 | DB17: 66 | DC17: 72 | DD17: 67 | DE17: 68 | DF17: 73 | DG17: 71 | DH17: 73 | DI17: 70 | DJ17: 70 | DK17: 64 | DL17: 68 | DM17: 69 | DN17: 70 | DO17: 71 | DP17: 72 | DQ17: 72 | DR17: 73 | DS17: 73 | DT17: z | DU17: 69 | DV17: 71 | DW17: 71 | DX17: 70 | DY17: 63 | DZ17: 70 | EA17: 72 | EB17: 70 | EC17: 74 | ED17: 74 | EE17: 70 | EF17: 73 | EG17: 67 | EH17: 74 | EI17: 72 | EJ17: 64 | EK17: 71 | EL17: 73 | EM17: 68 | EN17: 62 | EO17: 67 | EP17: 71 | EQ17: 74 | ER17: 71 | ES17: 71 | ET17: 73 | EU17: 71 | EV17: 73 | EW17: 74 | EX17: 70 | EY17: 67 | EZ17: 68 | FA17: 0 | FB17: 73 | FC17: 68 | FD17: 69 | FE17: 65 | FF17: 66 | FG17: 70 | FH17: 64 | FI17: 74 | FJ17: 74 | FK17: 73 | FL17: 74 | FM17: 73 | FN17: 74 | FO17: 68 | FP17: 74 | FQ17: 74 | FR17: 70 | FS17: 73 | FT17: 72 | FU17: 71 | FV17: 61 | FW17: 71 | FX17: 71 | FY17: 63 | FZ17: 63 | GA17: 73 | GB17: 72 | GC17: 70 | GD17: 0 | GE17: 63 | GF17: 69 | GG17: 63 | GH17: 71 | GI17: 71 | GJ17: 71 | GK17: 72 | GL17: 72 | GM17: 69 | GN17: 74 | GO17: 71 | GP17: 74 | GQ17: 68 | GR17: 74 | GS17: 72 | GT17: 74 | GU17: 68 | GV17: 72 | GW17: 71 | GX17: 67 | GY17: 70 | GZ17: 64 | HA17: z | HB17: z | HC17: z | HD17: z | HE17: z | HF17: z | HG17: z | HH17: z | HI17: z | HJ17: z | HK17: z | HL17: z | HM17: z | HN17: z | HO17: z | HP17: z | HQ17: z | HR17: z | HS17: z | HT17: z | HU17: z | HV17: z | HW17: z | HX17: z | HY17: z | HZ17: z | IA17: z | IB17: z | IC17: z | ID17: z | IE17: z | IF17: z | IG17: z | IH17: z | II17: z | IJ17: z | IK17: z | IL17: z | IM17: z | IN17: z
A18: 17 | B18: 62 | C18: 60 | D18: 60 | E18: 62 | F18: 62 | G18: 62 | I18: 71 | J18: 70 | K18: 74 | L18: 73 | M18: 73 | N18: 73 | O18: 70 | P18: 73 | Q18: 71 | R18: 65 | S18: 68 | T18: 74 | U18: 74 | V18: 68 | W18: 66 | X18: 62 | Y18: 74 | Z18: 72 | AA18: 64 | AB18: 72 | AC18: 74 | AD18: 64 | AE18: 72 | AF18: 67 | AG18: 69 | AH18: 0 | AI18: 70 | AJ18: 68 | AK18: 72 | AL18: 74 | AM18: 69 | AN18: 70 | AO18: 63 | AP18: 72 | AQ18: 72 | AR18: 71 | AS18: 72 | AT18: 70 | AU18: 72 | AV18: 74 | AW18: 0 | AX18: 73 | AY18: 69 | AZ18: 71 | BA18: 68 | BB18: 74 | BC18: 60 | BD18: 74 | BE18: 73 | BF18: 74 | BG18: 70 | BH18: 71 | BI18: 74 | BJ18: 69 | BK18: 61 | BL18: 72 | BM18: 70 | BN18: 69 | BO18: 74 | BP18: 66 | BQ18: 73 | BR18: 67 | BS18: 70 | BT18: 73 | BU18: 74 | BV18: 63 | BW18: 71 | BX18: 71 | BY18: 71 | BZ18: 66 | CA18: 70 | CB18: 74 | CC18: 71 | CD18: 73 | CE18: 71 | CF18: 64 | CG18: 68 | CH18: 70 | CI18: z | CJ18: 71 | CK18: 71 | CL18: 73 | CM18: 73 | CN18: 68 | CO18: 72 | CP18: 73 | CQ18: 68 | CR18: 74 | CS18: 71 | CT18: 72 | CU18: 69 | CV18: 70 | CW18: 73 | CX18: 71 | CY18: 70 | CZ18: 74 | DA18: 72 | DB18: 66 | DC18: 73 | DD18: 71 | DE18: 68 | DF18: 68 | DG18: 73 | DH18: 70 | DI18: 70 | DJ18: 66 | DK18: 71 | DL18: 70 | DM18: 74 | DN18: 74 | DO18: 73 | DP18: 73 | DQ18: 73 | DR18: 70 | DS18: 74 | DT18: 66 | DU18: 72 | DV18: 70 | DW18: 67 | DX18: 74 | DY18: 65 | DZ18: 67 | EA18: 67 | EB18: 68 | EC18: 74 | ED18: 69 | EE18: 74 | EF18: 74 | EG18: 74 | EH18: 68 | EI18: 72 | EJ18: 64 | EK18: 0 | EL18: 73 | EM18: 66 | EN18: 72 | EO18: 72 | EP18: 72 | EQ18: 62 | ER18: 73 | ES18: 67 | ET18: 70 | EU18: 74 | EV18: 68 | EW18: 72 | EX18: 71 | EY18: 0 | EZ18: 70 | FA18: 70 | FB18: 72 | FC18: 72 | FD18: 65 | FE18: 72 | FF18: 70 | FG18: 71 | FH18: 0 | FI18: 70 | FJ18: 70 | FK18: 74 | FL18: 71 | FM18: 71 | FN18: 72 | FO18: 73 | FP18: 74 | FQ18: 73 | FR18: 71 | FS18: 70 | FT18: 74 | FU18: 72 | FV18: 66 | FW18: 72 | FX18: 70 | FY18: 74 | FZ18: 69 | GA18: 73 | GB18: 70 | GC18: 0 | GD18: 61 | GE18: 73 | GF18: 71 | GG18: 61 | GH18: 70 | GI18: 72 | GJ18: 72 | GK18: 74 | GL18: 67 | GM18: 70 | GN18: 72 | GO18: 74 | GP18: 74 | GQ18: 72 | GR18: 63 | GS18: 74 | GT18: 70 | GU18: 72 | GV18: 69 | GW18: 66 | GX18: 70 | GY18: 68 | GZ18: 70 | HA18: z | HB18: z | HC18: z | HD18: z | HE18: z | HF18: z | HG18: z | HH18: z | HI18: z | HJ18: z | HK18: z | HL18: z | HM18: z | HN18: z | HO18: z | HP18: z | HQ18: z | HR18: z | HS18: z | HT18: z | HU18: z | HV18: z | HW18: z | HX18: z | HY18: z | HZ18: z | IA18: z | IB18: z | IC18: z | ID18: z | IE18: z | IF18: z | IG18: z | IH18: z | II18: z | IJ18: z | IK18: z | IL18: z | IM18: z | IN18: z
A19: 18 | B19: 62 | C19: 60 | D19: 60 | E19: 62 | F19: 62 | G19: 62 | H19: skewed | I19: 73 | J19: 72 | K19: 66 | L19: 71 | M19: 70 | N19: 64 | O19: 72 | P19: 74 | Q19: 68 | R19: 74 | S19: 68 | T19: 72 | U19: 60 | V19: 60 | W19: 66 | X19: 74 | Y19: 73 | Z19: 71 | AA19: 70 | AB19: 71 | AC19: 70 | AD19: 73 | AE19: 70 | AF19: 70 | AG19: 73 | AH19: 71 | AI19: 72 | AJ19: 72 | AK19: 73 | AL19: 70 | AM19: 74 | AN19: 70 | AO19: 63 | AP19: 69 | AQ19: 73 | AR19: 66 | AS19: 68 | AT19: 0 | AU19: 68 | AV19: 61 | AW19: 72 | AX19: 73 | AY19: 64 | AZ19: 63 | BA19: 74 | BB19: 66 | BC19: 72 | BD19: 67 | BE19: 73 | BF19: 70 | BG19: 68 | BH19: 71 | BI19: 72 | BJ19: 66 | BK19: 67 | BL19: 72 | BM19: 71 | BN19: 70 | BO19: 70 | BP19: 72 | BQ19: 72 | BR19: 72 | BS19: 74 | BT19: 74 | BU19: 74 | BV19: 71 | BW19: 74 | BX19: 65 | BY19: 74 | BZ19: 67 | CA19: 69 | CB19: 70 | CC19: 72 | CD19: 72 | CE19: 70 | CF19: 62 | CG19: 71 | CH19: 70 | CI19: 72 | CJ19: 72 | CK19: 66 | CL19: 73 | CM19: 72 | CN19: 60 | CO19: 72 | CP19: 74 | CQ19: 0 | CR19: 74 | CS19: 62 | CT19: 71 | CU19: 69 | CV19: 67 | CW19: 74 | CX19: 72 | CY19: 71 | CZ19: 74 | DA19: 71 | DB19: 67 | DC19: 72 | DD19: 72 | DE19: 70 | DF19: 74 | DG19: 63 | DH19: 67 | DI19: 71 | DJ19: 71 | DK19: 74 | DL19: 73 | DM19: 70 | DN19: 72 | DO19: 74 | DP19: 73 | DQ19: 62 | DR19: 69 | DS19: 74 | DT19: 68 | DU19: 74 | DV19: 74 | DW19: 65 | DX19: 70 | DY19: 72 | DZ19: 73 | EA19: 72 | EB19: 68 | EC19: 72 | ED19: 74 | EE19: 74 | EF19: 73 | EG19: 64 | EH19: 71 | EI19: 71 | EJ19: 65 | EK19: 69 | EL19: 66 | EM19: 72 | EN19: 70 | EO19: 70 | EP19: 72 | EQ19: 70 | ER19: 61 | ES19: 70 | ET19: 70 | EU19: 72 | EV19: 72 | EW19: 68 | EX19: 62 | EY19: 0 | EZ19: 73 | FA19: 74 | FB19: 63 | FC19: 65 | FD19: 65 | FE19: 71 | FF19: 74 | FG19: 70 | FH19: 70 | FI19: 71 | FJ19: 65 | FK19: 69 | FL19: 66 | FM19: 72 | FN19: 72 | FO19: 74 | FP19: 69 | FQ19: 64 | FR19: 73 | FS19: 69 | FT19: 73 | FU19: 70 | FV19: 67 | FW19: 74 | FX19: 72 | FY19: 73 | FZ19: 63 | GA19: 70 | GB19: 63 | GC19: 68 | GD19: 72 | GE19: 74 | GF19: 71 | GG19: 71 | GH19: 69 | GI19: 70 | GJ19: 72 | GK19: 71 | GL19: 66 | GM19: 74 | GN19: 71 | GO19: 74 | GP19: 71 | GQ19: 74 | GR19: 65 | GS19: 65 | GT19: 70 | GU19: 70 | GV19: 74 | GW19: 66 | GX19: 74 | GY19: 72 | GZ19: 74 | HA19: z | HB19: z | HC19: z | HD19: z | HE19: z | HF19: z | HG19: z | HH19: z | HI19: z | HJ19: z | HK19: z | HL19: z | HM19: z | HN19: z | HO19: z | HP19: z | HQ19: z | HR19: z | HS19: z | HT19: z | HU19: z | HV19: z | HW19: z | HX19: z | HY19: z | HZ19: z | IA19: z | IB19: z | IC19: z | ID19: z | IE19: z | IF19: z | IG19: z | IH19: z | II19: z | IJ19: z | IK19: z | IL19: z | IM19: z | IN19: z
A20: 19 | B20: 62 | C20: 68 | D20: 70 | E20: 71 | F20: 71 | G20: 71 | H20: =AVERAGE(E2:E440) -> 70.173 | I20: 66 | J20: 69 | K20: 71 | L20: 73 | M20: 71 | N20: 73 | O20: 72 | P20: 72 | Q20: 64 | R20: 65 | S20: 74 | T20: 73 | U20: 70 | V20: 72 | W20: 66 | X20: 74 | Y20: 70 | Z20: 68 | AA20: 62 | AB20: 72 | AC20: 71 | AD20: 72 | AE20: 70 | AF20: 74 | AG20: 71 | AH20: 72 | AI20: 67 | AJ20: 74 | AK20: 70 | AL20: 66 | AM20: 72 | AN20: 68 | AO20: 69 | AP20: 73 | AQ20: 66 | AR20: 71 | AS20: 63 | AT20: 71 | AU20: 69 | AV20: 71 | AW20: 70 | AX20: 71 | AY20: 66 | AZ20: 71 | BA20: 73 | BB20: 71 | BC20: 68 | BD20: 71 | BE20: 64 | BF20: 64 | BG20: 74 | BH20: 73 | BI20: 70 | BJ20: 70 | BK20: 71 | BL20: 70 | BM20: 70 | BN20: 68 | BO20: 71 | BP20: 68 | BQ20: 73 | BR20: 0 | BS20: 70 | BT20: 71 | BU20: 71 | BV20: 74 | BW20: 60 | BX20: 72 | BY20: 74 | BZ20: 71 | CA20: 74 | CB20: 73 | CC20: 73 | CD20: 71 | CE20: 73 | CF20: 64 | CG20: 67 | CH20: 67 | CI20: 70 | CJ20: 64 | CK20: 66 | CL20: 68 | CM20: 74 | CN20: 72 | CO20: 74 | CP20: 71 | CQ20: 60 | CR20: 73 | CS20: 74 | CT20: 67 | CU20: 72 | CV20: 73 | CW20: 68 | CX20: 72 | CY20: 73 | CZ20: 66 | DA20: 73 | DB20: 73 | DC20: 71 | DD20: 71 | DE20: 74 | DF20: 66 | DG20: 73 | DH20: 67 | DI20: 74 | DJ20: 73 | DK20: 74 | DL20: 68 | DM20: 68 | DN20: 73 | DO20: 72 | DP20: 74 | DQ20: 70 | DR20: 66 | DS20: 74 | DT20: 71 | DU20: 74 | DV20: 73 | DW20: 69 | DX20: 70 | DY20: 69 | DZ20: 68 | EA20: 74 | EB20: 70 | EC20: 73 | ED20: 69 | EE20: 71 | EF20: 70 | EG20: 70 | EH20: 70 | EI20: 70 | EJ20: 74 | EK20: 72 | EL20: 66 | EM20: 74 | EN20: 73 | EO20: 71 | EP20: 70 | EQ20: 71 | ER20: 71 | ES20: 74 | ET20: 68 | EU20: 74 | EV20: 71 | EW20: 65 | EX20: 70 | EY20: 74 | EZ20: 71 | FA20: 65 | FB20: 63 | FC20: 70 | FD20: 74 | FE20: 67 | FF20: 71 | FG20: 71 | FH20: 73 | FI20: 71 | FJ20: 73 | FK20: 67 | FL20: 73 | FM20: 71 | FN20: 72 | FO20: 70 | FP20: 67 | FQ20: 71 | FR20: 72 | FS20: 61 | FT20: 70 | FU20: 73 | FV20: 74 | FW20: 71 | FX20: 63 | FY20: 71 | FZ20: 73 | GA20: 70 | GB20: 74 | GC20: 69 | GD20: 71 | GE20: 67 | GF20: 66 | GG20: 73 | GH20: 73 | GI20: 74 | GJ20: 67 | GK20: 72 | GL20: 69 | GM20: 69 | GN20: 64 | GO20: 72 | GP20: 74 | GQ20: 74 | GR20: 72 | GS20: 74 | GT20: 70 | GU20: 73 | GV20: 70 | GW20: 70 | GX20: 73 | GY20: 63 | GZ20: 73 | HA20: z | HB20: z | HC20: z | HD20: z | HE20: z | HF20: z | HG20: z | HH20: z | HI20: z | HJ20: z | HK20: z | HL20: z | HM20: z | HN20: z | HO20: z | HP20: z | HQ20: z | HR20: z | HS20: z | HT20: z | HU20: z | HV20: z | HW20: z | HX20: z | HY20: z | HZ20: z | IA20: z | IB20: z | IC20: z | ID20: z | IE20: z | IF20: z | IG20: z | IH20: z | II20: z | IJ20: z | IK20: z | IL20: z | IM20: z | IN20: z
A21: 20 | B21: 62 | C21: 68 | D21: 70 | E21: 71 | F21: 71 | G21: 71 | H21: =STDEVP(E2:E440) -> 3.413 | I21: z | J21: z | K21: z | L21: z | M21: z | N21: z | O21: z | P21: z | Q21: z | R21: z | S21: z | T21: z | U21: z | V21: z | W21: z | X21: z | Y21: z | Z21: z | AA21: z | AB21: z | AC21: z | AD21: z | AE21: z | AF21: z | AG21: z | AH21: z | AI21: z | AJ21: z | AK21: z | AL21: z | AM21: z | AN21: z | AO21: z | AP21: z | AQ21: z | AR21: z | AS21: z | AT21: z | AU21: z | AV21: z | AW21: z | AX21: z | AY21: z | AZ21: z | BA21: z | BB21: z | BC21: z | BD21: z | BE21: z | BF21: z | BG21: z | BH21: z | BI21: z | BJ21: z | BK21: z | BL21: z | BM21: z | BN21: z | BO21: z | BP21: z | BQ21: z | BR21: z | BS21: z | BT21: z | BU21: z | BV21: z | BW21: z | BX21: z | BY21: z | BZ21: z | CA21: z | CB21: z | CC21: z | CD21: z | CE21: z | CF21: z | CG21: z | CH21: z | CI21: z | CJ21: z | CK21: z | CL21: z | CM21: z | CN21: z | CO21: z | CP21: z | CQ21: z | CR21: z | CS21: z | CT21: z | CU21: z | CV21: z | CW21: z | CX21: z | CY21: z | CZ21: z | DA21: z | DB21: z | DC21: z | DD21: z | DE21: z | DF21: z | DG21: z | DH21: z | DI21: z | DJ21: z | DK21: z | DL21: z | DM21: z | DN21: z | DO21: z | DP21: z | DQ21: z | DR21: z | DS21: z | DT21: z | DU21: z | DV21: z | DW21: z | DX21: z | DY21: z | DZ21: z | EA21: z | EB21: z | EC21: z | ED21: z | EE21: z | EF21: z | EG21: z | EH21: z | EI21: z | EJ21: z | EK21: z | EL21: z | EM21: z | EN21: z | EO21: z | EP21: z | EQ21: z | ER21: z | ES21: z | ET21: z | EU21: z | EV21: z | EW21: z | EX21: z | EY21: z | EZ21: z | FA21: z | FB21: z | FC21: z | FD21: z | FE21: z | FF21: z | FG21: z | FH21: z | FI21: z | FJ21: z | FK21: z | FL21: z | FM21: z | FN21: z | FO21: z | FP21: z | FQ21: z | FR21: z | FS21: z | FT21: z | FU21: z | FV21: z | FW21: z | FX21: z | FY21: z | FZ21: z | GA21: z | GB21: z | GC21: z | GD21: z | GE21: z | GF21: z | GG21: z | GH21: z | GI21: z | GJ21: z | GK21: z | GL21: z | GM21: z | GN21: z | GO21: z | GP21: z | GQ21: z | GR21: z | GS21: z | GT21: z | GU21: z | GV21: z | GW21: z | GX21: z | GY21: z | GZ21: z | HA21: z | HB21: z | HC21: z | HD21: z | HE21: z | HF21: z | HG21: z | HH21: z | HI21: z | HJ21: z | HK21: z | HL21: z | HM21: z | HN21: z | HO21: z | HP21: z | HQ21: z | HR21: z | HS21: z | HT21: z | HU21: z | HV21: z | HW21: z | HX21: z | HY21: z | HZ21: z | IA21: z | IB21: z | IC21: z | ID21: z | IE21: z | IF21: z | IG21: z | IH21: z | II21: z | IJ21: z | IK21: z | IL21: z | IM21: z | IN21: z
A22: 21 | B22: 63 | C22: 60 | D22: 60 | E22: 62 | F22: 62 | G22: 62 | I22: z | J22: z | K22: z | L22: z | M22: z | N22: z | O22: z | P22: z | Q22: z | R22: z | S22: z | T22: z | U22: z | V22: z | W22: z | X22: z | Y22: z | Z22: z | AA22: z | AB22: z | AC22: z | AD22: z | AE22: z | AF22: z | AG22: z | AH22: z | AI22: z | AJ22: z | AK22: z | AL22: z | AM22: z | AN22: z | AO22: z | AP22: z | AQ22: z | AR22: z | AS22: z | AT22: z | AU22: z | AV22: z | AW22: z | AX22: z | AY22: z | AZ22: z | BA22: z | BB22: z | BC22: z | BD22: z | BE22: z | BF22: z | BG22: z | BH22: z | BI22: z | BJ22: z | BK22: z | BL22: z | BM22: z | BN22: z | BO22: z | BP22: z | BQ22: z | BR22: z | BS22: z | BT22: z | BU22: z | BV22: z | BW22: z | BX22: z | BY22: z | BZ22: z | CA22: z | CB22: z | CC22: z | CD22: z | CE22: z | CF22: z | CG22: z | CH22: z | CI22: z | CJ22: z | CK22: z | CL22: z | CM22: z | CN22: z | CO22: z | CP22: z | CQ22: z | CR22: z | CS22: z | CT22: z | CU22: z | CV22: z | CW22: z | CX22: z | CY22: z | CZ22: z | DA22: z | DB22: z | DC22: z | DD22: z | DE22: z | DF22: z | DG22: z | DH22: z | DI22: z | DJ22: z | DK22: z | DL22: z | DM22: z | DN22: z | DO22: z | DP22: z | DQ22: z | DR22: z | DS22: z | DT22: z | DU22: z | DV22: z | DW22: z | DX22: z | DY22: z | DZ22: z | EA22: z | EB22: z | EC22: z | ED22: z | EE22: z | EF22: z | EG22: z | EH22: z | EI22: z | EJ22: z | EK22: z | EL22: z | EM22: z | EN22: z | EO22: z | EP22: z | EQ22: z | ER22: z | ES22: z | ET22: z | EU22: z | EV22: z | EW22: z | EX22: z | EY22: z | EZ22: z | FA22: z | FB22: z | FC22: z | FD22: z | FE22: z | FF22: z | FG22: z | FH22: z | FI22: z | FJ22: z | FK22: z | FL22: z | FM22: z | FN22: z | FO22: z | FP22: z | FQ22: z | FR22: z | FS22: z | FT22: z | FU22: z | FV22: z | FW22: z | FX22: z | FY22: z | FZ22: z | GA22: z | GB22: z | GC22: z | GD22: z | GE22: z | GF22: z | GG22: z | GH22: z | GI22: z | GJ22: z | GK22: z | GL22: z | GM22: z | GN22: z | GO22: z | GP22: z | GQ22: z | GR22: z | GS22: z | GT22: z | GU22: z | GV22: z | GW22: z | GX22: z | GY22: z | GZ22: z | HA22: z | HB22: z | HC22: z | HD22: z | HE22: z | HF22: z | HG22: z | HH22: z | HI22: z | HJ22: z | HK22: z | HL22: z | HM22: z | HN22: z | HO22: z | HP22: z | HQ22: z | HR22: z | HS22: z | HT22: z | HU22: z | HV22: z | HW22: z | HX22: z | HY22: z | HZ22: z | IA22: z | IB22: z | IC22: z | ID22: z | IE22: z | IF22: z | IG22: z | IH22: z | II22: z | IJ22: z | IK22: z | IL22: z | IM22: z | IN22: z
A23: 22 | B23: 63 | C23: 68 | D23: 70 | E23: 71 | F23: 71 | G23: 71 | I23: z | J23: z | K23: z | L23: z | M23: z | N23: z | O23: z | P23: z | Q23: z | R23: z | S23: z | T23: z | U23: z | V23: z | W23: z | X23: z | Y23: z | Z23: z | AA23: z | AB23: z | AC23: z | AD23: z | AE23: z | AF23: z | AG23: z | AH23: z | AI23: z | AJ23: z | AK23: z | AL23: z | AM23: z | AN23: z | AO23: z | AP23: z | AQ23: z | AR23: z | AS23: z | AT23: z | AU23: z | AV23: z | AW23: z | AX23: z | AY23: z | AZ23: z | BA23: z | BB23: z | BC23: z | BD23: z | BE23: z | BF23: z | BG23: z | BH23: z | BI23: z | BJ23: z | BK23: z | BL23: z | BM23: z | BN23: z | BO23: z | BP23: z | BQ23: z | BR23: z | BS23: z | BT23: z | BU23: z | BV23: z | BW23: z | BX23: z | BY23: z | BZ23: z | CA23: z | CB23: z | CC23: z | CD23: z | CE23: z | CF23: z | CG23: z | CH23: z | CI23: z | CJ23: z | CK23: z | CL23: z | CM23: z | CN23: z | CO23: z | CP23: z | CQ23: z | CR23: z | CS23: z | CT23: z | CU23: z | CV23: z | CW23: z | CX23: z | CY23: z | CZ23: z | DA23: z | DB23: z | DC23: z | DD23: z | DE23: z | DF23: z | DG23: z | DH23: z | DI23: z | DJ23: z | DK23: z | DL23: z | DM23: z | DN23: z | DO23: z | DP23: z | DQ23: z | DR23: z | DS23: z | DT23: z | DU23: z | DV23: z | DW23: z | DX23: z | DY23: z | DZ23: z | EA23: z | EB23: z | EC23: z | ED23: z | EE23: z | EF23: z | EG23: z | EH23: z | EI23: z | EJ23: z | EK23: z | EL23: z | EM23: z | EN23: z | EO23: z | EP23: z | EQ23: z | ER23: z | ES23: z | ET23: z | EU23: z | EV23: z | EW23: z | EX23: z | EY23: z | EZ23: z | FA23: z | FB23: z | FC23: z | FD23: z | FE23: z | FF23: z | FG23: z | FH23: z | FI23: z | FJ23: z | FK23: z | FL23: z | FM23: z | FN23: z | FO23: z | FP23: z | FQ23: z | FR23: z | FS23: z | FT23: z | FU23: z | FV23: z | FW23: z | FX23: z | FY23: z | FZ23: z | GA23: z | GB23: z | GC23: z | GD23: z | GE23: z | GF23: z | GG23: z | GH23: z | GI23: z | GJ23: z | GK23: z | GL23: z | GM23: z | GN23: z | GO23: z | GP23: z | GQ23: z | GR23: z | GS23: z | GT23: z | GU23: z | GV23: z | GW23: z | GX23: z | GY23: z | GZ23: z | HA23: z | HB23: z | HC23: z | HD23: z | HE23: z | HF23: z | HG23: z | HH23: z | HI23: z | HJ23: z | HK23: z | HL23: z | HM23: z | HN23: z | HO23: z | HP23: z | HQ23: z | HR23: z | HS23: z | HT23: z | HU23: z | HV23: z | HW23: z | HX23: z | HY23: z | HZ23: z | IA23: z | IB23: z | IC23: z | ID23: z | IE23: z | IF23: z | IG23: z | IH23: z | II23: z | IJ23: z | IK23: z | IL23: z | IM23: z | IN23: z
A24: 23 | B24: 64 | C24: 60 | D24: 60 | E24: 62 | F24: 62 | G24: 62 | I24: z | J24: z | K24: z | L24: z | M24: z | N24: z | O24: z | P24: z | Q24: z | R24: z | S24: z | T24: z | U24: z | V24: z | W24: z | X24: z | Y24: z | Z24: z | AA24: z | AB24: z | AC24: z | AD24: z | AE24: z | AF24: z | AG24: z | AH24: z | AI24: z | AJ24: z | AK24: z | AL24: z | AM24: z | AN24: z | AO24: z | AP24: z | AQ24: z | AR24: z | AS24: z | AT24: z | AU24: z | AV24: z | AW24: z | AX24: z | AY24: z | AZ24: z | BA24: z | BB24: z | BC24: z | BD24: z | BE24: z | BF24: z | BG24: z | BH24: z | BI24: z | BJ24: z | BK24: z | BL24: z | BM24: z | BN24: z | BO24: z | BP24: z | BQ24: z | BR24: z | BS24: z | BT24: z | BU24: z | BV24: z | BW24: z | BX24: z | BY24: z | BZ24: z | CA24: z | CB24: z | CC24: z | CD24: z | CE24: z | CF24: z | CG24: z | CH24: z | CI24: z | CJ24: z | CK24: z | CL24: z | CM24: z | CN24: z | CO24: z | CP24: z | CQ24: z | CR24: z | CS24: z | CT24: z | CU24: z | CV24: z | CW24: z | CX24: z | CY24: z | CZ24: z | DA24: z | DB24: z | DC24: z | DD24: z | DE24: z | DF24: z | DG24: z | DH24: z | DI24: z | DJ24: z | DK24: z | DL24: z | DM24: z | DN24: z | DO24: z | DP24: z | DQ24: z | DR24: z | DS24: z | DT24: z | DU24: z | DV24: z | DW24: z | DX24: z | DY24: z | DZ24: z | EA24: z | EB24: z | EC24: z | ED24: z | EE24: z | EF24: z | EG24: z | EH24: z | EI24: z | EJ24: z | EK24: z | EL24: z | EM24: z | EN24: z | EO24: z | EP24: z | EQ24: z | ER24: z | ES24: z | ET24: z | EU24: z | EV24: z | EW24: z | EX24: z | EY24: z | EZ24: z | FA24: z | FB24: z | FC24: z | FD24: z | FE24: z | FF24: z | FG24: z | FH24: z | FI24: z | FJ24: z | FK24: z | FL24: z | FM24: z | FN24: z | FO24: z | FP24: z | FQ24: z | FR24: z | FS24: z | FT24: z | FU24: z | FV24: z | FW24: z | FX24: z | FY24: z | FZ24: z | GA24: z | GB24: z | GC24: z | GD24: z | GE24: z | GF24: z | GG24: z | GH24: z | GI24: z | GJ24: z | GK24: z | GL24: z | GM24: z | GN24: z | GO24: z | GP24: z | GQ24: z | GR24: z | GS24: z | GT24: z | GU24: z | GV24: z | GW24: z | GX24: z | GY24: z | GZ24: z | HA24: z | HB24: z | HC24: z | HD24: z | HE24: z | HF24: z | HG24: z | HH24: z | HI24: z | HJ24: z | HK24: z | HL24: z | HM24: z | HN24: z | HO24: z | HP24: z | HQ24: z | HR24: z | HS24: z | HT24: z | HU24: z | HV24: z | HW24: z | HX24: z | HY24: z | HZ24: z | IA24: z | IB24: z | IC24: z | ID24: z | IE24: z | IF24: z | IG24: z | IH24: z | II24: z | IJ24: z | IK24: z | IL24: z | IM24: z | IN24: z
A25: 24 | B25: 64 | C25: 60 | D25: 60 | E25: 62 | F25: 62 | G25: 62 | I25: z | J25: z | K25: z | L25: z | M25: z | N25: z | O25: z | P25: z | Q25: z | R25: z | S25: z | T25: z | U25: z | V25: z | W25: z | X25: z | Y25: z | Z25: z | AA25: z | AB25: z | AC25: z | AD25: z | AE25: z | AF25: z | AG25: z | AH25: z | AI25: z | AJ25: z | AK25: z | AL25: z | AM25: z | AN25: z | AO25: z | AP25: z | AQ25: z | AR25: z | AS25: z | AT25: z | AU25: z | AV25: z | AW25: z | AX25: z | AY25: z | AZ25: z | BA25: z | BB25: z | BC25: z | BD25: z | BE25: z | BF25: z | BG25: z | BH25: z | BI25: z | BJ25: z | BK25: z | BL25: z | BM25: z | BN25: z | BO25: z | BP25: z | BQ25: z | BR25: z | BS25: z | BT25: z | BU25: z | BV25: z | BW25: z | BX25: z | BY25: z | BZ25: z | CA25: z | CB25: z | CC25: z | CD25: z | CE25: z | CF25: z | CG25: z | CH25: z | CI25: z | CJ25: z | CK25: z | CL25: z | CM25: z | CN25: z | CO25: z | CP25: z | CQ25: z | CR25: z | CS25: z | CT25: z | CU25: z | CV25: z | CW25: z | CX25: z | CY25: z | CZ25: z | DA25: z | DB25: z | DC25: z | DD25: z | DE25: z | DF25: z | DG25: z | DH25: z | DI25: z | DJ25: z | DK25: z | DL25: z | DM25: z | DN25: z | DO25: z | DP25: z | DQ25: z | DR25: z | DS25: z | DT25: z | DU25: z | DV25: z | DW25: z | DX25: z | DY25: z | DZ25: z | EA25: z | EB25: z | EC25: z | ED25: z | EE25: z | EF25: z | EG25: z | EH25: z | EI25: z | EJ25: z | EK25: z | EL25: z | EM25: z | EN25: z | EO25: z | EP25: z | EQ25: z | ER25: z | ES25: z | ET25: z | EU25: z | EV25: z | EW25: z | EX25: z | EY25: z | EZ25: z | FA25: z | FB25: z | FC25: z | FD25: z | FE25: z | FF25: z | FG25: z | FH25: z | FI25: z | FJ25: z | FK25: z | FL25: z | FM25: z | FN25: z | FO25: z | FP25: z | FQ25: z | FR25: z | FS25: z | FT25: z | FU25: z | FV25: z | FW25: z | FX25: z | FY25: z | FZ25: z | GA25: z | GB25: z | GC25: z | GD25: z | GE25: z | GF25: z | GG25: z | GH25: z | GI25: z | GJ25: z | GK25: z | GL25: z | GM25: z | GN25: z | GO25: z | GP25: z | GQ25: z | GR25: z | GS25: z | GT25: z | GU25: z | GV25: z | GW25: z | GX25: z | GY25: z | GZ25: z | HA25: z | HB25: z | HC25: z | HD25: z | HE25: z | HF25: z | HG25: z | HH25: z | HI25: z | HJ25: z | HK25: z | HL25: z | HM25: z | HN25: z | HO25: z | HP25: z | HQ25: z | HR25: z | HS25: z | HT25: z | HU25: z | HV25: z | HW25: z | HX25: z | HY25: z | HZ25: z | IA25: z | IB25: z | IC25: z | ID25: z | IE25: z | IF25: z | IG25: z | IH25: z | II25: z | IJ25: z | IK25: z | IL25: z | IM25: z | IN25: z
A26: 25 | B26: 64 | C26: 60 | D26: 60 | E26: 62 | F26: 62 | G26: 62 | I26: z | J26: z | K26: z | L26: z | M26: z | N26: z | O26: z | P26: z | Q26: z | R26: z | S26: z | T26: z | U26: z | V26: z | W26: z | X26: z | Y26: z | Z26: z | AA26: z | AB26: z | AC26: z | AD26: z | AE26: z | AF26: z | AG26: z | AH26: z | AI26: z | AJ26: z | AK26: z | AL26: z | AM26: z | AN26: z | AO26: z | AP26: z | AQ26: z | AR26: z | AS26: z | AT26: z | AU26: z | AV26: z | AW26: z | AX26: z | AY26: z | AZ26: z | BA26: z | BB26: z | BC26: z | BD26: z | BE26: z | BF26: z | BG26: z | BH26: z | BI26: z | BJ26: z | BK26: z | BL26: z | BM26: z | BN26: z | BO26: z | BP26: z | BQ26: z | BR26: z | BS26: z | BT26: z | BU26: z | BV26: z | BW26: z | BX26: z | BY26: z | BZ26: z | CA26: z | CB26: z | CC26: z | CD26: z | CE26: z | CF26: z | CG26: z | CH26: z | CI26: z | CJ26: z | CK26: z | CL26: z | CM26: z | CN26: z | CO26: z | CP26: z | CQ26: z | CR26: z | CS26: z | CT26: z | CU26: z | CV26: z | CW26: z | CX26: z | CY26: z | CZ26: z | DA26: z | DB26: z | DC26: z | DD26: z | DE26: z | DF26: z | DG26: z | DH26: z | DI26: z | DJ26: z | DK26: z | DL26: z | DM26: z | DN26: z | DO26: z | DP26: z | DQ26: z | DR26: z | DS26: z | DT26: z | DU26: z | DV26: z | DW26: z | DX26: z | DY26: z | DZ26: z | EA26: z | EB26: z | EC26: z | ED26: z | EE26: z | EF26: z | EG26: z | EH26: z | EI26: z | EJ26: z | EK26: z | EL26: z | EM26: z | EN26: z | EO26: z | EP26: z | EQ26: z | ER26: z | ES26: z | ET26: z | EU26: z | EV26: z | EW26: z | EX26: z | EY26: z | EZ26: z | FA26: z | FB26: z | FC26: z | FD26: z | FE26: z | FF26: z | FG26: z | FH26: z | FI26: z | FJ26: z | FK26: z | FL26: z | FM26: z | FN26: z | FO26: z | FP26: z | FQ26: z | FR26: z | FS26: z | FT26: z | FU26: z | FV26: z | FW26: z | FX26: z | FY26: z | FZ26: z | GA26: z | GB26: z | GC26: z | GD26: z | GE26: z | GF26: z | GG26: z | GH26: z | GI26: z | GJ26: z | GK26: z | GL26: z | GM26: z | GN26: z | GO26: z | GP26: z | GQ26: z | GR26: z | GS26: z | GT26: z | GU26: z | GV26: z | GW26: z | GX26: z | GY26: z | GZ26: z | HA26: z | HB26: z | HC26: z | HD26: z | HE26: z | HF26: z | HG26: z | HH26: z | HI26: z | HJ26: z | HK26: z | HL26: z | HM26: z | HN26: z | HO26: z | HP26: z | HQ26: z | HR26: z | HS26: z | HT26: z | HU26: z | HV26: z | HW26: z | HX26: z | HY26: z | HZ26: z | IA26: z | IB26: z | IC26: z | ID26: z | IE26: z | IF26: z | IG26: z | IH26: z | II26: z | IJ26: z | IK26: z | IL26: z | IM26: z | IN26: z
A27: 26 | B27: 64 | C27: 60 | D27: 60 | E27: 63 | F27: 63 | G27: 63 | I27: z | J27: z | K27: z | L27: z | M27: z | N27: z | O27: z | P27: z | Q27: z | R27: z | S27: z | T27: z | U27: z | V27: z | W27: z | X27: z | Y27: z | Z27: z | AA27: z | AB27: z | AC27: z | AD27: z | AE27: z | AF27: z | AG27: z | AH27: z | AI27: z | AJ27: z | AK27: z | AL27: z | AM27: z | AN27: z | AO27: z | AP27: z | AQ27: z | AR27: z | AS27: z | AT27: z | AU27: z | AV27: z | AW27: z | AX27: z | AY27: z | AZ27: z | BA27: z | BB27: z | BC27: z | BD27: z | BE27: z | BF27: z | BG27: z | BH27: z | BI27: z | BJ27: z | BK27: z | BL27: z | BM27: z | BN27: z | BO27: z | BP27: z | BQ27: z | BR27: z | BS27: z | BT27: z | BU27: z | BV27: z | BW27: z | BX27: z | BY27: z | BZ27: z | CA27: z | CB27: z | CC27: z | CD27: z | CE27: z | CF27: z | CG27: z | CH27: z | CI27: z | CJ27: z | CK27: z | CL27: z | CM27: z | CN27: z | CO27: z | CP27: z | CQ27: z | CR27: z | CS27: z | CT27: z | CU27: z | CV27: z | CW27: z | CX27: z | CY27: z | CZ27: z | DA27: z | DB27: z | DC27: z | DD27: z | DE27: z | DF27: z | DG27: z | DH27: z | DI27: z | DJ27: z | DK27: z | DL27: z | DM27: z | DN27: z | DO27: z | DP27: z | DQ27: z | DR27: z | DS27: z | DT27: z | DU27: z | DV27: z | DW27: z | DX27: z | DY27: z | DZ27: z | EA27: z | EB27: z | EC27: z | ED27: z | EE27: z | EF27: z | EG27: z | EH27: z | EI27: z | EJ27: z | EK27: z | EL27: z | EM27: z | EN27: z | EO27: z | EP27: z | EQ27: z | ER27: z | ES27: z | ET27: z | EU27: z | EV27: z | EW27: z | EX27: z | EY27: z | EZ27: z | FA27: z | FB27: z | FC27: z | FD27: z | FE27: z | FF27: z | FG27: z | FH27: z | FI27: z | FJ27: z | FK27: z | FL27: z | FM27: z | FN27: z | FO27: z | FP27: z | FQ27: z | FR27: z | FS27: z | FT27: z | FU27: z | FV27: z | FW27: z | FX27: z | FY27: z | FZ27: z | GA27: z | GB27: z | GC27: z | GD27: z | GE27: z | GF27: z | GG27: z | GH27: z | GI27: z | GJ27: z | GK27: z | GL27: z | GM27: z | GN27: z | GO27: z | GP27: z | GQ27: z | GR27: z | GS27: z | GT27: z | GU27: z | GV27: z | GW27: z | GX27: z | GY27: z | GZ27: z | HA27: z | HB27: z | HC27: z | HD27: z | HE27: z | HF27: z | HG27: z | HH27: z | HI27: z | HJ27: z | HK27: z | HL27: z | HM27: z | HN27: z | HO27: z | HP27: z | HQ27: z | HR27: z | HS27: z | HT27: z | HU27: z | HV27: z | HW27: z | HX27: z | HY27: z | HZ27: z | IA27: z | IB27: z | IC27: z | ID27: z | IE27: z | IF27: z | IG27: z | IH27: z | II27: z | IJ27: z | IK27: z | IL27: z | IM27: z | IN27: z
A28: 27 | B28: 64 | C28: 60 | D28: 60 | E28: 63 | F28: 63 | G28: 63 | I28: z | J28: z | K28: z | L28: z | M28: z | N28: z | O28: z | P28: z | Q28: z | R28: z | S28: z | T28: z | U28: z | V28: z | W28: z | X28: z | Y28: z | Z28: z | AA28: z | AB28: z | AC28: z | AD28: z | AE28: z | AF28: z | AG28: z | AH28: z | AI28: z | AJ28: z | AK28: z | AL28: z | AM28: z | AN28: z | AO28: z | AP28: z | AQ28: z | AR28: z | AS28: z | AT28: z | AU28: z | AV28: z | AW28: z | AX28: z | AY28: z | AZ28: z | BA28: z | BB28: z | BC28: z | BD28: z | BE28: z | BF28: z | BG28: z | BH28: z | BI28: z | BJ28: z | BK28: z | BL28: z | BM28: z | BN28: z | BO28: z | BP28: z | BQ28: z | BR28: z | BS28: z | BT28: z | BU28: z | BV28: z | BW28: z | BX28: z | BY28: z | BZ28: z | CA28: z | CB28: z | CC28: z | CD28: z | CE28: z | CF28: z | CG28: z | CH28: z | CI28: z | CJ28: z | CK28: z | CL28: z | CM28: z | CN28: z | CO28: z | CP28: z | CQ28: z | CR28: z | CS28: z | CT28: z | CU28: z | CV28: z | CW28: z | CX28: z | CY28: z | CZ28: z | DA28: z | DB28: z | DC28: z | DD28: z | DE28: z | DF28: z | DG28: z | DH28: z | DI28: z | DJ28: z | DK28: z | DL28: z | DM28: z | DN28: z | DO28: z | DP28: z | DQ28: z | DR28: z | DS28: z | DT28: z | DU28: z | DV28: z | DW28: z | DX28: z | DY28: z | DZ28: z | EA28: z | EB28: z | EC28: z | ED28: z | EE28: z | EF28: z | EG28: z | EH28: z | EI28: z | EJ28: z | EK28: z | EL28: z | EM28: z | EN28: z | EO28: z | EP28: z | EQ28: z | ER28: z | ES28: z | ET28: z | EU28: z | EV28: z | EW28: z | EX28: z | EY28: z | EZ28: z | FA28: z | FB28: z | FC28: z | FD28: z | FE28: z | FF28: z | FG28: z | FH28: z | FI28: z | FJ28: z | FK28: z | FL28: z | FM28: z | FN28: z | FO28: z | FP28: z | FQ28: z | FR28: z | FS28: z | FT28: z | FU28: z | FV28: z | FW28: z | FX28: z | FY28: z | FZ28: z | GA28: z | GB28: z | GC28: z | GD28: z | GE28: z | GF28: z | GG28: z | GH28: z | GI28: z | GJ28: z | GK28: z | GL28: z | GM28: z | GN28: z | GO28: z | GP28: z | GQ28: z | GR28: z | GS28: z | GT28: z | GU28: z | GV28: z | GW28: z | GX28: z | GY28: z | GZ28: z | HA28: z | HB28: z | HC28: z | HD28: z | HE28: z | HF28: z | HG28: z | HH28: z | HI28: z | HJ28: z | HK28: z | HL28: z | HM28: z | HN28: z | HO28: z | HP28: z | HQ28: z | HR28: z | HS28: z | HT28: z | HU28: z | HV28: z | HW28: z | HX28: z | HY28: z | HZ28: z | IA28: z | IB28: z | IC28: z | ID28: z | IE28: z | IF28: z | IG28: z | IH28: z | II28: z | IJ28: z | IK28: z | IL28: z | IM28: z | IN28: z
A29: 28 | B29: 64 | C29: 60 | D29: 60 | E29: 63 | F29: 63 | G29: 63 | I29: z | J29: z | K29: z | L29: z | M29: z | N29: z | O29: z | P29: z | Q29: z | R29: z | S29: z | T29: z | U29: z | V29: z | W29: z | X29: z | Y29: z | Z29: z | AA29: z | AB29: z | AC29: z | AD29: z | AE29: z | AF29: z | AG29: z | AH29: z | AI29: z | AJ29: z | AK29: z | AL29: z | AM29: z | AN29: z | AO29: z | AP29: z | AQ29: z | AR29: z | AS29: z | AT29: z | AU29: z | AV29: z | AW29: z | AX29: z | AY29: z | AZ29: z | BA29: z | BB29: z | BC29: z | BD29: z | BE29: z | BF29: z | BG29: z | BH29: z | BI29: z | BJ29: z | BK29: z | BL29: z | BM29: z | BN29: z | BO29: z | BP29: z | BQ29: z | BR29: z | BS29: z | BT29: z | BU29: z | BV29: z | BW29: z | BX29: z | BY29: z | BZ29: z | CA29: z | CB29: z | CC29: z | CD29: z | CE29: z | CF29: z | CG29: z | CH29: z | CI29: z | CJ29: z | CK29: z | CL29: z | CM29: z | CN29: z | CO29: z | CP29: z | CQ29: z | CR29: z | CS29: z | CT29: z | CU29: z | CV29: z | CW29: z | CX29: z | CY29: z | CZ29: z | DA29: z | DB29: z | DC29: z | DD29: z | DE29: z | DF29: z | DG29: z | DH29: z | DI29: z | DJ29: z | DK29: z | DL29: z | DM29: z | DN29: z | DO29: z | DP29: z | DQ29: z | DR29: z | DS29: z | DT29: z | DU29: z | DV29: z | DW29: z | DX29: z | DY29: z | DZ29: z | EA29: z | EB29: z | EC29: z | ED29: z | EE29: z | EF29: z | EG29: z | EH29: z | EI29: z | EJ29: z | EK29: z | EL29: z | EM29: z | EN29: z | EO29: z | EP29: z | EQ29: z | ER29: z | ES29: z | ET29: z | EU29: z | EV29: z | EW29: z | EX29: z | EY29: z | EZ29: z | FA29: z | FB29: z | FC29: z | FD29: z | FE29: z | FF29: z | FG29: z | FH29: z | FI29: z | FJ29: z | FK29: z | FL29: z | FM29: z | FN29: z | FO29: z | FP29: z | FQ29: z | FR29: z | FS29: z | FT29: z | FU29: z | FV29: z | FW29: z | FX29: z | FY29: z | FZ29: z | GA29: z | GB29: z | GC29: z | GD29: z | GE29: z | GF29: z | GG29: z | GH29: z | GI29: z | GJ29: z | GK29: z | GL29: z | GM29: z | GN29: z | GO29: z | GP29: z | GQ29: z | GR29: z | GS29: z | GT29: z | GU29: z | GV29: z | GW29: z | GX29: z | GY29: z | GZ29: z | HA29: z | HB29: z | HC29: z | HD29: z | HE29: z | HF29: z | HG29: z | HH29: z | HI29: z | HJ29: z | HK29: z | HL29: z | HM29: z | HN29: z | HO29: z | HP29: z | HQ29: z | HR29: z | HS29: z | HT29: z | HU29: z | HV29: z | HW29: z | HX29: z | HY29: z | HZ29: z | IA29: z | IB29: z | IC29: z | ID29: z | IE29: z | IF29: z | IG29: z | IH29: z | II29: z | IJ29: z | IK29: z | IL29: z | IM29: z | IN29: z
A30: 29 | B30: 64 | C30: 60 | D30: 60 | E30: 63 | F30: 63 | G30: 63 | I30: z | J30: z | K30: z | L30: z | M30: z | N30: z | O30: z | P30: z | Q30: z | R30: z | S30: z | T30: z | U30: z | V30: z | W30: z | X30: z | Y30: z | Z30: z | AA30: z | AB30: z | AC30: z | AD30: z | AE30: z | AF30: z | AG30: z | AH30: z | AI30: z | AJ30: z | AK30: z | AL30: z | AM30: z | AN30: z | AO30: z | AP30: z | AQ30: z | AR30: z | AS30: z | AT30: z | AU30: z | AV30: z | AW30: z | AX30: z | AY30: z | AZ30: z | BA30: z | BB30: z | BC30: z | BD30: z | BE30: z | BF30: z | BG30: z | BH30: z | BI30: z | BJ30: z | BK30: z | BL30: z | BM30: z | BN30: z | BO30: z | BP30: z | BQ30: z | BR30: z | BS30: z | BT30: z | BU30: z | BV30: z | BW30: z | BX30: z | BY30: z | BZ30: z | CA30: z | CB30: z | CC30: z | CD30: z | CE30: z | CF30: z | CG30: z | CH30: z | CI30: z | CJ30: z | CK30: z | CL30: z | CM30: z | CN30: z | CO30: z | CP30: z | CQ30: z | CR30: z | CS30: z | CT30: z | CU30: z | CV30: z | CW30: z | CX30: z | CY30: z | CZ30: z | DA30: z | DB30: z | DC30: z | DD30: z | DE30: z | DF30: z | DG30: z | DH30: z | DI30: z | DJ30: z | DK30: z | DL30: z | DM30: z | DN30: z | DO30: z | DP30: z | DQ30: z | DR30: z | DS30: z | DT30: z | DU30: z | DV30: z | DW30: z | DX30: z | DY30: z | DZ30: z | EA30: z | EB30: z | EC30: z | ED30: z | EE30: z | EF30: z | EG30: z | EH30: z | EI30: z | EJ30: z | EK30: z | EL30: z | EM30: z | EN30: z | EO30: z | EP30: z | EQ30: z | ER30: z | ES30: z | ET30: z | EU30: z | EV30: z | EW30: z | EX30: z | EY30: z | EZ30: z | FA30: z | FB30: z | FC30: z | FD30: z | FE30: z | FF30: z | FG30: z | FH30: z | FI30: z | FJ30: z | FK30: z | FL30: z | FM30: z | FN30: z | FO30: z | FP30: z | FQ30: z | FR30: z | FS30: z | FT30: z | FU30: z | FV30: z | FW30: z | FX30: z | FY30: z | FZ30: z | GA30: z | GB30: z | GC30: z | GD30: z | GE30: z | GF30: z | GG30: z | GH30: z | GI30: z | GJ30: z | GK30: z | GL30: z | GM30: z | GN30: z | GO30: z | GP30: z | GQ30: z | GR30: z | GS30: z | GT30: z | GU30: z | GV30: z | GW30: z | GX30: z | GY30: z | GZ30: z | HA30: z | HB30: z | HC30: z | HD30: z | HE30: z | HF30: z | HG30: z | HH30: z | HI30: z | HJ30: z | HK30: z | HL30: z | HM30: z | HN30: z | HO30: z | HP30: z | HQ30: z | HR30: z | HS30: z | HT30: z | HU30: z | HV30: z | HW30: z | HX30: z | HY30: z | HZ30: z | IA30: z | IB30: z | IC30: z | ID30: z | IE30: z | IF30: z | IG30: z | IH30: z | II30: z | IJ30: z | IK30: z | IL30: z | IM30: z | IN30: z
A31: 30 | B31: 64 | C31: 60 | D31: 61 | E31: 63 | F31: 63 | G31: 63 | I31: z | J31: z | K31: z | L31: z | M31: z | N31: z | O31: z | P31: z | Q31: z | R31: z | S31: z | T31: z | U31: z | V31: z | W31: z | X31: z | Y31: z | Z31: z | AA31: z | AB31: z | AC31: z | AD31: z | AE31: z | AF31: z | AG31: z | AH31: z | AI31: z | AJ31: z | AK31: z | AL31: z | AM31: z | AN31: z | AO31: z | AP31: z | AQ31: z | AR31: z | AS31: z | AT31: z | AU31: z | AV31: z | AW31: z | AX31: z | AY31: z | AZ31: z | BA31: z | BB31: z | BC31: z | BD31: z | BE31: z | BF31: z | BG31: z | BH31: z | BI31: z | BJ31: z | BK31: z | BL31: z | BM31: z | BN31: z | BO31: z | BP31: z | BQ31: z | BR31: z | BS31: z | BT31: z | BU31: z | BV31: z | BW31: z | BX31: z | BY31: z | BZ31: z | CA31: z | CB31: z | CC31: z | CD31: z | CE31: z | CF31: z | CG31: z | CH31: z | CI31: z | CJ31: z | CK31: z | CL31: z | CM31: z | CN31: z | CO31: z | CP31: z | CQ31: z | CR31: z | CS31: z | CT31: z | CU31: z | CV31: z | CW31: z | CX31: z | CY31: z | CZ31: z | DA31: z | DB31: z | DC31: z | DD31: z | DE31: z | DF31: z | DG31: z | DH31: z | DI31: z | DJ31: z | DK31: z | DL31: z | DM31: z | DN31: z | DO31: z | DP31: z | DQ31: z | DR31: z | DS31: z | DT31: z | DU31: z | DV31: z | DW31: z | DX31: z | DY31: z | DZ31: z | EA31: z | EB31: z | EC31: z | ED31: z | EE31: z | EF31: z | EG31: z | EH31: z | EI31: z | EJ31: z | EK31: z | EL31: z | EM31: z | EN31: z | EO31: z | EP31: z | EQ31: z | ER31: z | ES31: z | ET31: z | EU31: z | EV31: z | EW31: z | EX31: z | EY31: z | EZ31: z | FA31: z | FB31: z | FC31: z | FD31: z | FE31: z | FF31: z | FG31: z | FH31: z | FI31: z | FJ31: z | FK31: z | FL31: z | FM31: z | FN31: z | FO31: z | FP31: z | FQ31: z | FR31: z | FS31: z | FT31: z | FU31: z | FV31: z | FW31: z | FX31: z | FY31: z | FZ31: z | GA31: z | GB31: z | GC31: z | GD31: z | GE31: z | GF31: z | GG31: z | GH31: z | GI31: z | GJ31: z | GK31: z | GL31: z | GM31: z | GN31: z | GO31: z | GP31: z | GQ31: z | GR31: z | GS31: z | GT31: z | GU31: z | GV31: z | GW31: z | GX31: z | GY31: z | GZ31: z | HA31: z | HB31: z | HC31: z | HD31: z | HE31: z | HF31: z | HG31: z | HH31: z | HI31: z | HJ31: z | HK31: z | HL31: z | HM31: z | HN31: z | HO31: z | HP31: z | HQ31: z | HR31: z | HS31: z | HT31: z | HU31: z | HV31: z | HW31: z | HX31: z | HY31: z | HZ31: z | IA31: z | IB31: z | IC31: z | ID31: z | IE31: z | IF31: z | IG31: z | IH31: z | II31: z | IJ31: z | IK31: z | IL31: z | IM31: z | IN31: z
A32: 31 | B32: 64 | C32: 68 | D32: 70 | E32: 71 | F32: 71 | G32: 71 | I32: z | J32: z | K32: z | L32: z | M32: z | N32: z | O32: z | P32: z | Q32: z | R32: z | S32: z | T32: z | U32: z | V32: z | W32: z | X32: z | Y32: z | Z32: z | AA32: z | AB32: z | AC32: z | AD32: z | AE32: z | AF32: z | AG32: z | AH32: z | AI32: z | AJ32: z | AK32: z | AL32: z | AM32: z | AN32: z | AO32: z | AP32: z | AQ32: z | AR32: z | AS32: z | AT32: z | AU32: z | AV32: z | AW32: z | AX32: z | AY32: z | AZ32: z | BA32: z | BB32: z | BC32: z | BD32: z | BE32: z | BF32: z | BG32: z | BH32: z | BI32: z | BJ32: z | BK32: z | BL32: z | BM32: z | BN32: z | BO32: z | BP32: z | BQ32: z | BR32: z | BS32: z | BT32: z | BU32: z | BV32: z | BW32: z | BX32: z | BY32: z | BZ32: z | CA32: z | CB32: z | CC32: z | CD32: z | CE32: z | CF32: z | CG32: z | CH32: z | CI32: z | CJ32: z | CK32: z | CL32: z | CM32: z | CN32: z | CO32: z | CP32: z | CQ32: z | CR32: z | CS32: z | CT32: z | CU32: z | CV32: z | CW32: z | CX32: z | CY32: z | CZ32: z | DA32: z | DB32: z | DC32: z | DD32: z | DE32: z | DF32: z | DG32: z | DH32: z | DI32: z | DJ32: z | DK32: z | DL32: z | DM32: z | DN32: z | DO32: z | DP32: z | DQ32: z | DR32: z | DS32: z | DT32: z | DU32: z | DV32: z | DW32: z | DX32: z | DY32: z | DZ32: z | EA32: z | EB32: z | EC32: z | ED32: z | EE32: z | EF32: z | EG32: z | EH32: z | EI32: z | EJ32: z | EK32: z | EL32: z | EM32: z | EN32: z | EO32: z | EP32: z | EQ32: z | ER32: z | ES32: z | ET32: z | EU32: z | EV32: z | EW32: z | EX32: z | EY32: z | EZ32: z | FA32: z | FB32: z | FC32: z | FD32: z | FE32: z | FF32: z | FG32: z | FH32: z | FI32: z | FJ32: z | FK32: z | FL32: z | FM32: z | FN32: z | FO32: z | FP32: z | FQ32: z | FR32: z | FS32: z | FT32: z | FU32: z | FV32: z | FW32: z | FX32: z | FY32: z | FZ32: z | GA32: z | GB32: z | GC32: z | GD32: z | GE32: z | GF32: z | GG32: z | GH32: z | GI32: z | GJ32: z | GK32: z | GL32: z | GM32: z | GN32: z | GO32: z | GP32: z | GQ32: z | GR32: z | GS32: z | GT32: z | GU32: z | GV32: z | GW32: z | GX32: z | GY32: z | GZ32: z | HA32: z | HB32: z | HC32: z | HD32: z | HE32: z | HF32: z | HG32: z | HH32: z | HI32: z | HJ32: z | HK32: z | HL32: z | HM32: z | HN32: z | HO32: z | HP32: z | HQ32: z | HR32: z | HS32: z | HT32: z | HU32: z | HV32: z | HW32: z | HX32: z | HY32: z | HZ32: z | IA32: z | IB32: z | IC32: z | ID32: z | IE32: z | IF32: z | IG32: z | IH32: z | II32: z | IJ32: z | IK32: z | IL32: z | IM32: z | IN32: z
A33: 32 | B33: 64 | C33: 68 | D33: 70 | E33: 71 | F33: 71 | G33: 71 | I33: z | J33: z | K33: z | L33: z | M33: z | N33: z | O33: z | P33: z | Q33: z | R33: z | S33: z | T33: z | U33: z | V33: z | W33: z | X33: z | Y33: z | Z33: z | AA33: z | AB33: z | AC33: z | AD33: z | AE33: z | AF33: z | AG33: z | AH33: z | AI33: z | AJ33: z | AK33: z | AL33: z | AM33: z | AN33: z | AO33: z | AP33: z | AQ33: z | AR33: z | AS33: z | AT33: z | AU33: z | AV33: z | AW33: z | AX33: z | AY33: z | AZ33: z | BA33: z | BB33: z | BC33: z | BD33: z | BE33: z | BF33: z | BG33: z | BH33: z | BI33: z | BJ33: z | BK33: z | BL33: z | BM33: z | BN33: z | BO33: z | BP33: z | BQ33: z | BR33: z | BS33: z | BT33: z | BU33: z | BV33: z | BW33: z | BX33: z | BY33: z | BZ33: z | CA33: z | CB33: z | CC33: z | CD33: z | CE33: z | CF33: z | CG33: z | CH33: z | CI33: z | CJ33: z | CK33: z | CL33: z | CM33: z | CN33: z | CO33: z | CP33: z | CQ33: z | CR33: z | CS33: z | CT33: z | CU33: z | CV33: z | CW33: z | CX33: z | CY33: z | CZ33: z | DA33: z | DB33: z | DC33: z | DD33: z | DE33: z | DF33: z | DG33: z | DH33: z | DI33: z | DJ33: z | DK33: z | DL33: z | DM33: z | DN33: z | DO33: z | DP33: z | DQ33: z | DR33: z | DS33: z | DT33: z | DU33: z | DV33: z | DW33: z | DX33: z | DY33: z | DZ33: z | EA33: z | EB33: z | EC33: z | ED33: z | EE33: z | EF33: z | EG33: z | EH33: z | EI33: z | EJ33: z | EK33: z | EL33: z | EM33: z | EN33: z | EO33: z | EP33: z | EQ33: z | ER33: z | ES33: z | ET33: z | EU33: z | EV33: z | EW33: z | EX33: z | EY33: z | EZ33: z | FA33: z | FB33: z | FC33: z | FD33: z | FE33: z | FF33: z | FG33: z | FH33: z | FI33: z | FJ33: z | FK33: z | FL33: z | FM33: z | FN33: z | FO33: z | FP33: z | FQ33: z | FR33: z | FS33: z | FT33: z | FU33: z | FV33: z | FW33: z | FX33: z | FY33: z | FZ33: z | GA33: z | GB33: z | GC33: z | GD33: z | GE33: z | GF33: z | GG33: z | GH33: z | GI33: z | GJ33: z | GK33: z | GL33: z | GM33: z | GN33: z | GO33: z | GP33: z | GQ33: z | GR33: z | GS33: z | GT33: z | GU33: z | GV33: z | GW33: z | GX33: z | GY33: z | GZ33: z | HA33: z | HB33: z | HC33: z | HD33: z | HE33: z | HF33: z | HG33: z | HH33: z | HI33: z | HJ33: z | HK33: z | HL33: z | HM33: z | HN33: z | HO33: z | HP33: z | HQ33: z | HR33: z | HS33: z | HT33: z | HU33: z | HV33: z | HW33: z | HX33: z | HY33: z | HZ33: z | IA33: z | IB33: z | IC33: z | ID33: z | IE33: z | IF33: z | IG33: z | IH33: z | II33: z | IJ33: z | IK33: z | IL33: z | IM33: z | IN33: z
A34: 33 | B34: 64 | C34: 68 | D34: 70 | E34: 71 | F34: 71 | G34: 71 | I34: z | J34: z | K34: z | L34: z | M34: z | N34: z | O34: z | P34: z | Q34: z | R34: z | S34: z | T34: z | U34: z | V34: z | W34: z | X34: z | Y34: z | Z34: z | AA34: z | AB34: z | AC34: z | AD34: z | AE34: z | AF34: z | AG34: z | AH34: z | AI34: z | AJ34: z | AK34: z | AL34: z | AM34: z | AN34: z | AO34: z | AP34: z | AQ34: z | AR34: z | AS34: z | AT34: z | AU34: z | AV34: z | AW34: z | AX34: z | AY34: z | AZ34: z | BA34: z | BB34: z | BC34: z | BD34: z | BE34: z | BF34: z | BG34: z | BH34: z | BI34: z | BJ34: z | BK34: z | BL34: z | BM34: z | BN34: z | BO34: z | BP34: z | BQ34: z | BR34: z | BS34: z | BT34: z | BU34: z | BV34: z | BW34: z | BX34: z | BY34: z | BZ34: z | CA34: z | CB34: z | CC34: z | CD34: z | CE34: z | CF34: z | CG34: z | CH34: z | CI34: z | CJ34: z | CK34: z | CL34: z | CM34: z | CN34: z | CO34: z | CP34: z | CQ34: z | CR34: z | CS34: z | CT34: z | CU34: z | CV34: z | CW34: z | CX34: z | CY34: z | CZ34: z | DA34: z | DB34: z | DC34: z | DD34: z | DE34: z | DF34: z | DG34: z | DH34: z | DI34: z | DJ34: z | DK34: z | DL34: z | DM34: z | DN34: z | DO34: z | DP34: z | DQ34: z | DR34: z | DS34: z | DT34: z | DU34: z | DV34: z | DW34: z | DX34: z | DY34: z | DZ34: z | EA34: z | EB34: z | EC34: z | ED34: z | EE34: z | EF34: z | EG34: z | EH34: z | EI34: z | EJ34: z | EK34: z | EL34: z | EM34: z | EN34: z | EO34: z | EP34: z | EQ34: z | ER34: z | ES34: z | ET34: z | EU34: z | EV34: z | EW34: z | EX34: z | EY34: z | EZ34: z | FA34: z | FB34: z | FC34: z | FD34: z | FE34: z | FF34: z | FG34: z | FH34: z | FI34: z | FJ34: z | FK34: z | FL34: z | FM34: z | FN34: z | FO34: z | FP34: z | FQ34: z | FR34: z | FS34: z | FT34: z | FU34: z | FV34: z | FW34: z | FX34: z | FY34: z | FZ34: z | GA34: z | GB34: z | GC34: z | GD34: z | GE34: z | GF34: z | GG34: z | GH34: z | GI34: z | GJ34: z | GK34: z | GL34: z | GM34: z | GN34: z | GO34: z | GP34: z | GQ34: z | GR34: z | GS34: z | GT34: z | GU34: z | GV34: z | GW34: z | GX34: z | GY34: z | GZ34: z | HA34: z | HB34: z | HC34: z | HD34: z | HE34: z | HF34: z | HG34: z | HH34: z | HI34: z | HJ34: z | HK34: z | HL34: z | HM34: z | HN34: z | HO34: z | HP34: z | HQ34: z | HR34: z | HS34: z | HT34: z | HU34: z | HV34: z | HW34: z | HX34: z | HY34: z | HZ34: z | IA34: z | IB34: z | IC34: z | ID34: z | IE34: z | IF34: z | IG34: z | IH34: z | II34: z | IJ34: z | IK34: z | IL34: z | IM34: z | IN34: z
A35: 34 | B35: 64 | C35: 68 | D35: 70 | E35: 71 | F35: 71 | G35: 71 | I35: z | J35: z | K35: z | L35: z | M35: z | N35: z | O35: z | P35: z | Q35: z | R35: z | S35: z | T35: z | U35: z | V35: z | W35: z | X35: z | Y35: z | Z35: z | AA35: z | AB35: z | AC35: z | AD35: z | AE35: z | AF35: z | AG35: z | AH35: z | AI35: z | AJ35: z | AK35: z | AL35: z | AM35: z | AN35: z | AO35: z | AP35: z | AQ35: z | AR35: z | AS35: z | AT35: z | AU35: z | AV35: z | AW35: z | AX35: z | AY35: z | AZ35: z | BA35: z | BB35: z | BC35: z | BD35: z | BE35: z | BF35: z | BG35: z | BH35: z | BI35: z | BJ35: z | BK35: z | BL35: z | BM35: z | BN35: z | BO35: z | BP35: z | BQ35: z | BR35: z | BS35: z | BT35: z | BU35: z | BV35: z | BW35: z | BX35: z | BY35: z | BZ35: z | CA35: z | CB35: z | CC35: z | CD35: z | CE35: z | CF35: z | CG35: z | CH35: z | CI35: z | CJ35: z | CK35: z | CL35: z | CM35: z | CN35: z | CO35: z | CP35: z | CQ35: z | CR35: z | CS35: z | CT35: z | CU35: z | CV35: z | CW35: z | CX35: z | CY35: z | CZ35: z | DA35: z | DB35: z | DC35: z | DD35: z | DE35: z | DF35: z | DG35: z | DH35: z | DI35: z | DJ35: z | DK35: z | DL35: z | DM35: z | DN35: z | DO35: z | DP35: z | DQ35: z | DR35: z | DS35: z | DT35: z | DU35: z | DV35: z | DW35: z | DX35: z | DY35: z | DZ35: z | EA35: z | EB35: z | EC35: z | ED35: z | EE35: z | EF35: z | EG35: z | EH35: z | EI35: z | EJ35: z | EK35: z | EL35: z | EM35: z | EN35: z | EO35: z | EP35: z | EQ35: z | ER35: z | ES35: z | ET35: z | EU35: z | EV35: z | EW35: z | EX35: z | EY35: z | EZ35: z | FA35: z | FB35: z | FC35: z | FD35: z | FE35: z | FF35: z | FG35: z | FH35: z | FI35: z | FJ35: z | FK35: z | FL35: z | FM35: z | FN35: z | FO35: z | FP35: z | FQ35: z | FR35: z | FS35: z | FT35: z | FU35: z | FV35: z | FW35: z | FX35: z | FY35: z | FZ35: z | GA35: z | GB35: z | GC35: z | GD35: z | GE35: z | GF35: z | GG35: z | GH35: z | GI35: z | GJ35: z | GK35: z | GL35: z | GM35: z | GN35: z | GO35: z | GP35: z | GQ35: z | GR35: z | GS35: z | GT35: z | GU35: z | GV35: z | GW35: z | GX35: z | GY35: z | GZ35: z | HA35: z | HB35: z | HC35: z | HD35: z | HE35: z | HF35: z | HG35: z | HH35: z | HI35: z | HJ35: z | HK35: z | HL35: z | HM35: z | HN35: z | HO35: z | HP35: z | HQ35: z | HR35: z | HS35: z | HT35: z | HU35: z | HV35: z | HW35: z | HX35: z | HY35: z | HZ35: z | IA35: z | IB35: z | IC35: z | ID35: z | IE35: z | IF35: z | IG35: z | IH35: z | II35: z | IJ35: z | IK35: z | IL35: z | IM35: z | IN35: z
A36: 35 | B36: 64 | C36: 68 | D36: 70 | E36: 71 | F36: 71 | G36: 71 | I36: z | J36: z | K36: z | L36: z | M36: z | N36: z | O36: z | P36: z | Q36: z | R36: z | S36: z | T36: z | U36: z | V36: z | W36: z | X36: z | Y36: z | Z36: z | AA36: z | AB36: z | AC36: z | AD36: z | AE36: z | AF36: z | AG36: z | AH36: z | AI36: z | AJ36: z | AK36: z | AL36: z | AM36: z | AN36: z | AO36: z | AP36: z | AQ36: z | AR36: z | AS36: z | AT36: z | AU36: z | AV36: z | AW36: z | AX36: z | AY36: z | AZ36: z | BA36: z | BB36: z | BC36: z | BD36: z | BE36: z | BF36: z | BG36: z | BH36: z | BI36: z | BJ36: z | BK36: z | BL36: z | BM36: z | BN36: z | BO36: z | BP36: z | BQ36: z | BR36: z | BS36: z | BT36: z | BU36: z | BV36: z | BW36: z | BX36: z | BY36: z | BZ36: z | CA36: z | CB36: z | CC36: z | CD36: z | CE36: z | CF36: z | CG36: z | CH36: z | CI36: z | CJ36: z | CK36: z | CL36: z | CM36: z | CN36: z | CO36: z | CP36: z | CQ36: z | CR36: z | CS36: z | CT36: z | CU36: z | CV36: z | CW36: z | CX36: z | CY36: z | CZ36: z | DA36: z | DB36: z | DC36: z | DD36: z | DE36: z | DF36: z | DG36: z | DH36: z | DI36: z | DJ36: z | DK36: z | DL36: z | DM36: z | DN36: z | DO36: z | DP36: z | DQ36: z | DR36: z | DS36: z | DT36: z | DU36: z | DV36: z | DW36: z | DX36: z | DY36: z | DZ36: z | EA36: z | EB36: z | EC36: z | ED36: z | EE36: z | EF36: z | EG36: z | EH36: z | EI36: z | EJ36: z | EK36: z | EL36: z | EM36: z | EN36: z | EO36: z | EP36: z | EQ36: z | ER36: z | ES36: z | ET36: z | EU36: z | EV36: z | EW36: z | EX36: z | EY36: z | EZ36: z | FA36: z | FB36: z | FC36: z | FD36: z | FE36: z | FF36: z | FG36: z | FH36: z | FI36: z | FJ36: z | FK36: z | FL36: z | FM36: z | FN36: z | FO36: z | FP36: z | FQ36: z | FR36: z | FS36: z | FT36: z | FU36: z | FV36: z | FW36: z | FX36: z | FY36: z | FZ36: z | GA36: z | GB36: z | GC36: z | GD36: z | GE36: z | GF36: z | GG36: z | GH36: z | GI36: z | GJ36: z | GK36: z | GL36: z | GM36: z | GN36: z | GO36: z | GP36: z | GQ36: z | GR36: z | GS36: z | GT36: z | GU36: z | GV36: z | GW36: z | GX36: z | GY36: z | GZ36: z | HA36: z | HB36: z | HC36: z | HD36: z | HE36: z | HF36: z | HG36: z | HH36: z | HI36: z | HJ36: z | HK36: z | HL36: z | HM36: z | HN36: z | HO36: z | HP36: z | HQ36: z | HR36: z | HS36: z | HT36: z | HU36: z | HV36: z | HW36: z | HX36: z | HY36: z | HZ36: z | IA36: z | IB36: z | IC36: z | ID36: z | IE36: z | IF36: z | IG36: z | IH36: z | II36: z | IJ36: z | IK36: z | IL36: z | IM36: z | IN36: z
A37: 36 | B37: 64 | C37: 68 | D37: 70 | E37: 71 | F37: 71 | G37: 71 | I37: z | J37: z | K37: z | L37: z | M37: z | N37: z | O37: z | P37: z | Q37: z | R37: z | S37: z | T37: z | U37: z | V37: z | W37: z | X37: z | Y37: z | Z37: z | AA37: z | AB37: z | AC37: z | AD37: z | AE37: z | AF37: z | AG37: z | AH37: z | AI37: z | AJ37: z | AK37: z | AL37: z | AM37: z | AN37: z | AO37: z | AP37: z | AQ37: z | AR37: z | AS37: z | AT37: z | AU37: z | AV37: z | AW37: z | AX37: z | AY37: z | AZ37: z | BA37: z | BB37: z | BC37: z | BD37: z | BE37: z | BF37: z | BG37: z | BH37: z | BI37: z | BJ37: z | BK37: z | BL37: z | BM37: z | BN37: z | BO37: z | BP37: z | BQ37: z | BR37: z | BS37: z | BT37: z | BU37: z | BV37: z | BW37: z | BX37: z | BY37: z | BZ37: z | CA37: z | CB37: z | CC37: z | CD37: z | CE37: z | CF37: z | CG37: z | CH37: z | CI37: z | CJ37: z | CK37: z | CL37: z | CM37: z | CN37: z | CO37: z | CP37: z | CQ37: z | CR37: z | CS37: z | CT37: z | CU37: z | CV37: z | CW37: z | CX37: z | CY37: z | CZ37: z | DA37: z | DB37: z | DC37: z | DD37: z | DE37: z | DF37: z | DG37: z | DH37: z | DI37: z | DJ37: z | DK37: z | DL37: z | DM37: z | DN37: z | DO37: z | DP37: z | DQ37: z | DR37: z | DS37: z | DT37: z | DU37: z | DV37: z | DW37: z | DX37: z | DY37: z | DZ37: z | EA37: z | EB37: z | EC37: z | ED37: z | EE37: z | EF37: z | EG37: z | EH37: z | EI37: z | EJ37: z | EK37: z | EL37: z | EM37: z | EN37: z | EO37: z | EP37: z | EQ37: z | ER37: z | ES37: z | ET37: z | EU37: z | EV37: z | EW37: z | EX37: z | EY37: z | EZ37: z | FA37: z | FB37: z | FC37: z | FD37: z | FE37: z | FF37: z | FG37: z | FH37: z | FI37: z | FJ37: z | FK37: z | FL37: z | FM37: z | FN37: z | FO37: z | FP37: z | FQ37: z | FR37: z | FS37: z | FT37: z | FU37: z | FV37: z | FW37: z | FX37: z | FY37: z | FZ37: z | GA37: z | GB37: z | GC37: z | GD37: z | GE37: z | GF37: z | GG37: z | GH37: z | GI37: z | GJ37: z | GK37: z | GL37: z | GM37: z | GN37: z | GO37: z | GP37: z | GQ37: z | GR37: z | GS37: z | GT37: z | GU37: z | GV37: z | GW37: z | GX37: z | GY37: z | GZ37: z | HA37: z | HB37: z | HC37: z | HD37: z | HE37: z | HF37: z | HG37: z | HH37: z | HI37: z | HJ37: z | HK37: z | HL37: z | HM37: z | HN37: z | HO37: z | HP37: z | HQ37: z | HR37: z | HS37: z | HT37: z | HU37: z | HV37: z | HW37: z | HX37: z | HY37: z | HZ37: z | IA37: z | IB37: z | IC37: z | ID37: z | IE37: z | IF37: z | IG37: z | IH37: z | II37: z | IJ37: z | IK37: z | IL37: z | IM37: z | IN37: z
A38: 37 | B38: 64 | C38: 68 | D38: 70 | E38: 71 | F38: 71 | G38: 71 | I38: z | J38: z | K38: z | L38: z | M38: z | N38: z | O38: z | P38: z | Q38: z | R38: z | S38: z | T38: z | U38: z | V38: z | W38: z | X38: z | Y38: z | Z38: z | AA38: z | AB38: z | AC38: z | AD38: z | AE38: z | AF38: z | AG38: z | AH38: z | AI38: z | AJ38: z | AK38: z | AL38: z | AM38: z | AN38: z | AO38: z | AP38: z | AQ38: z | AR38: z | AS38: z | AT38: z | AU38: z | AV38: z | AW38: z | AX38: z | AY38: z | AZ38: z | BA38: z | BB38: z | BC38: z | BD38: z | BE38: z | BF38: z | BG38: z | BH38: z | BI38: z | BJ38: z | BK38: z | BL38: z | BM38: z | BN38: z | BO38: z | BP38: z | BQ38: z | BR38: z | BS38: z | BT38: z | BU38: z | BV38: z | BW38: z | BX38: z | BY38: z | BZ38: z | CA38: z | CB38: z | CC38: z | CD38: z | CE38: z | CF38: z | CG38: z | CH38: z | CI38: z | CJ38: z | CK38: z | CL38: z | CM38: z | CN38: z | CO38: z | CP38: z | CQ38: z | CR38: z | CS38: z | CT38: z | CU38: z | CV38: z | CW38: z | CX38: z | CY38: z | CZ38: z | DA38: z | DB38: z | DC38: z | DD38: z | DE38: z | DF38: z | DG38: z | DH38: z | DI38: z | DJ38: z | DK38: z | DL38: z | DM38: z | DN38: z | DO38: z | DP38: z | DQ38: z | DR38: z | DS38: z | DT38: z | DU38: z | DV38: z | DW38: z | DX38: z | DY38: z | DZ38: z | EA38: z | EB38: z | EC38: z | ED38: z | EE38: z | EF38: z | EG38: z | EH38: z | EI38: z | EJ38: z | EK38: z | EL38: z | EM38: z | EN38: z | EO38: z | EP38: z | EQ38: z | ER38: z | ES38: z | ET38: z | EU38: z | EV38: z | EW38: z | EX38: z | EY38: z | EZ38: z | FA38: z | FB38: z | FC38: z | FD38: z | FE38: z | FF38: z | FG38: z | FH38: z | FI38: z | FJ38: z | FK38: z | FL38: z | FM38: z | FN38: z | FO38: z | FP38: z | FQ38: z | FR38: z | FS38: z | FT38: z | FU38: z | FV38: z | FW38: z | FX38: z | FY38: z | FZ38: z | GA38: z | GB38: z | GC38: z | GD38: z | GE38: z | GF38: z | GG38: z | GH38: z | GI38: z | GJ38: z | GK38: z | GL38: z | GM38: z | GN38: z | GO38: z | GP38: z | GQ38: z | GR38: z | GS38: z | GT38: z | GU38: z | GV38: z | GW38: z | GX38: z | GY38: z | GZ38: z | HA38: z | HB38: z | HC38: z | HD38: z | HE38: z | HF38: z | HG38: z | HH38: z | HI38: z | HJ38: z | HK38: z | HL38: z | HM38: z | HN38: z | HO38: z | HP38: z | HQ38: z | HR38: z | HS38: z | HT38: z | HU38: z | HV38: z | HW38: z | HX38: z | HY38: z | HZ38: z | IA38: z | IB38: z | IC38: z | ID38: z | IE38: z | IF38: z | IG38: z | IH38: z | II38: z | IJ38: z | IK38: z | IL38: z | IM38: z | IN38: z
A39: 38 | B39: 64 | C39: 68 | D39: 70 | E39: 71 | F39: 71 | G39: 71 | I39: z | J39: z | K39: z | L39: z | M39: z | N39: z | O39: z | P39: z | Q39: z | R39: z | S39: z | T39: z | U39: z | V39: z | W39: z | X39: z | Y39: z | Z39: z | AA39: z | AB39: z | AC39: z | AD39: z | AE39: z | AF39: z | AG39: z | AH39: z | AI39: z | AJ39: z | AK39: z | AL39: z | AM39: z | AN39: z | AO39: z | AP39: z | AQ39: z | AR39: z | AS39: z | AT39: z | AU39: z | AV39: z | AW39: z | AX39: z | AY39: z | AZ39: z | BA39: z | BB39: z | BC39: z | BD39: z | BE39: z | BF39: z | BG39: z | BH39: z | BI39: z | BJ39: z | BK39: z | BL39: z | BM39: z | BN39: z | BO39: z | BP39: z | BQ39: z | BR39: z | BS39: z | BT39: z | BU39: z | BV39: z | BW39: z | BX39: z | BY39: z | BZ39: z | CA39: z | CB39: z | CC39: z | CD39: z | CE39: z | CF39: z | CG39: z | CH39: z | CI39: z | CJ39: z | CK39: z | CL39: z | CM39: z | CN39: z | CO39: z | CP39: z | CQ39: z | CR39: z | CS39: z | CT39: z | CU39: z | CV39: z | CW39: z | CX39: z | CY39: z | CZ39: z | DA39: z | DB39: z | DC39: z | DD39: z | DE39: z | DF39: z | DG39: z | DH39: z | DI39: z | DJ39: z | DK39: z | DL39: z | DM39: z | DN39: z | DO39: z | DP39: z | DQ39: z | DR39: z | DS39: z | DT39: z | DU39: z | DV39: z | DW39: z | DX39: z | DY39: z | DZ39: z | EA39: z | EB39: z | EC39: z | ED39: z | EE39: z | EF39: z | EG39: z | EH39: z | EI39: z | EJ39: z | EK39: z | EL39: z | EM39: z | EN39: z | EO39: z | EP39: z | EQ39: z | ER39: z | ES39: z | ET39: z | EU39: z | EV39: z | EW39: z | EX39: z | EY39: z | EZ39: z | FA39: z | FB39: z | FC39: z | FD39: z | FE39: z | FF39: z | FG39: z | FH39: z | FI39: z | FJ39: z | FK39: z | FL39: z | FM39: z | FN39: z | FO39: z | FP39: z | FQ39: z | FR39: z | FS39: z | FT39: z | FU39: z | FV39: z | FW39: z | FX39: z | FY39: z | FZ39: z | GA39: z | GB39: z | GC39: z | GD39: z | GE39: z | GF39: z | GG39: z | GH39: z | GI39: z | GJ39: z | GK39: z | GL39: z | GM39: z | GN39: z | GO39: z | GP39: z | GQ39: z | GR39: z | GS39: z | GT39: z | GU39: z | GV39: z | GW39: z | GX39: z | GY39: z | GZ39: z | HA39: z | HB39: z | HC39: z | HD39: z | HE39: z | HF39: z | HG39: z | HH39: z | HI39: z | HJ39: z | HK39: z | HL39: z | HM39: z | HN39: z | HO39: z | HP39: z | HQ39: z | HR39: z | HS39: z | HT39: z | HU39: z | HV39: z | HW39: z | HX39: z | HY39: z | HZ39: z | IA39: z | IB39: z | IC39: z | ID39: z | IE39: z | IF39: z | IG39: z | IH39: z | II39: z | IJ39: z | IK39: z | IL39: z | IM39: z | IN39: z
A40: 39 | B40: 65 | C40: 60 | D40: 61 | E40: 63 | F40: 63 | G40: 63 | I40: z | J40: z | K40: z | L40: z | M40: z | N40: z | O40: z | P40: z | Q40: z | R40: z | S40: z | T40: z | U40: z | V40: z | W40: z | X40: z | Y40: z | Z40: z | AA40: z | AB40: z | AC40: z | AD40: z | AE40: z | AF40: z | AG40: z | AH40: z | AI40: z | AJ40: z | AK40: z | AL40: z | AM40: z | AN40: z | AO40: z | AP40: z | AQ40: z | AR40: z | AS40: z | AT40: z | AU40: z | AV40: z | AW40: z | AX40: z | AY40: z | AZ40: z | BA40: z | BB40: z | BC40: z | BD40: z | BE40: z | BF40: z | BG40: z | BH40: z | BI40: z | BJ40: z | BK40: z | BL40: z | BM40: z | BN40: z | BO40: z | BP40: z | BQ40: z | BR40: z | BS40: z | BT40: z | BU40: z | BV40: z | BW40: z | BX40: z | BY40: z | BZ40: z | CA40: z | CB40: z | CC40: z | CD40: z | CE40: z | CF40: z | CG40: z | CH40: z | CI40: z | CJ40: z | CK40: z | CL40: z | CM40: z | CN40: z | CO40: z | CP40: z | CQ40: z | CR40: z | CS40: z | CT40: z | CU40: z | CV40: z | CW40: z | CX40: z | CY40: z | CZ40: z | DA40: z | DB40: z | DC40: z | DD40: z | DE40: z | DF40: z | DG40: z | DH40: z | DI40: z | DJ40: z | DK40: z | DL40: z | DM40: z | DN40: z | DO40: z | DP40: z | DQ40: z | DR40: z | DS40: z | DT40: z | DU40: z | DV40: z | DW40: z | DX40: z | DY40: z | DZ40: z | EA40: z | EB40: z | EC40: z | ED40: z | EE40: z | EF40: z | EG40: z | EH40: z | EI40: z | EJ40: z | EK40: z | EL40: z | EM40: z | EN40: z | EO40: z | EP40: z | EQ40: z | ER40: z | ES40: z | ET40: z | EU40: z | EV40: z | EW40: z | EX40: z | EY40: z | EZ40: z | FA40: z | FB40: z | FC40: z | FD40: z | FE40: z | FF40: z | FG40: z | FH40: z | FI40: z | FJ40: z | FK40: z | FL40: z | FM40: z | FN40: z | FO40: z | FP40: z | FQ40: z | FR40: z | FS40: z | FT40: z | FU40: z | FV40: z | FW40: z | FX40: z | FY40: z | FZ40: z | GA40: z | GB40: z | GC40: z | GD40: z | GE40: z | GF40: z | GG40: z | GH40: z | GI40: z | GJ40: z | GK40: z | GL40: z | GM40: z | GN40: z | GO40: z | GP40: z | GQ40: z | GR40: z | GS40: z | GT40: z | GU40: z | GV40: z | GW40: z | GX40: z | GY40: z | GZ40: z | HA40: z | HB40: z | HC40: z | HD40: z | HE40: z | HF40: z | HG40: z | HH40: z | HI40: z | HJ40: z | HK40: z | HL40: z | HM40: z | HN40: z | HO40: z | HP40: z | HQ40: z | HR40: z | HS40: z | HT40: z | HU40: z | HV40: z | HW40: z | HX40: z | HY40: z | HZ40: z | IA40: z | IB40: z | IC40: z | ID40: z | IE40: z | IF40: z | IG40: z | IH40: z | II40: z | IJ40: z | IK40: z | IL40: z | IM40: z | IN40: z
A41: 40 | B41: 65 | C41: 60 | D41: 61 | E41: 63 | F41: 63 | G41: 63 | I41: z | J41: z | K41: z | L41: z | M41: z | N41: z | O41: z | P41: z | Q41: z | R41: z | S41: z | T41: z | U41: z | V41: z | W41: z | X41: z | Y41: z | Z41: z | AA41: z | AB41: z | AC41: z | AD41: z | AE41: z | AF41: z | AG41: z | AH41: z | AI41: z | AJ41: z | AK41: z | AL41: z | AM41: z | AN41: z | AO41: z | AP41: z | AQ41: z | AR41: z | AS41: z | AT41: z | AU41: z | AV41: z | AW41: z | AX41: z | AY41: z | AZ41: z | BA41: z | BB41: z | BC41: z | BD41: z | BE41: z | BF41: z | BG41: z | BH41: z | BI41: z | BJ41: z | BK41: z | BL41: z | BM41: z | BN41: z | BO41: z | BP41: z | BQ41: z | BR41: z | BS41: z | BT41: z | BU41: z | BV41: z | BW41: z | BX41: z | BY41: z | BZ41: z | CA41: z | CB41: z | CC41: z | CD41: z | CE41: z | CF41: z | CG41: z | CH41: z | CI41: z | CJ41: z | CK41: z | CL41: z | CM41: z | CN41: z | CO41: z | CP41: z | CQ41: z | CR41: z | CS41: z | CT41: z | CU41: z | CV41: z | CW41: z | CX41: z | CY41: z | CZ41: z | DA41: z | DB41: z | DC41: z | DD41: z | DE41: z | DF41: z | DG41: z | DH41: z | DI41: z | DJ41: z | DK41: z | DL41: z | DM41: z | DN41: z | DO41: z | DP41: z | DQ41: z | DR41: z | DS41: z | DT41: z | DU41: z | DV41: z | DW41: z | DX41: z | DY41: z | DZ41: z | EA41: z | EB41: z | EC41: z | ED41: z | EE41: z | EF41: z | EG41: z | EH41: z | EI41: z | EJ41: z | EK41: z | EL41: z | EM41: z | EN41: z | EO41: z | EP41: z | EQ41: z | ER41: z | ES41: z | ET41: z | EU41: z | EV41: z | EW41: z | EX41: z | EY41: z | EZ41: z | FA41: z | FB41: z | FC41: z | FD41: z | FE41: z | FF41: z | FG41: z | FH41: z | FI41: z | FJ41: z | FK41: z | FL41: z | FM41: z | FN41: z | FO41: z | FP41: z | FQ41: z | FR41: z | FS41: z | FT41: z | FU41: z | FV41: z | FW41: z | FX41: z | FY41: z | FZ41: z | GA41: z | GB41: z | GC41: z | GD41: z | GE41: z | GF41: z | GG41: z | GH41: z | GI41: z | GJ41: z | GK41: z | GL41: z | GM41: z | GN41: z | GO41: z | GP41: z | GQ41: z | GR41: z | GS41: z | GT41: z | GU41: z | GV41: z | GW41: z | GX41: z | GY41: z | GZ41: z | HA41: z | HB41: z | HC41: z | HD41: z | HE41: z | HF41: z | HG41: z | HH41: z | HI41: z | HJ41: z | HK41: z | HL41: z | HM41: z | HN41: z | HO41: z | HP41: z | HQ41: z | HR41: z | HS41: z | HT41: z | HU41: z | HV41: z | HW41: z | HX41: z | HY41: z | HZ41: z | IA41: z | IB41: z | IC41: z | ID41: z | IE41: z | IF41: z | IG41: z | IH41: z | II41: z | IJ41: z | IK41: z | IL41: z | IM41: z | IN41: z
A42: 41 | B42: 65 | C42: 60 | D42: 61 | E42: 63 | F42: 63 | G42: 63 | I42: z | J42: z | K42: z | L42: z | M42: z | N42: z | O42: z | P42: z | Q42: z | R42: z | S42: z | T42: z | U42: z | V42: z | W42: z | X42: z | Y42: z | Z42: z | AA42: z | AB42: z | AC42: z | AD42: z | AE42: z | AF42: z | AG42: z | AH42: z | AI42: z | AJ42: z | AK42: z | AL42: z | AM42: z | AN42: z | AO42: z | AP42: z | AQ42: z | AR42: z | AS42: z | AT42: z | AU42: z | AV42: z | AW42: z | AX42: z | AY42: z | AZ42: z | BA42: z | BB42: z | BC42: z | BD42: z | BE42: z | BF42: z | BG42: z | BH42: z | BI42: z | BJ42: z | BK42: z | BL42: z | BM42: z | BN42: z | BO42: z | BP42: z | BQ42: z | BR42: z | BS42: z | BT42: z | BU42: z | BV42: z | BW42: z | BX42: z | BY42: z | BZ42: z | CA42: z | CB42: z | CC42: z | CD42: z | CE42: z | CF42: z | CG42: z | CH42: z | CI42: z | CJ42: z | CK42: z | CL42: z | CM42: z | CN42: z | CO42: z | CP42: z | CQ42: z | CR42: z | CS42: z | CT42: z | CU42: z | CV42: z | CW42: z | CX42: z | CY42: z | CZ42: z | DA42: z | DB42: z | DC42: z | DD42: z | DE42: z | DF42: z | DG42: z | DH42: z | DI42: z | DJ42: z | DK42: z | DL42: z | DM42: z | DN42: z | DO42: z | DP42: z | DQ42: z | DR42: z | DS42: z | DT42: z | DU42: z | DV42: z | DW42: z | DX42: z | DY42: z | DZ42: z | EA42: z | EB42: z | EC42: z | ED42: z | EE42: z | EF42: z | EG42: z | EH42: z | EI42: z | EJ42: z | EK42: z | EL42: z | EM42: z | EN42: z | EO42: z | EP42: z | EQ42: z | ER42: z | ES42: z | ET42: z | EU42: z | EV42: z | EW42: z | EX42: z | EY42: z | EZ42: z | FA42: z | FB42: z | FC42: z | FD42: z | FE42: z | FF42: z | FG42: z | FH42: z | FI42: z | FJ42: z | FK42: z | FL42: z | FM42: z | FN42: z | FO42: z | FP42: z | FQ42: z | FR42: z | FS42: z | FT42: z | FU42: z | FV42: z | FW42: z | FX42: z | FY42: z | FZ42: z | GA42: z | GB42: z | GC42: z | GD42: z | GE42: z | GF42: z | GG42: z | GH42: z | GI42: z | GJ42: z | GK42: z | GL42: z | GM42: z | GN42: z | GO42: z | GP42: z | GQ42: z | GR42: z | GS42: z | GT42: z | GU42: z | GV42: z | GW42: z | GX42: z | GY42: z | GZ42: z | HA42: z | HB42: z | HC42: z | HD42: z | HE42: z | HF42: z | HG42: z | HH42: z | HI42: z | HJ42: z | HK42: z | HL42: z | HM42: z | HN42: z | HO42: z | HP42: z | HQ42: z | HR42: z | HS42: z | HT42: z | HU42: z | HV42: z | HW42: z | HX42: z | HY42: z | HZ42: z | IA42: z | IB42: z | IC42: z | ID42: z | IE42: z | IF42: z | IG42: z | IH42: z | II42: z | IJ42: z | IK42: z | IL42: z | IM42: z | IN42: z
A43: 42 | B43: 65 | C43: 60 | D43: 61 | E43: 63 | F43: 63 | G43: 63 | I43: z | J43: z | K43: z | L43: z | M43: z | N43: z | O43: z | P43: z | Q43: z | R43: z | S43: z | T43: z | U43: z | V43: z | W43: z | X43: z | Y43: z | Z43: z | AA43: z | AB43: z | AC43: z | AD43: z | AE43: z | AF43: z | AG43: z | AH43: z | AI43: z | AJ43: z | AK43: z | AL43: z | AM43: z | AN43: z | AO43: z | AP43: z | AQ43: z | AR43: z | AS43: z | AT43: z | AU43: z | AV43: z | AW43: z | AX43: z | AY43: z | AZ43: z | BA43: z | BB43: z | BC43: z | BD43: z | BE43: z | BF43: z | BG43: z | BH43: z | BI43: z | BJ43: z | BK43: z | BL43: z | BM43: z | BN43: z | BO43: z | BP43: z | BQ43: z | BR43: z | BS43: z | BT43: z | BU43: z | BV43: z | BW43: z | BX43: z | BY43: z | BZ43: z | CA43: z | CB43: z | CC43: z | CD43: z | CE43: z | CF43: z | CG43: z | CH43: z | CI43: z | CJ43: z | CK43: z | CL43: z | CM43: z | CN43: z | CO43: z | CP43: z | CQ43: z | CR43: z | CS43: z | CT43: z | CU43: z | CV43: z | CW43: z | CX43: z | CY43: z | CZ43: z | DA43: z | DB43: z | DC43: z | DD43: z | DE43: z | DF43: z | DG43: z | DH43: z | DI43: z | DJ43: z | DK43: z | DL43: z | DM43: z | DN43: z | DO43: z | DP43: z | DQ43: z | DR43: z | DS43: z | DT43: z | DU43: z | DV43: z | DW43: z | DX43: z | DY43: z | DZ43: z | EA43: z | EB43: z | EC43: z | ED43: z | EE43: z | EF43: z | EG43: z | EH43: z | EI43: z | EJ43: z | EK43: z | EL43: z | EM43: z | EN43: z | EO43: z | EP43: z | EQ43: z | ER43: z | ES43: z | ET43: z | EU43: z | EV43: z | EW43: z | EX43: z | EY43: z | EZ43: z | FA43: z | FB43: z | FC43: z | FD43: z | FE43: z | FF43: z | FG43: z | FH43: z | FI43: z | FJ43: z | FK43: z | FL43: z | FM43: z | FN43: z | FO43: z | FP43: z | FQ43: z | FR43: z | FS43: z | FT43: z | FU43: z | FV43: z | FW43: z | FX43: z | FY43: z | FZ43: z | GA43: z | GB43: z | GC43: z | GD43: z | GE43: z | GF43: z | GG43: z | GH43: z | GI43: z | GJ43: z | GK43: z | GL43: z | GM43: z | GN43: z | GO43: z | GP43: z | GQ43: z | GR43: z | GS43: z | GT43: z | GU43: z | GV43: z | GW43: z | GX43: z | GY43: z | GZ43: z | HA43: z | HB43: z | HC43: z | HD43: z | HE43: z | HF43: z | HG43: z | HH43: z | HI43: z | HJ43: z | HK43: z | HL43: z | HM43: z | HN43: z | HO43: z | HP43: z | HQ43: z | HR43: z | HS43: z | HT43: z | HU43: z | HV43: z | HW43: z | HX43: z | HY43: z | HZ43: z | IA43: z | IB43: z | IC43: z | ID43: z | IE43: z | IF43: z | IG43: z | IH43: z | II43: z | IJ43: z | IK43: z | IL43: z | IM43: z | IN43: z
A44: 43 | B44: 65 | C44: 61 | D44: 61 | E44: 63 | F44: 63 | G44: 63 | I44: z | J44: z | K44: z | L44: z | M44: z | N44: z | O44: z | P44: z | Q44: z | R44: z | S44: z | T44: z | U44: z | V44: z | W44: z | X44: z | Y44: z | Z44: z | AA44: z | AB44: z | AC44: z | AD44: z | AE44: z | AF44: z | AG44: z | AH44: z | AI44: z | AJ44: z | AK44: z | AL44: z | AM44: z | AN44: z | AO44: z | AP44: z | AQ44: z | AR44: z | AS44: z | AT44: z | AU44: z | AV44: z | AW44: z | AX44: z | AY44: z | AZ44: z | BA44: z | BB44: z | BC44: z | BD44: z | BE44: z | BF44: z | BG44: z | BH44: z | BI44: z | BJ44: z | BK44: z | BL44: z | BM44: z | BN44: z | BO44: z | BP44: z | BQ44: z | BR44: z | BS44: z | BT44: z | BU44: z | BV44: z | BW44: z | BX44: z | BY44: z | BZ44: z | CA44: z | CB44: z | CC44: z | CD44: z | CE44: z | CF44: z | CG44: z | CH44: z | CI44: z | CJ44: z | CK44: z | CL44: z | CM44: z | CN44: z | CO44: z | CP44: z | CQ44: z | CR44: z | CS44: z | CT44: z | CU44: z | CV44: z | CW44: z | CX44: z | CY44: z | CZ44: z | DA44: z | DB44: z | DC44: z | DD44: z | DE44: z | DF44: z | DG44: z | DH44: z | DI44: z | DJ44: z | DK44: z | DL44: z | DM44: z | DN44: z | DO44: z | DP44: z | DQ44: z | DR44: z | DS44: z | DT44: z | DU44: z | DV44: z | DW44: z | DX44: z | DY44: z | DZ44: z | EA44: z | EB44: z | EC44: z | ED44: z | EE44: z | EF44: z | EG44: z | EH44: z | EI44: z | EJ44: z | EK44: z | EL44: z | EM44: z | EN44: z | EO44: z | EP44: z | EQ44: z | ER44: z | ES44: z | ET44: z | EU44: z | EV44: z | EW44: z | EX44: z | EY44: z | EZ44: z | FA44: z | FB44: z | FC44: z | FD44: z | FE44: z | FF44: z | FG44: z | FH44: z | FI44: z | FJ44: z | FK44: z | FL44: z | FM44: z | FN44: z | FO44: z | FP44: z | FQ44: z | FR44: z | FS44: z | FT44: z | FU44: z | FV44: z | FW44: z | FX44: z | FY44: z | FZ44: z | GA44: z | GB44: z | GC44: z | GD44: z | GE44: z | GF44: z | GG44: z | GH44: z | GI44: z | GJ44: z | GK44: z | GL44: z | GM44: z | GN44: z | GO44: z | GP44: z | GQ44: z | GR44: z | GS44: z | GT44: z | GU44: z | GV44: z | GW44: z | GX44: z | GY44: z | GZ44: z | HA44: z | HB44: z | HC44: z | HD44: z | HE44: z | HF44: z | HG44: z | HH44: z | HI44: z | HJ44: z | HK44: z | HL44: z | HM44: z | HN44: z | HO44: z | HP44: z | HQ44: z | HR44: z | HS44: z | HT44: z | HU44: z | HV44: z | HW44: z | HX44: z | HY44: z | HZ44: z | IA44: z | IB44: z | IC44: z | ID44: z | IE44: z | IF44: z | IG44: z | IH44: z | II44: z | IJ44: z | IK44: z | IL44: z | IM44: z | IN44: z
A45: 44 | B45: 65 | C45: 61 | D45: 61 | E45: 63 | F45: 63 | G45: 63 | I45: z | J45: z | K45: z | L45: z | M45: z | N45: z | O45: z | P45: z | Q45: z | R45: z | S45: z | T45: z | U45: z | V45: z | W45: z | X45: z | Y45: z | Z45: z | AA45: z | AB45: z | AC45: z | AD45: z | AE45: z | AF45: z | AG45: z | AH45: z | AI45: z | AJ45: z | AK45: z | AL45: z | AM45: z | AN45: z | AO45: z | AP45: z | AQ45: z | AR45: z | AS45: z | AT45: z | AU45: z | AV45: z | AW45: z | AX45: z | AY45: z | AZ45: z | BA45: z | BB45: z | BC45: z | BD45: z | BE45: z | BF45: z | BG45: z | BH45: z | BI45: z | BJ45: z | BK45: z | BL45: z | BM45: z | BN45: z | BO45: z | BP45: z | BQ45: z | BR45: z | BS45: z | BT45: z | BU45: z | BV45: z | BW45: z | BX45: z | BY45: z | BZ45: z | CA45: z | CB45: z | CC45: z | CD45: z | CE45: z | CF45: z | CG45: z | CH45: z | CI45: z | CJ45: z | CK45: z | CL45: z | CM45: z | CN45: z | CO45: z | CP45: z | CQ45: z | CR45: z | CS45: z | CT45: z | CU45: z | CV45: z | CW45: z | CX45: z | CY45: z | CZ45: z | DA45: z | DB45: z | DC45: z | DD45: z | DE45: z | DF45: z | DG45: z | DH45: z | DI45: z | DJ45: z | DK45: z | DL45: z | DM45: z | DN45: z | DO45: z | DP45: z | DQ45: z | DR45: z | DS45: z | DT45: z | DU45: z | DV45: z | DW45: z | DX45: z | DY45: z | DZ45: z | EA45: z | EB45: z | EC45: z | ED45: z | EE45: z | EF45: z | EG45: z | EH45: z | EI45: z | EJ45: z | EK45: z | EL45: z | EM45: z | EN45: z | EO45: z | EP45: z | EQ45: z | ER45: z | ES45: z | ET45: z | EU45: z | EV45: z | EW45: z | EX45: z | EY45: z | EZ45: z | FA45: z | FB45: z | FC45: z | FD45: z | FE45: z | FF45: z | FG45: z | FH45: z | FI45: z | FJ45: z | FK45: z | FL45: z | FM45: z | FN45: z | FO45: z | FP45: z | FQ45: z | FR45: z | FS45: z | FT45: z | FU45: z | FV45: z | FW45: z | FX45: z | FY45: z | FZ45: z | GA45: z | GB45: z | GC45: z | GD45: z | GE45: z | GF45: z | GG45: z | GH45: z | GI45: z | GJ45: z | GK45: z | GL45: z | GM45: z | GN45: z | GO45: z | GP45: z | GQ45: z | GR45: z | GS45: z | GT45: z | GU45: z | GV45: z | GW45: z | GX45: z | GY45: z | GZ45: z | HA45: z | HB45: z | HC45: z | HD45: z | HE45: z | HF45: z | HG45: z | HH45: z | HI45: z | HJ45: z | HK45: z | HL45: z | HM45: z | HN45: z | HO45: z | HP45: z | HQ45: z | HR45: z | HS45: z | HT45: z | HU45: z | HV45: z | HW45: z | HX45: z | HY45: z | HZ45: z | IA45: z | IB45: z | IC45: z | ID45: z | IE45: z | IF45: z | IG45: z | IH45: z | II45: z | IJ45: z | IK45: z | IL45: z | IM45: z | IN45: z
A46: 45 | B46: 65 | C46: 61 | D46: 61 | E46: 63 | F46: 63 | G46: 63 | I46: z | J46: z | K46: z | L46: z | M46: z | N46: z | O46: z | P46: z | Q46: z | R46: z | S46: z | T46: z | U46: z | V46: z | W46: z | X46: z | Y46: z | Z46: z | AA46: z | AB46: z | AC46: z | AD46: z | AE46: z | AF46: z | AG46: z | AH46: z | AI46: z | AJ46: z | AK46: z | AL46: z | AM46: z | AN46: z | AO46: z | AP46: z | AQ46: z | AR46: z | AS46: z | AT46: z | AU46: z | AV46: z | AW46: z | AX46: z | AY46: z | AZ46: z | BA46: z | BB46: z | BC46: z | BD46: z | BE46: z | BF46: z | BG46: z | BH46: z | BI46: z | BJ46: z | BK46: z | BL46: z | BM46: z | BN46: z | BO46: z | BP46: z | BQ46: z | BR46: z | BS46: z | BT46: z | BU46: z | BV46: z | BW46: z | BX46: z | BY46: z | BZ46: z | CA46: z | CB46: z | CC46: z | CD46: z | CE46: z | CF46: z | CG46: z | CH46: z | CI46: z | CJ46: z | CK46: z | CL46: z | CM46: z | CN46: z | CO46: z | CP46: z | CQ46: z | CR46: z | CS46: z | CT46: z | CU46: z | CV46: z | CW46: z | CX46: z | CY46: z | CZ46: z | DA46: z | DB46: z | DC46: z | DD46: z | DE46: z | DF46: z | DG46: z | DH46: z | DI46: z | DJ46: z | DK46: z | DL46: z | DM46: z | DN46: z | DO46: z | DP46: z | DQ46: z | DR46: z | DS46: z | DT46: z | DU46: z | DV46: z | DW46: z | DX46: z | DY46: z | DZ46: z | EA46: z | EB46: z | EC46: z | ED46: z | EE46: z | EF46: z | EG46: z | EH46: z | EI46: z | EJ46: z | EK46: z | EL46: z | EM46: z | EN46: z | EO46: z | EP46: z | EQ46: z | ER46: z | ES46: z | ET46: z | EU46: z | EV46: z | EW46: z | EX46: z | EY46: z | EZ46: z | FA46: z | FB46: z | FC46: z | FD46: z | FE46: z | FF46: z | FG46: z | FH46: z | FI46: z | FJ46: z | FK46: z | FL46: z | FM46: z | FN46: z | FO46: z | FP46: z | FQ46: z | FR46: z | FS46: z | FT46: z | FU46: z | FV46: z | FW46: z | FX46: z | FY46: z | FZ46: z | GA46: z | GB46: z | GC46: z | GD46: z | GE46: z | GF46: z | GG46: z | GH46: z | GI46: z | GJ46: z | GK46: z | GL46: z | GM46: z | GN46: z | GO46: z | GP46: z | GQ46: z | GR46: z | GS46: z | GT46: z | GU46: z | GV46: z | GW46: z | GX46: z | GY46: z | GZ46: z | HA46: z | HB46: z | HC46: z | HD46: z | HE46: z | HF46: z | HG46: z | HH46: z | HI46: z | HJ46: z | HK46: z | HL46: z | HM46: z | HN46: z | HO46: z | HP46: z | HQ46: z | HR46: z | HS46: z | HT46: z | HU46: z | HV46: z | HW46: z | HX46: z | HY46: z | HZ46: z | IA46: z | IB46: z | IC46: z | ID46: z | IE46: z | IF46: z | IG46: z | IH46: z | II46: z | IJ46: z | IK46: z | IL46: z | IM46: z | IN46: z
A47: 46 | B47: 65 | C47: 61 | D47: 61 | E47: 63 | F47: 63 | G47: 63 | I47: z | J47: z | K47: z | L47: z | M47: z | N47: z | O47: z | P47: z | Q47: z | R47: z | S47: z | T47: z | U47: z | V47: z | W47: z | X47: z | Y47: z | Z47: z | AA47: z | AB47: z | AC47: z | AD47: z | AE47: z | AF47: z | AG47: z | AH47: z | AI47: z | AJ47: z | AK47: z | AL47: z | AM47: z | AN47: z | AO47: z | AP47: z | AQ47: z | AR47: z | AS47: z | AT47: z | AU47: z | AV47: z | AW47: z | AX47: z | AY47: z | AZ47: z | BA47: z | BB47: z | BC47: z | BD47: z | BE47: z | BF47: z | BG47: z | BH47: z | BI47: z | BJ47: z | BK47: z | BL47: z | BM47: z | BN47: z | BO47: z | BP47: z | BQ47: z | BR47: z | BS47: z | BT47: z | BU47: z | BV47: z | BW47: z | BX47: z | BY47: z | BZ47: z | CA47: z | CB47: z | CC47: z | CD47: z | CE47: z | CF47: z | CG47: z | CH47: z | CI47: z | CJ47: z | CK47: z | CL47: z | CM47: z | CN47: z | CO47: z | CP47: z | CQ47: z | CR47: z | CS47: z | CT47: z | CU47: z | CV47: z | CW47: z | CX47: z | CY47: z | CZ47: z | DA47: z | DB47: z | DC47: z | DD47: z | DE47: z | DF47: z | DG47: z | DH47: z | DI47: z | DJ47: z | DK47: z | DL47: z | DM47: z | DN47: z | DO47: z | DP47: z | DQ47: z | DR47: z | DS47: z | DT47: z | DU47: z | DV47: z | DW47: z | DX47: z | DY47: z | DZ47: z | EA47: z | EB47: z | EC47: z | ED47: z | EE47: z | EF47: z | EG47: z | EH47: z | EI47: z | EJ47: z | EK47: z | EL47: z | EM47: z | EN47: z | EO47: z | EP47: z | EQ47: z | ER47: z | ES47: z | ET47: z | EU47: z | EV47: z | EW47: z | EX47: z | EY47: z | EZ47: z | FA47: z | FB47: z | FC47: z | FD47: z | FE47: z | FF47: z | FG47: z | FH47: z | FI47: z | FJ47: z | FK47: z | FL47: z | FM47: z | FN47: z | FO47: z | FP47: z | FQ47: z | FR47: z | FS47: z | FT47: z | FU47: z | FV47: z | FW47: z | FX47: z | FY47: z | FZ47: z | GA47: z | GB47: z | GC47: z | GD47: z | GE47: z | GF47: z | GG47: z | GH47: z | GI47: z | GJ47: z | GK47: z | GL47: z | GM47: z | GN47: z | GO47: z | GP47: z | GQ47: z | GR47: z | GS47: z | GT47: z | GU47: z | GV47: z | GW47: z | GX47: z | GY47: z | GZ47: z | HA47: z | HB47: z | HC47: z | HD47: z | HE47: z | HF47: z | HG47: z | HH47: z | HI47: z | HJ47: z | HK47: z | HL47: z | HM47: z | HN47: z | HO47: z | HP47: z | HQ47: z | HR47: z | HS47: z | HT47: z | HU47: z | HV47: z | HW47: z | HX47: z | HY47: z | HZ47: z | IA47: z | IB47: z | IC47: z | ID47: z | IE47: z | IF47: z | IG47: z | IH47: z | II47: z | IJ47: z | IK47: z | IL47: z | IM47: z | IN47: z
A48: 47 | B48: 65 | C48: 61 | D48: 61 | E48: 63 | F48: 63 | G48: 63 | I48: z | J48: z | K48: z | L48: z | M48: z | N48: z | O48: z | P48: z | Q48: z | R48: z | S48: z | T48: z | U48: z | V48: z | W48: z | X48: z | Y48: z | Z48: z | AA48: z | AB48: z | AC48: z | AD48: z | AE48: z | AF48: z | AG48: z | AH48: z | AI48: z | AJ48: z | AK48: z | AL48: z | AM48: z | AN48: z | AO48: z | AP48: z | AQ48: z | AR48: z | AS48: z | AT48: z | AU48: z | AV48: z | AW48: z | AX48: z | AY48: z | AZ48: z | BA48: z | BB48: z | BC48: z | BD48: z | BE48: z | BF48: z | BG48: z | BH48: z | BI48: z | BJ48: z | BK48: z | BL48: z | BM48: z | BN48: z | BO48: z | BP48: z | BQ48: z | BR48: z | BS48: z | BT48: z | BU48: z | BV48: z | BW48: z | BX48: z | BY48: z | BZ48: z | CA48: z | CB48: z | CC48: z | CD48: z | CE48: z | CF48: z | CG48: z | CH48: z | CI48: z | CJ48: z | CK48: z | CL48: z | CM48: z | CN48: z | CO48: z | CP48: z | CQ48: z | CR48: z | CS48: z | CT48: z | CU48: z | CV48: z | CW48: z | CX48: z | CY48: z | CZ48: z | DA48: z | DB48: z | DC48: z | DD48: z | DE48: z | DF48: z | DG48: z | DH48: z | DI48: z | DJ48: z | DK48: z | DL48: z | DM48: z | DN48: z | DO48: z | DP48: z | DQ48: z | DR48: z | DS48: z | DT48: z | DU48: z | DV48: z | DW48: z | DX48: z | DY48: z | DZ48: z | EA48: z | EB48: z | EC48: z | ED48: z | EE48: z | EF48: z | EG48: z | EH48: z | EI48: z | EJ48: z | EK48: z | EL48: z | EM48: z | EN48: z | EO48: z | EP48: z | EQ48: z | ER48: z | ES48: z | ET48: z | EU48: z | EV48: z | EW48: z | EX48: z | EY48: z | EZ48: z | FA48: z | FB48: z | FC48: z | FD48: z | FE48: z | FF48: z | FG48: z | FH48: z | FI48: z | FJ48: z | FK48: z | FL48: z | FM48: z | FN48: z | FO48: z | FP48: z | FQ48: z | FR48: z | FS48: z | FT48: z | FU48: z | FV48: z | FW48: z | FX48: z | FY48: z | FZ48: z | GA48: z | GB48: z | GC48: z | GD48: z | GE48: z | GF48: z | GG48: z | GH48: z | GI48: z | GJ48: z | GK48: z | GL48: z | GM48: z | GN48: z | GO48: z | GP48: z | GQ48: z | GR48: z | GS48: z | GT48: z | GU48: z | GV48: z | GW48: z | GX48: z | GY48: z | GZ48: z | HA48: z | HB48: z | HC48: z | HD48: z | HE48: z | HF48: z | HG48: z | HH48: z | HI48: z | HJ48: z | HK48: z | HL48: z | HM48: z | HN48: z | HO48: z | HP48: z | HQ48: z | HR48: z | HS48: z | HT48: z | HU48: z | HV48: z | HW48: z | HX48: z | HY48: z | HZ48: z | IA48: z | IB48: z | IC48: z | ID48: z | IE48: z | IF48: z | IG48: z | IH48: z | II48: z | IJ48: z | IK48: z | IL48: z | IM48: z | IN48: z
A49: 48 | B49: 65 | C49: 61 | D49: 61 | E49: 63 | F49: 63 | G49: 63 | I49: z | J49: z | K49: z | L49: z | M49: z | N49: z | O49: z | P49: z | Q49: z | R49: z | S49: z | T49: z | U49: z | V49: z | W49: z | X49: z | Y49: z | Z49: z | AA49: z | AB49: z | AC49: z | AD49: z | AE49: z | AF49: z | AG49: z | AH49: z | AI49: z | AJ49: z | AK49: z | AL49: z | AM49: z | AN49: z | AO49: z | AP49: z | AQ49: z | AR49: z | AS49: z | AT49: z | AU49: z | AV49: z | AW49: z | AX49: z | AY49: z | AZ49: z | BA49: z | BB49: z | BC49: z | BD49: z | BE49: z | BF49: z | BG49: z | BH49: z | BI49: z | BJ49: z | BK49: z | BL49: z | BM49: z | BN49: z | BO49: z | BP49: z | BQ49: z | BR49: z | BS49: z | BT49: z | BU49: z | BV49: z | BW49: z | BX49: z | BY49: z | BZ49: z | CA49: z | CB49: z | CC49: z | CD49: z | CE49: z | CF49: z | CG49: z | CH49: z | CI49: z | CJ49: z | CK49: z | CL49: z | CM49: z | CN49: z | CO49: z | CP49: z | CQ49: z | CR49: z | CS49: z | CT49: z | CU49: z | CV49: z | CW49: z | CX49: z | CY49: z | CZ49: z | DA49: z | DB49: z | DC49: z | DD49: z | DE49: z | DF49: z | DG49: z | DH49: z | DI49: z | DJ49: z | DK49: z | DL49: z | DM49: z | DN49: z | DO49: z | DP49: z | DQ49: z | DR49: z | DS49: z | DT49: z | DU49: z | DV49: z | DW49: z | DX49: z | DY49: z | DZ49: z | EA49: z | EB49: z | EC49: z | ED49: z | EE49: z | EF49: z | EG49: z | EH49: z | EI49: z | EJ49: z | EK49: z | EL49: z | EM49: z | EN49: z | EO49: z | EP49: z | EQ49: z | ER49: z | ES49: z | ET49: z | EU49: z | EV49: z | EW49: z | EX49: z | EY49: z | EZ49: z | FA49: z | FB49: z | FC49: z | FD49: z | FE49: z | FF49: z | FG49: z | FH49: z | FI49: z | FJ49: z | FK49: z | FL49: z | FM49: z | FN49: z | FO49: z | FP49: z | FQ49: z | FR49: z | FS49: z | FT49: z | FU49: z | FV49: z | FW49: z | FX49: z | FY49: z | FZ49: z | GA49: z | GB49: z | GC49: z | GD49: z | GE49: z | GF49: z | GG49: z | GH49: z | GI49: z | GJ49: z | GK49: z | GL49: z | GM49: z | GN49: z | GO49: z | GP49: z | GQ49: z | GR49: z | GS49: z | GT49: z | GU49: z | GV49: z | GW49: z | GX49: z | GY49: z | GZ49: z | HA49: z | HB49: z | HC49: z | HD49: z | HE49: z | HF49: z | HG49: z | HH49: z | HI49: z | HJ49: z | HK49: z | HL49: z | HM49: z | HN49: z | HO49: z | HP49: z | HQ49: z | HR49: z | HS49: z | HT49: z | HU49: z | HV49: z | HW49: z | HX49: z | HY49: z | HZ49: z | IA49: z | IB49: z | IC49: z | ID49: z | IE49: z | IF49: z | IG49: z | IH49: z | II49: z | IJ49: z | IK49: z | IL49: z | IM49: z | IN49: z
A50: 49 | B50: 65 | C50: 61 | D50: 61 | E50: 64 | F50: 64 | G50: 64 | I50: z | J50: z | K50: z | L50: z | M50: z | N50: z | O50: z | P50: z | Q50: z | R50: z | S50: z | T50: z | U50: z | V50: z | W50: z | X50: z | Y50: z | Z50: z | AA50: z | AB50: z | AC50: z | AD50: z | AE50: z | AF50: z | AG50: z | AH50: z | AI50: z | AJ50: z | AK50: z | AL50: z | AM50: z | AN50: z | AO50: z | AP50: z | AQ50: z | AR50: z | AS50: z | AT50: z | AU50: z | AV50: z | AW50: z | AX50: z | AY50: z | AZ50: z | BA50: z | BB50: z | BC50: z | BD50: z | BE50: z | BF50: z | BG50: z | BH50: z | BI50: z | BJ50: z | BK50: z | BL50: z | BM50: z | BN50: z | BO50: z | BP50: z | BQ50: z | BR50: z | BS50: z | BT50: z | BU50: z | BV50: z | BW50: z | BX50: z | BY50: z | BZ50: z | CA50: z | CB50: z | CC50: z | CD50: z | CE50: z | CF50: z | CG50: z | CH50: z | CI50: z | CJ50: z | CK50: z | CL50: z | CM50: z | CN50: z | CO50: z | CP50: z | CQ50: z | CR50: z | CS50: z | CT50: z | CU50: z | CV50: z | CW50: z | CX50: z | CY50: z | CZ50: z | DA50: z | DB50: z | DC50: z | DD50: z | DE50: z | DF50: z | DG50: z | DH50: z | DI50: z | DJ50: z | DK50: z | DL50: z | DM50: z | DN50: z | DO50: z | DP50: z | DQ50: z | DR50: z | DS50: z | DT50: z | DU50: z | DV50: z | DW50: z | DX50: z | DY50: z | DZ50: z | EA50: z | EB50: z | EC50: z | ED50: z | EE50: z | EF50: z | EG50: z | EH50: z | EI50: z | EJ50: z | EK50: z | EL50: z | EM50: z | EN50: z | EO50: z | EP50: z | EQ50: z | ER50: z | ES50: z | ET50: z | EU50: z | EV50: z | EW50: z | EX50: z | EY50: z | EZ50: z | FA50: z | FB50: z | FC50: z | FD50: z | FE50: z | FF50: z | FG50: z | FH50: z | FI50: z | FJ50: z | FK50: z | FL50: z | FM50: z | FN50: z | FO50: z | FP50: z | FQ50: z | FR50: z | FS50: z | FT50: z | FU50: z | FV50: z | FW50: z | FX50: z | FY50: z | FZ50: z | GA50: z | GB50: z | GC50: z | GD50: z | GE50: z | GF50: z | GG50: z | GH50: z | GI50: z | GJ50: z | GK50: z | GL50: z | GM50: z | GN50: z | GO50: z | GP50: z | GQ50: z | GR50: z | GS50: z | GT50: z | GU50: z | GV50: z | GW50: z | GX50: z | GY50: z | GZ50: z | HA50: z | HB50: z | HC50: z | HD50: z | HE50: z | HF50: z | HG50: z | HH50: z | HI50: z | HJ50: z | HK50: z | HL50: z | HM50: z | HN50: z | HO50: z | HP50: z | HQ50: z | HR50: z | HS50: z | HT50: z | HU50: z | HV50: z | HW50: z | HX50: z | HY50: z | HZ50: z | IA50: z | IB50: z | IC50: z | ID50: z | IE50: z | IF50: z | IG50: z | IH50: z | II50: z | IJ50: z | IK50: z | IL50: z | IM50: z | IN50: z
A51: 50 | B51: 65 | C51: 61 | D51: 61 | E51: 64 | F51: 64 | G51: 64 | I51: z | J51: z | K51: z | L51: z | M51: z | N51: z | O51: z | P51: z | Q51: z | R51: z | S51: z | T51: z | U51: z | V51: z | W51: z | X51: z | Y51: z | Z51: z | AA51: z | AB51: z | AC51: z | AD51: z | AE51: z | AF51: z | AG51: z | AH51: z | AI51: z | AJ51: z | AK51: z | AL51: z | AM51: z | AN51: z | AO51: z | AP51: z | AQ51: z | AR51: z | AS51: z | AT51: z | AU51: z | AV51: z | AW51: z | AX51: z | AY51: z | AZ51: z | BA51: z | BB51: z | BC51: z | BD51: z | BE51: z | BF51: z | BG51: z | BH51: z | BI51: z | BJ51: z | BK51: z | BL51: z | BM51: z | BN51: z | BO51: z | BP51: z | BQ51: z | BR51: z | BS51: z | BT51: z | BU51: z | BV51: z | BW51: z | BX51: z | BY51: z | BZ51: z | CA51: z | CB51: z | CC51: z | CD51: z | CE51: z | CF51: z | CG51: z | CH51: z | CI51: z | CJ51: z | CK51: z | CL51: z | CM51: z | CN51: z | CO51: z | CP51: z | CQ51: z | CR51: z | CS51: z | CT51: z | CU51: z | CV51: z | CW51: z | CX51: z | CY51: z | CZ51: z | DA51: z | DB51: z | DC51: z | DD51: z | DE51: z | DF51: z | DG51: z | DH51: z | DI51: z | DJ51: z | DK51: z | DL51: z | DM51: z | DN51: z | DO51: z | DP51: z | DQ51: z | DR51: z | DS51: z | DT51: z | DU51: z | DV51: z | DW51: z | DX51: z | DY51: z | DZ51: z | EA51: z | EB51: z | EC51: z | ED51: z | EE51: z | EF51: z | EG51: z | EH51: z | EI51: z | EJ51: z | EK51: z | EL51: z | EM51: z | EN51: z | EO51: z | EP51: z | EQ51: z | ER51: z | ES51: z | ET51: z | EU51: z | EV51: z | EW51: z | EX51: z | EY51: z | EZ51: z | FA51: z | FB51: z | FC51: z | FD51: z | FE51: z | FF51: z | FG51: z | FH51: z | FI51: z | FJ51: z | FK51: z | FL51: z | FM51: z | FN51: z | FO51: z | FP51: z | FQ51: z | FR51: z | FS51: z | FT51: z | FU51: z | FV51: z | FW51: z | FX51: z | FY51: z | FZ51: z | GA51: z | GB51: z | GC51: z | GD51: z | GE51: z | GF51: z | GG51: z | GH51: z | GI51: z | GJ51: z | GK51: z | GL51: z | GM51: z | GN51: z | GO51: z | GP51: z | GQ51: z | GR51: z | GS51: z | GT51: z | GU51: z | GV51: z | GW51: z | GX51: z | GY51: z | GZ51: z | HA51: z | HB51: z | HC51: z | HD51: z | HE51: z | HF51: z | HG51: z | HH51: z | HI51: z | HJ51: z | HK51: z | HL51: z | HM51: z | HN51: z | HO51: z | HP51: z | HQ51: z | HR51: z | HS51: z | HT51: z | HU51: z | HV51: z | HW51: z | HX51: z | HY51: z | HZ51: z | IA51: z | IB51: z | IC51: z | ID51: z | IE51: z | IF51: z | IG51: z | IH51: z | II51: z | IJ51: z | IK51: z | IL51: z | IM51: z | IN51: z
A52: 51 | B52: 65 | C52: 61 | D52: 61 | E52: 64 | F52: 64 | G52: 64 | I52: z | J52: z | K52: z | L52: z | M52: z | N52: z | O52: z | P52: z | Q52: z | R52: z | S52: z | T52: z | U52: z | V52: z | W52: z | X52: z | Y52: z | Z52: z | AA52: z | AB52: z | AC52: z | AD52: z | AE52: z | AF52: z | AG52: z | AH52: z | AI52: z | AJ52: z | AK52: z | AL52: z | AM52: z | AN52: z | AO52: z | AP52: z | AQ52: z | AR52: z | AS52: z | AT52: z | AU52: z | AV52: z | AW52: z | AX52: z | AY52: z | AZ52: z | BA52: z | BB52: z | BC52: z | BD52: z | BE52: z | BF52: z | BG52: z | BH52: z | BI52: z | BJ52: z | BK52: z | BL52: z | BM52: z | BN52: z | BO52: z | BP52: z | BQ52: z | BR52: z | BS52: z | BT52: z | BU52: z | BV52: z | BW52: z | BX52: z | BY52: z | BZ52: z | CA52: z | CB52: z | CC52: z | CD52: z | CE52: z | CF52: z | CG52: z | CH52: z | CI52: z | CJ52: z | CK52: z | CL52: z | CM52: z | CN52: z | CO52: z | CP52: z | CQ52: z | CR52: z | CS52: z | CT52: z | CU52: z | CV52: z | CW52: z | CX52: z | CY52: z | CZ52: z | DA52: z | DB52: z | DC52: z | DD52: z | DE52: z | DF52: z | DG52: z | DH52: z | DI52: z | DJ52: z | DK52: z | DL52: z | DM52: z | DN52: z | DO52: z | DP52: z | DQ52: z | DR52: z | DS52: z | DT52: z | DU52: z | DV52: z | DW52: z | DX52: z | DY52: z | DZ52: z | EA52: z | EB52: z | EC52: z | ED52: z | EE52: z | EF52: z | EG52: z | EH52: z | EI52: z | EJ52: z | EK52: z | EL52: z | EM52: z | EN52: z | EO52: z | EP52: z | EQ52: z | ER52: z | ES52: z | ET52: z | EU52: z | EV52: z | EW52: z | EX52: z | EY52: z | EZ52: z | FA52: z | FB52: z | FC52: z | FD52: z | FE52: z | FF52: z | FG52: z | FH52: z | FI52: z | FJ52: z | FK52: z | FL52: z | FM52: z | FN52: z | FO52: z | FP52: z | FQ52: z | FR52: z | FS52: z | FT52: z | FU52: z | FV52: z | FW52: z | FX52: z | FY52: z | FZ52: z | GA52: z | GB52: z | GC52: z | GD52: z | GE52: z | GF52: z | GG52: z | GH52: z | GI52: z | GJ52: z | GK52: z | GL52: z | GM52: z | GN52: z | GO52: z | GP52: z | GQ52: z | GR52: z | GS52: z | GT52: z | GU52: z | GV52: z | GW52: z | GX52: z | GY52: z | GZ52: z | HA52: z | HB52: z | HC52: z | HD52: z | HE52: z | HF52: z | HG52: z | HH52: z | HI52: z | HJ52: z | HK52: z | HL52: z | HM52: z | HN52: z | HO52: z | HP52: z | HQ52: z | HR52: z | HS52: z | HT52: z | HU52: z | HV52: z | HW52: z | HX52: z | HY52: z | HZ52: z | IA52: z | IB52: z | IC52: z | ID52: z | IE52: z | IF52: z | IG52: z | IH52: z | II52: z | IJ52: z | IK52: z | IL52: z | IM52: z | IN52: z
A53: 52 | B53: 65 | C53: 61 | D53: 61 | E53: 64 | F53: 64 | G53: 64 | I53: z | J53: z | K53: z | L53: z | M53: z | N53: z | O53: z | P53: z | Q53: z | R53: z | S53: z | T53: z | U53: z | V53: z | W53: z | X53: z | Y53: z | Z53: z | AA53: z | AB53: z | AC53: z | AD53: z | AE53: z | AF53: z | AG53: z | AH53: z | AI53: z | AJ53: z | AK53: z | AL53: z | AM53: z | AN53: z | AO53: z | AP53: z | AQ53: z | AR53: z | AS53: z | AT53: z | AU53: z | AV53: z | AW53: z | AX53: z | AY53: z | AZ53: z | BA53: z | BB53: z | BC53: z | BD53: z | BE53: z | BF53: z | BG53: z | BH53: z | BI53: z | BJ53: z | BK53: z | BL53: z | BM53: z | BN53: z | BO53: z | BP53: z | BQ53: z | BR53: z | BS53: z | BT53: z | BU53: z | BV53: z | BW53: z | BX53: z | BY53: z | BZ53: z | CA53: z | CB53: z | CC53: z | CD53: z | CE53: z | CF53: z | CG53: z | CH53: z | CI53: z | CJ53: z | CK53: z | CL53: z | CM53: z | CN53: z | CO53: z | CP53: z | CQ53: z | CR53: z | CS53: z | CT53: z | CU53: z | CV53: z | CW53: z | CX53: z | CY53: z | CZ53: z | DA53: z | DB53: z | DC53: z | DD53: z | DE53: z | DF53: z | DG53: z | DH53: z | DI53: z | DJ53: z | DK53: z | DL53: z | DM53: z | DN53: z | DO53: z | DP53: z | DQ53: z | DR53: z | DS53: z | DT53: z | DU53: z | DV53: z | DW53: z | DX53: z | DY53: z | DZ53: z | EA53: z | EB53: z | EC53: z | ED53: z | EE53: z | EF53: z | EG53: z | EH53: z | EI53: z | EJ53: z | EK53: z | EL53: z | EM53: z | EN53: z | EO53: z | EP53: z | EQ53: z | ER53: z | ES53: z | ET53: z | EU53: z | EV53: z | EW53: z | EX53: z | EY53: z | EZ53: z | FA53: z | FB53: z | FC53: z | FD53: z | FE53: z | FF53: z | FG53: z | FH53: z | FI53: z | FJ53: z | FK53: z | FL53: z | FM53: z | FN53: z | FO53: z | FP53: z | FQ53: z | FR53: z | FS53: z | FT53: z | FU53: z | FV53: z | FW53: z | FX53: z | FY53: z | FZ53: z | GA53: z | GB53: z | GC53: z | GD53: z | GE53: z | GF53: z | GG53: z | GH53: z | GI53: z | GJ53: z | GK53: z | GL53: z | GM53: z | GN53: z | GO53: z | GP53: z | GQ53: z | GR53: z | GS53: z | GT53: z | GU53: z | GV53: z | GW53: z | GX53: z | GY53: z | GZ53: z | HA53: z | HB53: z | HC53: z | HD53: z | HE53: z | HF53: z | HG53: z | HH53: z | HI53: z | HJ53: z | HK53: z | HL53: z | HM53: z | HN53: z | HO53: z | HP53: z | HQ53: z | HR53: z | HS53: z | HT53: z | HU53: z | HV53: z | HW53: z | HX53: z | HY53: z | HZ53: z | IA53: z | IB53: z | IC53: z | ID53: z | IE53: z | IF53: z | IG53: z | IH53: z | II53: z | IJ53: z | IK53: z | IL53: z | IM53: z | IN53: z
A54: 53 | B54: 65 | C54: 61 | D54: 61 | E54: 64 | F54: 64 | G54: 64 | I54: z | J54: z | K54: z | L54: z | M54: z | N54: z | O54: z | P54: z | Q54: z | R54: z | S54: z | T54: z | U54: z | V54: z | W54: z | X54: z | Y54: z | Z54: z | AA54: z | AB54: z | AC54: z | AD54: z | AE54: z | AF54: z | AG54: z | AH54: z | AI54: z | AJ54: z | AK54: z | AL54: z | AM54: z | AN54: z | AO54: z | AP54: z | AQ54: z | AR54: z | AS54: z | AT54: z | AU54: z | AV54: z | AW54: z | AX54: z | AY54: z | AZ54: z | BA54: z | BB54: z | BC54: z | BD54: z | BE54: z | BF54: z | BG54: z | BH54: z | BI54: z | BJ54: z | BK54: z | BL54: z | BM54: z | BN54: z | BO54: z | BP54: z | BQ54: z | BR54: z | BS54: z | BT54: z | BU54: z | BV54: z | BW54: z | BX54: z | BY54: z | BZ54: z | CA54: z | CB54: z | CC54: z | CD54: z | CE54: z | CF54: z | CG54: z | CH54: z | CI54: z | CJ54: z | CK54: z | CL54: z | CM54: z | CN54: z | CO54: z | CP54: z | CQ54: z | CR54: z | CS54: z | CT54: z | CU54: z | CV54: z | CW54: z | CX54: z | CY54: z | CZ54: z | DA54: z | DB54: z | DC54: z | DD54: z | DE54: z | DF54: z | DG54: z | DH54: z | DI54: z | DJ54: z | DK54: z | DL54: z | DM54: z | DN54: z | DO54: z | DP54: z | DQ54: z | DR54: z | DS54: z | DT54: z | DU54: z | DV54: z | DW54: z | DX54: z | DY54: z | DZ54: z | EA54: z | EB54: z | EC54: z | ED54: z | EE54: z | EF54: z | EG54: z | EH54: z | EI54: z | EJ54: z | EK54: z | EL54: z | EM54: z | EN54: z | EO54: z | EP54: z | EQ54: z | ER54: z | ES54: z | ET54: z | EU54: z | EV54: z | EW54: z | EX54: z | EY54: z | EZ54: z | FA54: z | FB54: z | FC54: z | FD54: z | FE54: z | FF54: z | FG54: z | FH54: z | FI54: z | FJ54: z | FK54: z | FL54: z | FM54: z | FN54: z | FO54: z | FP54: z | FQ54: z | FR54: z | FS54: z | FT54: z | FU54: z | FV54: z | FW54: z | FX54: z | FY54: z | FZ54: z | GA54: z | GB54: z | GC54: z | GD54: z | GE54: z | GF54: z | GG54: z | GH54: z | GI54: z | GJ54: z | GK54: z | GL54: z | GM54: z | GN54: z | GO54: z | GP54: z | GQ54: z | GR54: z | GS54: z | GT54: z | GU54: z | GV54: z | GW54: z | GX54: z | GY54: z | GZ54: z | HA54: z | HB54: z | HC54: z | HD54: z | HE54: z | HF54: z | HG54: z | HH54: z | HI54: z | HJ54: z | HK54: z | HL54: z | HM54: z | HN54: z | HO54: z | HP54: z | HQ54: z | HR54: z | HS54: z | HT54: z | HU54: z | HV54: z | HW54: z | HX54: z | HY54: z | HZ54: z | IA54: z | IB54: z | IC54: z | ID54: z | IE54: z | IF54: z | IG54: z | IH54: z | II54: z | IJ54: z | IK54: z | IL54: z | IM54: z | IN54: z
A55: 54 | B55: 65 | C55: 68 | D55: 70 | E55: 71 | F55: 71 | G55: 71 | I55: z | J55: z | K55: z | L55: z | M55: z | N55: z | O55: z | P55: z | Q55: z | R55: z | S55: z | T55: z | U55: z | V55: z | W55: z | X55: z | Y55: z | Z55: z | AA55: z | AB55: z | AC55: z | AD55: z | AE55: z | AF55: z | AG55: z | AH55: z | AI55: z | AJ55: z | AK55: z | AL55: z | AM55: z | AN55: z | AO55: z | AP55: z | AQ55: z | AR55: z | AS55: z | AT55: z | AU55: z | AV55: z | AW55: z | AX55: z | AY55: z | AZ55: z | BA55: z | BB55: z | BC55: z | BD55: z | BE55: z | BF55: z | BG55: z | BH55: z | BI55: z | BJ55: z | BK55: z | BL55: z | BM55: z | BN55: z | BO55: z | BP55: z | BQ55: z | BR55: z | BS55: z | BT55: z | BU55: z | BV55: z | BW55: z | BX55: z | BY55: z | BZ55: z | CA55: z | CB55: z | CC55: z | CD55: z | CE55: z | CF55: z | CG55: z | CH55: z | CI55: z | CJ55: z | CK55: z | CL55: z | CM55: z | CN55: z | CO55: z | CP55: z | CQ55: z | CR55: z | CS55: z | CT55: z | CU55: z | CV55: z | CW55: z | CX55: z | CY55: z | CZ55: z | DA55: z | DB55: z | DC55: z | DD55: z | DE55: z | DF55: z | DG55: z | DH55: z | DI55: z | DJ55: z | DK55: z | DL55: z | DM55: z | DN55: z | DO55: z | DP55: z | DQ55: z | DR55: z | DS55: z | DT55: z | DU55: z | DV55: z | DW55: z | DX55: z | DY55: z | DZ55: z | EA55: z | EB55: z | EC55: z | ED55: z | EE55: z | EF55: z | EG55: z | EH55: z | EI55: z | EJ55: z | EK55: z | EL55: z | EM55: z | EN55: z | EO55: z | EP55: z | EQ55: z | ER55: z | ES55: z | ET55: z | EU55: z | EV55: z | EW55: z | EX55: z | EY55: z | EZ55: z | FA55: z | FB55: z | FC55: z | FD55: z | FE55: z | FF55: z | FG55: z | FH55: z | FI55: z | FJ55: z | FK55: z | FL55: z | FM55: z | FN55: z | FO55: z | FP55: z | FQ55: z | FR55: z | FS55: z | FT55: z | FU55: z | FV55: z | FW55: z | FX55: z | FY55: z | FZ55: z | GA55: z | GB55: z | GC55: z | GD55: z | GE55: z | GF55: z | GG55: z | GH55: z | GI55: z | GJ55: z | GK55: z | GL55: z | GM55: z | GN55: z | GO55: z | GP55: z | GQ55: z | GR55: z | GS55: z | GT55: z | GU55: z | GV55: z | GW55: z | GX55: z | GY55: z | GZ55: z | HA55: z | HB55: z | HC55: z | HD55: z | HE55: z | HF55: z | HG55: z | HH55: z | HI55: z | HJ55: z | HK55: z | HL55: z | HM55: z | HN55: z | HO55: z | HP55: z | HQ55: z | HR55: z | HS55: z | HT55: z | HU55: z | HV55: z | HW55: z | HX55: z | HY55: z | HZ55: z | IA55: z | IB55: z | IC55: z | ID55: z | IE55: z | IF55: z | IG55: z | IH55: z | II55: z | IJ55: z | IK55: z | IL55: z | IM55: z | IN55: z
A56: 55 | B56: 65 | C56: 68 | D56: 70 | E56: 71 | F56: 71 | G56: 71 | I56: z | J56: z | K56: z | L56: z | M56: z | N56: z | O56: z | P56: z | Q56: z | R56: z | S56: z | T56: z | U56: z | V56: z | W56: z | X56: z | Y56: z | Z56: z | AA56: z | AB56: z | AC56: z | AD56: z | AE56: z | AF56: z | AG56: z | AH56: z | AI56: z | AJ56: z | AK56: z | AL56: z | AM56: z | AN56: z | AO56: z | AP56: z | AQ56: z | AR56: z | AS56: z | AT56: z | AU56: z | AV56: z | AW56: z | AX56: z | AY56: z | AZ56: z | BA56: z | BB56: z | BC56: z | BD56: z | BE56: z | BF56: z | BG56: z | BH56: z | BI56: z | BJ56: z | BK56: z | BL56: z | BM56: z | BN56: z | BO56: z | BP56: z | BQ56: z | BR56: z | BS56: z | BT56: z | BU56: z | BV56: z | BW56: z | BX56: z | BY56: z | BZ56: z | CA56: z | CB56: z | CC56: z | CD56: z | CE56: z | CF56: z | CG56: z | CH56: z | CI56: z | CJ56: z | CK56: z | CL56: z | CM56: z | CN56: z | CO56: z | CP56: z | CQ56: z | CR56: z | CS56: z | CT56: z | CU56: z | CV56: z | CW56: z | CX56: z | CY56: z | CZ56: z | DA56: z | DB56: z | DC56: z | DD56: z | DE56: z | DF56: z | DG56: z | DH56: z | DI56: z | DJ56: z | DK56: z | DL56: z | DM56: z | DN56: z | DO56: z | DP56: z | DQ56: z | DR56: z | DS56: z | DT56: z | DU56: z | DV56: z | DW56: z | DX56: z | DY56: z | DZ56: z | EA56: z | EB56: z | EC56: z | ED56: z | EE56: z | EF56: z | EG56: z | EH56: z | EI56: z | EJ56: z | EK56: z | EL56: z | EM56: z | EN56: z | EO56: z | EP56: z | EQ56: z | ER56: z | ES56: z | ET56: z | EU56: z | EV56: z | EW56: z | EX56: z | EY56: z | EZ56: z | FA56: z | FB56: z | FC56: z | FD56: z | FE56: z | FF56: z | FG56: z | FH56: z | FI56: z | FJ56: z | FK56: z | FL56: z | FM56: z | FN56: z | FO56: z | FP56: z | FQ56: z | FR56: z | FS56: z | FT56: z | FU56: z | FV56: z | FW56: z | FX56: z | FY56: z | FZ56: z | GA56: z | GB56: z | GC56: z | GD56: z | GE56: z | GF56: z | GG56: z | GH56: z | GI56: z | GJ56: z | GK56: z | GL56: z | GM56: z | GN56: z | GO56: z | GP56: z | GQ56: z | GR56: z | GS56: z | GT56: z | GU56: z | GV56: z | GW56: z | GX56: z | GY56: z | GZ56: z | HA56: z | HB56: z | HC56: z | HD56: z | HE56: z | HF56: z | HG56: z | HH56: z | HI56: z | HJ56: z | HK56: z | HL56: z | HM56: z | HN56: z | HO56: z | HP56: z | HQ56: z | HR56: z | HS56: z | HT56: z | HU56: z | HV56: z | HW56: z | HX56: z | HY56: z | HZ56: z | IA56: z | IB56: z | IC56: z | ID56: z | IE56: z | IF56: z | IG56: z | IH56: z | II56: z | IJ56: z | IK56: z | IL56: z | IM56: z | IN56: z
A57: 56 | B57: 65 | C57: 69 | D57: 70 | E57: 71 | F57: 71 | G57: 71 | I57: z | J57: z | K57: z | L57: z | M57: z | N57: z | O57: z | P57: z | Q57: z | R57: z | S57: z | T57: z | U57: z | V57: z | W57: z | X57: z | Y57: z | Z57: z | AA57: z | AB57: z | AC57: z | AD57: z | AE57: z | AF57: z | AG57: z | AH57: z | AI57: z | AJ57: z | AK57: z | AL57: z | AM57: z | AN57: z | AO57: z | AP57: z | AQ57: z | AR57: z | AS57: z | AT57: z | AU57: z | AV57: z | AW57: z | AX57: z | AY57: z | AZ57: z | BA57: z | BB57: z | BC57: z | BD57: z | BE57: z | BF57: z | BG57: z | BH57: z | BI57: z | BJ57: z | BK57: z | BL57: z | BM57: z | BN57: z | BO57: z | BP57: z | BQ57: z | BR57: z | BS57: z | BT57: z | BU57: z | BV57: z | BW57: z | BX57: z | BY57: z | BZ57: z | CA57: z | CB57: z | CC57: z | CD57: z | CE57: z | CF57: z | CG57: z | CH57: z | CI57: z | CJ57: z | CK57: z | CL57: z | CM57: z | CN57: z | CO57: z | CP57: z | CQ57: z | CR57: z | CS57: z | CT57: z | CU57: z | CV57: z | CW57: z | CX57: z | CY57: z | CZ57: z | DA57: z | DB57: z | DC57: z | DD57: z | DE57: z | DF57: z | DG57: z | DH57: z | DI57: z | DJ57: z | DK57: z | DL57: z | DM57: z | DN57: z | DO57: z | DP57: z | DQ57: z | DR57: z | DS57: z | DT57: z | DU57: z | DV57: z | DW57: z | DX57: z | DY57: z | DZ57: z | EA57: z | EB57: z | EC57: z | ED57: z | EE57: z | EF57: z | EG57: z | EH57: z | EI57: z | EJ57: z | EK57: z | EL57: z | EM57: z | EN57: z | EO57: z | EP57: z | EQ57: z | ER57: z | ES57: z | ET57: z | EU57: z | EV57: z | EW57: z | EX57: z | EY57: z | EZ57: z | FA57: z | FB57: z | FC57: z | FD57: z | FE57: z | FF57: z | FG57: z | FH57: z | FI57: z | FJ57: z | FK57: z | FL57: z | FM57: z | FN57: z | FO57: z | FP57: z | FQ57: z | FR57: z | FS57: z | FT57: z | FU57: z | FV57: z | FW57: z | FX57: z | FY57: z | FZ57: z | GA57: z | GB57: z | GC57: z | GD57: z | GE57: z | GF57: z | GG57: z | GH57: z | GI57: z | GJ57: z | GK57: z | GL57: z | GM57: z | GN57: z | GO57: z | GP57: z | GQ57: z | GR57: z | GS57: z | GT57: z | GU57: z | GV57: z | GW57: z | GX57: z | GY57: z | GZ57: z | HA57: z | HB57: z | HC57: z | HD57: z | HE57: z | HF57: z | HG57: z | HH57: z | HI57: z | HJ57: z | HK57: z | HL57: z | HM57: z | HN57: z | HO57: z | HP57: z | HQ57: z | HR57: z | HS57: z | HT57: z | HU57: z | HV57: z | HW57: z | HX57: z | HY57: z | HZ57: z | IA57: z | IB57: z | IC57: z | ID57: z | IE57: z | IF57: z | IG57: z | IH57: z | II57: z | IJ57: z | IK57: z | IL57: z | IM57: z | IN57: z
A58: 57 | B58: 65 | C58: 69 | D58: 70 | E58: 71 | F58: 71 | G58: 71 | I58: z | J58: z | K58: z | L58: z | M58: z | N58: z | O58: z | P58: z | Q58: z | R58: z | S58: z | T58: z | U58: z | V58: z | W58: z | X58: z | Y58: z | Z58: z | AA58: z | AB58: z | AC58: z | AD58: z | AE58: z | AF58: z | AG58: z | AH58: z | AI58: z | AJ58: z | AK58: z | AL58: z | AM58: z | AN58: z | AO58: z | AP58: z | AQ58: z | AR58: z | AS58: z | AT58: z | AU58: z | AV58: z | AW58: z | AX58: z | AY58: z | AZ58: z | BA58: z | BB58: z | BC58: z | BD58: z | BE58: z | BF58: z | BG58: z | BH58: z | BI58: z | BJ58: z | BK58: z | BL58: z | BM58: z | BN58: z | BO58: z | BP58: z | BQ58: z | BR58: z | BS58: z | BT58: z | BU58: z | BV58: z | BW58: z | BX58: z | BY58: z | BZ58: z | CA58: z | CB58: z | CC58: z | CD58: z | CE58: z | CF58: z | CG58: z | CH58: z | CI58: z | CJ58: z | CK58: z | CL58: z | CM58: z | CN58: z | CO58: z | CP58: z | CQ58: z | CR58: z | CS58: z | CT58: z | CU58: z | CV58: z | CW58: z | CX58: z | CY58: z | CZ58: z | DA58: z | DB58: z | DC58: z | DD58: z | DE58: z | DF58: z | DG58: z | DH58: z | DI58: z | DJ58: z | DK58: z | DL58: z | DM58: z | DN58: z | DO58: z | DP58: z | DQ58: z | DR58: z | DS58: z | DT58: z | DU58: z | DV58: z | DW58: z | DX58: z | DY58: z | DZ58: z | EA58: z | EB58: z | EC58: z | ED58: z | EE58: z | EF58: z | EG58: z | EH58: z | EI58: z | EJ58: z | EK58: z | EL58: z | EM58: z | EN58: z | EO58: z | EP58: z | EQ58: z | ER58: z | ES58: z | ET58: z | EU58: z | EV58: z | EW58: z | EX58: z | EY58: z | EZ58: z | FA58: z | FB58: z | FC58: z | FD58: z | FE58: z | FF58: z | FG58: z | FH58: z | FI58: z | FJ58: z | FK58: z | FL58: z | FM58: z | FN58: z | FO58: z | FP58: z | FQ58: z | FR58: z | FS58: z | FT58: z | FU58: z | FV58: z | FW58: z | FX58: z | FY58: z | FZ58: z | GA58: z | GB58: z | GC58: z | GD58: z | GE58: z | GF58: z | GG58: z | GH58: z | GI58: z | GJ58: z | GK58: z | GL58: z | GM58: z | GN58: z | GO58: z | GP58: z | GQ58: z | GR58: z | GS58: z | GT58: z | GU58: z | GV58: z | GW58: z | GX58: z | GY58: z | GZ58: z | HA58: z | HB58: z | HC58: z | HD58: z | HE58: z | HF58: z | HG58: z | HH58: z | HI58: z | HJ58: z | HK58: z | HL58: z | HM58: z | HN58: z | HO58: z | HP58: z | HQ58: z | HR58: z | HS58: z | HT58: z | HU58: z | HV58: z | HW58: z | HX58: z | HY58: z | HZ58: z | IA58: z | IB58: z | IC58: z | ID58: z | IE58: z | IF58: z | IG58: z | IH58: z | II58: z | IJ58: z | IK58: z | IL58: z | IM58: z | IN58: z
A59: 58 | B59: 65 | C59: 69 | D59: 70 | E59: 71 | F59: 71 | G59: 71 | I59: z | J59: z | K59: z | L59: z | M59: z | N59: z | O59: z | P59: z | Q59: z | R59: z | S59: z | T59: z | U59: z | V59: z | W59: z | X59: z | Y59: z | Z59: z | AA59: z | AB59: z | AC59: z | AD59: z | AE59: z | AF59: z | AG59: z | AH59: z | AI59: z | AJ59: z | AK59: z | AL59: z | AM59: z | AN59: z | AO59: z | AP59: z | AQ59: z | AR59: z | AS59: z | AT59: z | AU59: z | AV59: z | AW59: z | AX59: z | AY59: z | AZ59: z | BA59: z | BB59: z | BC59: z | BD59: z | BE59: z | BF59: z | BG59: z | BH59: z | BI59: z | BJ59: z | BK59: z | BL59: z | BM59: z | BN59: z | BO59: z | BP59: z | BQ59: z | BR59: z | BS59: z | BT59: z | BU59: z | BV59: z | BW59: z | BX59: z | BY59: z | BZ59: z | CA59: z | CB59: z | CC59: z | CD59: z | CE59: z | CF59: z | CG59: z | CH59: z | CI59: z | CJ59: z | CK59: z | CL59: z | CM59: z | CN59: z | CO59: z | CP59: z | CQ59: z | CR59: z | CS59: z | CT59: z | CU59: z | CV59: z | CW59: z | CX59: z | CY59: z | CZ59: z | DA59: z | DB59: z | DC59: z | DD59: z | DE59: z | DF59: z | DG59: z | DH59: z | DI59: z | DJ59: z | DK59: z | DL59: z | DM59: z | DN59: z | DO59: z | DP59: z | DQ59: z | DR59: z | DS59: z | DT59: z | DU59: z | DV59: z | DW59: z | DX59: z | DY59: z | DZ59: z | EA59: z | EB59: z | EC59: z | ED59: z | EE59: z | EF59: z | EG59: z | EH59: z | EI59: z | EJ59: z | EK59: z | EL59: z | EM59: z | EN59: z | EO59: z | EP59: z | EQ59: z | ER59: z | ES59: z | ET59: z | EU59: z | EV59: z | EW59: z | EX59: z | EY59: z | EZ59: z | FA59: z | FB59: z | FC59: z | FD59: z | FE59: z | FF59: z | FG59: z | FH59: z | FI59: z | FJ59: z | FK59: z | FL59: z | FM59: z | FN59: z | FO59: z | FP59: z | FQ59: z | FR59: z | FS59: z | FT59: z | FU59: z | FV59: z | FW59: z | FX59: z | FY59: z | FZ59: z | GA59: z | GB59: z | GC59: z | GD59: z | GE59: z | GF59: z | GG59: z | GH59: z | GI59: z | GJ59: z | GK59: z | GL59: z | GM59: z | GN59: z | GO59: z | GP59: z | GQ59: z | GR59: z | GS59: z | GT59: z | GU59: z | GV59: z | GW59: z | GX59: z | GY59: z | GZ59: z | HA59: z | HB59: z | HC59: z | HD59: z | HE59: z | HF59: z | HG59: z | HH59: z | HI59: z | HJ59: z | HK59: z | HL59: z | HM59: z | HN59: z | HO59: z | HP59: z | HQ59: z | HR59: z | HS59: z | HT59: z | HU59: z | HV59: z | HW59: z | HX59: z | HY59: z | HZ59: z | IA59: z | IB59: z | IC59: z | ID59: z | IE59: z | IF59: z | IG59: z | IH59: z | II59: z | IJ59: z | IK59: z | IL59: z | IM59: z | IN59: z
A60: 59 | B60: 65 | C60: 69 | D60: 70 | E60: 71 | F60: 71 | G60: 71 | I60: z | J60: z | K60: z | L60: z | M60: z | N60: z | O60: z | P60: z | Q60: z | R60: z | S60: z | T60: z | U60: z | V60: z | W60: z | X60: z | Y60: z | Z60: z | AA60: z | AB60: z | AC60: z | AD60: z | AE60: z | AF60: z | AG60: z | AH60: z | AI60: z | AJ60: z | AK60: z | AL60: z | AM60: z | AN60: z | AO60: z | AP60: z | AQ60: z | AR60: z | AS60: z | AT60: z | AU60: z | AV60: z | AW60: z | AX60: z | AY60: z | AZ60: z | BA60: z | BB60: z | BC60: z | BD60: z | BE60: z | BF60: z | BG60: z | BH60: z | BI60: z | BJ60: z | BK60: z | BL60: z | BM60: z | BN60: z | BO60: z | BP60: z | BQ60: z | BR60: z | BS60: z | BT60: z | BU60: z | BV60: z | BW60: z | BX60: z | BY60: z | BZ60: z | CA60: z | CB60: z | CC60: z | CD60: z | CE60: z | CF60: z | CG60: z | CH60: z | CI60: z | CJ60: z | CK60: z | CL60: z | CM60: z | CN60: z | CO60: z | CP60: z | CQ60: z | CR60: z | CS60: z | CT60: z | CU60: z | CV60: z | CW60: z | CX60: z | CY60: z | CZ60: z | DA60: z | DB60: z | DC60: z | DD60: z | DE60: z | DF60: z | DG60: z | DH60: z | DI60: z | DJ60: z | DK60: z | DL60: z | DM60: z | DN60: z | DO60: z | DP60: z | DQ60: z | DR60: z | DS60: z | DT60: z | DU60: z | DV60: z | DW60: z | DX60: z | DY60: z | DZ60: z | EA60: z | EB60: z | EC60: z | ED60: z | EE60: z | EF60: z | EG60: z | EH60: z | EI60: z | EJ60: z | EK60: z | EL60: z | EM60: z | EN60: z | EO60: z | EP60: z | EQ60: z | ER60: z | ES60: z | ET60: z | EU60: z | EV60: z | EW60: z | EX60: z | EY60: z | EZ60: z | FA60: z | FB60: z | FC60: z | FD60: z | FE60: z | FF60: z | FG60: z | FH60: z | FI60: z | FJ60: z | FK60: z | FL60: z | FM60: z | FN60: z | FO60: z | FP60: z | FQ60: z | FR60: z | FS60: z | FT60: z | FU60: z | FV60: z | FW60: z | FX60: z | FY60: z | FZ60: z | GA60: z | GB60: z | GC60: z | GD60: z | GE60: z | GF60: z | GG60: z | GH60: z | GI60: z | GJ60: z | GK60: z | GL60: z | GM60: z | GN60: z | GO60: z | GP60: z | GQ60: z | GR60: z | GS60: z | GT60: z | GU60: z | GV60: z | GW60: z | GX60: z | GY60: z | GZ60: z | HA60: z | HB60: z | HC60: z | HD60: z | HE60: z | HF60: z | HG60: z | HH60: z | HI60: z | HJ60: z | HK60: z | HL60: z | HM60: z | HN60: z | HO60: z | HP60: z | HQ60: z | HR60: z | HS60: z | HT60: z | HU60: z | HV60: z | HW60: z | HX60: z | HY60: z | HZ60: z | IA60: z | IB60: z | IC60: z | ID60: z | IE60: z | IF60: z | IG60: z | IH60: z | II60: z | IJ60: z | IK60: z | IL60: z | IM60: z | IN60: z
A61: 60 | B61: 65 | C61: 69 | D61: 71 | E61: 72 | F61: 72 | G61: 72 | I61: z | J61: z | K61: z | L61: z | M61: z | N61: z | O61: z | P61: z | Q61: z | R61: z | S61: z | T61: z | U61: z | V61: z | W61: z | X61: z | Y61: z | Z61: z | AA61: z | AB61: z | AC61: z | AD61: z | AE61: z | AF61: z | AG61: z | AH61: z | AI61: z | AJ61: z | AK61: z | AL61: z | AM61: z | AN61: z | AO61: z | AP61: z | AQ61: z | AR61: z | AS61: z | AT61: z | AU61: z | AV61: z | AW61: z | AX61: z | AY61: z | AZ61: z | BA61: z | BB61: z | BC61: z | BD61: z | BE61: z | BF61: z | BG61: z | BH61: z | BI61: z | BJ61: z | BK61: z | BL61: z | BM61: z | BN61: z | BO61: z | BP61: z | BQ61: z | BR61: z | BS61: z | BT61: z | BU61: z | BV61: z | BW61: z | BX61: z | BY61: z | BZ61: z | CA61: z | CB61: z | CC61: z | CD61: z | CE61: z | CF61: z | CG61: z | CH61: z | CI61: z | CJ61: z | CK61: z | CL61: z | CM61: z | CN61: z | CO61: z | CP61: z | CQ61: z | CR61: z | CS61: z | CT61: z | CU61: z | CV61: z | CW61: z | CX61: z | CY61: z | CZ61: z | DA61: z | DB61: z | DC61: z | DD61: z | DE61: z | DF61: z | DG61: z | DH61: z | DI61: z | DJ61: z | DK61: z | DL61: z | DM61: z | DN61: z | DO61: z | DP61: z | DQ61: z | DR61: z | DS61: z | DT61: z | DU61: z | DV61: z | DW61: z | DX61: z | DY61: z | DZ61: z | EA61: z | EB61: z | EC61: z | ED61: z | EE61: z | EF61: z | EG61: z | EH61: z | EI61: z | EJ61: z | EK61: z | EL61: z | EM61: z | EN61: z | EO61: z | EP61: z | EQ61: z | ER61: z | ES61: z | ET61: z | EU61: z | EV61: z | EW61: z | EX61: z | EY61: z | EZ61: z | FA61: z | FB61: z | FC61: z | FD61: z | FE61: z | FF61: z | FG61: z | FH61: z | FI61: z | FJ61: z | FK61: z | FL61: z | FM61: z | FN61: z | FO61: z | FP61: z | FQ61: z | FR61: z | FS61: z | FT61: z | FU61: z | FV61: z | FW61: z | FX61: z | FY61: z | FZ61: z | GA61: z | GB61: z | GC61: z | GD61: z | GE61: z | GF61: z | GG61: z | GH61: z | GI61: z | GJ61: z | GK61: z | GL61: z | GM61: z | GN61: z | GO61: z | GP61: z | GQ61: z | GR61: z | GS61: z | GT61: z | GU61: z | GV61: z | GW61: z | GX61: z | GY61: z | GZ61: z | HA61: z | HB61: z | HC61: z | HD61: z | HE61: z | HF61: z | HG61: z | HH61: z | HI61: z | HJ61: z | HK61: z | HL61: z | HM61: z | HN61: z | HO61: z | HP61: z | HQ61: z | HR61: z | HS61: z | HT61: z | HU61: z | HV61: z | HW61: z | HX61: z | HY61: z | HZ61: z | IA61: z | IB61: z | IC61: z | ID61: z | IE61: z | IF61: z | IG61: z | IH61: z | II61: z | IJ61: z | IK61: z | IL61: z | IM61: z | IN61: z
A62: 61 | B62: 65 | C62: 69 | D62: 71 | E62: 72 | F62: 72 | G62: 72 | I62: z | J62: z | K62: z | L62: z | M62: z | N62: z | O62: z | P62: z | Q62: z | R62: z | S62: z | T62: z | U62: z | V62: z | W62: z | X62: z | Y62: z | Z62: z | AA62: z | AB62: z | AC62: z | AD62: z | AE62: z | AF62: z | AG62: z | AH62: z | AI62: z | AJ62: z | AK62: z | AL62: z | AM62: z | AN62: z | AO62: z | AP62: z | AQ62: z | AR62: z | AS62: z | AT62: z | AU62: z | AV62: z | AW62: z | AX62: z | AY62: z | AZ62: z | BA62: z | BB62: z | BC62: z | BD62: z | BE62: z | BF62: z | BG62: z | BH62: z | BI62: z | BJ62: z | BK62: z | BL62: z | BM62: z | BN62: z | BO62: z | BP62: z | BQ62: z | BR62: z | BS62: z | BT62: z | BU62: z | BV62: z | BW62: z | BX62: z | BY62: z | BZ62: z | CA62: z | CB62: z | CC62: z | CD62: z | CE62: z | CF62: z | CG62: z | CH62: z | CI62: z | CJ62: z | CK62: z | CL62: z | CM62: z | CN62: z | CO62: z | CP62: z | CQ62: z | CR62: z | CS62: z | CT62: z | CU62: z | CV62: z | CW62: z | CX62: z | CY62: z | CZ62: z | DA62: z | DB62: z | DC62: z | DD62: z | DE62: z | DF62: z | DG62: z | DH62: z | DI62: z | DJ62: z | DK62: z | DL62: z | DM62: z | DN62: z | DO62: z | DP62: z | DQ62: z | DR62: z | DS62: z | DT62: z | DU62: z | DV62: z | DW62: z | DX62: z | DY62: z | DZ62: z | EA62: z | EB62: z | EC62: z | ED62: z | EE62: z | EF62: z | EG62: z | EH62: z | EI62: z | EJ62: z | EK62: z | EL62: z | EM62: z | EN62: z | EO62: z | EP62: z | EQ62: z | ER62: z | ES62: z | ET62: z | EU62: z | EV62: z | EW62: z | EX62: z | EY62: z | EZ62: z | FA62: z | FB62: z | FC62: z | FD62: z | FE62: z | FF62: z | FG62: z | FH62: z | FI62: z | FJ62: z | FK62: z | FL62: z | FM62: z | FN62: z | FO62: z | FP62: z | FQ62: z | FR62: z | FS62: z | FT62: z | FU62: z | FV62: z | FW62: z | FX62: z | FY62: z | FZ62: z | GA62: z | GB62: z | GC62: z | GD62: z | GE62: z | GF62: z | GG62: z | GH62: z | GI62: z | GJ62: z | GK62: z | GL62: z | GM62: z | GN62: z | GO62: z | GP62: z | GQ62: z | GR62: z | GS62: z | GT62: z | GU62: z | GV62: z | GW62: z | GX62: z | GY62: z | GZ62: z | HA62: z | HB62: z | HC62: z | HD62: z | HE62: z | HF62: z | HG62: z | HH62: z | HI62: z | HJ62: z | HK62: z | HL62: z | HM62: z | HN62: z | HO62: z | HP62: z | HQ62: z | HR62: z | HS62: z | HT62: z | HU62: z | HV62: z | HW62: z | HX62: z | HY62: z | HZ62: z | IA62: z | IB62: z | IC62: z | ID62: z | IE62: z | IF62: z | IG62: z | IH62: z | II62: z | IJ62: z | IK62: z | IL62: z | IM62: z | IN62: z
A63: 62 | B63: 65 | C63: 69 | D63: 71 | E63: 72 | F63: 72 | G63: 72 | I63: z | J63: z | K63: z | L63: z | M63: z | N63: z | O63: z | P63: z | Q63: z | R63: z | S63: z | T63: z | U63: z | V63: z | W63: z | X63: z | Y63: z | Z63: z | AA63: z | AB63: z | AC63: z | AD63: z | AE63: z | AF63: z | AG63: z | AH63: z | AI63: z | AJ63: z | AK63: z | AL63: z | AM63: z | AN63: z | AO63: z | AP63: z | AQ63: z | AR63: z | AS63: z | AT63: z | AU63: z | AV63: z | AW63: z | AX63: z | AY63: z | AZ63: z | BA63: z | BB63: z | BC63: z | BD63: z | BE63: z | BF63: z | BG63: z | BH63: z | BI63: z | BJ63: z | BK63: z | BL63: z | BM63: z | BN63: z | BO63: z | BP63: z | BQ63: z | BR63: z | BS63: z | BT63: z | BU63: z | BV63: z | BW63: z | BX63: z | BY63: z | BZ63: z | CA63: z | CB63: z | CC63: z | CD63: z | CE63: z | CF63: z | CG63: z | CH63: z | CI63: z | CJ63: z | CK63: z | CL63: z | CM63: z | CN63: z | CO63: z | CP63: z | CQ63: z | CR63: z | CS63: z | CT63: z | CU63: z | CV63: z | CW63: z | CX63: z | CY63: z | CZ63: z | DA63: z | DB63: z | DC63: z | DD63: z | DE63: z | DF63: z | DG63: z | DH63: z | DI63: z | DJ63: z | DK63: z | DL63: z | DM63: z | DN63: z | DO63: z | DP63: z | DQ63: z | DR63: z | DS63: z | DT63: z | DU63: z | DV63: z | DW63: z | DX63: z | DY63: z | DZ63: z | EA63: z | EB63: z | EC63: z | ED63: z | EE63: z | EF63: z | EG63: z | EH63: z | EI63: z | EJ63: z | EK63: z | EL63: z | EM63: z | EN63: z | EO63: z | EP63: z | EQ63: z | ER63: z | ES63: z | ET63: z | EU63: z | EV63: z | EW63: z | EX63: z | EY63: z | EZ63: z | FA63: z | FB63: z | FC63: z | FD63: z | FE63: z | FF63: z | FG63: z | FH63: z | FI63: z | FJ63: z | FK63: z | FL63: z | FM63: z | FN63: z | FO63: z | FP63: z | FQ63: z | FR63: z | FS63: z | FT63: z | FU63: z | FV63: z | FW63: z | FX63: z | FY63: z | FZ63: z | GA63: z | GB63: z | GC63: z | GD63: z | GE63: z | GF63: z | GG63: z | GH63: z | GI63: z | GJ63: z | GK63: z | GL63: z | GM63: z | GN63: z | GO63: z | GP63: z | GQ63: z | GR63: z | GS63: z | GT63: z | GU63: z | GV63: z | GW63: z | GX63: z | GY63: z | GZ63: z | HA63: z | HB63: z | HC63: z | HD63: z | HE63: z | HF63: z | HG63: z | HH63: z | HI63: z | HJ63: z | HK63: z | HL63: z | HM63: z | HN63: z | HO63: z | HP63: z | HQ63: z | HR63: z | HS63: z | HT63: z | HU63: z | HV63: z | HW63: z | HX63: z | HY63: z | HZ63: z | IA63: z | IB63: z | IC63: z | ID63: z | IE63: z | IF63: z | IG63: z | IH63: z | II63: z | IJ63: z | IK63: z | IL63: z | IM63: z | IN63: z
A64: 63 | B64: 65 | C64: 69 | D64: 71 | E64: 72 | F64: 72 | G64: 72 | I64: z | J64: z | K64: z | L64: z | M64: z | N64: z | O64: z | P64: z | Q64: z | R64: z | S64: z | T64: z | U64: z | V64: z | W64: z | X64: z | Y64: z | Z64: z | AA64: z | AB64: z | AC64: z | AD64: z | AE64: z | AF64: z | AG64: z | AH64: z | AI64: z | AJ64: z | AK64: z | AL64: z | AM64: z | AN64: z | AO64: z | AP64: z | AQ64: z | AR64: z | AS64: z | AT64: z | AU64: z | AV64: z | AW64: z | AX64: z | AY64: z | AZ64: z | BA64: z | BB64: z | BC64: z | BD64: z | BE64: z | BF64: z | BG64: z | BH64: z | BI64: z | BJ64: z | BK64: z | BL64: z | BM64: z | BN64: z | BO64: z | BP64: z | BQ64: z | BR64: z | BS64: z | BT64: z | BU64: z | BV64: z | BW64: z | BX64: z | BY64: z | BZ64: z | CA64: z | CB64: z | CC64: z | CD64: z | CE64: z | CF64: z | CG64: z | CH64: z | CI64: z | CJ64: z | CK64: z | CL64: z | CM64: z | CN64: z | CO64: z | CP64: z | CQ64: z | CR64: z | CS64: z | CT64: z | CU64: z | CV64: z | CW64: z | CX64: z | CY64: z | CZ64: z | DA64: z | DB64: z | DC64: z | DD64: z | DE64: z | DF64: z | DG64: z | DH64: z | DI64: z | DJ64: z | DK64: z | DL64: z | DM64: z | DN64: z | DO64: z | DP64: z | DQ64: z | DR64: z | DS64: z | DT64: z | DU64: z | DV64: z | DW64: z | DX64: z | DY64: z | DZ64: z | EA64: z | EB64: z | EC64: z | ED64: z | EE64: z | EF64: z | EG64: z | EH64: z | EI64: z | EJ64: z | EK64: z | EL64: z | EM64: z | EN64: z | EO64: z | EP64: z | EQ64: z | ER64: z | ES64: z | ET64: z | EU64: z | EV64: z | EW64: z | EX64: z | EY64: z | EZ64: z | FA64: z | FB64: z | FC64: z | FD64: z | FE64: z | FF64: z | FG64: z | FH64: z | FI64: z | FJ64: z | FK64: z | FL64: z | FM64: z | FN64: z | FO64: z | FP64: z | FQ64: z | FR64: z | FS64: z | FT64: z | FU64: z | FV64: z | FW64: z | FX64: z | FY64: z | FZ64: z | GA64: z | GB64: z | GC64: z | GD64: z | GE64: z | GF64: z | GG64: z | GH64: z | GI64: z | GJ64: z | GK64: z | GL64: z | GM64: z | GN64: z | GO64: z | GP64: z | GQ64: z | GR64: z | GS64: z | GT64: z | GU64: z | GV64: z | GW64: z | GX64: z | GY64: z | GZ64: z | HA64: z | HB64: z | HC64: z | HD64: z | HE64: z | HF64: z | HG64: z | HH64: z | HI64: z | HJ64: z | HK64: z | HL64: z | HM64: z | HN64: z | HO64: z | HP64: z | HQ64: z | HR64: z | HS64: z | HT64: z | HU64: z | HV64: z | HW64: z | HX64: z | HY64: z | HZ64: z | IA64: z | IB64: z | IC64: z | ID64: z | IE64: z | IF64: z | IG64: z | IH64: z | II64: z | IJ64: z | IK64: z | IL64: z | IM64: z | IN64: z
A65: 64 | B65: 65 | C65: 69 | D65: 71 | E65: 72 | F65: 72 | G65: 72 | I65: z | J65: z | K65: z | L65: z | M65: z | N65: z | O65: z | P65: z | Q65: z | R65: z | S65: z | T65: z | U65: z | V65: z | W65: z | X65: z | Y65: z | Z65: z | AA65: z | AB65: z | AC65: z | AD65: z | AE65: z | AF65: z | AG65: z | AH65: z | AI65: z | AJ65: z | AK65: z | AL65: z | AM65: z | AN65: z | AO65: z | AP65: z | AQ65: z | AR65: z | AS65: z | AT65: z | AU65: z | AV65: z | AW65: z | AX65: z | AY65: z | AZ65: z | BA65: z | BB65: z | BC65: z | BD65: z | BE65: z | BF65: z | BG65: z | BH65: z | BI65: z | BJ65: z | BK65: z | BL65: z | BM65: z | BN65: z | BO65: z | BP65: z | BQ65: z | BR65: z | BS65: z | BT65: z | BU65: z | BV65: z | BW65: z | BX65: z | BY65: z | BZ65: z | CA65: z | CB65: z | CC65: z | CD65: z | CE65: z | CF65: z | CG65: z | CH65: z | CI65: z | CJ65: z | CK65: z | CL65: z | CM65: z | CN65: z | CO65: z | CP65: z | CQ65: z | CR65: z | CS65: z | CT65: z | CU65: z | CV65: z | CW65: z | CX65: z | CY65: z | CZ65: z | DA65: z | DB65: z | DC65: z | DD65: z | DE65: z | DF65: z | DG65: z | DH65: z | DI65: z | DJ65: z | DK65: z | DL65: z | DM65: z | DN65: z | DO65: z | DP65: z | DQ65: z | DR65: z | DS65: z | DT65: z | DU65: z | DV65: z | DW65: z | DX65: z | DY65: z | DZ65: z | EA65: z | EB65: z | EC65: z | ED65: z | EE65: z | EF65: z | EG65: z | EH65: z | EI65: z | EJ65: z | EK65: z | EL65: z | EM65: z | EN65: z | EO65: z | EP65: z | EQ65: z | ER65: z | ES65: z | ET65: z | EU65: z | EV65: z | EW65: z | EX65: z | EY65: z | EZ65: z | FA65: z | FB65: z | FC65: z | FD65: z | FE65: z | FF65: z | FG65: z | FH65: z | FI65: z | FJ65: z | FK65: z | FL65: z | FM65: z | FN65: z | FO65: z | FP65: z | FQ65: z | FR65: z | FS65: z | FT65: z | FU65: z | FV65: z | FW65: z | FX65: z | FY65: z | FZ65: z | GA65: z | GB65: z | GC65: z | GD65: z | GE65: z | GF65: z | GG65: z | GH65: z | GI65: z | GJ65: z | GK65: z | GL65: z | GM65: z | GN65: z | GO65: z | GP65: z | GQ65: z | GR65: z | GS65: z | GT65: z | GU65: z | GV65: z | GW65: z | GX65: z | GY65: z | GZ65: z | HA65: z | HB65: z | HC65: z | HD65: z | HE65: z | HF65: z | HG65: z | HH65: z | HI65: z | HJ65: z | HK65: z | HL65: z | HM65: z | HN65: z | HO65: z | HP65: z | HQ65: z | HR65: z | HS65: z | HT65: z | HU65: z | HV65: z | HW65: z | HX65: z | HY65: z | HZ65: z | IA65: z | IB65: z | IC65: z | ID65: z | IE65: z | IF65: z | IG65: z | IH65: z | II65: z | IJ65: z | IK65: z | IL65: z | IM65: z | IN65: z
A66: 65 | B66: 65 | C66: 69 | D66: 71 | E66: 72 | F66: =IF(pop=1,B66,IF(pop=2,C66,IF(pop=3,D66,E66))) -> 72 | G66: =IF(pop=1,B66,IF(pop=2,C66,IF(pop=3,D66,E66))) -> 72 | I66: z | J66: z | K66: z | L66: z | M66: z | N66: z | O66: z | P66: z | Q66: z | R66: z | S66: z | T66: z | U66: z | V66: z | W66: z | X66: z | Y66: z | Z66: z | AA66: z | AB66: z | AC66: z | AD66: z | AE66: z | AF66: z | AG66: z | AH66: z | AI66: z | AJ66: z | AK66: z | AL66: z | AM66: z | AN66: z | AO66: z | AP66: z | AQ66: z | AR66: z | AS66: z | AT66: z | AU66: z | AV66: z | AW66: z | AX66: z | AY66: z | AZ66: z | BA66: z | BB66: z | BC66: z | BD66: z | BE66: z | BF66: z | BG66: z | BH66: z | BI66: z | BJ66: z | BK66: z | BL66: z | BM66: z | BN66: z | BO66: z | BP66: z | BQ66: z | BR66: z | BS66: z | BT66: z | BU66: z | BV66: z | BW66: z | BX66: z | BY66: z | BZ66: z | CA66: z | CB66: z | CC66: z | CD66: z | CE66: z | CF66: z | CG66: z | CH66: z | CI66: z | CJ66: z | CK66: z | CL66: z | CM66: z | CN66: z | CO66: z | CP66: z | CQ66: z | CR66: z | CS66: z | CT66: z | CU66: z | CV66: z | CW66: z | CX66: z | CY66: z | CZ66: z | DA66: z | DB66: z | DC66: z | DD66: z | DE66: z | DF66: z | DG66: z | DH66: z | DI66: z | DJ66: z | DK66: z | DL66: z | DM66: z | DN66: z | DO66: z | DP66: z | DQ66: z | DR66: z | DS66: z | DT66: z | DU66: z | DV66: z | DW66: z | DX66: z | DY66: z | DZ66: z | EA66: z | EB66: z | EC66: z | ED66: z | EE66: z | EF66: z | EG66: z | EH66: z | EI66: z | EJ66: z | EK66: z | EL66: z | EM66: z | EN66: z | EO66: z | EP66: z | EQ66: z | ER66: z | ES66: z | ET66: z | EU66: z | EV66: z | EW66: z | EX66: z | EY66: z | EZ66: z | FA66: z | FB66: z | FC66: z | FD66: z | FE66: z | FF66: z | FG66: z | FH66: z | FI66: z | FJ66: z | FK66: z | FL66: z | FM66: z | FN66: z | FO66: z | FP66: z | FQ66: z | FR66: z | FS66: z | FT66: z | FU66: z | FV66: z | FW66: z | FX66: z | FY66: z | FZ66: z | GA66: z | GB66: z | GC66: z | GD66: z | GE66: z | GF66: z | GG66: z | GH66: z | GI66: z | GJ66: z | GK66: z | GL66: z | GM66: z | GN66: z | GO66: z | GP66: z | GQ66: z | GR66: z | GS66: z | GT66: z | GU66: z | GV66: z | GW66: z | GX66: z | GY66: z | GZ66: z | HA66: z | HB66: z | HC66: z | HD66: z | HE66: z | HF66: z | HG66: z | HH66: z | HI66: z | HJ66: z | HK66: z | HL66: z | HM66: z | HN66: z | HO66: z | HP66: z | HQ66: z | HR66: z | HS66: z | HT66: z | HU66: z | HV66: z | HW66: z | HX66: z | HY66: z | HZ66: z | IA66: z | IB66: z | IC66: z | ID66: z | IE66: z | IF66: z | IG66: z | IH66: z | II66: z | IJ66: z | IK66: z | IL66: z | IM66: z | IN66: z
A67: 66 | B67: 65 | C67: 69 | D67: 71 | E67: 72 | F67: 72 | G67: 72 | I67: z | J67: z | K67: z | L67: z | M67: z | N67: z | O67: z | P67: z | Q67: z | R67: z | S67: z | T67: z | U67: z | V67: z | W67: z | X67: z | Y67: z | Z67: z | AA67: z | AB67: z | AC67: z | AD67: z | AE67: z | AF67: z | AG67: z | AH67: z | AI67: z | AJ67: z | AK67: z | AL67: z | AM67: z | AN67: z | AO67: z | AP67: z | AQ67: z | AR67: z | AS67: z | AT67: z | AU67: z | AV67: z | AW67: z | AX67: z | AY67: z | AZ67: z | BA67: z | BB67: z | BC67: z | BD67: z | BE67: z | BF67: z | BG67: z | BH67: z | BI67: z | BJ67: z | BK67: z | BL67: z | BM67: z | BN67: z | BO67: z | BP67: z | BQ67: z | BR67: z | BS67: z | BT67: z | BU67: z | BV67: z | BW67: z | BX67: z | BY67: z | BZ67: z | CA67: z | CB67: z | CC67: z | CD67: z | CE67: z | CF67: z | CG67: z | CH67: z | CI67: z | CJ67: z | CK67: z | CL67: z | CM67: z | CN67: z | CO67: z | CP67: z | CQ67: z | CR67: z | CS67: z | CT67: z | CU67: z | CV67: z | CW67: z | CX67: z | CY67: z | CZ67: z | DA67: z | DB67: z | DC67: z | DD67: z | DE67: z | DF67: z | DG67: z | DH67: z | DI67: z | DJ67: z | DK67: z | DL67: z | DM67: z | DN67: z | DO67: z | DP67: z | DQ67: z | DR67: z | DS67: z | DT67: z | DU67: z | DV67: z | DW67: z | DX67: z | DY67: z | DZ67: z | EA67: z | EB67: z | EC67: z | ED67: z | EE67: z | EF67: z | EG67: z | EH67: z | EI67: z | EJ67: z | EK67: z | EL67: z | EM67: z | EN67: z | EO67: z | EP67: z | EQ67: z | ER67: z | ES67: z | ET67: z | EU67: z | EV67: z | EW67: z | EX67: z | EY67: z | EZ67: z | FA67: z | FB67: z | FC67: z | FD67: z | FE67: z | FF67: z | FG67: z | FH67: z | FI67: z | FJ67: z | FK67: z | FL67: z | FM67: z | FN67: z | FO67: z | FP67: z | FQ67: z | FR67: z | FS67: z | FT67: z | FU67: z | FV67: z | FW67: z | FX67: z | FY67: z | FZ67: z | GA67: z | GB67: z | GC67: z | GD67: z | GE67: z | GF67: z | GG67: z | GH67: z | GI67: z | GJ67: z | GK67: z | GL67: z | GM67: z | GN67: z | GO67: z | GP67: z | GQ67: z | GR67: z | GS67: z | GT67: z | GU67: z | GV67: z | GW67: z | GX67: z | GY67: z | GZ67: z | HA67: z | HB67: z | HC67: z | HD67: z | HE67: z | HF67: z | HG67: z | HH67: z | HI67: z | HJ67: z | HK67: z | HL67: z | HM67: z | HN67: z | HO67: z | HP67: z | HQ67: z | HR67: z | HS67: z | HT67: z | HU67: z | HV67: z | HW67: z | HX67: z | HY67: z | HZ67: z | IA67: z | IB67: z | IC67: z | ID67: z | IE67: z | IF67: z | IG67: z | IH67: z | II67: z | IJ67: z | IK67: z | IL67: z | IM67: z | IN67: z
A68: 67 | B68: 65 | C68: 69 | D68: 71 | E68: 72 | F68: 72 | G68: 72 | I68: =IF(OR($A67>n,I$1>nSamps),"z",LOOKUP(INT(nPop*RAND()+1.5),$A$2:$A$425,$G$2:$G$425)) -> z | J68: =IF(OR($A67>n,J$1>nSamps),"z",LOOKUP(INT(nPop*RAND()+1.5),$A$2:$A$425,$G$2:$G$425)) -> z | K68: =IF(OR($A67>n,K$1>nSamps),"z",LOOKUP(INT(nPop*RAND()+1.5),$A$2:$A$425,$G$2:$G$425)) -> z | L68: =IF(OR($A67>n,L$1>nSamps),"z",LOOKUP(INT(nPop*RAND()+1.5),$A$2:$A$425,$G$2:$G$425)) -> z | M68: =IF(OR($A67>n,M$1>nSamps),"z",LOOKUP(INT(nPop*RAND()+1.5),$A$2:$A$425,$G$2:$G$425)) -> z | N68: =IF(OR($A67>n,N$1>nSamps),"z",LOOKUP(INT(nPop*RAND()+1.5),$A$2:$A$425,$G$2:$G$425)) -> z | O68: =IF(OR($A67>n,O$1>nSamps),"z",LOOKUP(INT(nPop*RAND()+1.5),$A$2:$A$425,$G$2:$G$425)) -> z | P68: =IF(OR($A67>n,P$1>nSamps),"z",LOOKUP(INT(nPop*RAND()+1.5),$A$2:$A$425,$G$2:$G$425)) -> z | Q68: =IF(OR($A67>n,Q$1>nSamps),"z",LOOKUP(INT(nPop*RAND()+1.5),$A$2:$A$425,$G$2:$G$425)) -> z | R68: =IF(OR($A67>n,R$1>nSamps),"z",LOOKUP(INT(nPop*RAND()+1.5),$A$2:$A$425,$G$2:$G$425)) -> z | S68: =IF(OR($A67>n,S$1>nSamps),"z",LOOKUP(INT(nPop*RAND()+1.5),$A$2:$A$425,$G$2:$G$425)) -> z | T68: =IF(OR($A67>n,T$1>nSamps),"z",LOOKUP(INT(nPop*RAND()+1.5),$A$2:$A$425,$G$2:$G$425)) -> z | U68: =IF(OR($A67>n,U$1>nSamps),"z",LOOKUP(INT(nPop*RAND()+1.5),$A$2:$A$425,$G$2:$G$425)) -> z | V68: =IF(OR($A67>n,V$1>nSamps),"z",LOOKUP(INT(nPop*RAND()+1.5),$A$2:$A$425,$G$2:$G$425)) -> z | W68: =IF(OR($A67>n,W$1>nSamps),"z",LOOKUP(INT(nPop*RAND()+1.5),$A$2:$A$425,$G$2:$G$425)) -> z | X68: =IF(OR($A67>n,X$1>nSamps),"z",LOOKUP(INT(nPop*RAND()+1.5),$A$2:$A$425,$G$2:$G$425)) -> z | Y68: =IF(OR($A67>n,Y$1>nSamps),"z",LOOKUP(INT(nPop*RAND()+1.5),$A$2:$A$425,$G$2:$G$425)) -> z | Z68: =IF(OR($A67>n,Z$1>nSamps),"z",LOOKUP(INT(nPop*RAND()+1.5),$A$2:$A$425,$G$2:$G$425)) -> z | AA68: =IF(OR($A67>n,AA$1>nSamps),"z",LOOKUP(INT(nPop*RAND()+1.5),$A$2:$A$425,$G$2:$G$425)) -> z | AB68: =IF(OR($A67>n,AB$1>nSamps),"z",LOOKUP(INT(nPop*RAND()+1.5),$A$2:$A$425,$G$2:$G$425)) -> z | AC68: =IF(OR($A67>n,AC$1>nSamps),"z",LOOKUP(INT(nPop*RAND()+1.5),$A$2:$A$425,$G$2:$G$425)) -> z | AD68: =IF(OR($A67>n,AD$1>nSamps),"z",LOOKUP(INT(nPop*RAND()+1.5),$A$2:$A$425,$G$2:$G$425)) -> z | AE68: =IF(OR($A67>n,AE$1>nSamps),"z",LOOKUP(INT(nPop*RAND()+1.5),$A$2:$A$425,$G$2:$G$425)) -> z | AF68: =IF(OR($A67>n,AF$1>nSamps),"z",LOOKUP(INT(nPop*RAND()+1.5),$A$2:$A$425,$G$2:$G$425)) -> z | AG68: =IF(OR($A67>n,AG$1>nSamps),"z",LOOKUP(INT(nPop*RAND()+1.5),$A$2:$A$425,$G$2:$G$425)) -> z | AH68: =IF(OR($A67>n,AH$1>nSamps),"z",LOOKUP(INT(nPop*RAND()+1.5),$A$2:$A$425,$G$2:$G$425)) -> z | AI68: =IF(OR($A67>n,AI$1>nSamps),"z",LOOKUP(INT(nPop*RAND()+1.5),$A$2:$A$425,$G$2:$G$425)) -> z | AJ68: =IF(OR($A67>n,AJ$1>nSamps),"z",LOOKUP(INT(nPop*RAND()+1.5),$A$2:$A$425,$G$2:$G$425)) -> z | AK68: =IF(OR($A67>n,AK$1>nSamps),"z",LOOKUP(INT(nPop*RAND()+1.5),$A$2:$A$425,$G$2:$G$425)) -> z | AL68: =IF(OR($A67>n,AL$1>nSamps),"z",LOOKUP(INT(nPop*RAND()+1.5),$A$2:$A$425,$G$2:$G$425)) -> z | AM68: =IF(OR($A67>n,AM$1>nSamps),"z",LOOKUP(INT(nPop*RAND()+1.5),$A$2:$A$425,$G$2:$G$425)) -> z | AN68: =IF(OR($A67>n,AN$1>nSamps),"z",LOOKUP(INT(nPop*RAND()+1.5),$A$2:$A$425,$G$2:$G$425)) -> z | AO68: =IF(OR($A67>n,AO$1>nSamps),"z",LOOKUP(INT(nPop*RAND()+1.5),$A$2:$A$425,$G$2:$G$425)) -> z | AP68: =IF(OR($A67>n,AP$1>nSamps),"z",LOOKUP(INT(nPop*RAND()+1.5),$A$2:$A$425,$G$2:$G$425)) -> z | AQ68: =IF(OR($A67>n,AQ$1>nSamps),"z",LOOKUP(INT(nPop*RAND()+1.5),$A$2:$A$425,$G$2:$G$425)) -> z | AR68: =IF(OR($A67>n,AR$1>nSamps),"z",LOOKUP(INT(nPop*RAND()+1.5),$A$2:$A$425,$G$2:$G$425)) -> z | AS68: =IF(OR($A67>n,AS$1>nSamps),"z",LOOKUP(INT(nPop*RAND()+1.5),$A$2:$A$425,$G$2:$G$425)) -> z | AT68: =IF(OR($A67>n,AT$1>nSamps),"z",LOOKUP(INT(nPop*RAND()+1.5),$A$2:$A$425,$G$2:$G$425)) -> z | AU68: =IF(OR($A67>n,AU$1>nSamps),"z",LOOKUP(INT(nPop*RAND()+1.5),$A$2:$A$425,$G$2:$G$425)) -> z | AV68: =IF(OR($A67>n,AV$1>nSamps),"z",LOOKUP(INT(nPop*RAND()+1.5),$A$2:$A$425,$G$2:$G$425)) -> z | AW68: =IF(OR($A67>n,AW$1>nSamps),"z",LOOKUP(INT(nPop*RAND()+1.5),$A$2:$A$425,$G$2:$G$425)) -> z | AX68: =IF(OR($A67>n,AX$1>nSamps),"z",LOOKUP(INT(nPop*RAND()+1.5),$A$2:$A$425,$G$2:$G$425)) -> z | AY68: =IF(OR($A67>n,AY$1>nSamps),"z",LOOKUP(INT(nPop*RAND()+1.5),$A$2:$A$425,$G$2:$G$425)) -> z | AZ68: =IF(OR($A67>n,AZ$1>nSamps),"z",LOOKUP(INT(nPop*RAND()+1.5),$A$2:$A$425,$G$2:$G$425)) -> z | BA68: =IF(OR($A67>n,BA$1>nSamps),"z",LOOKUP(INT(nPop*RAND()+1.5),$A$2:$A$425,$G$2:$G$425)) -> z | BB68: =IF(OR($A67>n,BB$1>nSamps),"z",LOOKUP(INT(nPop*RAND()+1.5),$A$2:$A$425,$G$2:$G$425)) -> z | BC68: =IF(OR($A67>n,BC$1>nSamps),"z",LOOKUP(INT(nPop*RAND()+1.5),$A$2:$A$425,$G$2:$G$425)) -> z | BD68: =IF(OR($A67>n,BD$1>nSamps),"z",LOOKUP(INT(nPop*RAND()+1.5),$A$2:$A$425,$G$2:$G$425)) -> z | BE68: =IF(OR($A67>n,BE$1>nSamps),"z",LOOKUP(INT(nPop*RAND()+1.5),$A$2:$A$425,$G$2:$G$425)) -> z | BF68: =IF(OR($A67>n,BF$1>nSamps),"z",LOOKUP(INT(nPop*RAND()+1.5),$A$2:$A$425,$G$2:$G$425)) -> z | BG68: =IF(OR($A67>n,BG$1>nSamps),"z",LOOKUP(INT(nPop*RAND()+1.5),$A$2:$A$425,$G$2:$G$425)) -> z | BH68: =IF(OR($A67>n,BH$1>nSamps),"z",LOOKUP(INT(nPop*RAND()+1.5),$A$2:$A$425,$G$2:$G$425)) -> z | BI68: =IF(OR($A67>n,BI$1>nSamps),"z",LOOKUP(INT(nPop*RAND()+1.5),$A$2:$A$425,$G$2:$G$425)) -> z | BJ68: =IF(OR($A67>n,BJ$1>nSamps),"z",LOOKUP(INT(nPop*RAND()+1.5),$A$2:$A$425,$G$2:$G$425)) -> z | BK68: =IF(OR($A67>n,BK$1>nSamps),"z",LOOKUP(INT(nPop*RAND()+1.5),$A$2:$A$425,$G$2:$G$425)) -> z | BL68: =IF(OR($A67>n,BL$1>nSamps),"z",LOOKUP(INT(nPop*RAND()+1.5),$A$2:$A$425,$G$2:$G$425)) -> z | BM68: =IF(OR($A67>n,BM$1>nSamps),"z",LOOKUP(INT(nPop*RAND()+1.5),$A$2:$A$425,$G$2:$G$425)) -> z | BN68: =IF(OR($A67>n,BN$1>nSamps),"z",LOOKUP(INT(nPop*RAND()+1.5),$A$2:$A$425,$G$2:$G$425)) -> z | BO68: =IF(OR($A67>n,BO$1>nSamps),"z",LOOKUP(INT(nPop*RAND()+1.5),$A$2:$A$425,$G$2:$G$425)) -> z | BP68: =IF(OR($A67>n,BP$1>nSamps),"z",LOOKUP(INT(nPop*RAND()+1.5),$A$2:$A$425,$G$2:$G$425)) -> z | BQ68: =IF(OR($A67>n,BQ$1>nSamps),"z",LOOKUP(INT(nPop*RAND()+1.5),$A$2:$A$425,$G$2:$G$425)) -> z | BR68: =IF(OR($A67>n,BR$1>nSamps),"z",LOOKUP(INT(nPop*RAND()+1.5),$A$2:$A$425,$G$2:$G$425)) -> z | BS68: =IF(OR($A67>n,BS$1>nSamps),"z",LOOKUP(INT(nPop*RAND()+1.5),$A$2:$A$425,$G$2:$G$425)) -> z | BT68: =IF(OR($A67>n,BT$1>nSamps),"z",LOOKUP(INT(nPop*RAND()+1.5),$A$2:$A$425,$G$2:$G$425)) -> z | BU68: =IF(OR($A67>n,BU$1>nSamps),"z",LOOKUP(INT(nPop*RAND()+1.5),$A$2:$A$425,$G$2:$G$425)) -> z | BV68: =IF(OR($A67>n,BV$1>nSamps),"z",LOOKUP(INT(nPop*RAND()+1.5),$A$2:$A$425,$G$2:$G$425)) -> z | BW68: =IF(OR($A67>n,BW$1>nSamps),"z",LOOKUP(INT(nPop*RAND()+1.5),$A$2:$A$425,$G$2:$G$425)) -> z | BX68: =IF(OR($A67>n,BX$1>nSamps),"z",LOOKUP(INT(nPop*RAND()+1.5),$A$2:$A$425,$G$2:$G$425)) -> z | BY68: =IF(OR($A67>n,BY$1>nSamps),"z",LOOKUP(INT(nPop*RAND()+1.5),$A$2:$A$425,$G$2:$G$425)) -> z | BZ68: =IF(OR($A67>n,BZ$1>nSamps),"z",LOOKUP(INT(nPop*RAND()+1.5),$A$2:$A$425,$G$2:$G$425)) -> z | CA68: =IF(OR($A67>n,CA$1>nSamps),"z",LOOKUP(INT(nPop*RAND()+1.5),$A$2:$A$425,$G$2:$G$425)) -> z | CB68: =IF(OR($A67>n,CB$1>nSamps),"z",LOOKUP(INT(nPop*RAND()+1.5),$A$2:$A$425,$G$2:$G$425)) -> z | CC68: =IF(OR($A67>n,CC$1>nSamps),"z",LOOKUP(INT(nPop*RAND()+1.5),$A$2:$A$425,$G$2:$G$425)) -> z | CD68: =IF(OR($A67>n,CD$1>nSamps),"z",LOOKUP(INT(nPop*RAND()+1.5),$A$2:$A$425,$G$2:$G$425)) -> z | CE68: =IF(OR($A67>n,CE$1>nSamps),"z",LOOKUP(INT(nPop*RAND()+1.5),$A$2:$A$425,$G$2:$G$425)) -> z | CF68: =IF(OR($A67>n,CF$1>nSamps),"z",LOOKUP(INT(nPop*RAND()+1.5),$A$2:$A$425,$G$2:$G$425)) -> z | CG68: =IF(OR($A67>n,CG$1>nSamps),"z",LOOKUP(INT(nPop*RAND()+1.5),$A$2:$A$425,$G$2:$G$425)) -> z | CH68: =IF(OR($A67>n,CH$1>nSamps),"z",LOOKUP(INT(nPop*RAND()+1.5),$A$2:$A$425,$G$2:$G$425)) -> z | CI68: =IF(OR($A67>n,CI$1>nSamps),"z",LOOKUP(INT(nPop*RAND()+1.5),$A$2:$A$425,$G$2:$G$425)) -> z | CJ68: =IF(OR($A67>n,CJ$1>nSamps),"z",LOOKUP(INT(nPop*RAND()+1.5),$A$2:$A$425,$G$2:$G$425)) -> z | CK68: =IF(OR($A67>n,CK$1>nSamps),"z",LOOKUP(INT(nPop*RAND()+1.5),$A$2:$A$425,$G$2:$G$425)) -> z | CL68: =IF(OR($A67>n,CL$1>nSamps),"z",LOOKUP(INT(nPop*RAND()+1.5),$A$2:$A$425,$G$2:$G$425)) -> z | CM68: =IF(OR($A67>n,CM$1>nSamps),"z",LOOKUP(INT(nPop*RAND()+1.5),$A$2:$A$425,$G$2:$G$425)) -> z | CN68: =IF(OR($A67>n,CN$1>nSamps),"z",LOOKUP(INT(nPop*RAND()+1.5),$A$2:$A$425,$G$2:$G$425)) -> z | CO68: =IF(OR($A67>n,CO$1>nSamps),"z",LOOKUP(INT(nPop*RAND()+1.5),$A$2:$A$425,$G$2:$G$425)) -> z | CP68: =IF(OR($A67>n,CP$1>nSamps),"z",LOOKUP(INT(nPop*RAND()+1.5),$A$2:$A$425,$G$2:$G$425)) -> z | CQ68: =IF(OR($A67>n,CQ$1>nSamps),"z",LOOKUP(INT(nPop*RAND()+1.5),$A$2:$A$425,$G$2:$G$425)) -> z | CR68: =IF(OR($A67>n,CR$1>nSamps),"z",LOOKUP(INT(nPop*RAND()+1.5),$A$2:$A$425,$G$2:$G$425)) -> z | CS68: =IF(OR($A67>n,CS$1>nSamps),"z",LOOKUP(INT(nPop*RAND()+1.5),$A$2:$A$425,$G$2:$G$425)) -> z | CT68: =IF(OR($A67>n,CT$1>nSamps),"z",LOOKUP(INT(nPop*RAND()+1.5),$A$2:$A$425,$G$2:$G$425)) -> z | CU68: =IF(OR($A67>n,CU$1>nSamps),"z",LOOKUP(INT(nPop*RAND()+1.5),$A$2:$A$425,$G$2:$G$425)) -> z | CV68: =IF(OR($A67>n,CV$1>nSamps),"z",LOOKUP(INT(nPop*RAND()+1.5),$A$2:$A$425,$G$2:$G$425)) -> z | CW68: =IF(OR($A67>n,CW$1>nSamps),"z",LOOKUP(INT(nPop*RAND()+1.5),$A$2:$A$425,$G$2:$G$425)) -> z | CX68: =IF(OR($A67>n,CX$1>nSamps),"z",LOOKUP(INT(nPop*RAND()+1.5),$A$2:$A$425,$G$2:$G$425)) -> z | CY68: =IF(OR($A67>n,CY$1>nSamps),"z",LOOKUP(INT(nPop*RAND()+1.5),$A$2:$A$425,$G$2:$G$425)) -> z | CZ68: =IF(OR($A67>n,CZ$1>nSamps),"z",LOOKUP(INT(nPop*RAND()+1.5),$A$2:$A$425,$G$2:$G$425)) -> z | DA68: =IF(OR($A67>n,DA$1>nSamps),"z",LOOKUP(INT(nPop*RAND()+1.5),$A$2:$A$425,$G$2:$G$425)) -> z | DB68: =IF(OR($A67>n,DB$1>nSamps),"z",LOOKUP(INT(nPop*RAND()+1.5),$A$2:$A$425,$G$2:$G$425)) -> z | DC68: =IF(OR($A67>n,DC$1>nSamps),"z",LOOKUP(INT(nPop*RAND()+1.5),$A$2:$A$425,$G$2:$G$425)) -> z | DD68: =IF(OR($A67>n,DD$1>nSamps),"z",LOOKUP(INT(nPop*RAND()+1.5),$A$2:$A$425,$G$2:$G$425)) -> z | DE68: =IF(OR($A67>n,DE$1>nSamps),"z",LOOKUP(INT(nPop*RAND()+1.5),$A$2:$A$425,$G$2:$G$425)) -> z | DF68: =IF(OR($A67>n,DF$1>nSamps),"z",LOOKUP(INT(nPop*RAND()+1.5),$A$2:$A$425,$G$2:$G$425)) -> z | DG68: =IF(OR($A67>n,DG$1>nSamps),"z",LOOKUP(INT(nPop*RAND()+1.5),$A$2:$A$425,$G$2:$G$425)) -> z | DH68: =IF(OR($A67>n,DH$1>nSamps),"z",LOOKUP(INT(nPop*RAND()+1.5),$A$2:$A$425,$G$2:$G$425)) -> z | DI68: =IF(OR($A67>n,DI$1>nSamps),"z",LOOKUP(INT(nPop*RAND()+1.5),$A$2:$A$425,$G$2:$G$425)) -> z | DJ68: =IF(OR($A67>n,DJ$1>nSamps),"z",LOOKUP(INT(nPop*RAND()+1.5),$A$2:$A$425,$G$2:$G$425)) -> z | DK68: =IF(OR($A67>n,DK$1>nSamps),"z",LOOKUP(INT(nPop*RAND()+1.5),$A$2:$A$425,$G$2:$G$425)) -> z | DL68: =IF(OR($A67>n,DL$1>nSamps),"z",LOOKUP(INT(nPop*RAND()+1.5),$A$2:$A$425,$G$2:$G$425)) -> z | DM68: =IF(OR($A67>n,DM$1>nSamps),"z",LOOKUP(INT(nPop*RAND()+1.5),$A$2:$A$425,$G$2:$G$425)) -> z | DN68: =IF(OR($A67>n,DN$1>nSamps),"z",LOOKUP(INT(nPop*RAND()+1.5),$A$2:$A$425,$G$2:$G$425)) -> z | DO68: =IF(OR($A67>n,DO$1>nSamps),"z",LOOKUP(INT(nPop*RAND()+1.5),$A$2:$A$425,$G$2:$G$425)) -> z | DP68: =IF(OR($A67>n,DP$1>nSamps),"z",LOOKUP(INT(nPop*RAND()+1.5),$A$2:$A$425,$G$2:$G$425)) -> z | DQ68: =IF(OR($A67>n,DQ$1>nSamps),"z",LOOKUP(INT(nPop*RAND()+1.5),$A$2:$A$425,$G$2:$G$425)) -> z | DR68: =IF(OR($A67>n,DR$1>nSamps),"z",LOOKUP(INT(nPop*RAND()+1.5),$A$2:$A$425,$G$2:$G$425)) -> z | DS68: =IF(OR($A67>n,DS$1>nSamps),"z",LOOKUP(INT(nPop*RAND()+1.5),$A$2:$A$425,$G$2:$G$425)) -> z | DT68: =IF(OR($A67>n,DT$1>nSamps),"z",LOOKUP(INT(nPop*RAND()+1.5),$A$2:$A$425,$G$2:$G$425)) -> z | DU68: =IF(OR($A67>n,DU$1>nSamps),"z",LOOKUP(INT(nPop*RAND()+1.5),$A$2:$A$425,$G$2:$G$425)) -> z | DV68: =IF(OR($A67>n,DV$1>nSamps),"z",LOOKUP(INT(nPop*RAND()+1.5),$A$2:$A$425,$G$2:$G$425)) -> z | DW68: =IF(OR($A67>n,DW$1>nSamps),"z",LOOKUP(INT(nPop*RAND()+1.5),$A$2:$A$425,$G$2:$G$425)) -> z | DX68: =IF(OR($A67>n,DX$1>nSamps),"z",LOOKUP(INT(nPop*RAND()+1.5),$A$2:$A$425,$G$2:$G$425)) -> z | DY68: =IF(OR($A67>n,DY$1>nSamps),"z",LOOKUP(INT(nPop*RAND()+1.5),$A$2:$A$425,$G$2:$G$425)) -> z | DZ68: =IF(OR($A67>n,DZ$1>nSamps),"z",LOOKUP(INT(nPop*RAND()+1.5),$A$2:$A$425,$G$2:$G$425)) -> z | EA68: =IF(OR($A67>n,EA$1>nSamps),"z",LOOKUP(INT(nPop*RAND()+1.5),$A$2:$A$425,$G$2:$G$425)) -> z | EB68: =IF(OR($A67>n,EB$1>nSamps),"z",LOOKUP(INT(nPop*RAND()+1.5),$A$2:$A$425,$G$2:$G$425)) -> z | EC68: =IF(OR($A67>n,EC$1>nSamps),"z",LOOKUP(INT(nPop*RAND()+1.5),$A$2:$A$425,$G$2:$G$425)) -> z | ED68: =IF(OR($A67>n,ED$1>nSamps),"z",LOOKUP(INT(nPop*RAND()+1.5),$A$2:$A$425,$G$2:$G$425)) -> z | EE68: =IF(OR($A67>n,EE$1>nSamps),"z",LOOKUP(INT(nPop*RAND()+1.5),$A$2:$A$425,$G$2:$G$425)) -> z | EF68: =IF(OR($A67>n,EF$1>nSamps),"z",LOOKUP(INT(nPop*RAND()+1.5),$A$2:$A$425,$G$2:$G$425)) -> z | EG68: =IF(OR($A67>n,EG$1>nSamps),"z",LOOKUP(INT(nPop*RAND()+1.5),$A$2:$A$425,$G$2:$G$425)) -> z | EH68: =IF(OR($A67>n,EH$1>nSamps),"z",LOOKUP(INT(nPop*RAND()+1.5),$A$2:$A$425,$G$2:$G$425)) -> z | EI68: =IF(OR($A67>n,EI$1>nSamps),"z",LOOKUP(INT(nPop*RAND()+1.5),$A$2:$A$425,$G$2:$G$425)) -> z | EJ68: =IF(OR($A67>n,EJ$1>nSamps),"z",LOOKUP(INT(nPop*RAND()+1.5),$A$2:$A$425,$G$2:$G$425)) -> z | EK68: =IF(OR($A67>n,EK$1>nSamps),"z",LOOKUP(INT(nPop*RAND()+1.5),$A$2:$A$425,$G$2:$G$425)) -> z | EL68: =IF(OR($A67>n,EL$1>nSamps),"z",LOOKUP(INT(nPop*RAND()+1.5),$A$2:$A$425,$G$2:$G$425)) -> z | EM68: =IF(OR($A67>n,EM$1>nSamps),"z",LOOKUP(INT(nPop*RAND()+1.5),$A$2:$A$425,$G$2:$G$425)) -> z | EN68: =IF(OR($A67>n,EN$1>nSamps),"z",LOOKUP(INT(nPop*RAND()+1.5),$A$2:$A$425,$G$2:$G$425)) -> z | EO68: =IF(OR($A67>n,EO$1>nSamps),"z",LOOKUP(INT(nPop*RAND()+1.5),$A$2:$A$425,$G$2:$G$425)) -> z | EP68: =IF(OR($A67>n,EP$1>nSamps),"z",LOOKUP(INT(nPop*RAND()+1.5),$A$2:$A$425,$G$2:$G$425)) -> z | EQ68: =IF(OR($A67>n,EQ$1>nSamps),"z",LOOKUP(INT(nPop*RAND()+1.5),$A$2:$A$425,$G$2:$G$425)) -> z | ER68: =IF(OR($A67>n,ER$1>nSamps),"z",LOOKUP(INT(nPop*RAND()+1.5),$A$2:$A$425,$G$2:$G$425)) -> z | ES68: =IF(OR($A67>n,ES$1>nSamps),"z",LOOKUP(INT(nPop*RAND()+1.5),$A$2:$A$425,$G$2:$G$425)) -> z | ET68: =IF(OR($A67>n,ET$1>nSamps),"z",LOOKUP(INT(nPop*RAND()+1.5),$A$2:$A$425,$G$2:$G$425)) -> z | EU68: =IF(OR($A67>n,EU$1>nSamps),"z",LOOKUP(INT(nPop*RAND()+1.5),$A$2:$A$425,$G$2:$G$425)) -> z | EV68: =IF(OR($A67>n,EV$1>nSamps),"z",LOOKUP(INT(nPop*RAND()+1.5),$A$2:$A$425,$G$2:$G$425)) -> z | EW68: =IF(OR($A67>n,EW$1>nSamps),"z",LOOKUP(INT(nPop*RAND()+1.5),$A$2:$A$425,$G$2:$G$425)) -> z | EX68: =IF(OR($A67>n,EX$1>nSamps),"z",LOOKUP(INT(nPop*RAND()+1.5),$A$2:$A$425,$G$2:$G$425)) -> z | EY68: =IF(OR($A67>n,EY$1>nSamps),"z",LOOKUP(INT(nPop*RAND()+1.5),$A$2:$A$425,$G$2:$G$425)) -> z | EZ68: =IF(OR($A67>n,EZ$1>nSamps),"z",LOOKUP(INT(nPop*RAND()+1.5),$A$2:$A$425,$G$2:$G$425)) -> z | FA68: =IF(OR($A67>n,FA$1>nSamps),"z",LOOKUP(INT(nPop*RAND()+1.5),$A$2:$A$425,$G$2:$G$425)) -> z | FB68: =IF(OR($A67>n,FB$1>nSamps),"z",LOOKUP(INT(nPop*RAND()+1.5),$A$2:$A$425,$G$2:$G$425)) -> z | FC68: =IF(OR($A67>n,FC$1>nSamps),"z",LOOKUP(INT(nPop*RAND()+1.5),$A$2:$A$425,$G$2:$G$425)) -> z | FD68: =IF(OR($A67>n,FD$1>nSamps),"z",LOOKUP(INT(nPop*RAND()+1.5),$A$2:$A$425,$G$2:$G$425)) -> z | FE68: =IF(OR($A67>n,FE$1>nSamps),"z",LOOKUP(INT(nPop*RAND()+1.5),$A$2:$A$425,$G$2:$G$425)) -> z | FF68: =IF(OR($A67>n,FF$1>nSamps),"z",LOOKUP(INT(nPop*RAND()+1.5),$A$2:$A$425,$G$2:$G$425)) -> z | FG68: =IF(OR($A67>n,FG$1>nSamps),"z",LOOKUP(INT(nPop*RAND()+1.5),$A$2:$A$425,$G$2:$G$425)) -> z | FH68: =IF(OR($A67>n,FH$1>nSamps),"z",LOOKUP(INT(nPop*RAND()+1.5),$A$2:$A$425,$G$2:$G$425)) -> z | FI68: =IF(OR($A67>n,FI$1>nSamps),"z",LOOKUP(INT(nPop*RAND()+1.5),$A$2:$A$425,$G$2:$G$425)) -> z | FJ68: =IF(OR($A67>n,FJ$1>nSamps),"z",LOOKUP(INT(nPop*RAND()+1.5),$A$2:$A$425,$G$2:$G$425)) -> z | FK68: =IF(OR($A67>n,FK$1>nSamps),"z",LOOKUP(INT(nPop*RAND()+1.5),$A$2:$A$425,$G$2:$G$425)) -> z | FL68: =IF(OR($A67>n,FL$1>nSamps),"z",LOOKUP(INT(nPop*RAND()+1.5),$A$2:$A$425,$G$2:$G$425)) -> z | FM68: =IF(OR($A67>n,FM$1>nSamps),"z",LOOKUP(INT(nPop*RAND()+1.5),$A$2:$A$425,$G$2:$G$425)) -> z | FN68: =IF(OR($A67>n,FN$1>nSamps),"z",LOOKUP(INT(nPop*RAND()+1.5),$A$2:$A$425,$G$2:$G$425)) -> z | FO68: =IF(OR($A67>n,FO$1>nSamps),"z",LOOKUP(INT(nPop*RAND()+1.5),$A$2:$A$425,$G$2:$G$425)) -> z | FP68: =IF(OR($A67>n,FP$1>nSamps),"z",LOOKUP(INT(nPop*RAND()+1.5),$A$2:$A$425,$G$2:$G$425)) -> z | FQ68: =IF(OR($A67>n,FQ$1>nSamps),"z",LOOKUP(INT(nPop*RAND()+1.5),$A$2:$A$425,$G$2:$G$425)) -> z | FR68: =IF(OR($A67>n,FR$1>nSamps),"z",LOOKUP(INT(nPop*RAND()+1.5),$A$2:$A$425,$G$2:$G$425)) -> z | FS68: =IF(OR($A67>n,FS$1>nSamps),"z",LOOKUP(INT(nPop*RAND()+1.5),$A$2:$A$425,$G$2:$G$425)) -> z | FT68: =IF(OR($A67>n,FT$1>nSamps),"z",LOOKUP(INT(nPop*RAND()+1.5),$A$2:$A$425,$G$2:$G$425)) -> z | FU68: =IF(OR($A67>n,FU$1>nSamps),"z",LOOKUP(INT(nPop*RAND()+1.5),$A$2:$A$425,$G$2:$G$425)) -> z | FV68: =IF(OR($A67>n,FV$1>nSamps),"z",LOOKUP(INT(nPop*RAND()+1.5),$A$2:$A$425,$G$2:$G$425)) -> z | FW68: =IF(OR($A67>n,FW$1>nSamps),"z",LOOKUP(INT(nPop*RAND()+1.5),$A$2:$A$425,$G$2:$G$425)) -> z | FX68: =IF(OR($A67>n,FX$1>nSamps),"z",LOOKUP(INT(nPop*RAND()+1.5),$A$2:$A$425,$G$2:$G$425)) -> z | FY68: =IF(OR($A67>n,FY$1>nSamps),"z",LOOKUP(INT(nPop*RAND()+1.5),$A$2:$A$425,$G$2:$G$425)) -> z | FZ68: =IF(OR($A67>n,FZ$1>nSamps),"z",LOOKUP(INT(nPop*RAND()+1.5),$A$2:$A$425,$G$2:$G$425)) -> z | GA68: =IF(OR($A67>n,GA$1>nSamps),"z",LOOKUP(INT(nPop*RAND()+1.5),$A$2:$A$425,$G$2:$G$425)) -> z | GB68: =IF(OR($A67>n,GB$1>nSamps),"z",LOOKUP(INT(nPop*RAND()+1.5),$A$2:$A$425,$G$2:$G$425)) -> z | GC68: =IF(OR($A67>n,GC$1>nSamps),"z",LOOKUP(INT(nPop*RAND()+1.5),$A$2:$A$425,$G$2:$G$425)) -> z | GD68: =IF(OR($A67>n,GD$1>nSamps),"z",LOOKUP(INT(nPop*RAND()+1.5),$A$2:$A$425,$G$2:$G$425)) -> z | GE68: =IF(OR($A67>n,GE$1>nSamps),"z",LOOKUP(INT(nPop*RAND()+1.5),$A$2:$A$425,$G$2:$G$425)) -> z | GF68: =IF(OR($A67>n,GF$1>nSamps),"z",LOOKUP(INT(nPop*RAND()+1.5),$A$2:$A$425,$G$2:$G$425)) -> z | GG68: =IF(OR($A67>n,GG$1>nSamps),"z",LOOKUP(INT(nPop*RAND()+1.5),$A$2:$A$425,$G$2:$G$425)) -> z | GH68: =IF(OR($A67>n,GH$1>nSamps),"z",LOOKUP(INT(nPop*RAND()+1.5),$A$2:$A$425,$G$2:$G$425)) -> z | GI68: =IF(OR($A67>n,GI$1>nSamps),"z",LOOKUP(INT(nPop*RAND()+1.5),$A$2:$A$425,$G$2:$G$425)) -> z | GJ68: =IF(OR($A67>n,GJ$1>nSamps),"z",LOOKUP(INT(nPop*RAND()+1.5),$A$2:$A$425,$G$2:$G$425)) -> z | GK68: =IF(OR($A67>n,GK$1>nSamps),"z",LOOKUP(INT(nPop*RAND()+1.5),$A$2:$A$425,$G$2:$G$425)) -> z | GL68: =IF(OR($A67>n,GL$1>nSamps),"z",LOOKUP(INT(nPop*RAND()+1.5),$A$2:$A$425,$G$2:$G$425)) -> z | GM68: =IF(OR($A67>n,GM$1>nSamps),"z",LOOKUP(INT(nPop*RAND()+1.5),$A$2:$A$425,$G$2:$G$425)) -> z | GN68: =IF(OR($A67>n,GN$1>nSamps),"z",LOOKUP(INT(nPop*RAND()+1.5),$A$2:$A$425,$G$2:$G$425)) -> z | GO68: =IF(OR($A67>n,GO$1>nSamps),"z",LOOKUP(INT(nPop*RAND()+1.5),$A$2:$A$425,$G$2:$G$425)) -> z | GP68: =IF(OR($A67>n,GP$1>nSamps),"z",LOOKUP(INT(nPop*RAND()+1.5),$A$2:$A$425,$G$2:$G$425)) -> z | GQ68: =IF(OR($A67>n,GQ$1>nSamps),"z",LOOKUP(INT(nPop*RAND()+1.5),$A$2:$A$425,$G$2:$G$425)) -> z | GR68: =IF(OR($A67>n,GR$1>nSamps),"z",LOOKUP(INT(nPop*RAND()+1.5),$A$2:$A$425,$G$2:$G$425)) -> z | GS68: =IF(OR($A67>n,GS$1>nSamps),"z",LOOKUP(INT(nPop*RAND()+1.5),$A$2:$A$425,$G$2:$G$425)) -> z | GT68: =IF(OR($A67>n,GT$1>nSamps),"z",LOOKUP(INT(nPop*RAND()+1.5),$A$2:$A$425,$G$2:$G$425)) -> z | GU68: =IF(OR($A67>n,GU$1>nSamps),"z",LOOKUP(INT(nPop*RAND()+1.5),$A$2:$A$425,$G$2:$G$425)) -> z | GV68: =IF(OR($A67>n,GV$1>nSamps),"z",LOOKUP(INT(nPop*RAND()+1.5),$A$2:$A$425,$G$2:$G$425)) -> z | GW68: =IF(OR($A67>n,GW$1>nSamps),"z",LOOKUP(INT(nPop*RAND()+1.5),$A$2:$A$425,$G$2:$G$425)) -> z | GX68: =IF(OR($A67>n,GX$1>nSamps),"z",LOOKUP(INT(nPop*RAND()+1.5),$A$2:$A$425,$G$2:$G$425)) -> z | GY68: =IF(OR($A67>n,GY$1>nSamps),"z",LOOKUP(INT(nPop*RAND()+1.5),$A$2:$A$425,$G$2:$G$425)) -> z | GZ68: =IF(OR($A67>n,GZ$1>nSamps),"z",LOOKUP(INT(nPop*RAND()+1.5),$A$2:$A$425,$G$2:$G$425)) -> z | HA68: =IF(OR($A67>n,HA$1>nSamps),"z",LOOKUP(INT(nPop*RAND()+1.5),$A$2:$A$425,$G$2:$G$425)) -> z | HB68: =IF(OR($A67>n,HB$1>nSamps),"z",LOOKUP(INT(nPop*RAND()+1.5),$A$2:$A$425,$G$2:$G$425)) -> z | HC68: =IF(OR($A67>n,HC$1>nSamps),"z",LOOKUP(INT(nPop*RAND()+1.5),$A$2:$A$425,$G$2:$G$425)) -> z | HD68: =IF(OR($A67>n,HD$1>nSamps),"z",LOOKUP(INT(nPop*RAND()+1.5),$A$2:$A$425,$G$2:$G$425)) -> z | HE68: =IF(OR($A67>n,HE$1>nSamps),"z",LOOKUP(INT(nPop*RAND()+1.5),$A$2:$A$425,$G$2:$G$425)) -> z | HF68: =IF(OR($A67>n,HF$1>nSamps),"z",LOOKUP(INT(nPop*RAND()+1.5),$A$2:$A$425,$G$2:$G$425)) -> z | HG68: =IF(OR($A67>n,HG$1>nSamps),"z",LOOKUP(INT(nPop*RAND()+1.5),$A$2:$A$425,$G$2:$G$425)) -> z | HH68: =IF(OR($A67>n,HH$1>nSamps),"z",LOOKUP(INT(nPop*RAND()+1.5),$A$2:$A$425,$G$2:$G$425)) -> z | HI68: =IF(OR($A67>n,HI$1>nSamps),"z",LOOKUP(INT(nPop*RAND()+1.5),$A$2:$A$425,$G$2:$G$425)) -> z | HJ68: =IF(OR($A67>n,HJ$1>nSamps),"z",LOOKUP(INT(nPop*RAND()+1.5),$A$2:$A$425,$G$2:$G$425)) -> z | HK68: =IF(OR($A67>n,HK$1>nSamps),"z",LOOKUP(INT(nPop*RAND()+1.5),$A$2:$A$425,$G$2:$G$425)) -> z | HL68: =IF(OR($A67>n,HL$1>nSamps),"z",LOOKUP(INT(nPop*RAND()+1.5),$A$2:$A$425,$G$2:$G$425)) -> z | HM68: =IF(OR($A67>n,HM$1>nSamps),"z",LOOKUP(INT(nPop*RAND()+1.5),$A$2:$A$425,$G$2:$G$425)) -> z | HN68: =IF(OR($A67>n,HN$1>nSamps),"z",LOOKUP(INT(nPop*RAND()+1.5),$A$2:$A$425,$G$2:$G$425)) -> z | HO68: =IF(OR($A67>n,HO$1>nSamps),"z",LOOKUP(INT(nPop*RAND()+1.5),$A$2:$A$425,$G$2:$G$425)) -> z | HP68: =IF(OR($A67>n,HP$1>nSamps),"z",LOOKUP(INT(nPop*RAND()+1.5),$A$2:$A$425,$G$2:$G$425)) -> z | HQ68: =IF(OR($A67>n,HQ$1>nSamps),"z",LOOKUP(INT(nPop*RAND()+1.5),$A$2:$A$425,$G$2:$G$425)) -> z | HR68: =IF(OR($A67>n,HR$1>nSamps),"z",LOOKUP(INT(nPop*RAND()+1.5),$A$2:$A$425,$G$2:$G$425)) -> z | HS68: =IF(OR($A67>n,HS$1>nSamps),"z",LOOKUP(INT(nPop*RAND()+1.5),$A$2:$A$425,$G$2:$G$425)) -> z | HT68: =IF(OR($A67>n,HT$1>nSamps),"z",LOOKUP(INT(nPop*RAND()+1.5),$A$2:$A$425,$G$2:$G$425)) -> z | HU68: =IF(OR($A67>n,HU$1>nSamps),"z",LOOKUP(INT(nPop*RAND()+1.5),$A$2:$A$425,$G$2:$G$425)) -> z | HV68: =IF(OR($A67>n,HV$1>nSamps),"z",LOOKUP(INT(nPop*RAND()+1.5),$A$2:$A$425,$G$2:$G$425)) -> z | HW68: =IF(OR($A67>n,HW$1>nSamps),"z",LOOKUP(INT(nPop*RAND()+1.5),$A$2:$A$425,$G$2:$G$425)) -> z | HX68: =IF(OR($A67>n,HX$1>nSamps),"z",LOOKUP(INT(nPop*RAND()+1.5),$A$2:$A$425,$G$2:$G$425)) -> z | HY68: =IF(OR($A67>n,HY$1>nSamps),"z",LOOKUP(INT(nPop*RAND()+1.5),$A$2:$A$425,$G$2:$G$425)) -> z | HZ68: =IF(OR($A67>n,HZ$1>nSamps),"z",LOOKUP(INT(nPop*RAND()+1.5),$A$2:$A$425,$G$2:$G$425)) -> z | IA68: =IF(OR($A67>n,IA$1>nSamps),"z",LOOKUP(INT(nPop*RAND()+1.5),$A$2:$A$425,$G$2:$G$425)) -> z | IB68: =IF(OR($A67>n,IB$1>nSamps),"z",LOOKUP(INT(nPop*RAND()+1.5),$A$2:$A$425,$G$2:$G$425)) -> z | IC68: =IF(OR($A67>n,IC$1>nSamps),"z",LOOKUP(INT(nPop*RAND()+1.5),$A$2:$A$425,$G$2:$G$425)) -> z | ID68: =IF(OR($A67>n,ID$1>nSamps),"z",LOOKUP(INT(nPop*RAND()+1.5),$A$2:$A$425,$G$2:$G$425)) -> z | IE68: =IF(OR($A67>n,IE$1>nSamps),"z",LOOKUP(INT(nPop*RAND()+1.5),$A$2:$A$425,$G$2:$G$425)) -> z | IF68: =IF(OR($A67>n,IF$1>nSamps),"z",LOOKUP(INT(nPop*RAND()+1.5),$A$2:$A$425,$G$2:$G$425)) -> z | IG68: =IF(OR($A67>n,IG$1>nSamps),"z",LOOKUP(INT(nPop*RAND()+1.5),$A$2:$A$425,$G$2:$G$425)) -> z | IH68: =IF(OR($A67>n,IH$1>nSamps),"z",LOOKUP(INT(nPop*RAND()+1.5),$A$2:$A$425,$G$2:$G$425)) -> z | II68: =IF(OR($A67>n,II$1>nSamps),"z",LOOKUP(INT(nPop*RAND()+1.5),$A$2:$A$425,$G$2:$G$425)) -> z | IJ68: =IF(OR($A67>n,IJ$1>nSamps),"z",LOOKUP(INT(nPop*RAND()+1.5),$A$2:$A$425,$G$2:$G$425)) -> z | IK68: =IF(OR($A67>n,IK$1>nSamps),"z",LOOKUP(INT(nPop*RAND()+1.5),$A$2:$A$425,$G$2:$G$425)) -> z | IL68: =IF(OR($A67>n,IL$1>nSamps),"z",LOOKUP(INT(nPop*RAND()+1.5),$A$2:$A$425,$G$2:$G$425)) -> z | IM68: =IF(OR($A67>n,IM$1>nSamps),"z",LOOKUP(INT(nPop*RAND()+1.5),$A$2:$A$425,$G$2:$G$425)) -> z | IN68: =IF(OR($A67>n,IN$1>nSamps),"z",LOOKUP(INT(nPop*RAND()+1.5),$A$2:$A$425,$G$2:$G$425)) -> z
A69: 68 | B69: 65 | C69: 69 | D69: 71 | E69: 72 | F69: 72 | G69: 72 | I69: z | J69: z | K69: z | L69: z | M69: z | N69: z | O69: z | P69: z | Q69: z | R69: z | S69: z | T69: z | U69: z | V69: z | W69: z | X69: z | Y69: z | Z69: z | AA69: z | AB69: z | AC69: z | AD69: z | AE69: z | AF69: z | AG69: z | AH69: z | AI69: z | AJ69: z | AK69: z | AL69: z | AM69: z | AN69: z | AO69: z | AP69: z | AQ69: z | AR69: z | AS69: z | AT69: z | AU69: z | AV69: z | AW69: z | AX69: z | AY69: z | AZ69: z | BA69: z | BB69: z | BC69: z | BD69: z | BE69: z | BF69: z | BG69: z | BH69: z | BI69: z | BJ69: z | BK69: z | BL69: z | BM69: z | BN69: z | BO69: z | BP69: z | BQ69: z | BR69: z | BS69: z | BT69: z | BU69: z | BV69: z | BW69: z | BX69: z | BY69: z | BZ69: z | CA69: z | CB69: z | CC69: z | CD69: z | CE69: z | CF69: z | CG69: z | CH69: z | CI69: z | CJ69: z | CK69: z | CL69: z | CM69: z | CN69: z | CO69: z | CP69: z | CQ69: z | CR69: z | CS69: z | CT69: z | CU69: z | CV69: z | CW69: z | CX69: z | CY69: z | CZ69: z | DA69: z | DB69: z | DC69: z | DD69: z | DE69: z | DF69: z | DG69: z | DH69: z | DI69: z | DJ69: z | DK69: z | DL69: z | DM69: z | DN69: z | DO69: z | DP69: z | DQ69: z | DR69: z | DS69: z | DT69: z | DU69: z | DV69: z | DW69: z | DX69: z | DY69: z | DZ69: z | EA69: z | EB69: z | EC69: z | ED69: z | EE69: z | EF69: z | EG69: z | EH69: z | EI69: z | EJ69: z | EK69: z | EL69: z | EM69: z | EN69: z | EO69: z | EP69: z | EQ69: z | ER69: z | ES69: z | ET69: z | EU69: z | EV69: z | EW69: z | EX69: z | EY69: z | EZ69: z | FA69: z | FB69: z | FC69: z | FD69: z | FE69: z | FF69: z | FG69: z | FH69: z | FI69: z | FJ69: z | FK69: z | FL69: z | FM69: z | FN69: z | FO69: z | FP69: z | FQ69: z | FR69: z | FS69: z | FT69: z | FU69: z | FV69: z | FW69: z | FX69: z | FY69: z | FZ69: z | GA69: z | GB69: z | GC69: z | GD69: z | GE69: z | GF69: z | GG69: z | GH69: z | GI69: z | GJ69: z | GK69: z | GL69: z | GM69: z | GN69: z | GO69: z | GP69: z | GQ69: z | GR69: z | GS69: z | GT69: z | GU69: z | GV69: z | GW69: z | GX69: z | GY69: z | GZ69: z | HA69: z | HB69: z | HC69: z | HD69: z | HE69: z | HF69: z | HG69: z | HH69: z | HI69: z | HJ69: z | HK69: z | HL69: z | HM69: z | HN69: z | HO69: z | HP69: z | HQ69: z | HR69: z | HS69: z | HT69: z | HU69: z | HV69: z | HW69: z | HX69: z | HY69: z | HZ69: z | IA69: z | IB69: z | IC69: z | ID69: z | IE69: z | IF69: z | IG69: z | IH69: z | II69: z | IJ69: z | IK69: z | IL69: z | IM69: z | IN69: z
A70: 69 | B70: 66 | C70: 61 | D70: 61 | E70: 64 | F70: 64 | G70: 64 | I70: z | J70: z | K70: z | L70: z | M70: z | N70: z | O70: z | P70: z | Q70: z | R70: z | S70: z | T70: z | U70: z | V70: z | W70: z | X70: z | Y70: z | Z70: z | AA70: z | AB70: z | AC70: z | AD70: z | AE70: z | AF70: z | AG70: z | AH70: z | AI70: z | AJ70: z | AK70: z | AL70: z | AM70: z | AN70: z | AO70: z | AP70: z | AQ70: z | AR70: z | AS70: z | AT70: z | AU70: z | AV70: z | AW70: z | AX70: z | AY70: z | AZ70: z | BA70: z | BB70: z | BC70: z | BD70: z | BE70: z | BF70: z | BG70: z | BH70: z | BI70: z | BJ70: z | BK70: z | BL70: z | BM70: z | BN70: z | BO70: z | BP70: z | BQ70: z | BR70: z | BS70: z | BT70: z | BU70: z | BV70: z | BW70: z | BX70: z | BY70: z | BZ70: z | CA70: z | CB70: z | CC70: z | CD70: z | CE70: z | CF70: z | CG70: z | CH70: z | CI70: z | CJ70: z | CK70: z | CL70: z | CM70: z | CN70: z | CO70: z | CP70: z | CQ70: z | CR70: z | CS70: z | CT70: z | CU70: z | CV70: z | CW70: z | CX70: z | CY70: z | CZ70: z | DA70: z | DB70: z | DC70: z | DD70: z | DE70: z | DF70: z | DG70: z | DH70: z | DI70: z | DJ70: z | DK70: z | DL70: z | DM70: z | DN70: z | DO70: z | DP70: z | DQ70: z | DR70: z | DS70: z | DT70: z | DU70: z | DV70: z | DW70: z | DX70: z | DY70: z | DZ70: z | EA70: z | EB70: z | EC70: z | ED70: z | EE70: z | EF70: z | EG70: z | EH70: z | EI70: z | EJ70: z | EK70: z | EL70: z | EM70: z | EN70: z | EO70: z | EP70: z | EQ70: z | ER70: z | ES70: z | ET70: z | EU70: z | EV70: z | EW70: z | EX70: z | EY70: z | EZ70: z | FA70: z | FB70: z | FC70: z | FD70: z | FE70: z | FF70: z | FG70: z | FH70: z | FI70: z | FJ70: z | FK70: z | FL70: z | FM70: z | FN70: z | FO70: z | FP70: z | FQ70: z | FR70: z | FS70: z | FT70: z | FU70: z | FV70: z | FW70: z | FX70: z | FY70: z | FZ70: z | GA70: z | GB70: z | GC70: z | GD70: z | GE70: z | GF70: z | GG70: z | GH70: z | GI70: z | GJ70: z | GK70: z | GL70: z | GM70: z | GN70: z | GO70: z | GP70: z | GQ70: z | GR70: z | GS70: z | GT70: z | GU70: z | GV70: z | GW70: z | GX70: z | GY70: z | GZ70: z | HA70: z | HB70: z | HC70: z | HD70: z | HE70: z | HF70: z | HG70: z | HH70: z | HI70: z | HJ70: z | HK70: z | HL70: z | HM70: z | HN70: z | HO70: z | HP70: z | HQ70: z | HR70: z | HS70: z | HT70: z | HU70: z | HV70: z | HW70: z | HX70: z | HY70: z | HZ70: z | IA70: z | IB70: z | IC70: z | ID70: z | IE70: z | IF70: z | IG70: z | IH70: z | II70: z | IJ70: z | IK70: z | IL70: z | IM70: z | IN70: z
A71: 70 | B71: 66 | C71: 61 | D71: 61 | E71: 64 | F71: 64 | G71: 64 | I71: z | J71: z | K71: z | L71: z | M71: z | N71: z | O71: z | P71: z | Q71: z | R71: z | S71: z | T71: z | U71: z | V71: z | W71: z | X71: z | Y71: z | Z71: z | AA71: z | AB71: z | AC71: z | AD71: z | AE71: z | AF71: z | AG71: z | AH71: z | AI71: z | AJ71: z | AK71: z | AL71: z | AM71: z | AN71: z | AO71: z | AP71: z | AQ71: z | AR71: z | AS71: z | AT71: z | AU71: z | AV71: z | AW71: z | AX71: z | AY71: z | AZ71: z | BA71: z | BB71: z | BC71: z | BD71: z | BE71: z | BF71: z | BG71: z | BH71: z | BI71: z | BJ71: z | BK71: z | BL71: z | BM71: z | BN71: z | BO71: z | BP71: z | BQ71: z | BR71: z | BS71: z | BT71: z | BU71: z | BV71: z | BW71: z | BX71: z | BY71: z | BZ71: z | CA71: z | CB71: z | CC71: z | CD71: z | CE71: z | CF71: z | CG71: z | CH71: z | CI71: z | CJ71: z | CK71: z | CL71: z | CM71: z | CN71: z | CO71: z | CP71: z | CQ71: z | CR71: z | CS71: z | CT71: z | CU71: z | CV71: z | CW71: z | CX71: z | CY71: z | CZ71: z | DA71: z | DB71: z | DC71: z | DD71: z | DE71: z | DF71: z | DG71: z | DH71: z | DI71: z | DJ71: z | DK71: z | DL71: z | DM71: z | DN71: z | DO71: z | DP71: z | DQ71: z | DR71: z | DS71: z | DT71: z | DU71: z | DV71: z | DW71: z | DX71: z | DY71: z | DZ71: z | EA71: z | EB71: z | EC71: z | ED71: z | EE71: z | EF71: z | EG71: z | EH71: z | EI71: z | EJ71: z | EK71: z | EL71: z | EM71: z | EN71: z | EO71: z | EP71: z | EQ71: z | ER71: z | ES71: z | ET71: z | EU71: z | EV71: z | EW71: z | EX71: z | EY71: z | EZ71: z | FA71: z | FB71: z | FC71: z | FD71: z | FE71: z | FF71: z | FG71: z | FH71: z | FI71: z | FJ71: z | FK71: z | FL71: z | FM71: z | FN71: z | FO71: z | FP71: z | FQ71: z | FR71: z | FS71: z | FT71: z | FU71: z | FV71: z | FW71: z | FX71: z | FY71: z | FZ71: z | GA71: z | GB71: z | GC71: z | GD71: z | GE71: z | GF71: z | GG71: z | GH71: z | GI71: z | GJ71: z | GK71: z | GL71: z | GM71: z | GN71: z | GO71: z | GP71: z | GQ71: z | GR71: z | GS71: z | GT71: z | GU71: z | GV71: z | GW71: z | GX71: z | GY71: z | GZ71: z | HA71: z | HB71: z | HC71: z | HD71: z | HE71: z | HF71: z | HG71: z | HH71: z | HI71: z | HJ71: z | HK71: z | HL71: z | HM71: z | HN71: z | HO71: z | HP71: z | HQ71: z | HR71: z | HS71: z | HT71: z | HU71: z | HV71: z | HW71: z | HX71: z | HY71: z | HZ71: z | IA71: z | IB71: z | IC71: z | ID71: z | IE71: z | IF71: z | IG71: z | IH71: z | II71: z | IJ71: z | IK71: z | IL71: z | IM71: z | IN71: z
A72: 71 | B72: 66 | C72: 61 | D72: 61 | E72: 64 | F72: 64 | G72: 64 | I72: z | J72: z | K72: z | L72: z | M72: z | N72: z | O72: z | P72: z | Q72: z | R72: z | S72: z | T72: z | U72: z | V72: z | W72: z | X72: z | Y72: z | Z72: z | AA72: z | AB72: z | AC72: z | AD72: z | AE72: z | AF72: z | AG72: z | AH72: z | AI72: z | AJ72: z | AK72: z | AL72: z | AM72: z | AN72: z | AO72: z | AP72: z | AQ72: z | AR72: z | AS72: z | AT72: z | AU72: z | AV72: z | AW72: z | AX72: z | AY72: z | AZ72: z | BA72: z | BB72: z | BC72: z | BD72: z | BE72: z | BF72: z | BG72: z | BH72: z | BI72: z | BJ72: z | BK72: z | BL72: z | BM72: z | BN72: z | BO72: z | BP72: z | BQ72: z | BR72: z | BS72: z | BT72: z | BU72: z | BV72: z | BW72: z | BX72: z | BY72: z | BZ72: z | CA72: z | CB72: z | CC72: z | CD72: z | CE72: z | CF72: z | CG72: z | CH72: z | CI72: z | CJ72: z | CK72: z | CL72: z | CM72: z | CN72: z | CO72: z | CP72: z | CQ72: z | CR72: z | CS72: z | CT72: z | CU72: z | CV72: z | CW72: z | CX72: z | CY72: z | CZ72: z | DA72: z | DB72: z | DC72: z | DD72: z | DE72: z | DF72: z | DG72: z | DH72: z | DI72: z | DJ72: z | DK72: z | DL72: z | DM72: z | DN72: z | DO72: z | DP72: z | DQ72: z | DR72: z | DS72: z | DT72: z | DU72: z | DV72: z | DW72: z | DX72: z | DY72: z | DZ72: z | EA72: z | EB72: z | EC72: z | ED72: z | EE72: z | EF72: z | EG72: z | EH72: z | EI72: z | EJ72: z | EK72: z | EL72: z | EM72: z | EN72: z | EO72: z | EP72: z | EQ72: z | ER72: z | ES72: z | ET72: z | EU72: z | EV72: z | EW72: z | EX72: z | EY72: z | EZ72: z | FA72: z | FB72: z | FC72: z | FD72: z | FE72: z | FF72: z | FG72: z | FH72: z | FI72: z | FJ72: z | FK72: z | FL72: z | FM72: z | FN72: z | FO72: z | FP72: z | FQ72: z | FR72: z | FS72: z | FT72: z | FU72: z | FV72: z | FW72: z | FX72: z | FY72: z | FZ72: z | GA72: z | GB72: z | GC72: z | GD72: z | GE72: z | GF72: z | GG72: z | GH72: z | GI72: z | GJ72: z | GK72: z | GL72: z | GM72: z | GN72: z | GO72: z | GP72: z | GQ72: z | GR72: z | GS72: z | GT72: z | GU72: z | GV72: z | GW72: z | GX72: z | GY72: z | GZ72: z | HA72: z | HB72: z | HC72: z | HD72: z | HE72: z | HF72: z | HG72: z | HH72: z | HI72: z | HJ72: z | HK72: z | HL72: z | HM72: z | HN72: z | HO72: z | HP72: z | HQ72: z | HR72: z | HS72: z | HT72: z | HU72: z | HV72: z | HW72: z | HX72: z | HY72: z | HZ72: z | IA72: z | IB72: z | IC72: z | ID72: z | IE72: z | IF72: z | IG72: z | IH72: z | II72: z | IJ72: z | IK72: z | IL72: z | IM72: z | IN72: z
A73: 72 | B73: 66 | C73: 61 | D73: 61 | E73: 64 | F73: 64 | G73: 64 | I73: z | J73: z | K73: z | L73: z | M73: z | N73: z | O73: z | P73: z | Q73: z | R73: z | S73: z | T73: z | U73: z | V73: z | W73: z | X73: z | Y73: z | Z73: z | AA73: z | AB73: z | AC73: z | AD73: z | AE73: z | AF73: z | AG73: z | AH73: z | AI73: z | AJ73: z | AK73: z | AL73: z | AM73: z | AN73: z | AO73: z | AP73: z | AQ73: z | AR73: z | AS73: z | AT73: z | AU73: z | AV73: z | AW73: z | AX73: z | AY73: z | AZ73: z | BA73: z | BB73: z | BC73: z | BD73: z | BE73: z | BF73: z | BG73: z | BH73: z | BI73: z | BJ73: z | BK73: z | BL73: z | BM73: z | BN73: z | BO73: z | BP73: z | BQ73: z | BR73: z | BS73: z | BT73: z | BU73: z | BV73: z | BW73: z | BX73: z | BY73: z | BZ73: z | CA73: z | CB73: z | CC73: z | CD73: z | CE73: z | CF73: z | CG73: z | CH73: z | CI73: z | CJ73: z | CK73: z | CL73: z | CM73: z | CN73: z | CO73: z | CP73: z | CQ73: z | CR73: z | CS73: z | CT73: z | CU73: z | CV73: z | CW73: z | CX73: z | CY73: z | CZ73: z | DA73: z | DB73: z | DC73: z | DD73: z | DE73: z | DF73: z | DG73: z | DH73: z | DI73: z | DJ73: z | DK73: z | DL73: z | DM73: z | DN73: z | DO73: z | DP73: z | DQ73: z | DR73: z | DS73: z | DT73: z | DU73: z | DV73: z | DW73: z | DX73: z | DY73: z | DZ73: z | EA73: z | EB73: z | EC73: z | ED73: z | EE73: z | EF73: z | EG73: z | EH73: z | EI73: z | EJ73: z | EK73: z | EL73: z | EM73: z | EN73: z | EO73: z | EP73: z | EQ73: z | ER73: z | ES73: z | ET73: z | EU73: z | EV73: z | EW73: z | EX73: z | EY73: z | EZ73: z | FA73: z | FB73: z | FC73: z | FD73: z | FE73: z | FF73: z | FG73: z | FH73: z | FI73: z | FJ73: z | FK73: z | FL73: z | FM73: z | FN73: z | FO73: z | FP73: z | FQ73: z | FR73: z | FS73: z | FT73: z | FU73: z | FV73: z | FW73: z | FX73: z | FY73: z | FZ73: z | GA73: z | GB73: z | GC73: z | GD73: z | GE73: z | GF73: z | GG73: z | GH73: z | GI73: z | GJ73: z | GK73: z | GL73: z | GM73: z | GN73: z | GO73: z | GP73: z | GQ73: z | GR73: z | GS73: z | GT73: z | GU73: z | GV73: z | GW73: z | GX73: z | GY73: z | GZ73: z | HA73: z | HB73: z | HC73: z | HD73: z | HE73: z | HF73: z | HG73: z | HH73: z | HI73: z | HJ73: z | HK73: z | HL73: z | HM73: z | HN73: z | HO73: z | HP73: z | HQ73: z | HR73: z | HS73: z | HT73: z | HU73: z | HV73: z | HW73: z | HX73: z | HY73: z | HZ73: z | IA73: z | IB73: z | IC73: z | ID73: z | IE73: z | IF73: z | IG73: z | IH73: z | II73: z | IJ73: z | IK73: z | IL73: z | IM73: z | IN73: z
A74: 73 | B74: 66 | C74: 61 | D74: 61 | E74: 64 | F74: 64 | G74: 64 | I74: z | J74: z | K74: z | L74: z | M74: z | N74: z | O74: z | P74: z | Q74: z | R74: z | S74: z | T74: z | U74: z | V74: z | W74: z | X74: z | Y74: z | Z74: z | AA74: z | AB74: z | AC74: z | AD74: z | AE74: z | AF74: z | AG74: z | AH74: z | AI74: z | AJ74: z | AK74: z | AL74: z | AM74: z | AN74: z | AO74: z | AP74: z | AQ74: z | AR74: z | AS74: z | AT74: z | AU74: z | AV74: z | AW74: z | AX74: z | AY74: z | AZ74: z | BA74: z | BB74: z | BC74: z | BD74: z | BE74: z | BF74: z | BG74: z | BH74: z | BI74: z | BJ74: z | BK74: z | BL74: z | BM74: z | BN74: z | BO74: z | BP74: z | BQ74: z | BR74: z | BS74: z | BT74: z | BU74: z | BV74: z | BW74: z | BX74: z | BY74: z | BZ74: z | CA74: z | CB74: z | CC74: z | CD74: z | CE74: z | CF74: z | CG74: z | CH74: z | CI74: z | CJ74: z | CK74: z | CL74: z | CM74: z | CN74: z | CO74: z | CP74: z | CQ74: z | CR74: z | CS74: z | CT74: z | CU74: z | CV74: z | CW74: z | CX74: z | CY74: z | CZ74: z | DA74: z | DB74: z | DC74: z | DD74: z | DE74: z | DF74: z | DG74: z | DH74: z | DI74: z | DJ74: z | DK74: z | DL74: z | DM74: z | DN74: z | DO74: z | DP74: z | DQ74: z | DR74: z | DS74: z | DT74: z | DU74: z | DV74: z | DW74: z | DX74: z | DY74: z | DZ74: z | EA74: z | EB74: z | EC74: z | ED74: z | EE74: z | EF74: z | EG74: z | EH74: z | EI74: z | EJ74: z | EK74: z | EL74: z | EM74: z | EN74: z | EO74: z | EP74: z | EQ74: z | ER74: z | ES74: z | ET74: z | EU74: z | EV74: z | EW74: z | EX74: z | EY74: z | EZ74: z | FA74: z | FB74: z | FC74: z | FD74: z | FE74: z | FF74: z | FG74: z | FH74: z | FI74: z | FJ74: z | FK74: z | FL74: z | FM74: z | FN74: z | FO74: z | FP74: z | FQ74: z | FR74: z | FS74: z | FT74: z | FU74: z | FV74: z | FW74: z | FX74: z | FY74: z | FZ74: z | GA74: z | GB74: z | GC74: z | GD74: z | GE74: z | GF74: z | GG74: z | GH74: z | GI74: z | GJ74: z | GK74: z | GL74: z | GM74: z | GN74: z | GO74: z | GP74: z | GQ74: z | GR74: z | GS74: z | GT74: z | GU74: z | GV74: z | GW74: z | GX74: z | GY74: z | GZ74: z | HA74: z | HB74: z | HC74: z | HD74: z | HE74: z | HF74: z | HG74: z | HH74: z | HI74: z | HJ74: z | HK74: z | HL74: z | HM74: z | HN74: z | HO74: z | HP74: z | HQ74: z | HR74: z | HS74: z | HT74: z | HU74: z | HV74: z | HW74: z | HX74: z | HY74: z | HZ74: z | IA74: z | IB74: z | IC74: z | ID74: z | IE74: z | IF74: z | IG74: z | IH74: z | II74: z | IJ74: z | IK74: z | IL74: z | IM74: z | IN74: z
A75: 74 | B75: 66 | C75: 61 | D75: 61 | E75: 64 | F75: 64 | G75: 64 | I75: z | J75: z | K75: z | L75: z | M75: z | N75: z | O75: z | P75: z | Q75: z | R75: z | S75: z | T75: z | U75: z | V75: z | W75: z | X75: z | Y75: z | Z75: z | AA75: z | AB75: z | AC75: z | AD75: z | AE75: z | AF75: z | AG75: z | AH75: z | AI75: z | AJ75: z | AK75: z | AL75: z | AM75: z | AN75: z | AO75: z | AP75: z | AQ75: z | AR75: z | AS75: z | AT75: z | AU75: z | AV75: z | AW75: z | AX75: z | AY75: z | AZ75: z | BA75: z | BB75: z | BC75: z | BD75: z | BE75: z | BF75: z | BG75: z | BH75: z | BI75: z | BJ75: z | BK75: z | BL75: z | BM75: z | BN75: z | BO75: z | BP75: z | BQ75: z | BR75: z | BS75: z | BT75: z | BU75: z | BV75: z | BW75: z | BX75: z | BY75: z | BZ75: z | CA75: z | CB75: z | CC75: z | CD75: z | CE75: z | CF75: z | CG75: z | CH75: z | CI75: z | CJ75: z | CK75: z | CL75: z | CM75: z | CN75: z | CO75: z | CP75: z | CQ75: z | CR75: z | CS75: z | CT75: z | CU75: z | CV75: z | CW75: z | CX75: z | CY75: z | CZ75: z | DA75: z | DB75: z | DC75: z | DD75: z | DE75: z | DF75: z | DG75: z | DH75: z | DI75: z | DJ75: z | DK75: z | DL75: z | DM75: z | DN75: z | DO75: z | DP75: z | DQ75: z | DR75: z | DS75: z | DT75: z | DU75: z | DV75: z | DW75: z | DX75: z | DY75: z | DZ75: z | EA75: z | EB75: z | EC75: z | ED75: z | EE75: z | EF75: z | EG75: z | EH75: z | EI75: z | EJ75: z | EK75: z | EL75: z | EM75: z | EN75: z | EO75: z | EP75: z | EQ75: z | ER75: z | ES75: z | ET75: z | EU75: z | EV75: z | EW75: z | EX75: z | EY75: z | EZ75: z | FA75: z | FB75: z | FC75: z | FD75: z | FE75: z | FF75: z | FG75: z | FH75: z | FI75: z | FJ75: z | FK75: z | FL75: z | FM75: z | FN75: z | FO75: z | FP75: z | FQ75: z | FR75: z | FS75: z | FT75: z | FU75: z | FV75: z | FW75: z | FX75: z | FY75: z | FZ75: z | GA75: z | GB75: z | GC75: z | GD75: z | GE75: z | GF75: z | GG75: z | GH75: z | GI75: z | GJ75: z | GK75: z | GL75: z | GM75: z | GN75: z | GO75: z | GP75: z | GQ75: z | GR75: z | GS75: z | GT75: z | GU75: z | GV75: z | GW75: z | GX75: z | GY75: z | GZ75: z | HA75: z | HB75: z | HC75: z | HD75: z | HE75: z | HF75: z | HG75: z | HH75: z | HI75: z | HJ75: z | HK75: z | HL75: z | HM75: z | HN75: z | HO75: z | HP75: z | HQ75: z | HR75: z | HS75: z | HT75: z | HU75: z | HV75: z | HW75: z | HX75: z | HY75: z | HZ75: z | IA75: z | IB75: z | IC75: z | ID75: z | IE75: z | IF75: z | IG75: z | IH75: z | II75: z | IJ75: z | IK75: z | IL75: z | IM75: z | IN75: z
A76: 75 | B76: 66 | C76: 61 | D76: 62 | E76: 65 | F76: 65 | G76: 65 | I76: z | J76: z | K76: z | L76: z | M76: z | N76: z | O76: z | P76: z | Q76: z | R76: z | S76: z | T76: z | U76: z | V76: z | W76: z | X76: z | Y76: z | Z76: z | AA76: z | AB76: z | AC76: z | AD76: z | AE76: z | AF76: z | AG76: z | AH76: z | AI76: z | AJ76: z | AK76: z | AL76: z | AM76: z | AN76: z | AO76: z | AP76: z | AQ76: z | AR76: z | AS76: z | AT76: z | AU76: z | AV76: z | AW76: z | AX76: z | AY76: z | AZ76: z | BA76: z | BB76: z | BC76: z | BD76: z | BE76: z | BF76: z | BG76: z | BH76: z | BI76: z | BJ76: z | BK76: z | BL76: z | BM76: z | BN76: z | BO76: z | BP76: z | BQ76: z | BR76: z | BS76: z | BT76: z | BU76: z | BV76: z | BW76: z | BX76: z | BY76: z | BZ76: z | CA76: z | CB76: z | CC76: z | CD76: z | CE76: z | CF76: z | CG76: z | CH76: z | CI76: z | CJ76: z | CK76: z | CL76: z | CM76: z | CN76: z | CO76: z | CP76: z | CQ76: z | CR76: z | CS76: z | CT76: z | CU76: z | CV76: z | CW76: z | CX76: z | CY76: z | CZ76: z | DA76: z | DB76: z | DC76: z | DD76: z | DE76: z | DF76: z | DG76: z | DH76: z | DI76: z | DJ76: z | DK76: z | DL76: z | DM76: z | DN76: z | DO76: z | DP76: z | DQ76: z | DR76: z | DS76: z | DT76: z | DU76: z | DV76: z | DW76: z | DX76: z | DY76: z | DZ76: z | EA76: z | EB76: z | EC76: z | ED76: z | EE76: z | EF76: z | EG76: z | EH76: z | EI76: z | EJ76: z | EK76: z | EL76: z | EM76: z | EN76: z | EO76: z | EP76: z | EQ76: z | ER76: z | ES76: z | ET76: z | EU76: z | EV76: z | EW76: z | EX76: z | EY76: z | EZ76: z | FA76: z | FB76: z | FC76: z | FD76: z | FE76: z | FF76: z | FG76: z | FH76: z | FI76: z | FJ76: z | FK76: z | FL76: z | FM76: z | FN76: z | FO76: z | FP76: z | FQ76: z | FR76: z | FS76: z | FT76: z | FU76: z | FV76: z | FW76: z | FX76: z | FY76: z | FZ76: z | GA76: z | GB76: z | GC76: z | GD76: z | GE76: z | GF76: z | GG76: z | GH76: z | GI76: z | GJ76: z | GK76: z | GL76: z | GM76: z | GN76: z | GO76: z | GP76: z | GQ76: z | GR76: z | GS76: z | GT76: z | GU76: z | GV76: z | GW76: z | GX76: z | GY76: z | GZ76: z | HA76: z | HB76: z | HC76: z | HD76: z | HE76: z | HF76: z | HG76: z | HH76: z | HI76: z | HJ76: z | HK76: z | HL76: z | HM76: z | HN76: z | HO76: z | HP76: z | HQ76: z | HR76: z | HS76: z | HT76: z | HU76: z | HV76: z | HW76: z | HX76: z | HY76: z | HZ76: z | IA76: z | IB76: z | IC76: z | ID76: z | IE76: z | IF76: z | IG76: z | IH76: z | II76: z | IJ76: z | IK76: z | IL76: z | IM76: z | IN76: z
A77: 76 | B77: 66 | C77: 61 | D77: 62 | E77: 65 | F77: 65 | G77: 65 | I77: z | J77: z | K77: z | L77: z | M77: z | N77: z | O77: z | P77: z | Q77: z | R77: z | S77: z | T77: z | U77: z | V77: z | W77: z | X77: z | Y77: z | Z77: z | AA77: z | AB77: z | AC77: z | AD77: z | AE77: z | AF77: z | AG77: z | AH77: z | AI77: z | AJ77: z | AK77: z | AL77: z | AM77: z | AN77: z | AO77: z | AP77: z | AQ77: z | AR77: z | AS77: z | AT77: z | AU77: z | AV77: z | AW77: z | AX77: z | AY77: z | AZ77: z | BA77: z | BB77: z | BC77: z | BD77: z | BE77: z | BF77: z | BG77: z | BH77: z | BI77: z | BJ77: z | BK77: z | BL77: z | BM77: z | BN77: z | BO77: z | BP77: z | BQ77: z | BR77: z | BS77: z | BT77: z | BU77: z | BV77: z | BW77: z | BX77: z | BY77: z | BZ77: z | CA77: z | CB77: z | CC77: z | CD77: z | CE77: z | CF77: z | CG77: z | CH77: z | CI77: z | CJ77: z | CK77: z | CL77: z | CM77: z | CN77: z | CO77: z | CP77: z | CQ77: z | CR77: z | CS77: z | CT77: z | CU77: z | CV77: z | CW77: z | CX77: z | CY77: z | CZ77: z | DA77: z | DB77: z | DC77: z | DD77: z | DE77: z | DF77: z | DG77: z | DH77: z | DI77: z | DJ77: z | DK77: z | DL77: z | DM77: z | DN77: z | DO77: z | DP77: z | DQ77: z | DR77: z | DS77: z | DT77: z | DU77: z | DV77: z | DW77: z | DX77: z | DY77: z | DZ77: z | EA77: z | EB77: z | EC77: z | ED77: z | EE77: z | EF77: z | EG77: z | EH77: z | EI77: z | EJ77: z | EK77: z | EL77: z | EM77: z | EN77: z | EO77: z | EP77: z | EQ77: z | ER77: z | ES77: z | ET77: z | EU77: z | EV77: z | EW77: z | EX77: z | EY77: z | EZ77: z | FA77: z | FB77: z | FC77: z | FD77: z | FE77: z | FF77: z | FG77: z | FH77: z | FI77: z | FJ77: z | FK77: z | FL77: z | FM77: z | FN77: z | FO77: z | FP77: z | FQ77: z | FR77: z | FS77: z | FT77: z | FU77: z | FV77: z | FW77: z | FX77: z | FY77: z | FZ77: z | GA77: z | GB77: z | GC77: z | GD77: z | GE77: z | GF77: z | GG77: z | GH77: z | GI77: z | GJ77: z | GK77: z | GL77: z | GM77: z | GN77: z | GO77: z | GP77: z | GQ77: z | GR77: z | GS77: z | GT77: z | GU77: z | GV77: z | GW77: z | GX77: z | GY77: z | GZ77: z | HA77: z | HB77: z | HC77: z | HD77: z | HE77: z | HF77: z | HG77: z | HH77: z | HI77: z | HJ77: z | HK77: z | HL77: z | HM77: z | HN77: z | HO77: z | HP77: z | HQ77: z | HR77: z | HS77: z | HT77: z | HU77: z | HV77: z | HW77: z | HX77: z | HY77: z | HZ77: z | IA77: z | IB77: z | IC77: z | ID77: z | IE77: z | IF77: z | IG77: z | IH77: z | II77: z | IJ77: z | IK77: z | IL77: z | IM77: z | IN77: z
A78: 77 | B78: 66 | C78: 61 | D78: 62 | E78: 65 | F78: 65 | G78: 65 | I78: z | J78: z | K78: z | L78: z | M78: z | N78: z | O78: z | P78: z | Q78: z | R78: z | S78: z | T78: z | U78: z | V78: z | W78: z | X78: z | Y78: z | Z78: z | AA78: z | AB78: z | AC78: z | AD78: z | AE78: z | AF78: z | AG78: z | AH78: z | AI78: z | AJ78: z | AK78: z | AL78: z | AM78: z | AN78: z | AO78: z | AP78: z | AQ78: z | AR78: z | AS78: z | AT78: z | AU78: z | AV78: z | AW78: z | AX78: z | AY78: z | AZ78: z | BA78: z | BB78: z | BC78: z | BD78: z | BE78: z | BF78: z | BG78: z | BH78: z | BI78: z | BJ78: z | BK78: z | BL78: z | BM78: z | BN78: z | BO78: z | BP78: z | BQ78: z | BR78: z | BS78: z | BT78: z | BU78: z | BV78: z | BW78: z | BX78: z | BY78: z | BZ78: z | CA78: z | CB78: z | CC78: z | CD78: z | CE78: z | CF78: z | CG78: z | CH78: z | CI78: z | CJ78: z | CK78: z | CL78: z | CM78: z | CN78: z | CO78: z | CP78: z | CQ78: z | CR78: z | CS78: z | CT78: z | CU78: z | CV78: z | CW78: z | CX78: z | CY78: z | CZ78: z | DA78: z | DB78: z | DC78: z | DD78: z | DE78: z | DF78: z | DG78: z | DH78: z | DI78: z | DJ78: z | DK78: z | DL78: z | DM78: z | DN78: z | DO78: z | DP78: z | DQ78: z | DR78: z | DS78: z | DT78: z | DU78: z | DV78: z | DW78: z | DX78: z | DY78: z | DZ78: z | EA78: z | EB78: z | EC78: z | ED78: z | EE78: z | EF78: z | EG78: z | EH78: z | EI78: z | EJ78: z | EK78: z | EL78: z | EM78: z | EN78: z | EO78: z | EP78: z | EQ78: z | ER78: z | ES78: z | ET78: z | EU78: z | EV78: z | EW78: z | EX78: z | EY78: z | EZ78: z | FA78: z | FB78: z | FC78: z | FD78: z | FE78: z | FF78: z | FG78: z | FH78: z | FI78: z | FJ78: z | FK78: z | FL78: z | FM78: z | FN78: z | FO78: z | FP78: z | FQ78: z | FR78: z | FS78: z | FT78: z | FU78: z | FV78: z | FW78: z | FX78: z | FY78: z | FZ78: z | GA78: z | GB78: z | GC78: z | GD78: z | GE78: z | GF78: z | GG78: z | GH78: z | GI78: z | GJ78: z | GK78: z | GL78: z | GM78: z | GN78: z | GO78: z | GP78: z | GQ78: z | GR78: z | GS78: z | GT78: z | GU78: z | GV78: z | GW78: z | GX78: z | GY78: z | GZ78: z | HA78: z | HB78: z | HC78: z | HD78: z | HE78: z | HF78: z | HG78: z | HH78: z | HI78: z | HJ78: z | HK78: z | HL78: z | HM78: z | HN78: z | HO78: z | HP78: z | HQ78: z | HR78: z | HS78: z | HT78: z | HU78: z | HV78: z | HW78: z | HX78: z | HY78: z | HZ78: z | IA78: z | IB78: z | IC78: z | ID78: z | IE78: z | IF78: z | IG78: z | IH78: z | II78: z | IJ78: z | IK78: z | IL78: z | IM78: z | IN78: z
A79: 78 | B79: 66 | C79: 61 | D79: 62 | E79: 65 | F79: 65 | G79: 65 | I79: z | J79: z | K79: z | L79: z | M79: z | N79: z | O79: z | P79: z | Q79: z | R79: z | S79: z | T79: z | U79: z | V79: z | W79: z | X79: z | Y79: z | Z79: z | AA79: z | AB79: z | AC79: z | AD79: z | AE79: z | AF79: z | AG79: z | AH79: z | AI79: z | AJ79: z | AK79: z | AL79: z | AM79: z | AN79: z | AO79: z | AP79: z | AQ79: z | AR79: z | AS79: z | AT79: z | AU79: z | AV79: z | AW79: z | AX79: z | AY79: z | AZ79: z | BA79: z | BB79: z | BC79: z | BD79: z | BE79: z | BF79: z | BG79: z | BH79: z | BI79: z | BJ79: z | BK79: z | BL79: z | BM79: z | BN79: z | BO79: z | BP79: z | BQ79: z | BR79: z | BS79: z | BT79: z | BU79: z | BV79: z | BW79: z | BX79: z | BY79: z | BZ79: z | CA79: z | CB79: z | CC79: z | CD79: z | CE79: z | CF79: z | CG79: z | CH79: z | CI79: z | CJ79: z | CK79: z | CL79: z | CM79: z | CN79: z | CO79: z | CP79: z | CQ79: z | CR79: z | CS79: z | CT79: z | CU79: z | CV79: z | CW79: z | CX79: z | CY79: z | CZ79: z | DA79: z | DB79: z | DC79: z | DD79: z | DE79: z | DF79: z | DG79: z | DH79: z | DI79: z | DJ79: z | DK79: z | DL79: z | DM79: z | DN79: z | DO79: z | DP79: z | DQ79: z | DR79: z | DS79: z | DT79: z | DU79: z | DV79: z | DW79: z | DX79: z | DY79: z | DZ79: z | EA79: z | EB79: z | EC79: z | ED79: z | EE79: z | EF79: z | EG79: z | EH79: z | EI79: z | EJ79: z | EK79: z | EL79: z | EM79: z | EN79: z | EO79: z | EP79: z | EQ79: z | ER79: z | ES79: z | ET79: z | EU79: z | EV79: z | EW79: z | EX79: z | EY79: z | EZ79: z | FA79: z | FB79: z | FC79: z | FD79: z | FE79: z | FF79: z | FG79: z | FH79: z | FI79: z | FJ79: z | FK79: z | FL79: z | FM79: z | FN79: z | FO79: z | FP79: z | FQ79: z | FR79: z | FS79: z | FT79: z | FU79: z | FV79: z | FW79: z | FX79: z | FY79: z | FZ79: z | GA79: z | GB79: z | GC79: z | GD79: z | GE79: z | GF79: z | GG79: z | GH79: z | GI79: z | GJ79: z | GK79: z | GL79: z | GM79: z | GN79: z | GO79: z | GP79: z | GQ79: z | GR79: z | GS79: z | GT79: z | GU79: z | GV79: z | GW79: z | GX79: z | GY79: z | GZ79: z | HA79: z | HB79: z | HC79: z | HD79: z | HE79: z | HF79: z | HG79: z | HH79: z | HI79: z | HJ79: z | HK79: z | HL79: z | HM79: z | HN79: z | HO79: z | HP79: z | HQ79: z | HR79: z | HS79: z | HT79: z | HU79: z | HV79: z | HW79: z | HX79: z | HY79: z | HZ79: z | IA79: z | IB79: z | IC79: z | ID79: z | IE79: z | IF79: z | IG79: z | IH79: z | II79: z | IJ79: z | IK79: z | IL79: z | IM79: z | IN79: z
A80: 79 | B80: 66 | C80: 61 | D80: 62 | E80: 65 | F80: 65 | G80: 65 | I80: z | J80: z | K80: z | L80: z | M80: z | N80: z | O80: z | P80: z | Q80: z | R80: z | S80: z | T80: z | U80: z | V80: z | W80: z | X80: z | Y80: z | Z80: z | AA80: z | AB80: z | AC80: z | AD80: z | AE80: z | AF80: z | AG80: z | AH80: z | AI80: z | AJ80: z | AK80: z | AL80: z | AM80: z | AN80: z | AO80: z | AP80: z | AQ80: z | AR80: z | AS80: z | AT80: z | AU80: z | AV80: z | AW80: z | AX80: z | AY80: z | AZ80: z | BA80: z | BB80: z | BC80: z | BD80: z | BE80: z | BF80: z | BG80: z | BH80: z | BI80: z | BJ80: z | BK80: z | BL80: z | BM80: z | BN80: z | BO80: z | BP80: z | BQ80: z | BR80: z | BS80: z | BT80: z | BU80: z | BV80: z | BW80: z | BX80: z | BY80: z | BZ80: z | CA80: z | CB80: z | CC80: z | CD80: z | CE80: z | CF80: z | CG80: z | CH80: z | CI80: z | CJ80: z | CK80: z | CL80: z | CM80: z | CN80: z | CO80: z | CP80: z | CQ80: z | CR80: z | CS80: z | CT80: z | CU80: z | CV80: z | CW80: z | CX80: z | CY80: z | CZ80: z | DA80: z | DB80: z | DC80: z | DD80: z | DE80: z | DF80: z | DG80: z | DH80: z | DI80: z | DJ80: z | DK80: z | DL80: z | DM80: z | DN80: z | DO80: z | DP80: z | DQ80: z | DR80: z | DS80: z | DT80: z | DU80: z | DV80: z | DW80: z | DX80: z | DY80: z | DZ80: z | EA80: z | EB80: z | EC80: z | ED80: z | EE80: z | EF80: z | EG80: z | EH80: z | EI80: z | EJ80: z | EK80: z | EL80: z | EM80: z | EN80: z | EO80: z | EP80: z | EQ80: z | ER80: z | ES80: z | ET80: z | EU80: z | EV80: z | EW80: z | EX80: z | EY80: z | EZ80: z | FA80: z | FB80: z | FC80: z | FD80: z | FE80: z | FF80: z | FG80: z | FH80: z | FI80: z | FJ80: z | FK80: z | FL80: z | FM80: z | FN80: z | FO80: z | FP80: z | FQ80: z | FR80: z | FS80: z | FT80: z | FU80: z | FV80: z | FW80: z | FX80: z | FY80: z | FZ80: z | GA80: z | GB80: z | GC80: z | GD80: z | GE80: z | GF80: z | GG80: z | GH80: z | GI80: z | GJ80: z | GK80: z | GL80: z | GM80: z | GN80: z | GO80: z | GP80: z | GQ80: z | GR80: z | GS80: z | GT80: z | GU80: z | GV80: z | GW80: z | GX80: z | GY80: z | GZ80: z | HA80: z | HB80: z | HC80: z | HD80: z | HE80: z | HF80: z | HG80: z | HH80: z | HI80: z | HJ80: z | HK80: z | HL80: z | HM80: z | HN80: z | HO80: z | HP80: z | HQ80: z | HR80: z | HS80: z | HT80: z | HU80: z | HV80: z | HW80: z | HX80: z | HY80: z | HZ80: z | IA80: z | IB80: z | IC80: z | ID80: z | IE80: z | IF80: z | IG80: z | IH80: z | II80: z | IJ80: z | IK80: z | IL80: z | IM80: z | IN80: z
A81: 80 | B81: 66 | C81: 61 | D81: 62 | E81: 65 | F81: 65 | G81: 65 | I81: z | J81: z | K81: z | L81: z | M81: z | N81: z | O81: z | P81: z | Q81: z | R81: z | S81: z | T81: z | U81: z | V81: z | W81: z | X81: z | Y81: z | Z81: z | AA81: z | AB81: z | AC81: z | AD81: z | AE81: z | AF81: z | AG81: z | AH81: z | AI81: z | AJ81: z | AK81: z | AL81: z | AM81: z | AN81: z | AO81: z | AP81: z | AQ81: z | AR81: z | AS81: z | AT81: z | AU81: z | AV81: z | AW81: z | AX81: z | AY81: z | AZ81: z | BA81: z | BB81: z | BC81: z | BD81: z | BE81: z | BF81: z | BG81: z | BH81: z | BI81: z | BJ81: z | BK81: z | BL81: z | BM81: z | BN81: z | BO81: z | BP81: z | BQ81: z | BR81: z | BS81: z | BT81: z | BU81: z | BV81: z | BW81: z | BX81: z | BY81: z | BZ81: z | CA81: z | CB81: z | CC81: z | CD81: z | CE81: z | CF81: z | CG81: z | CH81: z | CI81: z | CJ81: z | CK81: z | CL81: z | CM81: z | CN81: z | CO81: z | CP81: z | CQ81: z | CR81: z | CS81: z | CT81: z | CU81: z | CV81: z | CW81: z | CX81: z | CY81: z | CZ81: z | DA81: z | DB81: z | DC81: z | DD81: z | DE81: z | DF81: z | DG81: z | DH81: z | DI81: z | DJ81: z | DK81: z | DL81: z | DM81: z | DN81: z | DO81: z | DP81: z | DQ81: z | DR81: z | DS81: z | DT81: z | DU81: z | DV81: z | DW81: z | DX81: z | DY81: z | DZ81: z | EA81: z | EB81: z | EC81: z | ED81: z | EE81: z | EF81: z | EG81: z | EH81: z | EI81: z | EJ81: z | EK81: z | EL81: z | EM81: z | EN81: z | EO81: z | EP81: z | EQ81: z | ER81: z | ES81: z | ET81: z | EU81: z | EV81: z | EW81: z | EX81: z | EY81: z | EZ81: z | FA81: z | FB81: z | FC81: z | FD81: z | FE81: z | FF81: z | FG81: z | FH81: z | FI81: z | FJ81: z | FK81: z | FL81: z | FM81: z | FN81: z | FO81: z | FP81: z | FQ81: z | FR81: z | FS81: z | FT81: z | FU81: z | FV81: z | FW81: z | FX81: z | FY81: z | FZ81: z | GA81: z | GB81: z | GC81: z | GD81: z | GE81: z | GF81: z | GG81: z | GH81: z | GI81: z | GJ81: z | GK81: z | GL81: z | GM81: z | GN81: z | GO81: z | GP81: z | GQ81: z | GR81: z | GS81: z | GT81: z | GU81: z | GV81: z | GW81: z | GX81: z | GY81: z | GZ81: z | HA81: z | HB81: z | HC81: z | HD81: z | HE81: z | HF81: z | HG81: z | HH81: z | HI81: z | HJ81: z | HK81: z | HL81: z | HM81: z | HN81: z | HO81: z | HP81: z | HQ81: z | HR81: z | HS81: z | HT81: z | HU81: z | HV81: z | HW81: z | HX81: z | HY81: z | HZ81: z | IA81: z | IB81: z | IC81: z | ID81: z | IE81: z | IF81: z | IG81: z | IH81: z | II81: z | IJ81: z | IK81: z | IL81: z | IM81: z | IN81: z
A82: 81 | B82: 66 | C82: 61 | D82: 62 | E82: 65 | F82: 65 | G82: 65 | I82: z | J82: z | K82: z | L82: z | M82: z | N82: z | O82: z | P82: z | Q82: z | R82: z | S82: z | T82: z | U82: z | V82: z | W82: z | X82: z | Y82: z | Z82: z | AA82: z | AB82: z | AC82: z | AD82: z | AE82: z | AF82: z | AG82: z | AH82: z | AI82: z | AJ82: z | AK82: z | AL82: z | AM82: z | AN82: z | AO82: z | AP82: z | AQ82: z | AR82: z | AS82: z | AT82: z | AU82: z | AV82: z | AW82: z | AX82: z | AY82: z | AZ82: z | BA82: z | BB82: z | BC82: z | BD82: z | BE82: z | BF82: z | BG82: z | BH82: z | BI82: z | BJ82: z | BK82: z | BL82: z | BM82: z | BN82: z | BO82: z | BP82: z | BQ82: z | BR82: z | BS82: z | BT82: z | BU82: z | BV82: z | BW82: z | BX82: z | BY82: z | BZ82: z | CA82: z | CB82: z | CC82: z | CD82: z | CE82: z | CF82: z | CG82: z | CH82: z | CI82: z | CJ82: z | CK82: z | CL82: z | CM82: z | CN82: z | CO82: z | CP82: z | CQ82: z | CR82: z | CS82: z | CT82: z | CU82: z | CV82: z | CW82: z | CX82: z | CY82: z | CZ82: z | DA82: z | DB82: z | DC82: z | DD82: z | DE82: z | DF82: z | DG82: z | DH82: z | DI82: z | DJ82: z | DK82: z | DL82: z | DM82: z | DN82: z | DO82: z | DP82: z | DQ82: z | DR82: z | DS82: z | DT82: z | DU82: z | DV82: z | DW82: z | DX82: z | DY82: z | DZ82: z | EA82: z | EB82: z | EC82: z | ED82: z | EE82: z | EF82: z | EG82: z | EH82: z | EI82: z | EJ82: z | EK82: z | EL82: z | EM82: z | EN82: z | EO82: z | EP82: z | EQ82: z | ER82: z | ES82: z | ET82: z | EU82: z | EV82: z | EW82: z | EX82: z | EY82: z | EZ82: z | FA82: z | FB82: z | FC82: z | FD82: z | FE82: z | FF82: z | FG82: z | FH82: z | FI82: z | FJ82: z | FK82: z | FL82: z | FM82: z | FN82: z | FO82: z | FP82: z | FQ82: z | FR82: z | FS82: z | FT82: z | FU82: z | FV82: z | FW82: z | FX82: z | FY82: z | FZ82: z | GA82: z | GB82: z | GC82: z | GD82: z | GE82: z | GF82: z | GG82: z | GH82: z | GI82: z | GJ82: z | GK82: z | GL82: z | GM82: z | GN82: z | GO82: z | GP82: z | GQ82: z | GR82: z | GS82: z | GT82: z | GU82: z | GV82: z | GW82: z | GX82: z | GY82: z | GZ82: z | HA82: z | HB82: z | HC82: z | HD82: z | HE82: z | HF82: z | HG82: z | HH82: z | HI82: z | HJ82: z | HK82: z | HL82: z | HM82: z | HN82: z | HO82: z | HP82: z | HQ82: z | HR82: z | HS82: z | HT82: z | HU82: z | HV82: z | HW82: z | HX82: z | HY82: z | HZ82: z | IA82: z | IB82: z | IC82: z | ID82: z | IE82: z | IF82: z | IG82: z | IH82: z | II82: z | IJ82: z | IK82: z | IL82: z | IM82: z | IN82: z
A83: 82 | B83: 66 | C83: 61 | D83: 62 | E83: 65 | F83: 65 | G83: 65 | I83: z | J83: z | K83: z | L83: z | M83: z | N83: z | O83: z | P83: z | Q83: z | R83: z | S83: z | T83: z | U83: z | V83: z | W83: z | X83: z | Y83: z | Z83: z | AA83: z | AB83: z | AC83: z | AD83: z | AE83: z | AF83: z | AG83: z | AH83: z | AI83: z | AJ83: z | AK83: z | AL83: z | AM83: z | AN83: z | AO83: z | AP83: z | AQ83: z | AR83: z | AS83: z | AT83: z | AU83: z | AV83: z | AW83: z | AX83: z | AY83: z | AZ83: z | BA83: z | BB83: z | BC83: z | BD83: z | BE83: z | BF83: z | BG83: z | BH83: z | BI83: z | BJ83: z | BK83: z | BL83: z | BM83: z | BN83: z | BO83: z | BP83: z | BQ83: z | BR83: z | BS83: z | BT83: z | BU83: z | BV83: z | BW83: z | BX83: z | BY83: z | BZ83: z | CA83: z | CB83: z | CC83: z | CD83: z | CE83: z | CF83: z | CG83: z | CH83: z | CI83: z | CJ83: z | CK83: z | CL83: z | CM83: z | CN83: z | CO83: z | CP83: z | CQ83: z | CR83: z | CS83: z | CT83: z | CU83: z | CV83: z | CW83: z | CX83: z | CY83: z | CZ83: z | DA83: z | DB83: z | DC83: z | DD83: z | DE83: z | DF83: z | DG83: z | DH83: z | DI83: z | DJ83: z | DK83: z | DL83: z | DM83: z | DN83: z | DO83: z | DP83: z | DQ83: z | DR83: z | DS83: z | DT83: z | DU83: z | DV83: z | DW83: z | DX83: z | DY83: z | DZ83: z | EA83: z | EB83: z | EC83: z | ED83: z | EE83: z | EF83: z | EG83: z | EH83: z | EI83: z | EJ83: z | EK83: z | EL83: z | EM83: z | EN83: z | EO83: z | EP83: z | EQ83: z | ER83: z | ES83: z | ET83: z | EU83: z | EV83: z | EW83: z | EX83: z | EY83: z | EZ83: z | FA83: z | FB83: z | FC83: z | FD83: z | FE83: z | FF83: z | FG83: z | FH83: z | FI83: z | FJ83: z | FK83: z | FL83: z | FM83: z | FN83: z | FO83: z | FP83: z | FQ83: z | FR83: z | FS83: z | FT83: z | FU83: z | FV83: z | FW83: z | FX83: z | FY83: z | FZ83: z | GA83: z | GB83: z | GC83: z | GD83: z | GE83: z | GF83: z | GG83: z | GH83: z | GI83: z | GJ83: z | GK83: z | GL83: z | GM83: z | GN83: z | GO83: z | GP83: z | GQ83: z | GR83: z | GS83: z | GT83: z | GU83: z | GV83: z | GW83: z | GX83: z | GY83: z | GZ83: z | HA83: z | HB83: z | HC83: z | HD83: z | HE83: z | HF83: z | HG83: z | HH83: z | HI83: z | HJ83: z | HK83: z | HL83: z | HM83: z | HN83: z | HO83: z | HP83: z | HQ83: z | HR83: z | HS83: z | HT83: z | HU83: z | HV83: z | HW83: z | HX83: z | HY83: z | HZ83: z | IA83: z | IB83: z | IC83: z | ID83: z | IE83: z | IF83: z | IG83: z | IH83: z | II83: z | IJ83: z | IK83: z | IL83: z | IM83: z | IN83: z
A84: 83 | B84: 66 | C84: 61 | D84: 62 | E84: 65 | F84: 65 | G84: 65 | I84: z | J84: z | K84: z | L84: z | M84: z | N84: z | O84: z | P84: z | Q84: z | R84: z | S84: z | T84: z | U84: z | V84: z | W84: z | X84: z | Y84: z | Z84: z | AA84: z | AB84: z | AC84: z | AD84: z | AE84: z | AF84: z | AG84: z | AH84: z | AI84: z | AJ84: z | AK84: z | AL84: z | AM84: z | AN84: z | AO84: z | AP84: z | AQ84: z | AR84: z | AS84: z | AT84: z | AU84: z | AV84: z | AW84: z | AX84: z | AY84: z | AZ84: z | BA84: z | BB84: z | BC84: z | BD84: z | BE84: z | BF84: z | BG84: z | BH84: z | BI84: z | BJ84: z | BK84: z | BL84: z | BM84: z | BN84: z | BO84: z | BP84: z | BQ84: z | BR84: z | BS84: z | BT84: z | BU84: z | BV84: z | BW84: z | BX84: z | BY84: z | BZ84: z | CA84: z | CB84: z | CC84: z | CD84: z | CE84: z | CF84: z | CG84: z | CH84: z | CI84: z | CJ84: z | CK84: z | CL84: z | CM84: z | CN84: z | CO84: z | CP84: z | CQ84: z | CR84: z | CS84: z | CT84: z | CU84: z | CV84: z | CW84: z | CX84: z | CY84: z | CZ84: z | DA84: z | DB84: z | DC84: z | DD84: z | DE84: z | DF84: z | DG84: z | DH84: z | DI84: z | DJ84: z | DK84: z | DL84: z | DM84: z | DN84: z | DO84: z | DP84: z | DQ84: z | DR84: z | DS84: z | DT84: z | DU84: z | DV84: z | DW84: z | DX84: z | DY84: z | DZ84: z | EA84: z | EB84: z | EC84: z | ED84: z | EE84: z | EF84: z | EG84: z | EH84: z | EI84: z | EJ84: z | EK84: z | EL84: z | EM84: z | EN84: z | EO84: z | EP84: z | EQ84: z | ER84: z | ES84: z | ET84: z | EU84: z | EV84: z | EW84: z | EX84: z | EY84: z | EZ84: z | FA84: z | FB84: z | FC84: z | FD84: z | FE84: z | FF84: z | FG84: z | FH84: z | FI84: z | FJ84: z | FK84: z | FL84: z | FM84: z | FN84: z | FO84: z | FP84: z | FQ84: z | FR84: z | FS84: z | FT84: z | FU84: z | FV84: z | FW84: z | FX84: z | FY84: z | FZ84: z | GA84: z | GB84: z | GC84: z | GD84: z | GE84: z | GF84: z | GG84: z | GH84: z | GI84: z | GJ84: z | GK84: z | GL84: z | GM84: z | GN84: z | GO84: z | GP84: z | GQ84: z | GR84: z | GS84: z | GT84: z | GU84: z | GV84: z | GW84: z | GX84: z | GY84: z | GZ84: z | HA84: z | HB84: z | HC84: z | HD84: z | HE84: z | HF84: z | HG84: z | HH84: z | HI84: z | HJ84: z | HK84: z | HL84: z | HM84: z | HN84: z | HO84: z | HP84: z | HQ84: z | HR84: z | HS84: z | HT84: z | HU84: z | HV84: z | HW84: z | HX84: z | HY84: z | HZ84: z | IA84: z | IB84: z | IC84: z | ID84: z | IE84: z | IF84: z | IG84: z | IH84: z | II84: z | IJ84: z | IK84: z | IL84: z | IM84: z | IN84: z
A85: 84 | B85: 66 | C85: 61 | D85: 62 | E85: 65 | F85: 65 | G85: 65 | I85: z | J85: z | K85: z | L85: z | M85: z | N85: z | O85: z | P85: z | Q85: z | R85: z | S85: z | T85: z | U85: z | V85: z | W85: z | X85: z | Y85: z | Z85: z | AA85: z | AB85: z | AC85: z | AD85: z | AE85: z | AF85: z | AG85: z | AH85: z | AI85: z | AJ85: z | AK85: z | AL85: z | AM85: z | AN85: z | AO85: z | AP85: z | AQ85: z | AR85: z | AS85: z | AT85: z | AU85: z | AV85: z | AW85: z | AX85: z | AY85: z | AZ85: z | BA85: z | BB85: z | BC85: z | BD85: z | BE85: z | BF85: z | BG85: z | BH85: z | BI85: z | BJ85: z | BK85: z | BL85: z | BM85: z | BN85: z | BO85: z | BP85: z | BQ85: z | BR85: z | BS85: z | BT85: z | BU85: z | BV85: z | BW85: z | BX85: z | BY85: z | BZ85: z | CA85: z | CB85: z | CC85: z | CD85: z | CE85: z | CF85: z | CG85: z | CH85: z | CI85: z | CJ85: z | CK85: z | CL85: z | CM85: z | CN85: z | CO85: z | CP85: z | CQ85: z | CR85: z | CS85: z | CT85: z | CU85: z | CV85: z | CW85: z | CX85: z | CY85: z | CZ85: z | DA85: z | DB85: z | DC85: z | DD85: z | DE85: z | DF85: z | DG85: z | DH85: z | DI85: z | DJ85: z | DK85: z | DL85: z | DM85: z | DN85: z | DO85: z | DP85: z | DQ85: z | DR85: z | DS85: z | DT85: z | DU85: z | DV85: z | DW85: z | DX85: z | DY85: z | DZ85: z | EA85: z | EB85: z | EC85: z | ED85: z | EE85: z | EF85: z | EG85: z | EH85: z | EI85: z | EJ85: z | EK85: z | EL85: z | EM85: z | EN85: z | EO85: z | EP85: z | EQ85: z | ER85: z | ES85: z | ET85: z | EU85: z | EV85: z | EW85: z | EX85: z | EY85: z | EZ85: z | FA85: z | FB85: z | FC85: z | FD85: z | FE85: z | FF85: z | FG85: z | FH85: z | FI85: z | FJ85: z | FK85: z | FL85: z | FM85: z | FN85: z | FO85: z | FP85: z | FQ85: z | FR85: z | FS85: z | FT85: z | FU85: z | FV85: z | FW85: z | FX85: z | FY85: z | FZ85: z | GA85: z | GB85: z | GC85: z | GD85: z | GE85: z | GF85: z | GG85: z | GH85: z | GI85: z | GJ85: z | GK85: z | GL85: z | GM85: z | GN85: z | GO85: z | GP85: z | GQ85: z | GR85: z | GS85: z | GT85: z | GU85: z | GV85: z | GW85: z | GX85: z | GY85: z | GZ85: z | HA85: z | HB85: z | HC85: z | HD85: z | HE85: z | HF85: z | HG85: z | HH85: z | HI85: z | HJ85: z | HK85: z | HL85: z | HM85: z | HN85: z | HO85: z | HP85: z | HQ85: z | HR85: z | HS85: z | HT85: z | HU85: z | HV85: z | HW85: z | HX85: z | HY85: z | HZ85: z | IA85: z | IB85: z | IC85: z | ID85: z | IE85: z | IF85: z | IG85: z | IH85: z | II85: z | IJ85: z | IK85: z | IL85: z | IM85: z | IN85: z
A86: 85 | B86: 66 | C86: 61 | D86: 62 | E86: 66 | F86: 66 | G86: 66 | I86: z | J86: z | K86: z | L86: z | M86: z | N86: z | O86: z | P86: z | Q86: z | R86: z | S86: z | T86: z | U86: z | V86: z | W86: z | X86: z | Y86: z | Z86: z | AA86: z | AB86: z | AC86: z | AD86: z | AE86: z | AF86: z | AG86: z | AH86: z | AI86: z | AJ86: z | AK86: z | AL86: z | AM86: z | AN86: z | AO86: z | AP86: z | AQ86: z | AR86: z | AS86: z | AT86: z | AU86: z | AV86: z | AW86: z | AX86: z | AY86: z | AZ86: z | BA86: z | BB86: z | BC86: z | BD86: z | BE86: z | BF86: z | BG86: z | BH86: z | BI86: z | BJ86: z | BK86: z | BL86: z | BM86: z | BN86: z | BO86: z | BP86: z | BQ86: z | BR86: z | BS86: z | BT86: z | BU86: z | BV86: z | BW86: z | BX86: z | BY86: z | BZ86: z | CA86: z | CB86: z | CC86: z | CD86: z | CE86: z | CF86: z | CG86: z | CH86: z | CI86: z | CJ86: z | CK86: z | CL86: z | CM86: z | CN86: z | CO86: z | CP86: z | CQ86: z | CR86: z | CS86: z | CT86: z | CU86: z | CV86: z | CW86: z | CX86: z | CY86: z | CZ86: z | DA86: z | DB86: z | DC86: z | DD86: z | DE86: z | DF86: z | DG86: z | DH86: z | DI86: z | DJ86: z | DK86: z | DL86: z | DM86: z | DN86: z | DO86: z | DP86: z | DQ86: z | DR86: z | DS86: z | DT86: z | DU86: z | DV86: z | DW86: z | DX86: z | DY86: z | DZ86: z | EA86: z | EB86: z | EC86: z | ED86: z | EE86: z | EF86: z | EG86: z | EH86: z | EI86: z | EJ86: z | EK86: z | EL86: z | EM86: z | EN86: z | EO86: z | EP86: z | EQ86: z | ER86: z | ES86: z | ET86: z | EU86: z | EV86: z | EW86: z | EX86: z | EY86: z | EZ86: z | FA86: z | FB86: z | FC86: z | FD86: z | FE86: z | FF86: z | FG86: z | FH86: z | FI86: z | FJ86: z | FK86: z | FL86: z | FM86: z | FN86: z | FO86: z | FP86: z | FQ86: z | FR86: z | FS86: z | FT86: z | FU86: z | FV86: z | FW86: z | FX86: z | FY86: z | FZ86: z | GA86: z | GB86: z | GC86: z | GD86: z | GE86: z | GF86: z | GG86: z | GH86: z | GI86: z | GJ86: z | GK86: z | GL86: z | GM86: z | GN86: z | GO86: z | GP86: z | GQ86: z | GR86: z | GS86: z | GT86: z | GU86: z | GV86: z | GW86: z | GX86: z | GY86: z | GZ86: z | HA86: z | HB86: z | HC86: z | HD86: z | HE86: z | HF86: z | HG86: z | HH86: z | HI86: z | HJ86: z | HK86: z | HL86: z | HM86: z | HN86: z | HO86: z | HP86: z | HQ86: z | HR86: z | HS86: z | HT86: z | HU86: z | HV86: z | HW86: z | HX86: z | HY86: z | HZ86: z | IA86: z | IB86: z | IC86: z | ID86: z | IE86: z | IF86: z | IG86: z | IH86: z | II86: z | IJ86: z | IK86: z | IL86: z | IM86: z | IN86: z
A87: 86 | B87: 66 | C87: 62 | D87: 62 | E87: 66 | F87: 66 | G87: 66 | I87: z | J87: z | K87: z | L87: z | M87: z | N87: z | O87: z | P87: z | Q87: z | R87: z | S87: z | T87: z | U87: z | V87: z | W87: z | X87: z | Y87: z | Z87: z | AA87: z | AB87: z | AC87: z | AD87: z | AE87: z | AF87: z | AG87: z | AH87: z | AI87: z | AJ87: z | AK87: z | AL87: z | AM87: z | AN87: z | AO87: z | AP87: z | AQ87: z | AR87: z | AS87: z | AT87: z | AU87: z | AV87: z | AW87: z | AX87: z | AY87: z | AZ87: z | BA87: z | BB87: z | BC87: z | BD87: z | BE87: z | BF87: z | BG87: z | BH87: z | BI87: z | BJ87: z | BK87: z | BL87: z | BM87: z | BN87: z | BO87: z | BP87: z | BQ87: z | BR87: z | BS87: z | BT87: z | BU87: z | BV87: z | BW87: z | BX87: z | BY87: z | BZ87: z | CA87: z | CB87: z | CC87: z | CD87: z | CE87: z | CF87: z | CG87: z | CH87: z | CI87: z | CJ87: z | CK87: z | CL87: z | CM87: z | CN87: z | CO87: z | CP87: z | CQ87: z | CR87: z | CS87: z | CT87: z | CU87: z | CV87: z | CW87: z | CX87: z | CY87: z | CZ87: z | DA87: z | DB87: z | DC87: z | DD87: z | DE87: z | DF87: z | DG87: z | DH87: z | DI87: z | DJ87: z | DK87: z | DL87: z | DM87: z | DN87: z | DO87: z | DP87: z | DQ87: z | DR87: z | DS87: z | DT87: z | DU87: z | DV87: z | DW87: z | DX87: z | DY87: z | DZ87: z | EA87: z | EB87: z | EC87: z | ED87: z | EE87: z | EF87: z | EG87: z | EH87: z | EI87: z | EJ87: z | EK87: z | EL87: z | EM87: z | EN87: z | EO87: z | EP87: z | EQ87: z | ER87: z | ES87: z | ET87: z | EU87: z | EV87: z | EW87: z | EX87: z | EY87: z | EZ87: z | FA87: z | FB87: z | FC87: z | FD87: z | FE87: z | FF87: z | FG87: z | FH87: z | FI87: z | FJ87: z | FK87: z | FL87: z | FM87: z | FN87: z | FO87: z | FP87: z | FQ87: z | FR87: z | FS87: z | FT87: z | FU87: z | FV87: z | FW87: z | FX87: z | FY87: z | FZ87: z | GA87: z | GB87: z | GC87: z | GD87: z | GE87: z | GF87: z | GG87: z | GH87: z | GI87: z | GJ87: z | GK87: z | GL87: z | GM87: z | GN87: z | GO87: z | GP87: z | GQ87: z | GR87: z | GS87: z | GT87: z | GU87: z | GV87: z | GW87: z | GX87: z | GY87: z | GZ87: z | HA87: z | HB87: z | HC87: z | HD87: z | HE87: z | HF87: z | HG87: z | HH87: z | HI87: z | HJ87: z | HK87: z | HL87: z | HM87: z | HN87: z | HO87: z | HP87: z | HQ87: z | HR87: z | HS87: z | HT87: z | HU87: z | HV87: z | HW87: z | HX87: z | HY87: z | HZ87: z | IA87: z | IB87: z | IC87: z | ID87: z | IE87: z | IF87: z | IG87: z | IH87: z | II87: z | IJ87: z | IK87: z | IL87: z | IM87: z | IN87: z
A88: 87 | B88: 66 | C88: 62 | D88: 62 | E88: 66 | F88: 66 | G88: 66 | I88: z | J88: z | K88: z | L88: z | M88: z | N88: z | O88: z | P88: z | Q88: z | R88: z | S88: z | T88: z | U88: z | V88: z | W88: z | X88: z | Y88: z | Z88: z | AA88: z | AB88: z | AC88: z | AD88: z | AE88: z | AF88: z | AG88: z | AH88: z | AI88: z | AJ88: z | AK88: z | AL88: z | AM88: z | AN88: z | AO88: z | AP88: z | AQ88: z | AR88: z | AS88: z | AT88: z | AU88: z | AV88: z | AW88: z | AX88: z | AY88: z | AZ88: z | BA88: z | BB88: z | BC88: z | BD88: z | BE88: z | BF88: z | BG88: z | BH88: z | BI88: z | BJ88: z | BK88: z | BL88: z | BM88: z | BN88: z | BO88: z | BP88: z | BQ88: z | BR88: z | BS88: z | BT88: z | BU88: z | BV88: z | BW88: z | BX88: z | BY88: z | BZ88: z | CA88: z | CB88: z | CC88: z | CD88: z | CE88: z | CF88: z | CG88: z | CH88: z | CI88: z | CJ88: z | CK88: z | CL88: z | CM88: z | CN88: z | CO88: z | CP88: z | CQ88: z | CR88: z | CS88: z | CT88: z | CU88: z | CV88: z | CW88: z | CX88: z | CY88: z | CZ88: z | DA88: z | DB88: z | DC88: z | DD88: z | DE88: z | DF88: z | DG88: z | DH88: z | DI88: z | DJ88: z | DK88: z | DL88: z | DM88: z | DN88: z | DO88: z | DP88: z | DQ88: z | DR88: z | DS88: z | DT88: z | DU88: z | DV88: z | DW88: z | DX88: z | DY88: z | DZ88: z | EA88: z | EB88: z | EC88: z | ED88: z | EE88: z | EF88: z | EG88: z | EH88: z | EI88: z | EJ88: z | EK88: z | EL88: z | EM88: z | EN88: z | EO88: z | EP88: z | EQ88: z | ER88: z | ES88: z | ET88: z | EU88: z | EV88: z | EW88: z | EX88: z | EY88: z | EZ88: z | FA88: z | FB88: z | FC88: z | FD88: z | FE88: z | FF88: z | FG88: z | FH88: z | FI88: z | FJ88: z | FK88: z | FL88: z | FM88: z | FN88: z | FO88: z | FP88: z | FQ88: z | FR88: z | FS88: z | FT88: z | FU88: z | FV88: z | FW88: z | FX88: z | FY88: z | FZ88: z | GA88: z | GB88: z | GC88: z | GD88: z | GE88: z | GF88: z | GG88: z | GH88: z | GI88: z | GJ88: z | GK88: z | GL88: z | GM88: z | GN88: z | GO88: z | GP88: z | GQ88: z | GR88: z | GS88: z | GT88: z | GU88: z | GV88: z | GW88: z | GX88: z | GY88: z | GZ88: z | HA88: z | HB88: z | HC88: z | HD88: z | HE88: z | HF88: z | HG88: z | HH88: z | HI88: z | HJ88: z | HK88: z | HL88: z | HM88: z | HN88: z | HO88: z | HP88: z | HQ88: z | HR88: z | HS88: z | HT88: z | HU88: z | HV88: z | HW88: z | HX88: z | HY88: z | HZ88: z | IA88: z | IB88: z | IC88: z | ID88: z | IE88: z | IF88: z | IG88: z | IH88: z | II88: z | IJ88: z | IK88: z | IL88: z | IM88: z | IN88: z
A89: 88 | B89: 66 | C89: 62 | D89: 62 | E89: 66 | F89: 66 | G89: 66 | I89: z | J89: z | K89: z | L89: z | M89: z | N89: z | O89: z | P89: z | Q89: z | R89: z | S89: z | T89: z | U89: z | V89: z | W89: z | X89: z | Y89: z | Z89: z | AA89: z | AB89: z | AC89: z | AD89: z | AE89: z | AF89: z | AG89: z | AH89: z | AI89: z | AJ89: z | AK89: z | AL89: z | AM89: z | AN89: z | AO89: z | AP89: z | AQ89: z | AR89: z | AS89: z | AT89: z | AU89: z | AV89: z | AW89: z | AX89: z | AY89: z | AZ89: z | BA89: z | BB89: z | BC89: z | BD89: z | BE89: z | BF89: z | BG89: z | BH89: z | BI89: z | BJ89: z | BK89: z | BL89: z | BM89: z | BN89: z | BO89: z | BP89: z | BQ89: z | BR89: z | BS89: z | BT89: z | BU89: z | BV89: z | BW89: z | BX89: z | BY89: z | BZ89: z | CA89: z | CB89: z | CC89: z | CD89: z | CE89: z | CF89: z | CG89: z | CH89: z | CI89: z | CJ89: z | CK89: z | CL89: z | CM89: z | CN89: z | CO89: z | CP89: z | CQ89: z | CR89: z | CS89: z | CT89: z | CU89: z | CV89: z | CW89: z | CX89: z | CY89: z | CZ89: z | DA89: z | DB89: z | DC89: z | DD89: z | DE89: z | DF89: z | DG89: z | DH89: z | DI89: z | DJ89: z | DK89: z | DL89: z | DM89: z | DN89: z | DO89: z | DP89: z | DQ89: z | DR89: z | DS89: z | DT89: z | DU89: z | DV89: z | DW89: z | DX89: z | DY89: z | DZ89: z | EA89: z | EB89: z | EC89: z | ED89: z | EE89: z | EF89: z | EG89: z | EH89: z | EI89: z | EJ89: z | EK89: z | EL89: z | EM89: z | EN89: z | EO89: z | EP89: z | EQ89: z | ER89: z | ES89: z | ET89: z | EU89: z | EV89: z | EW89: z | EX89: z | EY89: z | EZ89: z | FA89: z | FB89: z | FC89: z | FD89: z | FE89: z | FF89: z | FG89: z | FH89: z | FI89: z | FJ89: z | FK89: z | FL89: z | FM89: z | FN89: z | FO89: z | FP89: z | FQ89: z | FR89: z | FS89: z | FT89: z | FU89: z | FV89: z | FW89: z | FX89: z | FY89: z | FZ89: z | GA89: z | GB89: z | GC89: z | GD89: z | GE89: z | GF89: z | GG89: z | GH89: z | GI89: z | GJ89: z | GK89: z | GL89: z | GM89: z | GN89: z | GO89: z | GP89: z | GQ89: z | GR89: z | GS89: z | GT89: z | GU89: z | GV89: z | GW89: z | GX89: z | GY89: z | GZ89: z | HA89: z | HB89: z | HC89: z | HD89: z | HE89: z | HF89: z | HG89: z | HH89: z | HI89: z | HJ89: z | HK89: z | HL89: z | HM89: z | HN89: z | HO89: z | HP89: z | HQ89: z | HR89: z | HS89: z | HT89: z | HU89: z | HV89: z | HW89: z | HX89: z | HY89: z | HZ89: z | IA89: z | IB89: z | IC89: z | ID89: z | IE89: z | IF89: z | IG89: z | IH89: z | II89: z | IJ89: z | IK89: z | IL89: z | IM89: z | IN89: z
A90: 89 | B90: 66 | C90: 62 | D90: 62 | E90: 66 | F90: 66 | G90: 66 | I90: z | J90: z | K90: z | L90: z | M90: z | N90: z | O90: z | P90: z | Q90: z | R90: z | S90: z | T90: z | U90: z | V90: z | W90: z | X90: z | Y90: z | Z90: z | AA90: z | AB90: z | AC90: z | AD90: z | AE90: z | AF90: z | AG90: z | AH90: z | AI90: z | AJ90: z | AK90: z | AL90: z | AM90: z | AN90: z | AO90: z | AP90: z | AQ90: z | AR90: z | AS90: z | AT90: z | AU90: z | AV90: z | AW90: z | AX90: z | AY90: z | AZ90: z | BA90: z | BB90: z | BC90: z | BD90: z | BE90: z | BF90: z | BG90: z | BH90: z | BI90: z | BJ90: z | BK90: z | BL90: z | BM90: z | BN90: z | BO90: z | BP90: z | BQ90: z | BR90: z | BS90: z | BT90: z | BU90: z | BV90: z | BW90: z | BX90: z | BY90: z | BZ90: z | CA90: z | CB90: z | CC90: z | CD90: z | CE90: z | CF90: z | CG90: z | CH90: z | CI90: z | CJ90: z | CK90: z | CL90: z | CM90: z | CN90: z | CO90: z | CP90: z | CQ90: z | CR90: z | CS90: z | CT90: z | CU90: z | CV90: z | CW90: z | CX90: z | CY90: z | CZ90: z | DA90: z | DB90: z | DC90: z | DD90: z | DE90: z | DF90: z | DG90: z | DH90: z | DI90: z | DJ90: z | DK90: z | DL90: z | DM90: z | DN90: z | DO90: z | DP90: z | DQ90: z | DR90: z | DS90: z | DT90: z | DU90: z | DV90: z | DW90: z | DX90: z | DY90: z | DZ90: z | EA90: z | EB90: z | EC90: z | ED90: z | EE90: z | EF90: z | EG90: z | EH90: z | EI90: z | EJ90: z | EK90: z | EL90: z | EM90: z | EN90: z | EO90: z | EP90: z | EQ90: z | ER90: z | ES90: z | ET90: z | EU90: z | EV90: z | EW90: z | EX90: z | EY90: z | EZ90: z | FA90: z | FB90: z | FC90: z | FD90: z | FE90: z | FF90: z | FG90: z | FH90: z | FI90: z | FJ90: z | FK90: z | FL90: z | FM90: z | FN90: z | FO90: z | FP90: z | FQ90: z | FR90: z | FS90: z | FT90: z | FU90: z | FV90: z | FW90: z | FX90: z | FY90: z | FZ90: z | GA90: z | GB90: z | GC90: z | GD90: z | GE90: z | GF90: z | GG90: z | GH90: z | GI90: z | GJ90: z | GK90: z | GL90: z | GM90: z | GN90: z | GO90: z | GP90: z | GQ90: z | GR90: z | GS90: z | GT90: z | GU90: z | GV90: z | GW90: z | GX90: z | GY90: z | GZ90: z | HA90: z | HB90: z | HC90: z | HD90: z | HE90: z | HF90: z | HG90: z | HH90: z | HI90: z | HJ90: z | HK90: z | HL90: z | HM90: z | HN90: z | HO90: z | HP90: z | HQ90: z | HR90: z | HS90: z | HT90: z | HU90: z | HV90: z | HW90: z | HX90: z | HY90: z | HZ90: z | IA90: z | IB90: z | IC90: z | ID90: z | IE90: z | IF90: z | IG90: z | IH90: z | II90: z | IJ90: z | IK90: z | IL90: z | IM90: z | IN90: z
A91: 90 | B91: 66 | C91: 62 | D91: 62 | E91: 66 | F91: 66 | G91: 66 | I91: z | J91: z | K91: z | L91: z | M91: z | N91: z | O91: z | P91: z | Q91: z | R91: z | S91: z | T91: z | U91: z | V91: z | W91: z | X91: z | Y91: z | Z91: z | AA91: z | AB91: z | AC91: z | AD91: z | AE91: z | AF91: z | AG91: z | AH91: z | AI91: z | AJ91: z | AK91: z | AL91: z | AM91: z | AN91: z | AO91: z | AP91: z | AQ91: z | AR91: z | AS91: z | AT91: z | AU91: z | AV91: z | AW91: z | AX91: z | AY91: z | AZ91: z | BA91: z | BB91: z | BC91: z | BD91: z | BE91: z | BF91: z | BG91: z | BH91: z | BI91: z | BJ91: z | BK91: z | BL91: z | BM91: z | BN91: z | BO91: z | BP91: z | BQ91: z | BR91: z | BS91: z | BT91: z | BU91: z | BV91: z | BW91: z | BX91: z | BY91: z | BZ91: z | CA91: z | CB91: z | CC91: z | CD91: z | CE91: z | CF91: z | CG91: z | CH91: z | CI91: z | CJ91: z | CK91: z | CL91: z | CM91: z | CN91: z | CO91: z | CP91: z | CQ91: z | CR91: z | CS91: z | CT91: z | CU91: z | CV91: z | CW91: z | CX91: z | CY91: z | CZ91: z | DA91: z | DB91: z | DC91: z | DD91: z | DE91: z | DF91: z | DG91: z | DH91: z | DI91: z | DJ91: z | DK91: z | DL91: z | DM91: z | DN91: z | DO91: z | DP91: z | DQ91: z | DR91: z | DS91: z | DT91: z | DU91: z | DV91: z | DW91: z | DX91: z | DY91: z | DZ91: z | EA91: z | EB91: z | EC91: z | ED91: z | EE91: z | EF91: z | EG91: z | EH91: z | EI91: z | EJ91: z | EK91: z | EL91: z | EM91: z | EN91: z | EO91: z | EP91: z | EQ91: z | ER91: z | ES91: z | ET91: z | EU91: z | EV91: z | EW91: z | EX91: z | EY91: z | EZ91: z | FA91: z | FB91: z | FC91: z | FD91: z | FE91: z | FF91: z | FG91: z | FH91: z | FI91: z | FJ91: z | FK91: z | FL91: z | FM91: z | FN91: z | FO91: z | FP91: z | FQ91: z | FR91: z | FS91: z | FT91: z | FU91: z | FV91: z | FW91: z | FX91: z | FY91: z | FZ91: z | GA91: z | GB91: z | GC91: z | GD91: z | GE91: z | GF91: z | GG91: z | GH91: z | GI91: z | GJ91: z | GK91: z | GL91: z | GM91: z | GN91: z | GO91: z | GP91: z | GQ91: z | GR91: z | GS91: z | GT91: z | GU91: z | GV91: z | GW91: z | GX91: z | GY91: z | GZ91: z | HA91: z | HB91: z | HC91: z | HD91: z | HE91: z | HF91: z | HG91: z | HH91: z | HI91: z | HJ91: z | HK91: z | HL91: z | HM91: z | HN91: z | HO91: z | HP91: z | HQ91: z | HR91: z | HS91: z | HT91: z | HU91: z | HV91: z | HW91: z | HX91: z | HY91: z | HZ91: z | IA91: z | IB91: z | IC91: z | ID91: z | IE91: z | IF91: z | IG91: z | IH91: z | II91: z | IJ91: z | IK91: z | IL91: z | IM91: z | IN91: z
A92: 91 | B92: 66 | C92: 62 | D92: 62 | E92: 66 | F92: 66 | G92: 66 | I92: z | J92: z | K92: z | L92: z | M92: z | N92: z | O92: z | P92: z | Q92: z | R92: z | S92: z | T92: z | U92: z | V92: z | W92: z | X92: z | Y92: z | Z92: z | AA92: z | AB92: z | AC92: z | AD92: z | AE92: z | AF92: z | AG92: z | AH92: z | AI92: z | AJ92: z | AK92: z | AL92: z | AM92: z | AN92: z | AO92: z | AP92: z | AQ92: z | AR92: z | AS92: z | AT92: z | AU92: z | AV92: z | AW92: z | AX92: z | AY92: z | AZ92: z | BA92: z | BB92: z | BC92: z | BD92: z | BE92: z | BF92: z | BG92: z | BH92: z | BI92: z | BJ92: z | BK92: z | BL92: z | BM92: z | BN92: z | BO92: z | BP92: z | BQ92: z | BR92: z | BS92: z | BT92: z | BU92: z | BV92: z | BW92: z | BX92: z | BY92: z | BZ92: z | CA92: z | CB92: z | CC92: z | CD92: z | CE92: z | CF92: z | CG92: z | CH92: z | CI92: z | CJ92: z | CK92: z | CL92: z | CM92: z | CN92: z | CO92: z | CP92: z | CQ92: z | CR92: z | CS92: z | CT92: z | CU92: z | CV92: z | CW92: z | CX92: z | CY92: z | CZ92: z | DA92: z | DB92: z | DC92: z | DD92: z | DE92: z | DF92: z | DG92: z | DH92: z | DI92: z | DJ92: z | DK92: z | DL92: z | DM92: z | DN92: z | DO92: z | DP92: z | DQ92: z | DR92: z | DS92: z | DT92: z | DU92: z | DV92: z | DW92: z | DX92: z | DY92: z | DZ92: z | EA92: z | EB92: z | EC92: z | ED92: z | EE92: z | EF92: z | EG92: z | EH92: z | EI92: z | EJ92: z | EK92: z | EL92: z | EM92: z | EN92: z | EO92: z | EP92: z | EQ92: z | ER92: z | ES92: z | ET92: z | EU92: z | EV92: z | EW92: z | EX92: z | EY92: z | EZ92: z | FA92: z | FB92: z | FC92: z | FD92: z | FE92: z | FF92: z | FG92: z | FH92: z | FI92: z | FJ92: z | FK92: z | FL92: z | FM92: z | FN92: z | FO92: z | FP92: z | FQ92: z | FR92: z | FS92: z | FT92: z | FU92: z | FV92: z | FW92: z | FX92: z | FY92: z | FZ92: z | GA92: z | GB92: z | GC92: z | GD92: z | GE92: z | GF92: z | GG92: z | GH92: z | GI92: z | GJ92: z | GK92: z | GL92: z | GM92: z | GN92: z | GO92: z | GP92: z | GQ92: z | GR92: z | GS92: z | GT92: z | GU92: z | GV92: z | GW92: z | GX92: z | GY92: z | GZ92: z | HA92: z | HB92: z | HC92: z | HD92: z | HE92: z | HF92: z | HG92: z | HH92: z | HI92: z | HJ92: z | HK92: z | HL92: z | HM92: z | HN92: z | HO92: z | HP92: z | HQ92: z | HR92: z | HS92: z | HT92: z | HU92: z | HV92: z | HW92: z | HX92: z | HY92: z | HZ92: z | IA92: z | IB92: z | IC92: z | ID92: z | IE92: z | IF92: z | IG92: z | IH92: z | II92: z | IJ92: z | IK92: z | IL92: z | IM92: z | IN92: z
A93: 92 | B93: 66 | C93: 62 | D93: 62 | E93: 66 | F93: 66 | G93: 66 | I93: z | J93: z | K93: z | L93: z | M93: z | N93: z | O93: z | P93: z | Q93: z | R93: z | S93: z | T93: z | U93: z | V93: z | W93: z | X93: z | Y93: z | Z93: z | AA93: z | AB93: z | AC93: z | AD93: z | AE93: z | AF93: z | AG93: z | AH93: z | AI93: z | AJ93: z | AK93: z | AL93: z | AM93: z | AN93: z | AO93: z | AP93: z | AQ93: z | AR93: z | AS93: z | AT93: z | AU93: z | AV93: z | AW93: z | AX93: z | AY93: z | AZ93: z | BA93: z | BB93: z | BC93: z | BD93: z | BE93: z | BF93: z | BG93: z | BH93: z | BI93: z | BJ93: z | BK93: z | BL93: z | BM93: z | BN93: z | BO93: z | BP93: z | BQ93: z | BR93: z | BS93: z | BT93: z | BU93: z | BV93: z | BW93: z | BX93: z | BY93: z | BZ93: z | CA93: z | CB93: z | CC93: z | CD93: z | CE93: z | CF93: z | CG93: z | CH93: z | CI93: z | CJ93: z | CK93: z | CL93: z | CM93: z | CN93: z | CO93: z | CP93: z | CQ93: z | CR93: z | CS93: z | CT93: z | CU93: z | CV93: z | CW93: z | CX93: z | CY93: z | CZ93: z | DA93: z | DB93: z | DC93: z | DD93: z | DE93: z | DF93: z | DG93: z | DH93: z | DI93: z | DJ93: z | DK93: z | DL93: z | DM93: z | DN93: z | DO93: z | DP93: z | DQ93: z | DR93: z | DS93: z | DT93: z | DU93: z | DV93: z | DW93: z | DX93: z | DY93: z | DZ93: z | EA93: z | EB93: z | EC93: z | ED93: z | EE93: z | EF93: z | EG93: z | EH93: z | EI93: z | EJ93: z | EK93: z | EL93: z | EM93: z | EN93: z | EO93: z | EP93: z | EQ93: z | ER93: z | ES93: z | ET93: z | EU93: z | EV93: z | EW93: z | EX93: z | EY93: z | EZ93: z | FA93: z | FB93: z | FC93: z | FD93: z | FE93: z | FF93: z | FG93: z | FH93: z | FI93: z | FJ93: z | FK93: z | FL93: z | FM93: z | FN93: z | FO93: z | FP93: z | FQ93: z | FR93: z | FS93: z | FT93: z | FU93: z | FV93: z | FW93: z | FX93: z | FY93: z | FZ93: z | GA93: z | GB93: z | GC93: z | GD93: z | GE93: z | GF93: z | GG93: z | GH93: z | GI93: z | GJ93: z | GK93: z | GL93: z | GM93: z | GN93: z | GO93: z | GP93: z | GQ93: z | GR93: z | GS93: z | GT93: z | GU93: z | GV93: z | GW93: z | GX93: z | GY93: z | GZ93: z | HA93: z | HB93: z | HC93: z | HD93: z | HE93: z | HF93: z | HG93: z | HH93: z | HI93: z | HJ93: z | HK93: z | HL93: z | HM93: z | HN93: z | HO93: z | HP93: z | HQ93: z | HR93: z | HS93: z | HT93: z | HU93: z | HV93: z | HW93: z | HX93: z | HY93: z | HZ93: z | IA93: z | IB93: z | IC93: z | ID93: z | IE93: z | IF93: z | IG93: z | IH93: z | II93: z | IJ93: z | IK93: z | IL93: z | IM93: z | IN93: z
A94: 93 | B94: 66 | C94: 62 | D94: 62 | E94: 66 | F94: 66 | G94: 66 | I94: z | J94: z | K94: z | L94: z | M94: z | N94: z | O94: z | P94: z | Q94: z | R94: z | S94: z | T94: z | U94: z | V94: z | W94: z | X94: z | Y94: z | Z94: z | AA94: z | AB94: z | AC94: z | AD94: z | AE94: z | AF94: z | AG94: z | AH94: z | AI94: z | AJ94: z | AK94: z | AL94: z | AM94: z | AN94: z | AO94: z | AP94: z | AQ94: z | AR94: z | AS94: z | AT94: z | AU94: z | AV94: z | AW94: z | AX94: z | AY94: z | AZ94: z | BA94: z | BB94: z | BC94: z | BD94: z | BE94: z | BF94: z | BG94: z | BH94: z | BI94: z | BJ94: z | BK94: z | BL94: z | BM94: z | BN94: z | BO94: z | BP94: z | BQ94: z | BR94: z | BS94: z | BT94: z | BU94: z | BV94: z | BW94: z | BX94: z | BY94: z | BZ94: z | CA94: z | CB94: z | CC94: z | CD94: z | CE94: z | CF94: z | CG94: z | CH94: z | CI94: z | CJ94: z | CK94: z | CL94: z | CM94: z | CN94: z | CO94: z | CP94: z | CQ94: z | CR94: z | CS94: z | CT94: z | CU94: z | CV94: z | CW94: z | CX94: z | CY94: z | CZ94: z | DA94: z | DB94: z | DC94: z | DD94: z | DE94: z | DF94: z | DG94: z | DH94: z | DI94: z | DJ94: z | DK94: z | DL94: z | DM94: z | DN94: z | DO94: z | DP94: z | DQ94: z | DR94: z | DS94: z | DT94: z | DU94: z | DV94: z | DW94: z | DX94: z | DY94: z | DZ94: z | EA94: z | EB94: z | EC94: z | ED94: z | EE94: z | EF94: z | EG94: z | EH94: z | EI94: z | EJ94: z | EK94: z | EL94: z | EM94: z | EN94: z | EO94: z | EP94: z | EQ94: z | ER94: z | ES94: z | ET94: z | EU94: z | EV94: z | EW94: z | EX94: z | EY94: z | EZ94: z | FA94: z | FB94: z | FC94: z | FD94: z | FE94: z | FF94: z | FG94: z | FH94: z | FI94: z | FJ94: z | FK94: z | FL94: z | FM94: z | FN94: z | FO94: z | FP94: z | FQ94: z | FR94: z | FS94: z | FT94: z | FU94: z | FV94: z | FW94: z | FX94: z | FY94: z | FZ94: z | GA94: z | GB94: z | GC94: z | GD94: z | GE94: z | GF94: z | GG94: z | GH94: z | GI94: z | GJ94: z | GK94: z | GL94: z | GM94: z | GN94: z | GO94: z | GP94: z | GQ94: z | GR94: z | GS94: z | GT94: z | GU94: z | GV94: z | GW94: z | GX94: z | GY94: z | GZ94: z | HA94: z | HB94: z | HC94: z | HD94: z | HE94: z | HF94: z | HG94: z | HH94: z | HI94: z | HJ94: z | HK94: z | HL94: z | HM94: z | HN94: z | HO94: z | HP94: z | HQ94: z | HR94: z | HS94: z | HT94: z | HU94: z | HV94: z | HW94: z | HX94: z | HY94: z | HZ94: z | IA94: z | IB94: z | IC94: z | ID94: z | IE94: z | IF94: z | IG94: z | IH94: z | II94: z | IJ94: z | IK94: z | IL94: z | IM94: z | IN94: z
